Workbook

Sheet はじめに
A2: 【CNP需要等算定シートの取扱について】
B4: 本CNP需要等算定シートは、北陸地域におけるCNP広域連携輸送検討ワーキングチームにおける検討成果であり、脱炭素化の取り組みの検討をする際に、必要に応じて参照し、活用することを期待するものである。 なおｌ、ＣＮＰ需要等算定シートや算定結果は、ある一定の仮定に基づき、設定しているものであり、北陸地方整備局が何ら責任を負うものではない。

Sheet 算定フロー
A2: 【CNP需要等算定シートの算定フロー（前回からの更新箇所含む）】
B4: 前回時点（R6.3公表）の算定フロー
B7: 今回（R7.3公表）の算定フロー（更新箇所含む）

Sheet ①需要入力
F2: ①需要 入力項目 | N2: 入力項目
F4: ●混焼率・導入率
G6: 実証期 | I6: 2030年 | K6: 移行期 | M6: 2050年
G7: 混焼率 | H7: 導入率 | I7: 混焼率 | J7: 導入率 | K7: 混焼率 | L7: 導入率 | M7: 混焼率 | N7: 導入率
F8: 石炭火力等によるアンモニア利用（ボイラー・タービン利用） | G8: 0.2 | H8: 0.25 | I8: 0.2 | J8: 1 | K8: 0.5 | L8: 0.75 | M8: 1 | N8: 1
F9: LNG火力等による水素利用（ボイラー・タービン利用） | G9: 0.1 | H9: 0.125 | I9: 0.1 | J9: 0.25 | K9: 0.3 | L9: 0.5 | M9: 1 | N9: 1
F10: 都市ガスＣＮ メタン化 | G10: 1 | H10: 1 | I10: 1 | J10: 0.01 | K10: 1 | L10: 0.45 | M10: 1 | N10: 0.9
F11: 〃 水素直接利用 | L11: 0.025 | N11: 0.05
F12: セメント産業のFC化 | G12: 1 | H12: 1 | I12: 0.3 | J12: 1 | K12: 0.4 | L12: 1 | M12: 0.5 | N12: 1
F13: 輸送車両のFC化 | G13: 1 | H13: 1 | I13: 1 | J13: 0.2 | K13: 1 | L13: 0.5 | M13: 1 | N13: 1
F14: 荷役機械（ターミナル内）のFC化 | G14: 1 | H14: 1 | I14: 1 | J14: 0.25 | K14: 1 | L14: 0.5 | M14: 1 | N14: 1
F15: タグボート（ターミナル内）のFC化 | G15: 1 | H15: 1 | I15: 0.8 | J15: 0.25 | K15: 0.9 | L15: 0.5 | M15: 1 | N15: 1
F16: 停泊中船舶への陸電供給 | G16: 1 | H16: 1 | I16: 1 | J16: 0.25 | K16: 1 | L16: 0.5 | M16: 1 | N16: 1
O17: 962 | P17: 962 | Q17: 962 | R17: 962
F18: ●エネルギー消費量（熱量換算） | M18: 敦賀セメント使用燃料（2019年度実績） | O18: 962 | P18: 962 | Q18: 962 | R18: 962
L19: 単位：GJ／年
G20: 新潟港 | H20: 直江津港 | I20: 伏木富山港 | J20: 金沢港 | K20: 七尾港 | L20: 敦賀港 | M20: 感度分析用 | O20: 962 | P20: 新潟港 | Q20: 直江津港 | R20: 伏木富山港 | S20: 金沢港 | T20: 七尾港 | U20: 敦賀港
B21: 1 | F21: 石炭・LNG火力等による燃料利用（ボイラー・タービン利用） | G21: =P21*$M21 -> 193160236.7 | H21: 120292724 | I21: 59796854.76 | J21: 7569.76 | K21: 65234564.3 | L21: 65752106.11 | M21: 1 | P21: 193160236.7 | Q21: 120292724 | R21: 59796854.76 | S21: 7569.76 | T21: 65234564.3 | U21: 65752106.11
B22: 2 | F22: 都市ガスＣＮメタン化 | G22: 別途算出（「都市ガス」シート参照） | M22: 1 | P22: 別途算出（「都市ガス」シート参照）
B23: 3 | F23: セメント産業のFC化 | L23: =U23*$M23 -> 2033555.1 | M23: 1 | U23: 2033555.1
B24: 4 | F24: 輸送車両のFC化 | G24: =P24*$M24 -> 1102596.919 | H24: 195594.5786 | I24: 137517.4096 | J24: 39319.7 | K24: 50668.8 | L24: =U24*$M24 -> 925351.5733 | M24: 1 | P24: 1102596.919 | Q24: 195594.5786 | R24: 137517.4096 | S24: 39319.7 | T24: 50668.8 | U24: 925351.5733
B25: 5 | F25: 荷役機械等（ターミナル内）のFC化 | G25: 23874.9036 | H25: 35855.70662 | I25: 46405.99164 | J25: 10521.7 | K25: 8498.8 | L25: =U25*$M25 -> 19233.63543 | M25: 1 | P25: 23874.9036 | Q25: 35855.70662 | R25: 46405.99164 | S25: 10521.7 | T25: 8498.8 | U25: 19233.63543
B26: 6 | F26: タグボート（ターミナル内）のFC化 | G26: 149850.75 | H26: 124875.625 | I26: 74925.375 | J26: 49950.25 | K26: 49950.25 | L26: =U26*$M26 -> 49950.25 | M26: 1 | P26: 149850.75 | Q26: 124875.625 | R26: 74925.375 | S26: 49950.25 | T26: 49950.25 | U26: 49950.25
B27: 7 | F27: 停泊中船舶への陸電供給 | G27: 532215.532 | H27: 166696.0426 | I27: 277863.062 | J27: 15249 | K27: 11456.3 | L27: =U27*$M27 -> 158497.5066 | M27: 1 | P27: 532215.532 | Q27: 166696.0426 | R27: 277863.062 | S27: 15249 | T27: 11456.3 | U27: 158497.5066
F29: ●ボイラー・タービン燃料のアンモニア・水素への転換率 | S29: 39.1 | T29: GJ/kL
G31: 新潟港 | H31: 直江津港 | I31: 伏木富山港 | J31: 金沢港 | K31: 七尾港 | L31: 敦賀港 | S31: =S29 -> 39.1 | T31: GJ/kL
B32: 1 | F32: アンモニアへの転換率 | G32: 0 | H32: 0 | I32: 0.521841911 | J32: 0 | K32: 0.9758135241 | L32: 0.9974315652 | S32: =S31 -> 39.1 | T32: GJ/kL
B33: 2 | F33: 水素への転換率 | G33: 1 | H33: 1 | I33: 0.478158089 | J33: 1 | K33: 0.02418647589 | L33: 0.002568434838 | S33: =S32 -> 39.1 | T33: GJ/kL
F34: ※伏木富山港、敦賀港：気体燃料を水素と混焼、液体・個体燃料をアンモニアと混焼するものとして、実際の燃料消費量（熱量換算）比率で按分 | S34: =S33 -> 39.1 | T34: GJ/kL
F35: ※金沢港、七尾港：CNP形成計画より設定 | S35: =S34 -> 39.1 | T35: GJ/kL
F36: ※新潟港、直江津港：港湾脱炭素化推進計画より設定 | T36: （※2）港湾管理者ヒアリングより
F38: ●単位質量あたりの熱量
F40: アンモニア | G40: =18.6/1000 -> 0.0186
F41: 水素 | G41: =121/1000 -> 0.121
F42: 出典：「港湾脱炭素化推進計画」作成マニュアル（2023年3月、国土交通省港湾局）
F44: ●エネルギーロス係数
F46: アンモニアクラッキング | G46: 0.18
F47: メタネーション | G47: 0.32
F48: 出典:経済産業省 資料「水素を取り巻く国内外情勢と水素政策の現状について（参考資料：水素キャリアの選定と今後の支援方針）」

Sheet ②供給入力
B2: ②供給 入力項目 | F2: 入力項目
B4: ●シナリオ設定
B6: 国名 | C6: 調達割合（シナリオ１）
C7: 実証期 | D7: 2030年 | E7: 移行期 | F7: 2050年
B8: オーストラリア | C8: 0.5 | D8: =1/3 -> 0.3333333333 | E8: 0.25 | F8: =1/6 -> 0.1666666667
B9: アメリカ | C9: 0 | D9: 0 | E9: 0.25 | F9: 0.1666666667
B10: カナダ | C10: 0 | D10: =1/3 -> 0.3333333333 | E10: 0.25 | F10: 0.1666666667
B11: チリ | C11: 0.5 | D11: =1/3 -> 0.3333333333 | E11: 0.25 | F11: 0.1666666667
B12: オマーン | C12: 0 | D12: 0 | E12: 0 | F12: 0.1666666667
B13: ナミビア | C13: 0 | D13: 0 | E13: 0 | F13: 0.1666666667
B16: 国名 | C16: 調達割合（シナリオ２）
C17: 実証期 | D17: 2030年 | E17: 移行期 | F17: 2050年
B18: オーストラリア | C18: 1 | D18: 1 | E18: 1 | F18: 1
B19: アメリカ | C19: 0 | D19: 0 | E19: 0 | F19: 0
B20: カナダ | C20: 0 | D20: 0 | E20: 0 | F20: 0
B21: チリ | C21: 0 | D21: 0 | E21: 0 | F21: 0
B22: オマーン | C22: 0 | D22: 0 | E22: 0 | F22: 0
B23: ナミビア | C23: 0 | D23: 0 | E23: 0 | F23: 0
B26: 国名 | C26: 調達割合（シナリオ３）
C27: 実証期 | D27: 2030年 | E27: 移行期 | F27: 2050年
B28: オーストラリア | C28: 0.7 | D28: 0.7 | E28: 0.7 | F28: 0.7
B29: アメリカ | C29: 0 | D29: 0 | E29: 0.1 | F29: 0.06
B30: カナダ | C30: 0 | D30: 0.15 | E30: 0.1 | F30: 0.06
B31: チリ | C31: 0.3 | D31: 0.15 | E31: 0.1 | F31: 0.06
B32: オマーン | C32: 0 | D32: 0 | E32: 0 | F32: 0.06
B33: ナミビア | C33: 0 | D33: 0 | E33: 0 | F33: 0.06
B36: 国名 | C36: 調達割合（シナリオ４）
C37: 実証期 | D37: 2030年 | E37: 移行期 | F37: 2050年
B38: オーストラリア | C38: 0.7390516851 | D38: 0.4639114155 | E38: 0.3520626151 | F38: 0.2655528319
B39: アメリカ | C39: 0 | D39: 0 | E39: 0.2410994787 | F39: 0.1818558592
B40: カナダ | C40: 0 | D40: 0.372288265 | E40: 0.2825297583 | F40: 0.2131057778
B41: チリ | C41: 0.2609483149 | D41: 0.1638003195 | E41: 0.1243081479 | F41: 0.09376281172
B42: オマーン | C42: 0 | D42: 0 | E42: 0 | F42: 0.1473264556
B43: ナミビア | C43: 0 | D43: 0 | E43: 0 | F43: 0.09839626379
B47: 国名 | C47: 調達割合（シナリオ１）
C48: 実証期 | D48: 2030年 | E48: 移行期 | F48: 2050年
B49: オーストラリア | C49: =C8 -> 0.5 | D49: 0.3333333333 | E49: 0.25 | F49: 0.1666666667
B50: アメリカ | C50: 0 | D50: 0 | E50: 0.25 | F50: 0.1666666667
B51: カナダ | C51: 0 | D51: 0.3333333333 | E51: 0.25 | F51: 0.1666666667
B52: チリ | C52: 0.5 | D52: 0.3333333333 | E52: 0.25 | F52: 0.1666666667
B53: オマーン | C53: 0 | D53: 0 | E53: 0 | F53: 0.1666666667
B54: ナミビア | C54: 0 | D54: 0 | E54: 0 | F54: 0.1666666667
B57: 国名 | C57: 調達割合（シナリオ２）
C58: 実証期 | D58: 2030年 | E58: 移行期 | F58: 2050年
B59: オーストラリア | C59: =C18 -> 1 | D59: 1 | E59: 1 | F59: 1
B60: アメリカ | C60: 0 | D60: 0 | E60: 0 | F60: 0
B61: カナダ | C61: 0 | D61: 0 | E61: 0 | F61: 0
B62: チリ | C62: 0 | D62: 0 | E62: 0 | F62: 0
B63: オマーン | C63: 0 | D63: 0 | E63: 0 | F63: 0
B64: ナミビア | C64: 0 | D64: 0 | E64: 0 | F64: 0
B67: 国名 | C67: 調達割合（シナリオ３）
C68: 実証期 | D68: 2030年 | E68: 移行期 | F68: 2050年
B69: オーストラリア | C69: =C28 -> 0.7 | D69: 0.7 | E69: 0.7 | F69: 0.7
B70: アメリカ | C70: 0 | D70: 0 | E70: 0.1 | F70: 0.06
B71: カナダ | C71: 0 | D71: 0.15 | E71: 0.1 | F71: 0.06
B72: チリ | C72: 0.3 | D72: 0.15 | E72: 0.1 | F72: 0.06
B73: オマーン | C73: 0 | D73: 0 | E73: 0 | F73: 0.06
B74: ナミビア | C74: 0 | D74: 0 | E74: 0 | F74: 0.06
B77: 国名 | C77: 調達割合（シナリオ４）
C78: 実証期 | D78: 2030年 | E78: 移行期 | F78: 2050年
B79: オーストラリア | C79: =C38 -> 0.7390516851 | D79: 0.4639114155 | E79: 0.3520626151 | F79: 0.2655528319
B80: アメリカ | C80: 0 | D80: 0 | E80: 0.2410994787 | F80: 0.1818558592
B81: カナダ | C81: 0 | D81: 0.372288265 | E81: 0.2825297583 | F81: 0.2131057778
B82: チリ | C82: 0.2609483149 | D82: 0.1638003195 | E82: 0.1243081479 | F82: 0.09376281172
B83: オマーン | C83: 0 | D83: 0 | E83: 0 | F83: 0.1473264556
B84: ナミビア | C84: 0 | D84: 0 | E84: 0 | F84: 0.09839626379
B88: 国名 | C88: 調達割合（シナリオ１）
C89: 実証期 | D89: 2030年 | E89: 移行期 | F89: 2050年
B90: オーストラリア | C90: =C8 -> 0.5 | D90: 0.3333333333 | E90: 0.25 | F90: 0.1666666667
B91: アメリカ | C91: 0 | D91: 0 | E91: 0.25 | F91: 0.1666666667
B92: カナダ | C92: 0 | D92: 0.3333333333 | E92: 0.25 | F92: 0.1666666667
B93: チリ | C93: 0.5 | D93: 0.3333333333 | E93: 0.25 | F93: 0.1666666667
B94: オマーン | C94: 0 | D94: 0 | E94: 0 | F94: 0.1666666667
B95: ナミビア | C95: 0 | D95: 0 | E95: 0 | F95: 0.1666666667
B98: 国名 | C98: 調達割合（シナリオ２）
C99: 実証期 | D99: 2030年 | E99: 移行期 | F99: 2050年
B100: オーストラリア | C100: =C18 -> 1 | D100: 1 | E100: 1 | F100: 1
B101: アメリカ | C101: 0 | D101: 0 | E101: 0 | F101: 0
B102: カナダ | C102: 0 | D102: 0 | E102: 0 | F102: 0
B103: チリ | C103: 0 | D103: 0 | E103: 0 | F103: 0
B104: オマーン | C104: 0 | D104: 0 | E104: 0 | F104: 0
B105: ナミビア | C105: 0 | D105: 0 | E105: 0 | F105: 0
B108: 国名 | C108: 調達割合（シナリオ３）
C109: 実証期 | D109: 2030年 | E109: 移行期 | F109: 2050年
B110: オーストラリア | C110: =C28 -> 0.7 | D110: 0.7 | E110: 0.7 | F110: 0.7
B111: アメリカ | C111: 0 | D111: 0 | E111: 0.1 | F111: 0.06
B112: カナダ | C112: 0 | D112: 0.15 | E112: 0.1 | F112: 0.06
B113: チリ | C113: 0.3 | D113: 0.15 | E113: 0.1 | F113: 0.06
B114: オマーン | C114: 0 | D114: 0 | E114: 0 | F114: 0.06
B115: ナミビア | C115: 0 | D115: 0 | E115: 0 | F115: 0.06
B118: 国名 | C118: 調達割合（シナリオ４）
C119: 実証期 | D119: 2030年 | E119: 移行期 | F119: 2050年
B120: オーストラリア | C120: =C38 -> 0.7390516851 | D120: 0.4639114155 | E120: 0.3520626151 | F120: 0.2655528319
B121: アメリカ | C121: 0 | D121: 0 | E121: 0.2410994787 | F121: 0.1818558592
B122: カナダ | C122: 0 | D122: 0.372288265 | E122: 0.2825297583 | F122: 0.2131057778
B123: チリ | C123: 0.2609483149 | D123: 0.1638003195 | E123: 0.1243081479 | F123: 0.09376281172
B124: オマーン | C124: 0 | D124: 0 | E124: 0 | F124: 0.1473264556
B125: ナミビア | C125: 0 | D125: 0 | E125: 0 | F125: 0.09839626379

Sheet ③輸送・貯蔵入力
B2: ③輸送・貯蔵 入力項目 | H2: 入力項目
D4: 水素 | E4: アンモニア | F4: メタン | G4: 備考 | H4: 備考２ | J4: タンク個数_縦 | K4: タンク個数_横 | L4: 水素余白個数 | M4: アンモニア余白個数 | N4: 範囲From | O4: 範囲To
B5: 密度 | C5: （t/m3） | D5: =④海上輸送網入力!E8 -> 0.07081151832 | E5: =④海上輸送網入力!E9 -> 0.6821705426 | F5: =④海上輸送網入力!E10 -> 0.46 | G5: 水素、アンモニア:「港湾脱炭素化推進計画」作成マニュアル（2023年3月、国土交通省港湾局） メタン：水を１としたとき、LNGの液比重0.46を踏まえ設定（LNGと同様と仮定）※ | H5: シート名「④海上輸送網入力」のE列の8～10行目で入力した数値 | J5: 1 | K5: 1 | L5: 20 | M5: 24 | N5: 1 | O5: 1
B6: タンク容量 | C6: （m3/基） | D6: 100000 | E6: =E7/E5 -> 161250 | F6: 180000 | G6: 水素：「石炭ガス化による水素、アンモニアの経済性とCO2排出量」（国立研究開発法人学技術振興機構低炭素社会戦略センター） アンモニア：IHIで11万トンクラスのアンモニアタンクの実装に向けた許認可に関する取組より設定 メタン：北陸管内において最大サイズのタンクである富山新港火力発電所（18万ｍ3）の値を設定 | J6: 2 | K6: 1 | L6: 28 | M6: 34 | N6: 2 | O6: 2
C7: （t/基） | D7: =ROUND(D5*D6,-2) -> 7100 | E7: 110000 | F7: =F5*F6 -> 82800 | J7: 2 | K7: =K5+1 -> 2 | L7: 36 | M7: 44 | N7: 3 | O7: =J7*K7 -> 4
B8: タンク直径 | C8: （m） | D8: =ROUNDUP(16.918*LN(D6)-128.8,0) -> 66 | E8: =ROUNDUP(16.918*LN(E6)-128.8,0) -> 75 | F8: =ROUNDUP(16.918*LN(F6)-128.8,0) -> 76 | G8: タンクの容量と直径の関係式より | J8: =J6+1 -> 3 | K8: 2 | L8: 44 | M8: 54 | N8: =O7+1 -> 5 | O8: 6
B9: 余白面積 | C9: （㎡） | D9: =(③輸送・貯蔵入力!D8/2)*(③輸送・貯蔵入力!D8/2) -> 1089 | E9: =(③輸送・貯蔵入力!E8/3)*(③輸送・貯蔵入力!E8/3) -> 625 | F9: =(③輸送・貯蔵入力!F8/2)*(③輸送・貯蔵入力!F8/2) -> 1444 | J9: 3 | K9: 3 | L9: 52 | M9: 64 | N9: 7 | O9: 9
B10: タンク周辺面積 | C10: （㎡） | D10: =(③輸送・貯蔵入力!D9*16) -> 17424 | E10: =(③輸送・貯蔵入力!E8*5/3)*(③輸送・貯蔵入力!E8*5/3) -> 15625 | F10: =(③輸送・貯蔵入力!F9*16) -> 23104 | J10: 4 | K10: 3 | L10: 60 | M10: 74 | N10: 10 | O10: 12
B11: ※経済産業省「ガス事業制度検討ワーキンググループ」より、「合成メタンは、LNG・天然ガスの既存のサプライチェーンをそのまま利用可能」といった特徴を持っていることことから設定 | J11: 4 | K11: 4 | L11: 68 | M11: 84 | N11: 13 | O11: 16
J12: 5 | K12: 4 | L12: 76 | M12: 94 | N12: 17 | O12: 20
B13: 貯蔵タンク必要量 | J13: 5 | K13: 5 | L13: 84 | M13: 104 | N13: 21 | O13: 25
B14: 1 | C14: か月分 | J14: 6 | K14: 5 | L14: 92 | M14: 114 | N14: 26 | O14: 30
B15: ※関係者ヒアリング等より設定 | J15: 6 | K15: 6 | L15: 100 | M15: 124 | N15: 31 | O15: 36
J16: 7 | K16: 6 | L16: 108 | M16: 134 | N16: 37 | O16: 42
B17: 需要ピーク係数（令和5年度） | J17: 7 | K17: 7 | L17: 116 | M17: 144 | N17: 43 | O17: 49
B18: 2024-01-01 | C18: 1.14 | J18: 8 | K18: 7 | L18: 124 | M18: 154 | N18: 50 | O18: 56
B19: ※経済産業省「電力調査統計表」の北陸4県の電力需要実績を踏まえ設定 | J19: 8 | K19: 8 | L19: 132 | M19: 164 | N19: 57 | O19: 64
J20: 9 | K20: 8 | L20: 140 | M20: 174 | N20: 65 | O20: 72
J21: 9 | K21: 9 | L21: 148 | M21: 184 | N21: 73 | O21: 81
J22: 10 | K22: 9 | L22: 156 | M22: 194 | N22: 82 | O22: 90
J23: 10 | K23: 10 | L23: 164 | M23: 204 | N23: 91 | O23: 100
B27: タンク個数 | C27: 水素 | D27: アンモニア | E27: メタン
B28: 1 | C28: =(D$10*B28)+(D$9*(_xlfn.XLOOKUP(TRUE,(N$5:N$25<=B28)*(O$5:O$25>=B28)>0,L$5:L$25))) ->  | D28: =(E$10*B28)+(E$9*(_xlfn.XLOOKUP(TRUE,(N$5:N$25<=B28)*(O$5:O$25>=B28)>0,M$5:M$25))) ->  | E28: =(F$10*B28)+(F$9*(_xlfn.XLOOKUP(TRUE,(N$5:N$25<=B28)*(O$5:O$25>=B28)>0,L$5:L$25))) -> 
B29: 2 | C29: =(D$10*B29)+(D$9*(_xlfn.XLOOKUP(TRUE,(N$5:N$25<=B29)*(O$5:O$25>=B29)>0,L$5:L$25))) ->  | D29: =(E$10*B29)+(E$9*(_xlfn.XLOOKUP(TRUE,(N$5:N$25<=B29)*(O$5:O$25>=B29)>0,M$5:M$25))) ->  | E29: =(F$10*B29)+(F$9*(_xlfn.XLOOKUP(TRUE,(N$5:N$25<=B29)*(O$5:O$25>=B29)>0,L$5:L$25))) -> 
B30: 3 | C30: =(D$10*B30)+(D$9*(_xlfn.XLOOKUP(TRUE,(N$5:N$25<=B30)*(O$5:O$25>=B30)>0,L$5:L$25))) ->  | D30: =(E$10*B30)+(E$9*(_xlfn.XLOOKUP(TRUE,(N$5:N$25<=B30)*(O$5:O$25>=B30)>0,M$5:M$25))) ->  | E30: =(F$10*B30)+(F$9*(_xlfn.XLOOKUP(TRUE,(N$5:N$25<=B30)*(O$5:O$25>=B30)>0,L$5:L$25))) -> 
B31: 4 | C31: =(D$10*B31)+(D$9*(_xlfn.XLOOKUP(TRUE,(N$5:N$25<=B31)*(O$5:O$25>=B31)>0,L$5:L$25))) ->  | D31: =(E$10*B31)+(E$9*(_xlfn.XLOOKUP(TRUE,(N$5:N$25<=B31)*(O$5:O$25>=B31)>0,M$5:M$25))) ->  | E31: =(F$10*B31)+(F$9*(_xlfn.XLOOKUP(TRUE,(N$5:N$25<=B31)*(O$5:O$25>=B31)>0,L$5:L$25))) -> 
B32: 5 | C32: =(D$10*B32)+(D$9*(_xlfn.XLOOKUP(TRUE,(N$5:N$25<=B32)*(O$5:O$25>=B32)>0,L$5:L$25))) ->  | D32: =(E$10*B32)+(E$9*(_xlfn.XLOOKUP(TRUE,(N$5:N$25<=B32)*(O$5:O$25>=B32)>0,M$5:M$25))) ->  | E32: =(F$10*B32)+(F$9*(_xlfn.XLOOKUP(TRUE,(N$5:N$25<=B32)*(O$5:O$25>=B32)>0,L$5:L$25))) -> 
B33: 6 | C33: =(D$10*B33)+(D$9*(_xlfn.XLOOKUP(TRUE,(N$5:N$25<=B33)*(O$5:O$25>=B33)>0,L$5:L$25))) ->  | D33: =(E$10*B33)+(E$9*(_xlfn.XLOOKUP(TRUE,(N$5:N$25<=B33)*(O$5:O$25>=B33)>0,M$5:M$25))) ->  | E33: =(F$10*B33)+(F$9*(_xlfn.XLOOKUP(TRUE,(N$5:N$25<=B33)*(O$5:O$25>=B33)>0,L$5:L$25))) -> 
B34: 7 | C34: =(D$10*B34)+(D$9*(_xlfn.XLOOKUP(TRUE,(N$5:N$25<=B34)*(O$5:O$25>=B34)>0,L$5:L$25))) ->  | D34: =(E$10*B34)+(E$9*(_xlfn.XLOOKUP(TRUE,(N$5:N$25<=B34)*(O$5:O$25>=B34)>0,M$5:M$25))) ->  | E34: =(F$10*B34)+(F$9*(_xlfn.XLOOKUP(TRUE,(N$5:N$25<=B34)*(O$5:O$25>=B34)>0,L$5:L$25))) -> 
B35: 8 | C35: =(D$10*B35)+(D$9*(_xlfn.XLOOKUP(TRUE,(N$5:N$25<=B35)*(O$5:O$25>=B35)>0,L$5:L$25))) ->  | D35: =(E$10*B35)+(E$9*(_xlfn.XLOOKUP(TRUE,(N$5:N$25<=B35)*(O$5:O$25>=B35)>0,M$5:M$25))) ->  | E35: =(F$10*B35)+(F$9*(_xlfn.XLOOKUP(TRUE,(N$5:N$25<=B35)*(O$5:O$25>=B35)>0,L$5:L$25))) -> 
B36: 9 | C36: =(D$10*B36)+(D$9*(_xlfn.XLOOKUP(TRUE,(N$5:N$25<=B36)*(O$5:O$25>=B36)>0,L$5:L$25))) ->  | D36: =(E$10*B36)+(E$9*(_xlfn.XLOOKUP(TRUE,(N$5:N$25<=B36)*(O$5:O$25>=B36)>0,M$5:M$25))) ->  | E36: =(F$10*B36)+(F$9*(_xlfn.XLOOKUP(TRUE,(N$5:N$25<=B36)*(O$5:O$25>=B36)>0,L$5:L$25))) -> 
B37: 10 | C37: =(D$10*B37)+(D$9*(_xlfn.XLOOKUP(TRUE,(N$5:N$25<=B37)*(O$5:O$25>=B37)>0,L$5:L$25))) ->  | D37: =(E$10*B37)+(E$9*(_xlfn.XLOOKUP(TRUE,(N$5:N$25<=B37)*(O$5:O$25>=B37)>0,M$5:M$25))) ->  | E37: =(F$10*B37)+(F$9*(_xlfn.XLOOKUP(TRUE,(N$5:N$25<=B37)*(O$5:O$25>=B37)>0,L$5:L$25))) -> 
B38: 11 | C38: =(D$10*B38)+(D$9*(_xlfn.XLOOKUP(TRUE,(N$5:N$25<=B38)*(O$5:O$25>=B38)>0,L$5:L$25))) ->  | D38: =(E$10*B38)+(E$9*(_xlfn.XLOOKUP(TRUE,(N$5:N$25<=B38)*(O$5:O$25>=B38)>0,M$5:M$25))) ->  | E38: =(F$10*B38)+(F$9*(_xlfn.XLOOKUP(TRUE,(N$5:N$25<=B38)*(O$5:O$25>=B38)>0,L$5:L$25))) -> 
B39: 12 | C39: =(D$10*B39)+(D$9*(_xlfn.XLOOKUP(TRUE,(N$5:N$25<=B39)*(O$5:O$25>=B39)>0,L$5:L$25))) ->  | D39: =(E$10*B39)+(E$9*(_xlfn.XLOOKUP(TRUE,(N$5:N$25<=B39)*(O$5:O$25>=B39)>0,M$5:M$25))) ->  | E39: =(F$10*B39)+(F$9*(_xlfn.XLOOKUP(TRUE,(N$5:N$25<=B39)*(O$5:O$25>=B39)>0,L$5:L$25))) -> 
B40: 13 | C40: =(D$10*B40)+(D$9*(_xlfn.XLOOKUP(TRUE,(N$5:N$25<=B40)*(O$5:O$25>=B40)>0,L$5:L$25))) ->  | D40: =(E$10*B40)+(E$9*(_xlfn.XLOOKUP(TRUE,(N$5:N$25<=B40)*(O$5:O$25>=B40)>0,M$5:M$25))) ->  | E40: =(F$10*B40)+(F$9*(_xlfn.XLOOKUP(TRUE,(N$5:N$25<=B40)*(O$5:O$25>=B40)>0,L$5:L$25))) -> 
B41: 14 | C41: =(D$10*B41)+(D$9*(_xlfn.XLOOKUP(TRUE,(N$5:N$25<=B41)*(O$5:O$25>=B41)>0,L$5:L$25))) ->  | D41: =(E$10*B41)+(E$9*(_xlfn.XLOOKUP(TRUE,(N$5:N$25<=B41)*(O$5:O$25>=B41)>0,M$5:M$25))) ->  | E41: =(F$10*B41)+(F$9*(_xlfn.XLOOKUP(TRUE,(N$5:N$25<=B41)*(O$5:O$25>=B41)>0,L$5:L$25))) -> 
B42: 15 | C42: =(D$10*B42)+(D$9*(_xlfn.XLOOKUP(TRUE,(N$5:N$25<=B42)*(O$5:O$25>=B42)>0,L$5:L$25))) ->  | D42: =(E$10*B42)+(E$9*(_xlfn.XLOOKUP(TRUE,(N$5:N$25<=B42)*(O$5:O$25>=B42)>0,M$5:M$25))) ->  | E42: =(F$10*B42)+(F$9*(_xlfn.XLOOKUP(TRUE,(N$5:N$25<=B42)*(O$5:O$25>=B42)>0,L$5:L$25))) -> 
B43: 16 | C43: =(D$10*B43)+(D$9*(_xlfn.XLOOKUP(TRUE,(N$5:N$25<=B43)*(O$5:O$25>=B43)>0,L$5:L$25))) ->  | D43: =(E$10*B43)+(E$9*(_xlfn.XLOOKUP(TRUE,(N$5:N$25<=B43)*(O$5:O$25>=B43)>0,M$5:M$25))) ->  | E43: =(F$10*B43)+(F$9*(_xlfn.XLOOKUP(TRUE,(N$5:N$25<=B43)*(O$5:O$25>=B43)>0,L$5:L$25))) -> 
B44: 17 | C44: =(D$10*B44)+(D$9*(_xlfn.XLOOKUP(TRUE,(N$5:N$25<=B44)*(O$5:O$25>=B44)>0,L$5:L$25))) ->  | D44: =(E$10*B44)+(E$9*(_xlfn.XLOOKUP(TRUE,(N$5:N$25<=B44)*(O$5:O$25>=B44)>0,M$5:M$25))) ->  | E44: =(F$10*B44)+(F$9*(_xlfn.XLOOKUP(TRUE,(N$5:N$25<=B44)*(O$5:O$25>=B44)>0,L$5:L$25))) -> 
B45: 18 | C45: =(D$10*B45)+(D$9*(_xlfn.XLOOKUP(TRUE,(N$5:N$25<=B45)*(O$5:O$25>=B45)>0,L$5:L$25))) ->  | D45: =(E$10*B45)+(E$9*(_xlfn.XLOOKUP(TRUE,(N$5:N$25<=B45)*(O$5:O$25>=B45)>0,M$5:M$25))) ->  | E45: =(F$10*B45)+(F$9*(_xlfn.XLOOKUP(TRUE,(N$5:N$25<=B45)*(O$5:O$25>=B45)>0,L$5:L$25))) -> 
B46: 19 | C46: =(D$10*B46)+(D$9*(_xlfn.XLOOKUP(TRUE,(N$5:N$25<=B46)*(O$5:O$25>=B46)>0,L$5:L$25))) ->  | D46: =(E$10*B46)+(E$9*(_xlfn.XLOOKUP(TRUE,(N$5:N$25<=B46)*(O$5:O$25>=B46)>0,M$5:M$25))) ->  | E46: =(F$10*B46)+(F$9*(_xlfn.XLOOKUP(TRUE,(N$5:N$25<=B46)*(O$5:O$25>=B46)>0,L$5:L$25))) -> 
B47: 20 | C47: =(D$10*B47)+(D$9*(_xlfn.XLOOKUP(TRUE,(N$5:N$25<=B47)*(O$5:O$25>=B47)>0,L$5:L$25))) ->  | D47: =(E$10*B47)+(E$9*(_xlfn.XLOOKUP(TRUE,(N$5:N$25<=B47)*(O$5:O$25>=B47)>0,M$5:M$25))) ->  | E47: =(F$10*B47)+(F$9*(_xlfn.XLOOKUP(TRUE,(N$5:N$25<=B47)*(O$5:O$25>=B47)>0,L$5:L$25))) -> 
B48: 21 | C48: =(D$10*B48)+(D$9*(_xlfn.XLOOKUP(TRUE,(N$5:N$25<=B48)*(O$5:O$25>=B48)>0,L$5:L$25))) ->  | D48: =(E$10*B48)+(E$9*(_xlfn.XLOOKUP(TRUE,(N$5:N$25<=B48)*(O$5:O$25>=B48)>0,M$5:M$25))) ->  | E48: =(F$10*B48)+(F$9*(_xlfn.XLOOKUP(TRUE,(N$5:N$25<=B48)*(O$5:O$25>=B48)>0,L$5:L$25))) -> 
B49: 22 | C49: =(D$10*B49)+(D$9*(_xlfn.XLOOKUP(TRUE,(N$5:N$25<=B49)*(O$5:O$25>=B49)>0,L$5:L$25))) ->  | D49: =(E$10*B49)+(E$9*(_xlfn.XLOOKUP(TRUE,(N$5:N$25<=B49)*(O$5:O$25>=B49)>0,M$5:M$25))) ->  | E49: =(F$10*B49)+(F$9*(_xlfn.XLOOKUP(TRUE,(N$5:N$25<=B49)*(O$5:O$25>=B49)>0,L$5:L$25))) -> 
B50: 23 | C50: =(D$10*B50)+(D$9*(_xlfn.XLOOKUP(TRUE,(N$5:N$25<=B50)*(O$5:O$25>=B50)>0,L$5:L$25))) ->  | D50: =(E$10*B50)+(E$9*(_xlfn.XLOOKUP(TRUE,(N$5:N$25<=B50)*(O$5:O$25>=B50)>0,M$5:M$25))) ->  | E50: =(F$10*B50)+(F$9*(_xlfn.XLOOKUP(TRUE,(N$5:N$25<=B50)*(O$5:O$25>=B50)>0,L$5:L$25))) -> 
B51: 24 | C51: =(D$10*B51)+(D$9*(_xlfn.XLOOKUP(TRUE,(N$5:N$25<=B51)*(O$5:O$25>=B51)>0,L$5:L$25))) ->  | D51: =(E$10*B51)+(E$9*(_xlfn.XLOOKUP(TRUE,(N$5:N$25<=B51)*(O$5:O$25>=B51)>0,M$5:M$25))) ->  | E51: =(F$10*B51)+(F$9*(_xlfn.XLOOKUP(TRUE,(N$5:N$25<=B51)*(O$5:O$25>=B51)>0,L$5:L$25))) -> 
B52: 25 | C52: =(D$10*B52)+(D$9*(_xlfn.XLOOKUP(TRUE,(N$5:N$25<=B52)*(O$5:O$25>=B52)>0,L$5:L$25))) ->  | D52: =(E$10*B52)+(E$9*(_xlfn.XLOOKUP(TRUE,(N$5:N$25<=B52)*(O$5:O$25>=B52)>0,M$5:M$25))) ->  | E52: =(F$10*B52)+(F$9*(_xlfn.XLOOKUP(TRUE,(N$5:N$25<=B52)*(O$5:O$25>=B52)>0,L$5:L$25))) -> 
B53: 26 | C53: =(D$10*B53)+(D$9*(_xlfn.XLOOKUP(TRUE,(N$5:N$25<=B53)*(O$5:O$25>=B53)>0,L$5:L$25))) ->  | D53: =(E$10*B53)+(E$9*(_xlfn.XLOOKUP(TRUE,(N$5:N$25<=B53)*(O$5:O$25>=B53)>0,M$5:M$25))) ->  | E53: =(F$10*B53)+(F$9*(_xlfn.XLOOKUP(TRUE,(N$5:N$25<=B53)*(O$5:O$25>=B53)>0,L$5:L$25))) -> 
B54: 27 | C54: =(D$10*B54)+(D$9*(_xlfn.XLOOKUP(TRUE,(N$5:N$25<=B54)*(O$5:O$25>=B54)>0,L$5:L$25))) ->  | D54: =(E$10*B54)+(E$9*(_xlfn.XLOOKUP(TRUE,(N$5:N$25<=B54)*(O$5:O$25>=B54)>0,M$5:M$25))) ->  | E54: =(F$10*B54)+(F$9*(_xlfn.XLOOKUP(TRUE,(N$5:N$25<=B54)*(O$5:O$25>=B54)>0,L$5:L$25))) -> 
B55: 28 | C55: =(D$10*B55)+(D$9*(_xlfn.XLOOKUP(TRUE,(N$5:N$25<=B55)*(O$5:O$25>=B55)>0,L$5:L$25))) ->  | D55: =(E$10*B55)+(E$9*(_xlfn.XLOOKUP(TRUE,(N$5:N$25<=B55)*(O$5:O$25>=B55)>0,M$5:M$25))) ->  | E55: =(F$10*B55)+(F$9*(_xlfn.XLOOKUP(TRUE,(N$5:N$25<=B55)*(O$5:O$25>=B55)>0,L$5:L$25))) -> 
B56: 29 | C56: =(D$10*B56)+(D$9*(_xlfn.XLOOKUP(TRUE,(N$5:N$25<=B56)*(O$5:O$25>=B56)>0,L$5:L$25))) ->  | D56: =(E$10*B56)+(E$9*(_xlfn.XLOOKUP(TRUE,(N$5:N$25<=B56)*(O$5:O$25>=B56)>0,M$5:M$25))) ->  | E56: =(F$10*B56)+(F$9*(_xlfn.XLOOKUP(TRUE,(N$5:N$25<=B56)*(O$5:O$25>=B56)>0,L$5:L$25))) -> 
B57: 30 | C57: =(D$10*B57)+(D$9*(_xlfn.XLOOKUP(TRUE,(N$5:N$25<=B57)*(O$5:O$25>=B57)>0,L$5:L$25))) ->  | D57: =(E$10*B57)+(E$9*(_xlfn.XLOOKUP(TRUE,(N$5:N$25<=B57)*(O$5:O$25>=B57)>0,M$5:M$25))) ->  | E57: =(F$10*B57)+(F$9*(_xlfn.XLOOKUP(TRUE,(N$5:N$25<=B57)*(O$5:O$25>=B57)>0,L$5:L$25))) -> 
B58: 31 | C58: =(D$10*B58)+(D$9*(_xlfn.XLOOKUP(TRUE,(N$5:N$25<=B58)*(O$5:O$25>=B58)>0,L$5:L$25))) ->  | D58: =(E$10*B58)+(E$9*(_xlfn.XLOOKUP(TRUE,(N$5:N$25<=B58)*(O$5:O$25>=B58)>0,M$5:M$25))) ->  | E58: =(F$10*B58)+(F$9*(_xlfn.XLOOKUP(TRUE,(N$5:N$25<=B58)*(O$5:O$25>=B58)>0,L$5:L$25))) -> 
B59: 32 | C59: =(D$10*B59)+(D$9*(_xlfn.XLOOKUP(TRUE,(N$5:N$25<=B59)*(O$5:O$25>=B59)>0,L$5:L$25))) ->  | D59: =(E$10*B59)+(E$9*(_xlfn.XLOOKUP(TRUE,(N$5:N$25<=B59)*(O$5:O$25>=B59)>0,M$5:M$25))) ->  | E59: =(F$10*B59)+(F$9*(_xlfn.XLOOKUP(TRUE,(N$5:N$25<=B59)*(O$5:O$25>=B59)>0,L$5:L$25))) -> 
B60: 33 | C60: =(D$10*B60)+(D$9*(_xlfn.XLOOKUP(TRUE,(N$5:N$25<=B60)*(O$5:O$25>=B60)>0,L$5:L$25))) ->  | D60: =(E$10*B60)+(E$9*(_xlfn.XLOOKUP(TRUE,(N$5:N$25<=B60)*(O$5:O$25>=B60)>0,M$5:M$25))) ->  | E60: =(F$10*B60)+(F$9*(_xlfn.XLOOKUP(TRUE,(N$5:N$25<=B60)*(O$5:O$25>=B60)>0,L$5:L$25))) -> 
B61: 34 | C61: =(D$10*B61)+(D$9*(_xlfn.XLOOKUP(TRUE,(N$5:N$25<=B61)*(O$5:O$25>=B61)>0,L$5:L$25))) ->  | D61: =(E$10*B61)+(E$9*(_xlfn.XLOOKUP(TRUE,(N$5:N$25<=B61)*(O$5:O$25>=B61)>0,M$5:M$25))) ->  | E61: =(F$10*B61)+(F$9*(_xlfn.XLOOKUP(TRUE,(N$5:N$25<=B61)*(O$5:O$25>=B61)>0,L$5:L$25))) -> 
B62: 35 | C62: =(D$10*B62)+(D$9*(_xlfn.XLOOKUP(TRUE,(N$5:N$25<=B62)*(O$5:O$25>=B62)>0,L$5:L$25))) ->  | D62: =(E$10*B62)+(E$9*(_xlfn.XLOOKUP(TRUE,(N$5:N$25<=B62)*(O$5:O$25>=B62)>0,M$5:M$25))) ->  | E62: =(F$10*B62)+(F$9*(_xlfn.XLOOKUP(TRUE,(N$5:N$25<=B62)*(O$5:O$25>=B62)>0,L$5:L$25))) -> 
B63: 36 | C63: =(D$10*B63)+(D$9*(_xlfn.XLOOKUP(TRUE,(N$5:N$25<=B63)*(O$5:O$25>=B63)>0,L$5:L$25))) ->  | D63: =(E$10*B63)+(E$9*(_xlfn.XLOOKUP(TRUE,(N$5:N$25<=B63)*(O$5:O$25>=B63)>0,M$5:M$25))) ->  | E63: =(F$10*B63)+(F$9*(_xlfn.XLOOKUP(TRUE,(N$5:N$25<=B63)*(O$5:O$25>=B63)>0,L$5:L$25))) -> 
B64: 37 | C64: =(D$10*B64)+(D$9*(_xlfn.XLOOKUP(TRUE,(N$5:N$25<=B64)*(O$5:O$25>=B64)>0,L$5:L$25))) ->  | D64: =(E$10*B64)+(E$9*(_xlfn.XLOOKUP(TRUE,(N$5:N$25<=B64)*(O$5:O$25>=B64)>0,M$5:M$25))) ->  | E64: =(F$10*B64)+(F$9*(_xlfn.XLOOKUP(TRUE,(N$5:N$25<=B64)*(O$5:O$25>=B64)>0,L$5:L$25))) -> 
B65: 38 | C65: =(D$10*B65)+(D$9*(_xlfn.XLOOKUP(TRUE,(N$5:N$25<=B65)*(O$5:O$25>=B65)>0,L$5:L$25))) ->  | D65: =(E$10*B65)+(E$9*(_xlfn.XLOOKUP(TRUE,(N$5:N$25<=B65)*(O$5:O$25>=B65)>0,M$5:M$25))) ->  | E65: =(F$10*B65)+(F$9*(_xlfn.XLOOKUP(TRUE,(N$5:N$25<=B65)*(O$5:O$25>=B65)>0,L$5:L$25))) -> 
B66: 39 | C66: =(D$10*B66)+(D$9*(_xlfn.XLOOKUP(TRUE,(N$5:N$25<=B66)*(O$5:O$25>=B66)>0,L$5:L$25))) ->  | D66: =(E$10*B66)+(E$9*(_xlfn.XLOOKUP(TRUE,(N$5:N$25<=B66)*(O$5:O$25>=B66)>0,M$5:M$25))) ->  | E66: =(F$10*B66)+(F$9*(_xlfn.XLOOKUP(TRUE,(N$5:N$25<=B66)*(O$5:O$25>=B66)>0,L$5:L$25))) -> 
B67: 40 | C67: =(D$10*B67)+(D$9*(_xlfn.XLOOKUP(TRUE,(N$5:N$25<=B67)*(O$5:O$25>=B67)>0,L$5:L$25))) ->  | D67: =(E$10*B67)+(E$9*(_xlfn.XLOOKUP(TRUE,(N$5:N$25<=B67)*(O$5:O$25>=B67)>0,M$5:M$25))) ->  | E67: =(F$10*B67)+(F$9*(_xlfn.XLOOKUP(TRUE,(N$5:N$25<=B67)*(O$5:O$25>=B67)>0,L$5:L$25))) -> 
B68: 41 | C68: =(D$10*B68)+(D$9*(_xlfn.XLOOKUP(TRUE,(N$5:N$25<=B68)*(O$5:O$25>=B68)>0,L$5:L$25))) ->  | D68: =(E$10*B68)+(E$9*(_xlfn.XLOOKUP(TRUE,(N$5:N$25<=B68)*(O$5:O$25>=B68)>0,M$5:M$25))) ->  | E68: =(F$10*B68)+(F$9*(_xlfn.XLOOKUP(TRUE,(N$5:N$25<=B68)*(O$5:O$25>=B68)>0,L$5:L$25))) -> 
B69: 42 | C69: =(D$10*B69)+(D$9*(_xlfn.XLOOKUP(TRUE,(N$5:N$25<=B69)*(O$5:O$25>=B69)>0,L$5:L$25))) ->  | D69: =(E$10*B69)+(E$9*(_xlfn.XLOOKUP(TRUE,(N$5:N$25<=B69)*(O$5:O$25>=B69)>0,M$5:M$25))) ->  | E69: =(F$10*B69)+(F$9*(_xlfn.XLOOKUP(TRUE,(N$5:N$25<=B69)*(O$5:O$25>=B69)>0,L$5:L$25))) -> 
B70: 43 | C70: =(D$10*B70)+(D$9*(_xlfn.XLOOKUP(TRUE,(N$5:N$25<=B70)*(O$5:O$25>=B70)>0,L$5:L$25))) ->  | D70: =(E$10*B70)+(E$9*(_xlfn.XLOOKUP(TRUE,(N$5:N$25<=B70)*(O$5:O$25>=B70)>0,M$5:M$25))) ->  | E70: =(F$10*B70)+(F$9*(_xlfn.XLOOKUP(TRUE,(N$5:N$25<=B70)*(O$5:O$25>=B70)>0,L$5:L$25))) -> 
B71: 44 | C71: =(D$10*B71)+(D$9*(_xlfn.XLOOKUP(TRUE,(N$5:N$25<=B71)*(O$5:O$25>=B71)>0,L$5:L$25))) ->  | D71: =(E$10*B71)+(E$9*(_xlfn.XLOOKUP(TRUE,(N$5:N$25<=B71)*(O$5:O$25>=B71)>0,M$5:M$25))) ->  | E71: =(F$10*B71)+(F$9*(_xlfn.XLOOKUP(TRUE,(N$5:N$25<=B71)*(O$5:O$25>=B71)>0,L$5:L$25))) -> 
B72: 45 | C72: =(D$10*B72)+(D$9*(_xlfn.XLOOKUP(TRUE,(N$5:N$25<=B72)*(O$5:O$25>=B72)>0,L$5:L$25))) ->  | D72: =(E$10*B72)+(E$9*(_xlfn.XLOOKUP(TRUE,(N$5:N$25<=B72)*(O$5:O$25>=B72)>0,M$5:M$25))) ->  | E72: =(F$10*B72)+(F$9*(_xlfn.XLOOKUP(TRUE,(N$5:N$25<=B72)*(O$5:O$25>=B72)>0,L$5:L$25))) -> 
B73: 46 | C73: =(D$10*B73)+(D$9*(_xlfn.XLOOKUP(TRUE,(N$5:N$25<=B73)*(O$5:O$25>=B73)>0,L$5:L$25))) ->  | D73: =(E$10*B73)+(E$9*(_xlfn.XLOOKUP(TRUE,(N$5:N$25<=B73)*(O$5:O$25>=B73)>0,M$5:M$25))) ->  | E73: =(F$10*B73)+(F$9*(_xlfn.XLOOKUP(TRUE,(N$5:N$25<=B73)*(O$5:O$25>=B73)>0,L$5:L$25))) -> 
B74: 47 | C74: =(D$10*B74)+(D$9*(_xlfn.XLOOKUP(TRUE,(N$5:N$25<=B74)*(O$5:O$25>=B74)>0,L$5:L$25))) ->  | D74: =(E$10*B74)+(E$9*(_xlfn.XLOOKUP(TRUE,(N$5:N$25<=B74)*(O$5:O$25>=B74)>0,M$5:M$25))) ->  | E74: =(F$10*B74)+(F$9*(_xlfn.XLOOKUP(TRUE,(N$5:N$25<=B74)*(O$5:O$25>=B74)>0,L$5:L$25))) -> 
B75: 48 | C75: =(D$10*B75)+(D$9*(_xlfn.XLOOKUP(TRUE,(N$5:N$25<=B75)*(O$5:O$25>=B75)>0,L$5:L$25))) ->  | D75: =(E$10*B75)+(E$9*(_xlfn.XLOOKUP(TRUE,(N$5:N$25<=B75)*(O$5:O$25>=B75)>0,M$5:M$25))) ->  | E75: =(F$10*B75)+(F$9*(_xlfn.XLOOKUP(TRUE,(N$5:N$25<=B75)*(O$5:O$25>=B75)>0,L$5:L$25))) -> 
B76: 49 | C76: =(D$10*B76)+(D$9*(_xlfn.XLOOKUP(TRUE,(N$5:N$25<=B76)*(O$5:O$25>=B76)>0,L$5:L$25))) ->  | D76: =(E$10*B76)+(E$9*(_xlfn.XLOOKUP(TRUE,(N$5:N$25<=B76)*(O$5:O$25>=B76)>0,M$5:M$25))) ->  | E76: =(F$10*B76)+(F$9*(_xlfn.XLOOKUP(TRUE,(N$5:N$25<=B76)*(O$5:O$25>=B76)>0,L$5:L$25))) -> 
B77: 50 | C77: =(D$10*B77)+(D$9*(_xlfn.XLOOKUP(TRUE,(N$5:N$25<=B77)*(O$5:O$25>=B77)>0,L$5:L$25))) ->  | D77: =(E$10*B77)+(E$9*(_xlfn.XLOOKUP(TRUE,(N$5:N$25<=B77)*(O$5:O$25>=B77)>0,M$5:M$25))) ->  | E77: =(F$10*B77)+(F$9*(_xlfn.XLOOKUP(TRUE,(N$5:N$25<=B77)*(O$5:O$25>=B77)>0,L$5:L$25))) -> 
B78: 51 | C78: =(D$10*B78)+(D$9*(_xlfn.XLOOKUP(TRUE,(N$5:N$25<=B78)*(O$5:O$25>=B78)>0,L$5:L$25))) ->  | D78: =(E$10*B78)+(E$9*(_xlfn.XLOOKUP(TRUE,(N$5:N$25<=B78)*(O$5:O$25>=B78)>0,M$5:M$25))) ->  | E78: =(F$10*B78)+(F$9*(_xlfn.XLOOKUP(TRUE,(N$5:N$25<=B78)*(O$5:O$25>=B78)>0,L$5:L$25))) -> 
B79: 52 | C79: =(D$10*B79)+(D$9*(_xlfn.XLOOKUP(TRUE,(N$5:N$25<=B79)*(O$5:O$25>=B79)>0,L$5:L$25))) ->  | D79: =(E$10*B79)+(E$9*(_xlfn.XLOOKUP(TRUE,(N$5:N$25<=B79)*(O$5:O$25>=B79)>0,M$5:M$25))) ->  | E79: =(F$10*B79)+(F$9*(_xlfn.XLOOKUP(TRUE,(N$5:N$25<=B79)*(O$5:O$25>=B79)>0,L$5:L$25))) -> 
B80: 53 | C80: =(D$10*B80)+(D$9*(_xlfn.XLOOKUP(TRUE,(N$5:N$25<=B80)*(O$5:O$25>=B80)>0,L$5:L$25))) ->  | D80: =(E$10*B80)+(E$9*(_xlfn.XLOOKUP(TRUE,(N$5:N$25<=B80)*(O$5:O$25>=B80)>0,M$5:M$25))) ->  | E80: =(F$10*B80)+(F$9*(_xlfn.XLOOKUP(TRUE,(N$5:N$25<=B80)*(O$5:O$25>=B80)>0,L$5:L$25))) -> 
B81: 54 | C81: =(D$10*B81)+(D$9*(_xlfn.XLOOKUP(TRUE,(N$5:N$25<=B81)*(O$5:O$25>=B81)>0,L$5:L$25))) ->  | D81: =(E$10*B81)+(E$9*(_xlfn.XLOOKUP(TRUE,(N$5:N$25<=B81)*(O$5:O$25>=B81)>0,M$5:M$25))) ->  | E81: =(F$10*B81)+(F$9*(_xlfn.XLOOKUP(TRUE,(N$5:N$25<=B81)*(O$5:O$25>=B81)>0,L$5:L$25))) -> 
B82: 55 | C82: =(D$10*B82)+(D$9*(_xlfn.XLOOKUP(TRUE,(N$5:N$25<=B82)*(O$5:O$25>=B82)>0,L$5:L$25))) ->  | D82: =(E$10*B82)+(E$9*(_xlfn.XLOOKUP(TRUE,(N$5:N$25<=B82)*(O$5:O$25>=B82)>0,M$5:M$25))) ->  | E82: =(F$10*B82)+(F$9*(_xlfn.XLOOKUP(TRUE,(N$5:N$25<=B82)*(O$5:O$25>=B82)>0,L$5:L$25))) -> 
B83: 56 | C83: =(D$10*B83)+(D$9*(_xlfn.XLOOKUP(TRUE,(N$5:N$25<=B83)*(O$5:O$25>=B83)>0,L$5:L$25))) ->  | D83: =(E$10*B83)+(E$9*(_xlfn.XLOOKUP(TRUE,(N$5:N$25<=B83)*(O$5:O$25>=B83)>0,M$5:M$25))) ->  | E83: =(F$10*B83)+(F$9*(_xlfn.XLOOKUP(TRUE,(N$5:N$25<=B83)*(O$5:O$25>=B83)>0,L$5:L$25))) -> 
B84: 57 | C84: =(D$10*B84)+(D$9*(_xlfn.XLOOKUP(TRUE,(N$5:N$25<=B84)*(O$5:O$25>=B84)>0,L$5:L$25))) ->  | D84: =(E$10*B84)+(E$9*(_xlfn.XLOOKUP(TRUE,(N$5:N$25<=B84)*(O$5:O$25>=B84)>0,M$5:M$25))) ->  | E84: =(F$10*B84)+(F$9*(_xlfn.XLOOKUP(TRUE,(N$5:N$25<=B84)*(O$5:O$25>=B84)>0,L$5:L$25))) -> 
B85: 58 | C85: =(D$10*B85)+(D$9*(_xlfn.XLOOKUP(TRUE,(N$5:N$25<=B85)*(O$5:O$25>=B85)>0,L$5:L$25))) ->  | D85: =(E$10*B85)+(E$9*(_xlfn.XLOOKUP(TRUE,(N$5:N$25<=B85)*(O$5:O$25>=B85)>0,M$5:M$25))) ->  | E85: =(F$10*B85)+(F$9*(_xlfn.XLOOKUP(TRUE,(N$5:N$25<=B85)*(O$5:O$25>=B85)>0,L$5:L$25))) -> 
B86: 59 | C86: =(D$10*B86)+(D$9*(_xlfn.XLOOKUP(TRUE,(N$5:N$25<=B86)*(O$5:O$25>=B86)>0,L$5:L$25))) ->  | D86: =(E$10*B86)+(E$9*(_xlfn.XLOOKUP(TRUE,(N$5:N$25<=B86)*(O$5:O$25>=B86)>0,M$5:M$25))) ->  | E86: =(F$10*B86)+(F$9*(_xlfn.XLOOKUP(TRUE,(N$5:N$25<=B86)*(O$5:O$25>=B86)>0,L$5:L$25))) -> 
B87: 60 | C87: =(D$10*B87)+(D$9*(_xlfn.XLOOKUP(TRUE,(N$5:N$25<=B87)*(O$5:O$25>=B87)>0,L$5:L$25))) ->  | D87: =(E$10*B87)+(E$9*(_xlfn.XLOOKUP(TRUE,(N$5:N$25<=B87)*(O$5:O$25>=B87)>0,M$5:M$25))) ->  | E87: =(F$10*B87)+(F$9*(_xlfn.XLOOKUP(TRUE,(N$5:N$25<=B87)*(O$5:O$25>=B87)>0,L$5:L$25))) -> 
B88: 61 | C88: =(D$10*B88)+(D$9*(_xlfn.XLOOKUP(TRUE,(N$5:N$25<=B88)*(O$5:O$25>=B88)>0,L$5:L$25))) ->  | D88: =(E$10*B88)+(E$9*(_xlfn.XLOOKUP(TRUE,(N$5:N$25<=B88)*(O$5:O$25>=B88)>0,M$5:M$25))) ->  | E88: =(F$10*B88)+(F$9*(_xlfn.XLOOKUP(TRUE,(N$5:N$25<=B88)*(O$5:O$25>=B88)>0,L$5:L$25))) -> 
B89: 62 | C89: =(D$10*B89)+(D$9*(_xlfn.XLOOKUP(TRUE,(N$5:N$25<=B89)*(O$5:O$25>=B89)>0,L$5:L$25))) ->  | D89: =(E$10*B89)+(E$9*(_xlfn.XLOOKUP(TRUE,(N$5:N$25<=B89)*(O$5:O$25>=B89)>0,M$5:M$25))) ->  | E89: =(F$10*B89)+(F$9*(_xlfn.XLOOKUP(TRUE,(N$5:N$25<=B89)*(O$5:O$25>=B89)>0,L$5:L$25))) -> 
B90: 63 | C90: =(D$10*B90)+(D$9*(_xlfn.XLOOKUP(TRUE,(N$5:N$25<=B90)*(O$5:O$25>=B90)>0,L$5:L$25))) ->  | D90: =(E$10*B90)+(E$9*(_xlfn.XLOOKUP(TRUE,(N$5:N$25<=B90)*(O$5:O$25>=B90)>0,M$5:M$25))) ->  | E90: =(F$10*B90)+(F$9*(_xlfn.XLOOKUP(TRUE,(N$5:N$25<=B90)*(O$5:O$25>=B90)>0,L$5:L$25))) -> 
B91: 64 | C91: =(D$10*B91)+(D$9*(_xlfn.XLOOKUP(TRUE,(N$5:N$25<=B91)*(O$5:O$25>=B91)>0,L$5:L$25))) ->  | D91: =(E$10*B91)+(E$9*(_xlfn.XLOOKUP(TRUE,(N$5:N$25<=B91)*(O$5:O$25>=B91)>0,M$5:M$25))) ->  | E91: =(F$10*B91)+(F$9*(_xlfn.XLOOKUP(TRUE,(N$5:N$25<=B91)*(O$5:O$25>=B91)>0,L$5:L$25))) -> 
B92: 65 | C92: =(D$10*B92)+(D$9*(_xlfn.XLOOKUP(TRUE,(N$5:N$25<=B92)*(O$5:O$25>=B92)>0,L$5:L$25))) ->  | D92: =(E$10*B92)+(E$9*(_xlfn.XLOOKUP(TRUE,(N$5:N$25<=B92)*(O$5:O$25>=B92)>0,M$5:M$25))) ->  | E92: =(F$10*B92)+(F$9*(_xlfn.XLOOKUP(TRUE,(N$5:N$25<=B92)*(O$5:O$25>=B92)>0,L$5:L$25))) -> 
B93: 66 | C93: =(D$10*B93)+(D$9*(_xlfn.XLOOKUP(TRUE,(N$5:N$25<=B93)*(O$5:O$25>=B93)>0,L$5:L$25))) ->  | D93: =(E$10*B93)+(E$9*(_xlfn.XLOOKUP(TRUE,(N$5:N$25<=B93)*(O$5:O$25>=B93)>0,M$5:M$25))) ->  | E93: =(F$10*B93)+(F$9*(_xlfn.XLOOKUP(TRUE,(N$5:N$25<=B93)*(O$5:O$25>=B93)>0,L$5:L$25))) -> 
B94: 67 | C94: =(D$10*B94)+(D$9*(_xlfn.XLOOKUP(TRUE,(N$5:N$25<=B94)*(O$5:O$25>=B94)>0,L$5:L$25))) ->  | D94: =(E$10*B94)+(E$9*(_xlfn.XLOOKUP(TRUE,(N$5:N$25<=B94)*(O$5:O$25>=B94)>0,M$5:M$25))) ->  | E94: =(F$10*B94)+(F$9*(_xlfn.XLOOKUP(TRUE,(N$5:N$25<=B94)*(O$5:O$25>=B94)>0,L$5:L$25))) -> 
B95: 68 | C95: =(D$10*B95)+(D$9*(_xlfn.XLOOKUP(TRUE,(N$5:N$25<=B95)*(O$5:O$25>=B95)>0,L$5:L$25))) ->  | D95: =(E$10*B95)+(E$9*(_xlfn.XLOOKUP(TRUE,(N$5:N$25<=B95)*(O$5:O$25>=B95)>0,M$5:M$25))) ->  | E95: =(F$10*B95)+(F$9*(_xlfn.XLOOKUP(TRUE,(N$5:N$25<=B95)*(O$5:O$25>=B95)>0,L$5:L$25))) -> 
B96: 69 | C96: =(D$10*B96)+(D$9*(_xlfn.XLOOKUP(TRUE,(N$5:N$25<=B96)*(O$5:O$25>=B96)>0,L$5:L$25))) ->  | D96: =(E$10*B96)+(E$9*(_xlfn.XLOOKUP(TRUE,(N$5:N$25<=B96)*(O$5:O$25>=B96)>0,M$5:M$25))) ->  | E96: =(F$10*B96)+(F$9*(_xlfn.XLOOKUP(TRUE,(N$5:N$25<=B96)*(O$5:O$25>=B96)>0,L$5:L$25))) -> 
B97: 70 | C97: =(D$10*B97)+(D$9*(_xlfn.XLOOKUP(TRUE,(N$5:N$25<=B97)*(O$5:O$25>=B97)>0,L$5:L$25))) ->  | D97: =(E$10*B97)+(E$9*(_xlfn.XLOOKUP(TRUE,(N$5:N$25<=B97)*(O$5:O$25>=B97)>0,M$5:M$25))) ->  | E97: =(F$10*B97)+(F$9*(_xlfn.XLOOKUP(TRUE,(N$5:N$25<=B97)*(O$5:O$25>=B97)>0,L$5:L$25))) -> 
B98: 71 | C98: =(D$10*B98)+(D$9*(_xlfn.XLOOKUP(TRUE,(N$5:N$25<=B98)*(O$5:O$25>=B98)>0,L$5:L$25))) ->  | D98: =(E$10*B98)+(E$9*(_xlfn.XLOOKUP(TRUE,(N$5:N$25<=B98)*(O$5:O$25>=B98)>0,M$5:M$25))) ->  | E98: =(F$10*B98)+(F$9*(_xlfn.XLOOKUP(TRUE,(N$5:N$25<=B98)*(O$5:O$25>=B98)>0,L$5:L$25))) -> 
B99: 72 | C99: =(D$10*B99)+(D$9*(_xlfn.XLOOKUP(TRUE,(N$5:N$25<=B99)*(O$5:O$25>=B99)>0,L$5:L$25))) ->  | D99: =(E$10*B99)+(E$9*(_xlfn.XLOOKUP(TRUE,(N$5:N$25<=B99)*(O$5:O$25>=B99)>0,M$5:M$25))) ->  | E99: =(F$10*B99)+(F$9*(_xlfn.XLOOKUP(TRUE,(N$5:N$25<=B99)*(O$5:O$25>=B99)>0,L$5:L$25))) -> 
B100: 73 | C100: =(D$10*B100)+(D$9*(_xlfn.XLOOKUP(TRUE,(N$5:N$25<=B100)*(O$5:O$25>=B100)>0,L$5:L$25))) ->  | D100: =(E$10*B100)+(E$9*(_xlfn.XLOOKUP(TRUE,(N$5:N$25<=B100)*(O$5:O$25>=B100)>0,M$5:M$25))) ->  | E100: =(F$10*B100)+(F$9*(_xlfn.XLOOKUP(TRUE,(N$5:N$25<=B100)*(O$5:O$25>=B100)>0,L$5:L$25))) -> 
B101: 74 | C101: =(D$10*B101)+(D$9*(_xlfn.XLOOKUP(TRUE,(N$5:N$25<=B101)*(O$5:O$25>=B101)>0,L$5:L$25))) ->  | D101: =(E$10*B101)+(E$9*(_xlfn.XLOOKUP(TRUE,(N$5:N$25<=B101)*(O$5:O$25>=B101)>0,M$5:M$25))) ->  | E101: =(F$10*B101)+(F$9*(_xlfn.XLOOKUP(TRUE,(N$5:N$25<=B101)*(O$5:O$25>=B101)>0,L$5:L$25))) -> 
B102: 75 | C102: =(D$10*B102)+(D$9*(_xlfn.XLOOKUP(TRUE,(N$5:N$25<=B102)*(O$5:O$25>=B102)>0,L$5:L$25))) ->  | D102: =(E$10*B102)+(E$9*(_xlfn.XLOOKUP(TRUE,(N$5:N$25<=B102)*(O$5:O$25>=B102)>0,M$5:M$25))) ->  | E102: =(F$10*B102)+(F$9*(_xlfn.XLOOKUP(TRUE,(N$5:N$25<=B102)*(O$5:O$25>=B102)>0,L$5:L$25))) -> 
B103: 76 | C103: =(D$10*B103)+(D$9*(_xlfn.XLOOKUP(TRUE,(N$5:N$25<=B103)*(O$5:O$25>=B103)>0,L$5:L$25))) ->  | D103: =(E$10*B103)+(E$9*(_xlfn.XLOOKUP(TRUE,(N$5:N$25<=B103)*(O$5:O$25>=B103)>0,M$5:M$25))) ->  | E103: =(F$10*B103)+(F$9*(_xlfn.XLOOKUP(TRUE,(N$5:N$25<=B103)*(O$5:O$25>=B103)>0,L$5:L$25))) -> 
B104: 77 | C104: =(D$10*B104)+(D$9*(_xlfn.XLOOKUP(TRUE,(N$5:N$25<=B104)*(O$5:O$25>=B104)>0,L$5:L$25))) ->  | D104: =(E$10*B104)+(E$9*(_xlfn.XLOOKUP(TRUE,(N$5:N$25<=B104)*(O$5:O$25>=B104)>0,M$5:M$25))) ->  | E104: =(F$10*B104)+(F$9*(_xlfn.XLOOKUP(TRUE,(N$5:N$25<=B104)*(O$5:O$25>=B104)>0,L$5:L$25))) -> 
B105: 78 | C105: =(D$10*B105)+(D$9*(_xlfn.XLOOKUP(TRUE,(N$5:N$25<=B105)*(O$5:O$25>=B105)>0,L$5:L$25))) ->  | D105: =(E$10*B105)+(E$9*(_xlfn.XLOOKUP(TRUE,(N$5:N$25<=B105)*(O$5:O$25>=B105)>0,M$5:M$25))) ->  | E105: =(F$10*B105)+(F$9*(_xlfn.XLOOKUP(TRUE,(N$5:N$25<=B105)*(O$5:O$25>=B105)>0,L$5:L$25))) -> 
B106: 79 | C106: =(D$10*B106)+(D$9*(_xlfn.XLOOKUP(TRUE,(N$5:N$25<=B106)*(O$5:O$25>=B106)>0,L$5:L$25))) ->  | D106: =(E$10*B106)+(E$9*(_xlfn.XLOOKUP(TRUE,(N$5:N$25<=B106)*(O$5:O$25>=B106)>0,M$5:M$25))) ->  | E106: =(F$10*B106)+(F$9*(_xlfn.XLOOKUP(TRUE,(N$5:N$25<=B106)*(O$5:O$25>=B106)>0,L$5:L$25))) -> 
B107: 80 | C107: =(D$10*B107)+(D$9*(_xlfn.XLOOKUP(TRUE,(N$5:N$25<=B107)*(O$5:O$25>=B107)>0,L$5:L$25))) ->  | D107: =(E$10*B107)+(E$9*(_xlfn.XLOOKUP(TRUE,(N$5:N$25<=B107)*(O$5:O$25>=B107)>0,M$5:M$25))) ->  | E107: =(F$10*B107)+(F$9*(_xlfn.XLOOKUP(TRUE,(N$5:N$25<=B107)*(O$5:O$25>=B107)>0,L$5:L$25))) -> 
B108: 81 | C108: =(D$10*B108)+(D$9*(_xlfn.XLOOKUP(TRUE,(N$5:N$25<=B108)*(O$5:O$25>=B108)>0,L$5:L$25))) ->  | D108: =(E$10*B108)+(E$9*(_xlfn.XLOOKUP(TRUE,(N$5:N$25<=B108)*(O$5:O$25>=B108)>0,M$5:M$25))) ->  | E108: =(F$10*B108)+(F$9*(_xlfn.XLOOKUP(TRUE,(N$5:N$25<=B108)*(O$5:O$25>=B108)>0,L$5:L$25))) -> 
B109: 82 | C109: =(D$10*B109)+(D$9*(_xlfn.XLOOKUP(TRUE,(N$5:N$25<=B109)*(O$5:O$25>=B109)>0,L$5:L$25))) ->  | D109: =(E$10*B109)+(E$9*(_xlfn.XLOOKUP(TRUE,(N$5:N$25<=B109)*(O$5:O$25>=B109)>0,M$5:M$25))) ->  | E109: =(F$10*B109)+(F$9*(_xlfn.XLOOKUP(TRUE,(N$5:N$25<=B109)*(O$5:O$25>=B109)>0,L$5:L$25))) -> 
B110: 83 | C110: =(D$10*B110)+(D$9*(_xlfn.XLOOKUP(TRUE,(N$5:N$25<=B110)*(O$5:O$25>=B110)>0,L$5:L$25))) ->  | D110: =(E$10*B110)+(E$9*(_xlfn.XLOOKUP(TRUE,(N$5:N$25<=B110)*(O$5:O$25>=B110)>0,M$5:M$25))) ->  | E110: =(F$10*B110)+(F$9*(_xlfn.XLOOKUP(TRUE,(N$5:N$25<=B110)*(O$5:O$25>=B110)>0,L$5:L$25))) -> 
B111: 84 | C111: =(D$10*B111)+(D$9*(_xlfn.XLOOKUP(TRUE,(N$5:N$25<=B111)*(O$5:O$25>=B111)>0,L$5:L$25))) ->  | D111: =(E$10*B111)+(E$9*(_xlfn.XLOOKUP(TRUE,(N$5:N$25<=B111)*(O$5:O$25>=B111)>0,M$5:M$25))) ->  | E111: =(F$10*B111)+(F$9*(_xlfn.XLOOKUP(TRUE,(N$5:N$25<=B111)*(O$5:O$25>=B111)>0,L$5:L$25))) -> 
B112: 85 | C112: =(D$10*B112)+(D$9*(_xlfn.XLOOKUP(TRUE,(N$5:N$25<=B112)*(O$5:O$25>=B112)>0,L$5:L$25))) ->  | D112: =(E$10*B112)+(E$9*(_xlfn.XLOOKUP(TRUE,(N$5:N$25<=B112)*(O$5:O$25>=B112)>0,M$5:M$25))) ->  | E112: =(F$10*B112)+(F$9*(_xlfn.XLOOKUP(TRUE,(N$5:N$25<=B112)*(O$5:O$25>=B112)>0,L$5:L$25))) -> 
B113: 86 | C113: =(D$10*B113)+(D$9*(_xlfn.XLOOKUP(TRUE,(N$5:N$25<=B113)*(O$5:O$25>=B113)>0,L$5:L$25))) ->  | D113: =(E$10*B113)+(E$9*(_xlfn.XLOOKUP(TRUE,(N$5:N$25<=B113)*(O$5:O$25>=B113)>0,M$5:M$25))) ->  | E113: =(F$10*B113)+(F$9*(_xlfn.XLOOKUP(TRUE,(N$5:N$25<=B113)*(O$5:O$25>=B113)>0,L$5:L$25))) -> 
B114: 87 | C114: =(D$10*B114)+(D$9*(_xlfn.XLOOKUP(TRUE,(N$5:N$25<=B114)*(O$5:O$25>=B114)>0,L$5:L$25))) ->  | D114: =(E$10*B114)+(E$9*(_xlfn.XLOOKUP(TRUE,(N$5:N$25<=B114)*(O$5:O$25>=B114)>0,M$5:M$25))) ->  | E114: =(F$10*B114)+(F$9*(_xlfn.XLOOKUP(TRUE,(N$5:N$25<=B114)*(O$5:O$25>=B114)>0,L$5:L$25))) -> 
B115: 88 | C115: =(D$10*B115)+(D$9*(_xlfn.XLOOKUP(TRUE,(N$5:N$25<=B115)*(O$5:O$25>=B115)>0,L$5:L$25))) ->  | D115: =(E$10*B115)+(E$9*(_xlfn.XLOOKUP(TRUE,(N$5:N$25<=B115)*(O$5:O$25>=B115)>0,M$5:M$25))) ->  | E115: =(F$10*B115)+(F$9*(_xlfn.XLOOKUP(TRUE,(N$5:N$25<=B115)*(O$5:O$25>=B115)>0,L$5:L$25))) -> 
B116: 89 | C116: =(D$10*B116)+(D$9*(_xlfn.XLOOKUP(TRUE,(N$5:N$25<=B116)*(O$5:O$25>=B116)>0,L$5:L$25))) ->  | D116: =(E$10*B116)+(E$9*(_xlfn.XLOOKUP(TRUE,(N$5:N$25<=B116)*(O$5:O$25>=B116)>0,M$5:M$25))) ->  | E116: =(F$10*B116)+(F$9*(_xlfn.XLOOKUP(TRUE,(N$5:N$25<=B116)*(O$5:O$25>=B116)>0,L$5:L$25))) -> 
B117: 90 | C117: =(D$10*B117)+(D$9*(_xlfn.XLOOKUP(TRUE,(N$5:N$25<=B117)*(O$5:O$25>=B117)>0,L$5:L$25))) ->  | D117: =(E$10*B117)+(E$9*(_xlfn.XLOOKUP(TRUE,(N$5:N$25<=B117)*(O$5:O$25>=B117)>0,M$5:M$25))) ->  | E117: =(F$10*B117)+(F$9*(_xlfn.XLOOKUP(TRUE,(N$5:N$25<=B117)*(O$5:O$25>=B117)>0,L$5:L$25))) -> 
B118: 91 | C118: =(D$10*B118)+(D$9*(_xlfn.XLOOKUP(TRUE,(N$5:N$25<=B118)*(O$5:O$25>=B118)>0,L$5:L$25))) ->  | D118: =(E$10*B118)+(E$9*(_xlfn.XLOOKUP(TRUE,(N$5:N$25<=B118)*(O$5:O$25>=B118)>0,M$5:M$25))) ->  | E118: =(F$10*B118)+(F$9*(_xlfn.XLOOKUP(TRUE,(N$5:N$25<=B118)*(O$5:O$25>=B118)>0,L$5:L$25))) -> 
B119: 92 | C119: =(D$10*B119)+(D$9*(_xlfn.XLOOKUP(TRUE,(N$5:N$25<=B119)*(O$5:O$25>=B119)>0,L$5:L$25))) ->  | D119: =(E$10*B119)+(E$9*(_xlfn.XLOOKUP(TRUE,(N$5:N$25<=B119)*(O$5:O$25>=B119)>0,M$5:M$25))) ->  | E119: =(F$10*B119)+(F$9*(_xlfn.XLOOKUP(TRUE,(N$5:N$25<=B119)*(O$5:O$25>=B119)>0,L$5:L$25))) -> 
B120: 93 | C120: =(D$10*B120)+(D$9*(_xlfn.XLOOKUP(TRUE,(N$5:N$25<=B120)*(O$5:O$25>=B120)>0,L$5:L$25))) ->  | D120: =(E$10*B120)+(E$9*(_xlfn.XLOOKUP(TRUE,(N$5:N$25<=B120)*(O$5:O$25>=B120)>0,M$5:M$25))) ->  | E120: =(F$10*B120)+(F$9*(_xlfn.XLOOKUP(TRUE,(N$5:N$25<=B120)*(O$5:O$25>=B120)>0,L$5:L$25))) -> 
B121: 94 | C121: =(D$10*B121)+(D$9*(_xlfn.XLOOKUP(TRUE,(N$5:N$25<=B121)*(O$5:O$25>=B121)>0,L$5:L$25))) ->  | D121: =(E$10*B121)+(E$9*(_xlfn.XLOOKUP(TRUE,(N$5:N$25<=B121)*(O$5:O$25>=B121)>0,M$5:M$25))) ->  | E121: =(F$10*B121)+(F$9*(_xlfn.XLOOKUP(TRUE,(N$5:N$25<=B121)*(O$5:O$25>=B121)>0,L$5:L$25))) -> 
B122: 95 | C122: =(D$10*B122)+(D$9*(_xlfn.XLOOKUP(TRUE,(N$5:N$25<=B122)*(O$5:O$25>=B122)>0,L$5:L$25))) ->  | D122: =(E$10*B122)+(E$9*(_xlfn.XLOOKUP(TRUE,(N$5:N$25<=B122)*(O$5:O$25>=B122)>0,M$5:M$25))) ->  | E122: =(F$10*B122)+(F$9*(_xlfn.XLOOKUP(TRUE,(N$5:N$25<=B122)*(O$5:O$25>=B122)>0,L$5:L$25))) -> 
B123: 96 | C123: =(D$10*B123)+(D$9*(_xlfn.XLOOKUP(TRUE,(N$5:N$25<=B123)*(O$5:O$25>=B123)>0,L$5:L$25))) ->  | D123: =(E$10*B123)+(E$9*(_xlfn.XLOOKUP(TRUE,(N$5:N$25<=B123)*(O$5:O$25>=B123)>0,M$5:M$25))) ->  | E123: =(F$10*B123)+(F$9*(_xlfn.XLOOKUP(TRUE,(N$5:N$25<=B123)*(O$5:O$25>=B123)>0,L$5:L$25))) -> 
B124: 97 | C124: =(D$10*B124)+(D$9*(_xlfn.XLOOKUP(TRUE,(N$5:N$25<=B124)*(O$5:O$25>=B124)>0,L$5:L$25))) ->  | D124: =(E$10*B124)+(E$9*(_xlfn.XLOOKUP(TRUE,(N$5:N$25<=B124)*(O$5:O$25>=B124)>0,M$5:M$25))) ->  | E124: =(F$10*B124)+(F$9*(_xlfn.XLOOKUP(TRUE,(N$5:N$25<=B124)*(O$5:O$25>=B124)>0,L$5:L$25))) -> 
B125: 98 | C125: =(D$10*B125)+(D$9*(_xlfn.XLOOKUP(TRUE,(N$5:N$25<=B125)*(O$5:O$25>=B125)>0,L$5:L$25))) ->  | D125: =(E$10*B125)+(E$9*(_xlfn.XLOOKUP(TRUE,(N$5:N$25<=B125)*(O$5:O$25>=B125)>0,M$5:M$25))) ->  | E125: =(F$10*B125)+(F$9*(_xlfn.XLOOKUP(TRUE,(N$5:N$25<=B125)*(O$5:O$25>=B125)>0,L$5:L$25))) -> 
B126: 99 | C126: =(D$10*B126)+(D$9*(_xlfn.XLOOKUP(TRUE,(N$5:N$25<=B126)*(O$5:O$25>=B126)>0,L$5:L$25))) ->  | D126: =(E$10*B126)+(E$9*(_xlfn.XLOOKUP(TRUE,(N$5:N$25<=B126)*(O$5:O$25>=B126)>0,M$5:M$25))) ->  | E126: =(F$10*B126)+(F$9*(_xlfn.XLOOKUP(TRUE,(N$5:N$25<=B126)*(O$5:O$25>=B126)>0,L$5:L$25))) -> 
B127: 100 | C127: =(D$10*B127)+(D$9*(_xlfn.XLOOKUP(TRUE,(N$5:N$25<=B127)*(O$5:O$25>=B127)>0,L$5:L$25))) ->  | D127: =(E$10*B127)+(E$9*(_xlfn.XLOOKUP(TRUE,(N$5:N$25<=B127)*(O$5:O$25>=B127)>0,M$5:M$25))) ->  | E127: =(F$10*B127)+(F$9*(_xlfn.XLOOKUP(TRUE,(N$5:N$25<=B127)*(O$5:O$25>=B127)>0,L$5:L$25))) -> 

Sheet ④海上輸送網入力
B2: ④海上輸送網 入力項目 | H2: 入力項目
B4: ●エネルギーの密度 | J4: ●対象船舶一覧
J5: ○水素 | P5: ※入港限界無し：新潟、直江津、伏木富山
C6: 重量（kg） | D6: 体積（m3） | E6: 密度（t/m3） | J6: 総トン数（GT） | K6: タンク容量（m3） | L6: 輸送量（ｔ） | M6: 全長（m） | N6: 全幅（m） | O6: 喫水（m） | P6: 港湾施設能力を踏まえた入港限界 | Q6: 備考 | R6: 備考2
D7: ※液体 | J7: 4505 | K7: 3556 | L7: =K7*$E$8 -> 251.8057592 | M7: 99.4 | N7: 17.2 | O7: 4.6 | P7: 金沢港 | Q7: 就航中の「あけぼの丸」（LNG船） | R7: 内貿船舶上限
B8: 水素 | C8: 54.1 | D8: 0.764 | E8: =C8/1000/D8 -> 0.07081151832 | J8: 20000 | K8: =1.2935*J8 -> 25870 | L8: 1831.893979 | M8: 168 | N8: 26.8 | O8: 8 | Q8: 総トン数とタンク容量の関係式よりタンク容量を算出
B9: アンモニア | C9: 352 | D9: 0.516 | E9: =C9/1000/D9 -> 0.6821705426 | J9: 30000 | K9: =1.2935*J9 -> 38805 | L9: 2747.840969 | M9: 192 | N9: 30.6 | O9: 8.9 | Q9: 総トン数とタンク容量の関係式よりタンク容量を算出
B10: メタン | C10: 0.46 | D10: =1/1000 -> 0.001 | E10: =C10/1000/D10 -> 0.46 | J10: 50000 | K10: =1.2935*J10 -> 64675 | L10: 4579.734948 | M10: 228 | N10: 36 | O10: 10.1 | P10: 敦賀港 | Q10: 総トン数とタンク容量の関係式よりタンク容量を算出
B11: 出典：水素、アンモニア 「港湾脱炭素化推進計画」作成マニュアル（2023年3月、国土交通省港湾局） | J11: 80000 | K11: =1.2935*J11 -> 103480 | L11: 7327.575916 | M11: 267 | N11: 41.9 | O11: 11.5 | Q11: 総トン数とタンク容量の関係式よりタンク容量を算出
B12: メタン：水を１としたとき、LNGの液比重0.46を踏まえ設定（LNGと同様と仮定） | J12: 100000 | K12: =1.2935*J12 -> 129350 | L12: 9159.469895 | M12: 287 | N12: 45 | O12: 12.2 | P12: 七尾港 | Q12: 総トン数とタンク容量の関係式よりタンク容量を算出
J13: 130000 | K13: 160000 | L13: =K13*$E$8 -> 11329.84293 | M13: 346 | N13: 57 | O13: 9.5 | Q13: 計画中の16万m3 液化水素運搬船
B14: ●海上輸送距離（海外拠点港～北陸管内港湾） | J14: 出典：「港湾脱炭素化推進計画」作成マニュアル（2023年3月、国土交通省港湾局）
B15: 出発港 | C15: ダーウィン港（オーストラリア）
B16: 到着港 | C16: 新潟港 | D16: 直江津港 | E16: 伏木富山港 | F16: 金沢港 | G16: 七尾港 | H16: 敦賀港 | J16: ○アンモニア | P16: ※入港限界無し：新潟、直江津、伏木富山、七尾、敦賀
B17: 距離 | C17: 3441 | D17: 3406 | E17: 3399 | F17: 3283 | G17: 3386 | H17: 3255 | J17: 総トン数（GT） | K17: タンク容量（m3） | L17: 輸送量（ｔ） | M17: 全長（m） | N17: 全幅（m） | O17: 喫水（m） | P17: 港湾施設能力を踏まえた入港限界 | Q17: 備考 | R17: 備考2
J18: 999 | K18: 1714 | L18: =K18*$E$9 -> 1169.24031 | M18: 70 | N18: 12.2 | O18: 4.6 | Q18: 就航中の「国周丸」
B19: 出発港 | C19: ロサンゼルス港（アメリカ） | J19: 3000 | K19: =1.7099*J19 -> 5129.7 | L19: 3499.330233 | M19: 98 | N19: 16.2 | O19: 6 | P19: 金沢港 | Q19: 総トン数とタンク容量の関係式よりタンク容量を算出
B20: 到着港 | C20: 新潟港 | D20: 直江津港 | E20: 伏木富山港 | F20: 金沢港 | G20: 七尾港 | H20: 敦賀港 | J20: 5000 | K20: =1.7099*J20 -> 8549.5 | L20: 5832.217054 | M20: 113 | N20: 18.5 | O20: 7 | Q20: 総トン数とタンク容量の関係式よりタンク容量を算出
B21: 距離 | C21: 4814 | D21: 4876 | E21: 4911 | F21: 4942 | G21: 4900 | H21: 5010 | J21: 10000 | K21: =1.7099*J21 -> 17099 | L21: 11664.43411 | M21: 138 | N21: 22.3 | O21: 8.6 | Q21: 総トン数とタンク容量の関係式よりタンク容量を算出
J22: 20000 | K22: 34198 | L22: 23328.86822 | M22: 167 | N22: 26.7 | O22: 10.5 | Q22: 総トン数とタンク容量の関係式よりタンク容量を算出
B23: 出発港 | C23: バンクーバー港（カナダ） | J23: 25458 | K23: 38000 | L23: 25922.48062 | M23: 183 | N23: 29.6 | O23: 10.4 | Q23: 就航中の「Hourai Maru」 | R23: 内貿船舶上限
B24: 到着港 | C24: 新潟港 | D24: 直江津港 | E24: 伏木富山港 | F24: 金沢港 | G24: 七尾港 | H24: 敦賀港 | J24: 40000 | K24: 68396 | L24: 46657.73643 | M24: 228 | N24: 37.3 | O24: 12.2 | Q24: 総トン数とタンク容量の関係式よりタンク容量を算出
B25: 距離 | C25: 4092 | D25: 4157 | E25: 4193 | F25: 4223 | G25: 4181 | H25: 4288 | J25: 50000 | K25: 87000 | L25: =K25*$E$9 -> 59348.83721 | M25: 230 | N25: 36.6 | O25: 12 | Q25: 計画中の8万7千m3 型VLGC
J26: 出典：「港湾脱炭素化推進計画」作成マニュアル（2023年3月、国土交通省港湾局）及び各社HPより作成
B27: 出発港 | C27: バルパライソ港（チリ）
B28: 到着港 | C28: 新潟港 | D28: 直江津港 | E28: 伏木富山港 | F28: 金沢港 | G28: 七尾港 | H28: 敦賀港 | J28: ○メタン | P28: ※入港限界無し：新潟、直江津、伏木富山
B29: 距離 | C29: 9420 | D29: 9491 | E29: 9526 | F29: 9557 | G29: 9515 | H29: 9616 | J29: 総トン数（GT） | K29: タンク容量（m3） | L29: 輸送量（ｔ） | M29: 全長（m） | N29: 全幅（m） | O29: 喫水（m） | P29: 港湾施設能力を踏まえた入港限界 | Q29: 備考 | R29: 備考2
J30: 4505 | K30: 3556 | L30: =K30*$E$10 -> 1635.76 | M30: 99.4 | N30: 17.2 | O30: 4.6 | P30: 金沢港 | Q30: 就航中の「あけぼの丸」（LNG船） | R30: 内貿船舶上限
B31: 出発港 | C31: スルタンカブース港（オマーン） | J31: 20000 | K31: =1.2935*J31 -> 25870 | L31: =K31*$E$10 -> 11900.2 | M31: 168 | N31: 26.8 | O31: 8 | Q31: 総トン数とタンク容量の関係式よりタンク容量を算出
B32: 到着港 | C32: 新潟港 | D32: 直江津港 | E32: 伏木富山港 | F32: 金沢港 | G32: 七尾港 | H32: 敦賀港 | J32: 30000 | K32: =1.2935*J32 -> 38805 | L32: 17850.3 | M32: 192 | N32: 30.6 | O32: 8.9 | Q32: 総トン数とタンク容量の関係式よりタンク容量を算出
B33: 距離 | C33: 6138 | D33: 6104 | E33: 6096 | F33: 5981 | G33: 6084 | H33: 5953 | J33: 50000 | K33: =1.2935*J33 -> 64675 | L33: 29750.5 | M33: 228 | N33: 36 | O33: 10.1 | P33: 敦賀港 | Q33: 総トン数とタンク容量の関係式よりタンク容量を算出
J34: 80000 | K34: =1.2935*J34 -> 103480 | L34: 47600.8 | M34: 267 | N34: 41.9 | O34: 11.5 | Q34: 総トン数とタンク容量の関係式よりタンク容量を算出
B35: 出発港 | C35: ウォルビスベイ港（ナミビア） | J35: 100000 | K35: =1.2935*J35 -> 129350 | L35: 59501 | M35: 287 | N35: 45 | O35: 12.2 | P35: 七尾港 | Q35: 総トン数とタンク容量の関係式よりタンク容量を算出
B36: 到着港 | C36: 新潟港 | D36: 直江津港 | E36: 伏木富山港 | F36: 金沢港 | G36: 七尾港 | H36: 敦賀港 | J36: 130000 | K36: 160000 | L36: 73600 | M36: 346 | N36: 57 | O36: 9.5 | Q36: 計画中の16万m3 液化水素運搬船
B37: 距離 | C37: 9166 | D37: 9132 | E37: 9124 | F37: 9009 | G37: 9112 | H37: 8892 | J37: ※経済産業省「ガス事業制度検討ワーキンググループ」より、「合成メタンは、LNG・天然ガスの既存のサプライチェーンをそのまま利用可能」といった特徴を持っていることや、港湾脱炭素化推進計画作成マニュアルにおいて、液化水素運搬船は、既存LNG船を基に設定されている状況であることを踏まえ、合成メタンの運搬船は、液化水素運搬船と同程度だと仮定し、設定する。
B39: ●海上輸送距離（北陸管内の拠点港湾～二次輸送港湾）
B40: 拠点港 | C40: 新潟港
B41: 二次輸送港 | C41: 新潟港 | D41: 直江津港 | E41: 伏木富山港 | F41: 金沢港 | G41: 七尾港 | H41: 敦賀港
B42: 距離 | C42: 0 | D42: 72 | E42: 127 | F42: 204 | G42: 125 | H42: 244
B44: 拠点港 | C44: 伏木富山港
B45: 二次輸送港 | C45: 新潟港 | D45: 直江津港 | E45: 伏木富山港 | F45: 金沢港 | G45: 七尾港 | H45: 敦賀港
B46: 距離 | C46: 127 | D46: 120 | E46: 0 | F46: 143 | G46: 75 | H46: 208
B48: 拠点港 | C48: 七尾港
B49: 二次輸送港 | C49: 新潟港 | D49: 直江津港 | E49: 伏木富山港 | F49: 金沢港 | G49: 七尾港 | H49: 敦賀港
B50: 距離 | C50: 125 | D50: 107 | E50: 75 | F50: 131 | G50: 0 | H50: 195
B52: 拠点港 | C52: 敦賀港
B53: 二次輸送港 | C53: 新潟港 | D53: 直江津港 | E53: 伏木富山港 | F53: 金沢港 | G53: 七尾港 | H53: 敦賀港
B54: 距離 | C54: 244 | D54: 215 | E54: 208 | F54: 78 | G54: 195 | H54: 0
B55: 出典：IHS Fairplay「distance table」
C58: 係数 | D58: 月数 | E58: 年需要（120と仮定） | F58: 月平均
B59: ピーク月 | C59: =③輸送・貯蔵入力!C18 -> 1.14 | D59: 4 | E59: =F61*D59*C59 -> 45.6 | F59: －
B60: その他月 | C60: =(E60/D60)/F61 -> 0.93 | D60: 8 | E60: =E61-E59 -> 74.4 | F60: －
B61: 合計 | C61: 1 | D61: 12 | E61: 120 | F61: 10
D63: 実証期 | E63: 2030年 | F63: 移行期 | G63: 2050年
B64: 敦賀港需要 | D64: 176298.9949 | E64: 719989.8741 | F64: 1487214.174 | G64: 3823392.596 | H64: 万トン/年
B65: 敦賀港以外需要（七尾港） | D65: =D66-D64 -> 255003.4275 | E65: =E66-E64 -> 1074711.53 | F65: =F66-F64 -> 2856574.873 | G65: =G66-G64 -> 6990583.831 | H65: 万トン/年
B66: 北陸管内需要 | D66: 431302.4225 | E66: 1794701.404 | F66: 4343789.047 | G66: 10813976.43 | H66: 万トン/年
B67: 敦賀港需要 | D67: =D64/D$66 -> 0.4087595751 | E67: 0.4011752999 | F67: 0.3423771637 | G67: 0.3535602858 | H67: ％
B68: 敦賀港以外需要（七尾港） | D68: 0.5912404249 | E68: 0.5988247001 | F68: 0.6576228363 | G68: 0.6464397142 | H68: ％
B69: 北陸管内需要 | D69: 1 | E69: 1 | F69: 1 | G69: 1 | H69: ％

Sheet ①需要
N2: （※３）最大ケースを想定し、365日と仮定 | Q2: （※4）出典：算定・報告・公表制度における算定方法・排出係数一覧（環境省ホームページ）より
F3: ●水素・アンモニアの段階的潜在需要
F4: 新潟港 | L4: 単位：トン／年 | S4: 七尾港の転換率※2050年水素・アンモニア量
B5: 6 | C5: エネルギー消費量 | D5: ボイラー・タービン燃料転換率 | I5: 実証期 | J5: 2030年 | K5: 移行期 | L5: 2050年 | S5: 水素 | U5: 1 | V5: 万トン/年 | W5: CNP形成計画記載内容
B6: 1 | C6: =VLOOKUP(B6,①需要入力!$B$21:$L$27,$B$5,FALSE) -> 193160236.7 | D6: =VLOOKUP(B6,①需要入力!$B$32:$L$33,$B$5,FALSE) -> 0 | F6: 石炭火力等によるアンモニア利用（ボイラー・タービン利用） | I6: =C6*D6*①需要入力!$G$8*①需要入力!$H$8/①需要入力!$G$40/1000 -> 0 | J6: =C6*D6*①需要入力!$I$8*①需要入力!$J$8/①需要入力!$G$40/1000 -> 0 | K6: =C6*D6*①需要入力!$K$8*①需要入力!$L$8/①需要入力!$G$40/1000 -> 0 | L6: =C6*D6*①需要入力!$M$8*①需要入力!$N$8/①需要入力!$G$40/1000 -> 0 | S6: アンモニア | U6: 386 | V6: 万m3/年 | W6: CNP形成計画記載内容
A7: 1 | B7: 1 | C7: =VLOOKUP(B7,①需要入力!$B$21:$L$27,$B$5,FALSE) -> 193160236.7 | D7: =VLOOKUP(B10,①需要入力!$B$32:$L$33,$B$5,FALSE) -> 1 | F7: LNG火力等による水素利用（ボイラー・タービン利用） | G7: 水素換算 | H7: 水素 | I7: =C7*D7*①需要入力!$G$9*①需要入力!$H$9/①需要入力!$G$41/1000 -> 19954.56991 | J7: =C7*D7*①需要入力!$I$9*①需要入力!$J$9/①需要入力!$G$41/1000 -> 39909.13982 | K7: =C7*D7*①需要入力!$K$9*①需要入力!$L$9/①需要入力!$G$41/1000 -> 239454.8389 | L7: =C7*D7*①需要入力!$M$9*①需要入力!$N$9/①需要入力!$G$41/1000 -> 1596365.593 | U7: =U6*0.682 -> 263.252 | V7: 万トン/年 | W7: （トン換算）
H8: アンモニアクラッキング | I8: =I7/(1-①需要入力!$G$46) -> 24334.84135 | J8: =J7/(1-①需要入力!$G$46) -> 48669.6827 | K8: =K7/(1-①需要入力!$G$46) -> 292018.0962 | L8: =L7/(1-①需要入力!$G$46) -> 1946787.308
H9: メタネーション | I9: =I7/(1-①需要入力!$G$47) -> 29344.95575 | J9: =J7/(1-①需要入力!$G$47) -> 58689.91149 | K9: =K7/(1-①需要入力!$G$47) -> 352139.469 | L9: =L7/(1-①需要入力!$G$47) -> 2347596.46
B10: 2 | C10: =VLOOKUP(B10,①需要入力!$B$21:$L$27,$B$5,FALSE) -> 別途算出（「都市ガス」シート参照） | F10: 都市ガスＣＮメタン化 | G10: アンモニア換算 | J10: =VLOOKUP($F4,都市ガス!$F$82:$I$87,2,FALSE) -> 4109.825591 | K10: =VLOOKUP($F4,都市ガス!$F$82:$I$87,3,FALSE) -> 193667.3766 | L10: =VLOOKUP($F4,都市ガス!$F$82:$I$87,4,FALSE) -> 387334.7532 | U10: =U7*54.1/353 -> 40.34541983 | V10: 万トン/年 | W10: （水素換算）
B11: 2 | C11: =VLOOKUP(B11,①需要入力!$B$21:$L$27,$B$5,FALSE) -> 別途算出（「都市ガス」シート参照） | G11: 水素換算 | H11: 水素 | J11: =VLOOKUP($F4,都市ガス!$F$91:$I$96,2,FALSE) -> 725.2633397 | K11: =VLOOKUP($F4,都市ガス!$F$91:$I$96,3,FALSE) -> 34176.59587 | L11: =VLOOKUP($F4,都市ガス!$F$91:$I$96,4,FALSE) -> 68353.19173 | U11: 水素 | V11: =U5/($U$5+$U$10) -> 0.02418647589
H12: アンモニアクラッキング | I12: =I11/(1-①需要入力!$G$46) -> 0 | J12: =J11/(1-①需要入力!$G$46) -> 884.4674874 | K12: =K11/(1-①需要入力!$G$46) -> 41678.77545 | L12: =L11/(1-①需要入力!$G$46) -> 83357.5509
H13: メタネーション | I13: =I11/(1-①需要入力!$G$47) -> 0 | J13: =J11/(1-①需要入力!$G$47) -> 1066.563735 | K13: =K11/(1-①需要入力!$G$47) -> 50259.6998 | L13: =L11/(1-①需要入力!$G$47) -> 100519.3996
B14: 3 | C14: =VLOOKUP(B14,①需要入力!$B$21:$L$27,$B$5,FALSE) -> 0 | F14: セメント産業のFC化 | G14: アンモニア換算 | K14: =C14*①需要入力!$K$12*①需要入力!$L$12/①需要入力!$G$40/1000 -> 0 | L14: =C14*①需要入力!$M$12*①需要入力!$N$12/①需要入力!$G$40/1000 -> 0
B15: 3 | C15: =VLOOKUP(B15,①需要入力!$B$21:$L$27,$B$5,FALSE) -> 0 | G15: 水素換算 | H15: 水素 | K15: =C15*①需要入力!$K$12*①需要入力!$L$12/①需要入力!$G$41/1000 -> 0 | L15: =C15*①需要入力!$M$12*①需要入力!$N$12/①需要入力!$G$41/1000 -> 0
H16: アンモニアクラッキング | I16: =I15/(1-①需要入力!$G$46) -> 0 | J16: =J15/(1-①需要入力!$G$46) -> 0 | K16: =K15/(1-①需要入力!$G$46) -> 0 | L16: =L15/(1-①需要入力!$G$46) -> 0
H17: メタネーション | I17: =I15/(1-①需要入力!$G$47) -> 0 | J17: =J15/(1-①需要入力!$G$47) -> 0 | K17: =K15/(1-①需要入力!$G$47) -> 0 | L17: =L15/(1-①需要入力!$G$47) -> 0
B18: 4 | C18: =VLOOKUP(B18,①需要入力!$B$21:$L$27,$B$5,FALSE) -> 1102596.919 | F18: 輸送車両のFC化 | G18: アンモニア換算 | J18: =C18*①需要入力!$I$13*①需要入力!$J$13/①需要入力!$G$40/1000 -> 11855.88085 | K18: =C18*①需要入力!$K$13*①需要入力!$L$13/①需要入力!$G$40/1000 -> 29639.70212 | L18: =C18*①需要入力!$M$13*①需要入力!$N$13/①需要入力!$G$40/1000 -> 59279.40424
B19: 4 | C19: =VLOOKUP(B19,①需要入力!$B$21:$L$27,$B$5,FALSE) -> 1102596.919 | G19: 水素換算 | H19: 水素 | J19: =C19*①需要入力!$I$13*①需要入力!$J$13/①需要入力!$G$41/1000 -> 1822.474246 | K19: =C19*①需要入力!$K$13*①需要入力!$L$13/①需要入力!$G$41/1000 -> 4556.185615 | L19: =C19*①需要入力!$M$13*①需要入力!$N$13/①需要入力!$G$41/1000 -> 9112.371231
H20: アンモニアクラッキング | I20: =I19/(1-①需要入力!$G$46) -> 0 | J20: =J19/(1-①需要入力!$G$46) -> 2222.529569 | K20: =K19/(1-①需要入力!$G$46) -> 5556.323921 | L20: =L19/(1-①需要入力!$G$46) -> 11112.64784
H21: メタネーション | I21: =I19/(1-①需要入力!$G$47) -> 0 | J21: =J19/(1-①需要入力!$G$47) -> 2680.109186 | K21: =K19/(1-①需要入力!$G$47) -> 6700.272964 | L21: =L19/(1-①需要入力!$G$47) -> 13400.54593
B22: 5 | C22: =VLOOKUP(B22,①需要入力!$B$21:$L$27,$B$5,FALSE) -> 23874.9036 | F22: ターミナル内のFC化 （荷役機械・タグボート等） | G22: アンモニア換算 | J22: =C22*①需要入力!$I$14*①需要入力!$J$14/①需要入力!$G$40/1000+C24*①需要入力!$I$15*①需要入力!$J$15/①需要入力!$G$40/1000 -> 1932.197629 | K22: =C22*①需要入力!$K$14*①需要入力!$L$14/①需要入力!$G$40/1000+C24*①需要入力!$K$15*①需要入力!$L$15/①需要入力!$G$40/1000 -> 4267.219855 | L22: =C22*①需要入力!$M$14*①需要入力!$N$14/①需要入力!$G$40/1000+C24*①需要入力!$M$15*①需要入力!$N$15/①需要入力!$G$40/1000 -> 9340.088903
B23: 5 | C23: =VLOOKUP(B23,①需要入力!$B$21:$L$27,$B$5,FALSE) -> 23874.9036 | G23: 水素換算 | H23: 水素 | J23: =C23*①需要入力!$I$14*①需要入力!$J$14/①需要入力!$G$41/1000+C25*①需要入力!$I$15*①需要入力!$J$15/①需要入力!$G$41/1000 -> 297.0155033 | K23: =C23*①需要入力!$K$14*①需要入力!$L$14/①需要入力!$G$41/1000+C25*①需要入力!$K$15*①需要入力!$L$15/①需要入力!$G$41/1000 -> 655.9528041 | L23: =C23*①需要入力!$M$14*①需要入力!$N$14/①需要入力!$G$41/1000+C25*①需要入力!$M$15*①需要入力!$N$15/①需要入力!$G$41/1000 -> 1435.749203
B24: 6 | C24: =VLOOKUP(B24,①需要入力!$B$21:$L$27,$B$5,FALSE) -> 149850.75 | H24: アンモニアクラッキング | I24: =I23/(1-①需要入力!$G$46) -> 0 | J24: =J23/(1-①需要入力!$G$46) -> 362.2140284 | K24: =K23/(1-①需要入力!$G$46) -> 799.9424441 | L24: =L23/(1-①需要入力!$G$46) -> 1750.913663
B25: 6 | C25: =VLOOKUP(B25,①需要入力!$B$21:$L$27,$B$5,FALSE) -> 149850.75 | H25: メタネーション | I25: =I23/(1-①需要入力!$G$47) -> 0 | J25: =J23/(1-①需要入力!$G$47) -> 436.7875049 | K25: =K23/(1-①需要入力!$G$47) -> 964.6364767 | L25: =L23/(1-①需要入力!$G$47) -> 2111.395887
B26: 7 | C26: =VLOOKUP(B26,①需要入力!$B$21:$L$27,$B$5,FALSE) -> 532215.532 | F26: 停泊中船舶への陸電供給 | G26: アンモニア換算 | J26: =C26*①需要入力!$I$16*①需要入力!$J$16/①需要入力!$G$40/1000 -> 7153.43457 | K26: =C26*①需要入力!$K$16*①需要入力!$L$16/①需要入力!$G$40/1000 -> 14306.86914 | L26: =C26*①需要入力!$M$16*①需要入力!$N$16/①需要入力!$G$40/1000 -> 28613.73828
B27: 7 | C27: =VLOOKUP(B27,①需要入力!$B$21:$L$27,$B$5,FALSE) -> 532215.532 | G27: 水素換算 | H27: 水素 | J27: =C27*①需要入力!$I$16*①需要入力!$J$16/①需要入力!$G$41/1000 -> 1099.618868 | K27: =C27*①需要入力!$K$16*①需要入力!$L$16/①需要入力!$G$41/1000 -> 2199.237736 | L27: =C27*①需要入力!$M$16*①需要入力!$N$16/①需要入力!$G$41/1000 -> 4398.475471
H28: アンモニアクラッキング | I28: =I27/(1-①需要入力!$G$46) -> 0 | J28: =J27/(1-①需要入力!$G$46) -> 1340.998619 | K28: =K27/(1-①需要入力!$G$46) -> 2681.997238 | L28: =L27/(1-①需要入力!$G$46) -> 5363.994477
H29: メタネーション | I29: =I27/(1-①需要入力!$G$47) -> 0 | J29: =J27/(1-①需要入力!$G$47) -> 1617.08657 | K29: =K27/(1-①需要入力!$G$47) -> 3234.17314 | L29: =L27/(1-①需要入力!$G$47) -> 6468.346281
D30: 4 | F30: 合計 | G30: アンモニア換算 | I30: =SUM(I6,I10,I14,I18,I22,I26) -> 0 | J30: 25051.33864 | K30: 241881.1677 | L30: 484567.9846
D31: 1 | G31: 水素換算 | H31: 水素 | I31: 19954.56991 | J31: 43853.51177 | K31: 281042.8109 | L31: 1679665.38
D32: 2 | H32: アンモニアクラッキング | I32: 24334.84135 | J32: 53479.89241 | K32: 342735.1353 | L32: 2048372.415
D33: 3 | H33: メタネーション | I33: 29344.95575 | J33: 64490.45849 | K33: 413298.2513 | L33: 2470096.147
J34: =J30*$N$36 -> 3850.219944
F36: 直江津港 | L36: 単位：トン／年 | N36: =54.1/352 -> 0.1536931818
B37: 7 | C37: エネルギー消費量 | D37: ボイラー・タービン燃料転換率 | I37: 実証期 | J37: 2030年 | K37: 移行期 | L37: 2050年
B38: 1 | C38: =VLOOKUP(B38,①需要入力!$B$21:$L$27,$B$37,FALSE) -> 120292724 | D38: =VLOOKUP(B38,①需要入力!$B$32:$L$33,$B$37,FALSE) -> 0 | F38: 石炭火力等によるアンモニア利用（ボイラー・タービン利用） | I38: =C38*D38*①需要入力!$G$8*①需要入力!$H$8/①需要入力!$G$40/1000 -> 0 | J38: =C38*D38*①需要入力!$I$8*①需要入力!$J$8/①需要入力!$G$40/1000 -> 0 | K38: =C38*D38*①需要入力!$K$8*①需要入力!$L$8/①需要入力!$G$40/1000 -> 0 | L38: =C38*D38*①需要入力!$M$8*①需要入力!$N$8/①需要入力!$G$40/1000 -> 0
A39: 2 | B39: 1 | C39: =VLOOKUP(B39,①需要入力!$B$21:$L$27,$B$37,FALSE) -> 120292724 | D39: =VLOOKUP(B42,①需要入力!$B$32:$L$33,$B$37,FALSE) -> 1 | F39: LNG火力等による水素利用（ボイラー・タービン利用） | G39: 水素換算 | H39: 水素 | I39: =C39*D39*①需要入力!$G$9*①需要入力!$H$9/①需要入力!$G$41/1000 -> 12426.93429 | J39: =C39*D39*①需要入力!$I$9*①需要入力!$J$9/①需要入力!$G$41/1000 -> 24853.86859 | K39: =C39*D39*①需要入力!$K$9*①需要入力!$L$9/①需要入力!$G$41/1000 -> 149123.2115 | L39: =C39*D39*①需要入力!$M$9*①需要入力!$N$9/①需要入力!$G$41/1000 -> 994154.7436
H40: アンモニアクラッキング | I40: =I39/(1-①需要入力!$G$46) -> 15154.79792 | J40: =J39/(1-①需要入力!$G$46) -> 30309.59584 | K40: =K39/(1-①需要入力!$G$46) -> 181857.575 | L40: =L39/(1-①需要入力!$G$46) -> 1212383.834
H41: メタネーション | I41: =I39/(1-①需要入力!$G$47) -> 18274.90337 | J41: =J39/(1-①需要入力!$G$47) -> 36549.80675 | K41: =K39/(1-①需要入力!$G$47) -> 219298.8405 | L41: =L39/(1-①需要入力!$G$47) -> 1461992.27
B42: 2 | C42: =VLOOKUP(B42,①需要入力!$B$21:$L$27,$B$37,FALSE) -> 0 | F42: 都市ガスＣＮメタン化 | G42: アンモニア換算 | J42: =VLOOKUP($F36,都市ガス!$F$82:$I$87,2,FALSE) -> 4109.825591 | K42: =VLOOKUP($F36,都市ガス!$F$82:$I$87,3,FALSE) -> 193667.3766 | L42: =VLOOKUP($F36,都市ガス!$F$82:$I$87,4,FALSE) -> 387334.7532
B43: 2 | C43: =VLOOKUP(B43,①需要入力!$B$21:$L$27,$B$37,FALSE) -> 0 | G43: 水素換算 | H43: 水素 | J43: =VLOOKUP($F36,都市ガス!$F$91:$I$96,2,FALSE) -> 725.2633397 | K43: =VLOOKUP($F36,都市ガス!$F$91:$I$96,3,FALSE) -> 34176.59587 | L43: =VLOOKUP($F36,都市ガス!$F$91:$I$96,4,FALSE) -> 68353.19173
H44: アンモニアクラッキング | I44: =I43/(1-①需要入力!$G$46) -> 0 | J44: =J43/(1-①需要入力!$G$46) -> 884.4674874 | K44: =K43/(1-①需要入力!$G$46) -> 41678.77545 | L44: =L43/(1-①需要入力!$G$46) -> 83357.5509
H45: メタネーション | I45: =I43/(1-①需要入力!$G$47) -> 0 | J45: =J43/(1-①需要入力!$G$47) -> 1066.563735 | K45: =K43/(1-①需要入力!$G$47) -> 50259.6998 | L45: =L43/(1-①需要入力!$G$47) -> 100519.3996
B46: 3 | C46: =VLOOKUP(B46,①需要入力!$B$21:$L$27,$B$37,FALSE) -> 0 | F46: セメント産業のFC化 | G46: アンモニア換算 | K46: =C46*①需要入力!$K$12*①需要入力!$L$12/①需要入力!$G$40/1000 -> 0 | L46: =C46*①需要入力!$M$12*①需要入力!$N$12/①需要入力!$G$40/1000 -> 0
B47: 3 | C47: =VLOOKUP(B47,①需要入力!$B$21:$L$27,$B$37,FALSE) -> 0 | G47: 水素換算 | H47: 水素 | K47: =C47*①需要入力!$K$12*①需要入力!$L$12/①需要入力!$G$41/1000 -> 0 | L47: =C47*①需要入力!$M$12*①需要入力!$N$12/①需要入力!$G$41/1000 -> 0
H48: アンモニアクラッキング | I48: =I47/(1-①需要入力!$G$46) -> 0 | J48: =J47/(1-①需要入力!$G$46) -> 0 | K48: =K47/(1-①需要入力!$G$46) -> 0 | L48: =L47/(1-①需要入力!$G$46) -> 0
H49: メタネーション | I49: =I47/(1-①需要入力!$G$47) -> 0 | J49: =J47/(1-①需要入力!$G$47) -> 0 | K49: =K47/(1-①需要入力!$G$47) -> 0 | L49: =L47/(1-①需要入力!$G$47) -> 0
B50: 4 | C50: =VLOOKUP(B50,①需要入力!$B$21:$L$27,$B$37,FALSE) -> 195594.5786 | F50: 輸送車両のFC化 | G50: アンモニア換算 | J50: =C50*①需要入力!$I$13*①需要入力!$J$13/①需要入力!$G$40/1000 -> 2103.167512 | K50: =C50*①需要入力!$K$13*①需要入力!$L$13/①需要入力!$G$40/1000 -> 5257.918779 | L50: =C50*①需要入力!$M$13*①需要入力!$N$13/①需要入力!$G$40/1000 -> 10515.83756
B51: 4 | C51: =VLOOKUP(B51,①需要入力!$B$21:$L$27,$B$37,FALSE) -> 195594.5786 | G51: 水素換算 | H51: 水素 | J51: =C51*①需要入力!$I$13*①需要入力!$J$13/①需要入力!$G$41/1000 -> 323.2968241 | K51: =C51*①需要入力!$K$13*①需要入力!$L$13/①需要入力!$G$41/1000 -> 808.2420603 | L51: =C51*①需要入力!$M$13*①需要入力!$N$13/①需要入力!$G$41/1000 -> 1616.484121
H52: アンモニアクラッキング | I52: =I51/(1-①需要入力!$G$46) -> 0 | J52: =J51/(1-①需要入力!$G$46) -> 394.2644197 | K52: =K51/(1-①需要入力!$G$46) -> 985.6610491 | L52: =L51/(1-①需要入力!$G$46) -> 1971.322098
H53: メタネーション | I53: =I51/(1-①需要入力!$G$47) -> 0 | J53: =J51/(1-①需要入力!$G$47) -> 475.4365061 | K53: =K51/(1-①需要入力!$G$47) -> 1188.591265 | L53: =L51/(1-①需要入力!$G$47) -> 2377.18253
B54: 5 | C54: =VLOOKUP(B54,①需要入力!$B$21:$L$27,$B$37,FALSE) -> 35855.70662 | F54: ターミナル内のFC化 （荷役機械・タグボート等） | G54: アンモニア換算 | J54: =C54*①需要入力!$I$14*①需要入力!$J$14/①需要入力!$G$40/1000+C56*①需要入力!$I$15*①需要入力!$J$15/①需要入力!$G$40/1000 -> 1824.680197 | K54: =C54*①需要入力!$K$14*①需要入力!$L$14/①需要入力!$G$40/1000+C56*①需要入力!$K$15*①需要入力!$L$15/①需要入力!$G$40/1000 -> 3985.047557 | L54: =C54*①需要入力!$M$14*①需要入力!$N$14/①需要入力!$G$40/1000+C56*①需要入力!$M$15*①需要入力!$N$15/①需要入力!$G$40/1000 -> 8641.469442
B55: 5 | C55: =VLOOKUP(B55,①需要入力!$B$21:$L$27,$B$37,FALSE) -> 35855.70662 | G55: 水素換算 | H55: 水素 | J55: =C55*①需要入力!$I$14*①需要入力!$J$14/①需要入力!$G$41/1000+C57*①需要入力!$I$15*①需要入力!$J$15/①需要入力!$G$41/1000 -> 280.4880302 | K55: =C55*①需要入力!$K$14*①需要入力!$L$14/①需要入力!$G$41/1000+C57*①需要入力!$K$15*①需要入力!$L$15/①需要入力!$G$41/1000 -> 612.5775583 | L55: =C55*①需要入力!$M$14*①需要入力!$N$14/①需要入力!$G$41/1000+C57*①需要入力!$M$15*①需要入力!$N$15/①需要入力!$G$41/1000 -> 1328.358113
B56: 6 | C56: =VLOOKUP(B56,①需要入力!$B$21:$L$27,$B$37,FALSE) -> 124875.625 | H56: アンモニアクラッキング | I56: =I55/(1-①需要入力!$G$46) -> 0 | J56: =J55/(1-①需要入力!$G$46) -> 342.0585734 | K56: =K55/(1-①需要入力!$G$46) -> 747.0458029 | L56: =L55/(1-①需要入力!$G$46) -> 1619.948918
B57: 6 | C57: =VLOOKUP(B57,①需要入力!$B$21:$L$27,$B$37,FALSE) -> 124875.625 | H57: メタネーション | I57: =I55/(1-①需要入力!$G$47) -> 0 | J57: =J55/(1-①需要入力!$G$47) -> 412.4823974 | K57: =K55/(1-①需要入力!$G$47) -> 900.8493505 | L57: =L55/(1-①需要入力!$G$47) -> 1953.467813
B58: 7 | C58: =VLOOKUP(B58,①需要入力!$B$21:$L$27,$B$37,FALSE) -> 166696.0426 | F58: 停泊中船舶への陸電供給 | G58: アンモニア換算 | J58: =C58*①需要入力!$I$16*①需要入力!$J$16/①需要入力!$G$40/1000 -> 2240.538207 | K58: =C58*①需要入力!$K$16*①需要入力!$L$16/①需要入力!$G$40/1000 -> 4481.076414 | L58: =C58*①需要入力!$M$16*①需要入力!$N$16/①需要入力!$G$40/1000 -> 8962.152828
B59: 7 | C59: =VLOOKUP(B59,①需要入力!$B$21:$L$27,$B$37,FALSE) -> 166696.0426 | G59: 水素換算 | H59: 水素 | J59: =C59*①需要入力!$I$16*①需要入力!$J$16/①需要入力!$G$41/1000 -> 344.4133112 | K59: =C59*①需要入力!$K$16*①需要入力!$L$16/①需要入力!$G$41/1000 -> 688.8266224 | L59: =C59*①需要入力!$M$16*①需要入力!$N$16/①需要入力!$G$41/1000 -> 1377.653245
H60: アンモニアクラッキング | I60: =I59/(1-①需要入力!$G$46) -> 0 | J60: =J59/(1-①需要入力!$G$46) -> 420.0162331 | K60: =K59/(1-①需要入力!$G$46) -> 840.0324663 | L60: =L59/(1-①需要入力!$G$46) -> 1680.064933
H61: メタネーション | I61: =I59/(1-①需要入力!$G$47) -> 0 | J61: =J59/(1-①需要入力!$G$47) -> 506.4901635 | K61: =K59/(1-①需要入力!$G$47) -> 1012.980327 | L61: =L59/(1-①需要入力!$G$47) -> 2025.960654
D62: =D30+4 -> 8 | F62: 合計 | G62: アンモニア換算 | I62: =SUM(I38,I42,I46,I50,I54,I58) -> 0 | J62: 10278.21151 | K62: 207391.4193 | L62: 415454.213
D63: =D31+4 -> 5 | G63: 水素換算 | H63: 水素 | I63: =SUM(I39,I43,I47,I51,I55,I59) -> 12426.93429 | J63: 26527.33009 | K63: 185409.4536 | L63: 1066830.431
D64: 6 | H64: アンモニアクラッキング | I64: =SUM(I40,I44,I48,I52,I56,I60) -> 15154.79792 | J64: 32350.40255 | K64: 226109.0898 | L64: 1301012.72
D65: 7 | H65: メタネーション | I65: =SUM(I41,I45,I49,I53,I57,I61) -> 18274.90337 | J65: 39010.77955 | K65: 272660.9612 | L65: 1568868.281
J66: =J62*$N$36 -> 1579.69103
F68: 伏木富山港 | L68: 単位：トン／年
B69: 8 | C69: エネルギー消費量 | D69: ボイラー・タービン燃料転換率 | I69: 実証期 | J69: 2030年 | K69: 移行期 | L69: 2050年
B70: 1 | C70: =VLOOKUP(B70,①需要入力!$B$21:$L$27,$B$69,FALSE) -> 59796854.76 | D70: =VLOOKUP(B70,①需要入力!$B$32:$L$33,$B$69,FALSE) -> 0.521841911 | F70: 石炭火力等によるアンモニア利用（ボイラー・タービン利用） | I70: =C70*D70*①需要入力!$G$8*①需要入力!$H$8/①需要入力!$G$40/1000 -> 83883.07785 | J70: =C70*D70*①需要入力!$I$8*①需要入力!$J$8/①需要入力!$G$40/1000 -> 335532.3114 | K70: =C70*D70*①需要入力!$K$8*①需要入力!$L$8/①需要入力!$G$40/1000 -> 629123.0839 | L70: =C70*D70*①需要入力!$M$8*①需要入力!$N$8/①需要入力!$G$40/1000 -> 1677661.557
A71: 3 | B71: 1 | C71: =VLOOKUP(B71,①需要入力!$B$21:$L$27,$B$69,FALSE) -> 59796854.76 | D71: =VLOOKUP(B74,①需要入力!$B$32:$L$33,$B$69,FALSE) -> 0.478158089 | F71: LNG火力等による水素利用（ボイラー・タービン利用） | G71: 水素換算 | H71: 水素 | I71: =C71*D71*①需要入力!$G$9*①需要入力!$H$9/①需要入力!$G$41/1000 -> 2953.755145 | J71: =C71*D71*①需要入力!$I$9*①需要入力!$J$9/①需要入力!$G$41/1000 -> 5907.510289 | K71: =C71*D71*①需要入力!$K$9*①需要入力!$L$9/①需要入力!$G$41/1000 -> 35445.06174 | L71: =C71*D71*①需要入力!$M$9*①需要入力!$N$9/①需要入力!$G$41/1000 -> 236300.4116
H72: アンモニアクラッキング | I72: =I71/(1-①需要入力!$G$46) -> 3602.14042 | J72: =J71/(1-①需要入力!$G$46) -> 7204.280841 | K72: =K71/(1-①需要入力!$G$46) -> 43225.68504 | L72: =L71/(1-①需要入力!$G$46) -> 288171.2336
H73: メタネーション | I73: =I71/(1-①需要入力!$G$47) -> 4343.757566 | J73: =J71/(1-①需要入力!$G$47) -> 8687.515131 | K73: =K71/(1-①需要入力!$G$47) -> 52125.09079 | L73: =L71/(1-①需要入力!$G$47) -> 347500.6053
B74: 2 | C74: =VLOOKUP(B74,①需要入力!$B$21:$L$27,$B$69,FALSE) -> 0 | F74: 都市ガスＣＮメタン化 | G74: アンモニア換算 | J74: =VLOOKUP($F68,都市ガス!$F$82:$I$87,2,FALSE) -> 4315.316871 | K74: =VLOOKUP($F68,都市ガス!$F$82:$I$87,3,FALSE) -> 203350.7454 | L74: =VLOOKUP($F68,都市ガス!$F$82:$I$87,4,FALSE) -> 406701.4908
B75: 2 | C75: =VLOOKUP(B75,①需要入力!$B$21:$L$27,$B$69,FALSE) -> 0 | G75: 水素換算 | H75: 水素 | J75: =VLOOKUP($F68,都市ガス!$F$91:$I$96,2,FALSE) -> 761.5265066 | K75: =VLOOKUP($F68,都市ガス!$F$91:$I$96,3,FALSE) -> 35885.42566 | L75: =VLOOKUP($F68,都市ガス!$F$91:$I$96,4,FALSE) -> 71770.85132
H76: アンモニアクラッキング | I76: =I75/(1-①需要入力!$G$46) -> 0 | J76: =J75/(1-①需要入力!$G$46) -> 928.6908618 | K76: =K75/(1-①需要入力!$G$46) -> 43762.71422 | L76: =L75/(1-①需要入力!$G$46) -> 87525.42844
H77: メタネーション | I77: =I75/(1-①需要入力!$G$47) -> 0 | J77: =J75/(1-①需要入力!$G$47) -> 1119.891922 | K77: =K75/(1-①需要入力!$G$47) -> 52772.68479 | L77: =L75/(1-①需要入力!$G$47) -> 105545.3696
B78: 3 | C78: =VLOOKUP(B78,①需要入力!$B$21:$L$27,$B$69,FALSE) -> 0 | F78: セメント産業のFC化 | G78: アンモニア換算 | K78: =C78*①需要入力!$K$12*①需要入力!$L$12/①需要入力!$G$40/1000 -> 0 | L78: =C78*①需要入力!$M$12*①需要入力!$N$12/①需要入力!$G$40/1000 -> 0
B79: 3 | C79: =VLOOKUP(B79,①需要入力!$B$21:$L$27,$B$69,FALSE) -> 0 | G79: 水素換算 | H79: 水素 | K79: =C79*①需要入力!$K$12*①需要入力!$L$12/①需要入力!$G$41/1000 -> 0 | L79: =C79*①需要入力!$M$12*①需要入力!$N$12/①需要入力!$G$41/1000 -> 0
H80: アンモニアクラッキング | I80: =I79/(1-①需要入力!$G$46) -> 0 | J80: =J79/(1-①需要入力!$G$46) -> 0 | K80: =K79/(1-①需要入力!$G$46) -> 0 | L80: =L79/(1-①需要入力!$G$46) -> 0
H81: メタネーション | I81: =I79/(1-①需要入力!$G$47) -> 0 | J81: =J79/(1-①需要入力!$G$47) -> 0 | K81: =K79/(1-①需要入力!$G$47) -> 0 | L81: =L79/(1-①需要入力!$G$47) -> 0
B82: 4 | C82: =VLOOKUP(B82,①需要入力!$B$21:$L$27,$B$69,FALSE) -> 137517.4096 | F82: 輸送車両のFC化 | G82: アンモニア換算 | J82: =C82*①需要入力!$I$13*①需要入力!$J$13/①需要入力!$G$40/1000 -> 1478.681824 | K82: =C82*①需要入力!$K$13*①需要入力!$L$13/①需要入力!$G$40/1000 -> 3696.704559 | L82: =C82*①需要入力!$M$13*①需要入力!$N$13/①需要入力!$G$40/1000 -> 7393.409118
B83: 4 | C83: =VLOOKUP(B83,①需要入力!$B$21:$L$27,$B$69,FALSE) -> 137517.4096 | G83: 水素換算 | H83: 水素 | J83: =C83*①需要入力!$I$13*①需要入力!$J$13/①需要入力!$G$41/1000 -> 227.3015035 | K83: =C83*①需要入力!$K$13*①需要入力!$L$13/①需要入力!$G$41/1000 -> 568.2537586 | L83: =C83*①需要入力!$M$13*①需要入力!$N$13/①需要入力!$G$41/1000 -> 1136.507517
H84: アンモニアクラッキング | I84: =I83/(1-①需要入力!$G$46) -> 0 | J84: =J83/(1-①需要入力!$G$46) -> 277.1969554 | K84: =K83/(1-①需要入力!$G$46) -> 692.9923886 | L84: =L83/(1-①需要入力!$G$46) -> 1385.984777
H85: メタネーション | I85: =I83/(1-①需要入力!$G$47) -> 0 | J85: =J83/(1-①需要入力!$G$47) -> 334.2669169 | K85: =K83/(1-①需要入力!$G$47) -> 835.6672921 | L85: =L83/(1-①需要入力!$G$47) -> 1671.334584
B86: 5 | C86: =VLOOKUP(B86,①需要入力!$B$21:$L$27,$B$69,FALSE) -> 46405.99164 | F86: ターミナル内のFC化 （荷役機械・タグボート等） | G86: アンモニア換算 | J86: =C86*①需要入力!$I$14*①需要入力!$J$14/①需要入力!$G$40/1000+C88*①需要入力!$I$15*①需要入力!$J$15/①需要入力!$G$40/1000 -> 1429.38564 | K86: =C86*①需要入力!$K$14*①需要入力!$L$14/①需要入力!$G$40/1000+C88*①需要入力!$K$15*①需要入力!$L$15/①需要入力!$G$40/1000 -> 3060.183579 | L86: =C86*①需要入力!$M$14*①需要入力!$N$14/①需要入力!$G$40/1000+C88*①需要入力!$M$15*①需要入力!$N$15/①需要入力!$G$40/1000 -> 6523.191755
B87: 5 | C87: =VLOOKUP(B87,①需要入力!$B$21:$L$27,$B$69,FALSE) -> 46405.99164 | G87: 水素換算 | H87: 水素 | J87: =C87*①需要入力!$I$14*①需要入力!$J$14/①需要入力!$G$41/1000+C89*①需要入力!$I$15*①需要入力!$J$15/①需要入力!$G$41/1000 -> 219.7237431 | K87: =C87*①需要入力!$K$14*①需要入力!$L$14/①需要入力!$G$41/1000+C89*①需要入力!$K$15*①需要入力!$L$15/①需要入力!$G$41/1000 -> 470.4083849 | L87: =C87*①需要入力!$M$14*①需要入力!$N$14/①需要入力!$G$41/1000+C89*①需要入力!$M$15*①需要入力!$N$15/①需要入力!$G$41/1000 -> 1002.738567
B88: 6 | C88: =VLOOKUP(B88,①需要入力!$B$21:$L$27,$B$69,FALSE) -> 74925.375 | H88: アンモニアクラッキング | I88: =I87/(1-①需要入力!$G$46) -> 0 | J88: =J87/(1-①需要入力!$G$46) -> 267.9557842 | K88: =K87/(1-①需要入力!$G$46) -> 573.668762 | L88: =L87/(1-①需要入力!$G$46) -> 1222.851911
B89: 6 | C89: =VLOOKUP(B89,①需要入力!$B$21:$L$27,$B$69,FALSE) -> 74925.375 | H89: メタネーション | I89: =I87/(1-①需要入力!$G$47) -> 0 | J89: =J87/(1-①需要入力!$G$47) -> 323.1231516 | K89: =K87/(1-①需要入力!$G$47) -> 691.7770366 | L89: =L87/(1-①需要入力!$G$47) -> 1474.61554
B90: 7 | C90: =VLOOKUP(B90,①需要入力!$B$21:$L$27,$B$69,FALSE) -> 277863.062 | F90: 停泊中船舶への陸電供給 | G90: アンモニア換算 | J90: =C90*①需要入力!$I$16*①需要入力!$J$16/①需要入力!$G$40/1000 -> 3734.718575 | K90: =C90*①需要入力!$K$16*①需要入力!$L$16/①需要入力!$G$40/1000 -> 7469.437151 | L90: =C90*①需要入力!$M$16*①需要入力!$N$16/①需要入力!$G$40/1000 -> 14938.8743
B91: 7 | C91: =VLOOKUP(B91,①需要入力!$B$21:$L$27,$B$69,FALSE) -> 277863.062 | G91: 水素換算 | H91: 水素 | J91: =C91*①需要入力!$I$16*①需要入力!$J$16/①需要入力!$G$41/1000 -> 574.0972356 | K91: =C91*①需要入力!$K$16*①需要入力!$L$16/①需要入力!$G$41/1000 -> 1148.194471 | L91: =C91*①需要入力!$M$16*①需要入力!$N$16/①需要入力!$G$41/1000 -> 2296.388942
H92: アンモニアクラッキング | I92: =I91/(1-①需要入力!$G$46) -> 0 | J92: =J91/(1-①需要入力!$G$46) -> 700.1185799 | K92: =K91/(1-①需要入力!$G$46) -> 1400.23716 | L92: =L91/(1-①需要入力!$G$46) -> 2800.47432
H93: メタネーション | I93: =I91/(1-①需要入力!$G$47) -> 0 | J93: =J91/(1-①需要入力!$G$47) -> 844.2606405 | K93: =K91/(1-①需要入力!$G$47) -> 1688.521281 | L93: =L91/(1-①需要入力!$G$47) -> 3377.042562
D94: =D62+4 -> 12 | F94: 合計 | G94: アンモニア換算 | I94: =SUM(I70,I74,I78,I82,I86,I90) -> 83883.07785 | J94: 346490.4143 | K94: 846700.1546 | L94: 2113218.523
D95: =D63+4 -> 9 | G95: 水素換算 | H95: 水素 | I95: =SUM(I71,I75,I79,I83,I87,I91) -> 2953.755145 | J95: 7690.159278 | K95: 73517.34401 | L95: 312506.8979
D96: 10 | H96: アンモニアクラッキング | I96: =SUM(I72,I76,I80,I84,I88,I92) -> 3602.14042 | J96: 9378.243022 | K96: 89655.29757 | L96: 381105.9731
D97: 11 | H97: メタネーション | I97: =SUM(I73,I77,I81,I85,I89,I93) -> 4343.757566 | J97: 11309.05776 | K97: 108113.7412 | L97: 459568.9675
J98: =J94*$N$36 -> 53253.21424
F100: 金沢港 | L100: 単位：トン／年
B101: 9 | C101: エネルギー消費量 | D101: ボイラー・タービン燃料転換率 | I101: 実証期 | J101: 2030年 | K101: 移行期 | L101: 2050年
B102: 1 | C102: =VLOOKUP(B102,①需要入力!$B$21:$L$27,$B$101,FALSE) -> 7569.76 | D102: =VLOOKUP(B102,①需要入力!$B$32:$L$33,$B$101,FALSE) -> 0 | F102: 石炭火力等によるアンモニア利用（ボイラー・タービン利用） | I102: =C102*D102*①需要入力!$G$8*①需要入力!$H$8/①需要入力!$G$40/1000 -> 0 | J102: =C102*D102*①需要入力!$I$8*①需要入力!$J$8/①需要入力!$G$40/1000 -> 0 | K102: =C102*D102*①需要入力!$K$8*①需要入力!$L$8/①需要入力!$G$40/1000 -> 0 | L102: =C102*D102*①需要入力!$M$8*①需要入力!$N$8/①需要入力!$G$40/1000 -> 0
A103: 4 | B103: 1 | C103: =VLOOKUP(B103,①需要入力!$B$21:$L$27,$B$101,FALSE) -> 7569.76 | D103: =VLOOKUP(B106,①需要入力!$B$32:$L$33,$B$101,FALSE) -> 1 | F103: LNG火力等による水素利用（ボイラー・タービン利用） | G103: 水素換算 | H103: 水素 | I103: =C103*D103*①需要入力!$G$9*①需要入力!$H$9/①需要入力!$G$41/1000 -> 0.782 | J103: =C103*D103*①需要入力!$I$9*①需要入力!$J$9/①需要入力!$G$41/1000 -> 1.564 | K103: =C103*D103*①需要入力!$K$9*①需要入力!$L$9/①需要入力!$G$41/1000 -> 9.384 | L103: =C103*D103*①需要入力!$M$9*①需要入力!$N$9/①需要入力!$G$41/1000 -> 62.56
H104: アンモニアクラッキング | I104: =I103/(1-①需要入力!$G$46) -> 0.9536585366 | J104: =J103/(1-①需要入力!$G$46) -> 1.907317073 | K104: =K103/(1-①需要入力!$G$46) -> 11.44390244 | L104: =L103/(1-①需要入力!$G$46) -> 76.29268293
H105: メタネーション | I105: =I103/(1-①需要入力!$G$47) -> 1.15 | J105: =J103/(1-①需要入力!$G$47) -> 2.3 | K105: =K103/(1-①需要入力!$G$47) -> 13.8 | L105: =L103/(1-①需要入力!$G$47) -> 92
B106: 2 | C106: =VLOOKUP(B106,①需要入力!$B$21:$L$27,$B$101,FALSE) -> 0 | F106: 都市ガスＣＮメタン化 | G106: アンモニア換算 | J106: =VLOOKUP($F100,都市ガス!$F$82:$I$87,2,FALSE) -> 2876.877914 | K106: =VLOOKUP($F100,都市ガス!$F$82:$I$87,3,FALSE) -> 135567.1636 | L106: =VLOOKUP($F100,都市ガス!$F$82:$I$87,4,FALSE) -> 271134.3272
B107: 2 | C107: =VLOOKUP(B107,①需要入力!$B$21:$L$27,$B$101,FALSE) -> 0 | G107: 水素換算 | H107: 水素 | J107: =VLOOKUP($F100,都市ガス!$F$91:$I$96,2,FALSE) -> 253.8421689 | K107: =VLOOKUP($F100,都市ガス!$F$91:$I$96,3,FALSE) -> 17627.92839 | L107: =VLOOKUP($F100,都市ガス!$F$91:$I$96,4,FALSE) -> 23923.61711
H108: アンモニアクラッキング | I108: =I107/(1-①需要入力!$G$46) -> 0 | J108: =J107/(1-①需要入力!$G$46) -> 309.5636206 | K108: =K107/(1-①需要入力!$G$46) -> 21497.47365 | L108: =L107/(1-①需要入力!$G$46) -> 29175.14281
H109: メタネーション | I109: =I107/(1-①需要入力!$G$47) -> 0 | J109: =J107/(1-①需要入力!$G$47) -> 373.2973072 | K109: =K107/(1-①需要入力!$G$47) -> 25923.42411 | L109: =L107/(1-①需要入力!$G$47) -> 35181.78986
B110: 3 | C110: =VLOOKUP(B110,①需要入力!$B$21:$L$27,$B$101,FALSE) -> 0 | F110: セメント産業のFC化 | G110: アンモニア換算 | K110: =C110*①需要入力!$K$12*①需要入力!$L$12/①需要入力!$G$40/1000 -> 0 | L110: =C110*①需要入力!$M$12*①需要入力!$N$12/①需要入力!$G$40/1000 -> 0
B111: 3 | C111: =VLOOKUP(B111,①需要入力!$B$21:$L$27,$B$101,FALSE) -> 0 | G111: 水素換算 | H111: 水素 | K111: =C111*①需要入力!$K$12*①需要入力!$L$12/①需要入力!$G$41/1000 -> 0 | L111: =C111*①需要入力!$M$12*①需要入力!$N$12/①需要入力!$G$41/1000 -> 0
H112: アンモニアクラッキング | I112: =I111/(1-①需要入力!$G$46) -> 0 | J112: =J111/(1-①需要入力!$G$46) -> 0 | K112: =K111/(1-①需要入力!$G$46) -> 0 | L112: =L111/(1-①需要入力!$G$46) -> 0
H113: メタネーション | I113: =I111/(1-①需要入力!$G$47) -> 0 | J113: =J111/(1-①需要入力!$G$47) -> 0 | K113: =K111/(1-①需要入力!$G$47) -> 0 | L113: =L111/(1-①需要入力!$G$47) -> 0
B114: 4 | C114: =VLOOKUP(B114,①需要入力!$B$21:$L$27,$B$101,FALSE) -> 39319.7 | F114: 輸送車両のFC化 | G114: アンモニア換算 | J114: =C114*①需要入力!$I$13*①需要入力!$J$13/①需要入力!$G$40/1000 -> 422.7924731 | K114: =C114*①需要入力!$K$13*①需要入力!$L$13/①需要入力!$G$40/1000 -> 1056.981183 | L114: =C114*①需要入力!$M$13*①需要入力!$N$13/①需要入力!$G$40/1000 -> 2113.962366
B115: 4 | C115: =VLOOKUP(B115,①需要入力!$B$21:$L$27,$B$101,FALSE) -> 39319.7 | G115: 水素換算 | H115: 水素 | J115: =C115*①需要入力!$I$13*①需要入力!$J$13/①需要入力!$G$41/1000 -> 64.99123967 | K115: =C115*①需要入力!$K$13*①需要入力!$L$13/①需要入力!$G$41/1000 -> 162.4780992 | L115: =C115*①需要入力!$M$13*①需要入力!$N$13/①需要入力!$G$41/1000 -> 324.9561983
H116: アンモニアクラッキング | I116: =I115/(1-①需要入力!$G$46) -> 0 | J116: =J115/(1-①需要入力!$G$46) -> 79.25760935 | K116: =K115/(1-①需要入力!$G$46) -> 198.1440234 | L116: =L115/(1-①需要入力!$G$46) -> 396.2880468
H117: メタネーション | I117: =I115/(1-①需要入力!$G$47) -> 0 | J117: =J115/(1-①需要入力!$G$47) -> 95.57535246 | K117: =K115/(1-①需要入力!$G$47) -> 238.9383811 | L117: =L115/(1-①需要入力!$G$47) -> 477.8767623
B118: 5 | C118: =VLOOKUP(B118,①需要入力!$B$21:$L$27,$B$101,FALSE) -> 10521.7 | F118: ターミナル内のFC化 （荷役機械・タグボート等） | G118: アンモニア換算 | J118: =C118*①需要入力!$I$14*①需要入力!$J$14/①需要入力!$G$40/1000+C120*①需要入力!$I$15*①需要入力!$J$15/①需要入力!$G$40/1000 -> 678.5201613 | K118: =C118*①需要入力!$K$14*①需要入力!$L$14/①需要入力!$G$40/1000+C120*①需要入力!$K$15*①需要入力!$L$15/①需要入力!$G$40/1000 -> 1491.315188 | L118: =C118*①需要入力!$M$14*①需要入力!$N$14/①需要入力!$G$40/1000+C120*①需要入力!$M$15*①需要入力!$N$15/①需要入力!$G$40/1000 -> 3251.180108
B119: 5 | C119: =VLOOKUP(B119,①需要入力!$B$21:$L$27,$B$101,FALSE) -> 10521.7 | G119: 水素換算 | H119: 水素 | J119: =C119*①需要入力!$I$14*①需要入力!$J$14/①需要入力!$G$41/1000+C121*①需要入力!$I$15*①需要入力!$J$15/①需要入力!$G$41/1000 -> 104.3014463 | K119: =C119*①需要入力!$K$14*①需要入力!$L$14/①需要入力!$G$41/1000+C121*①需要入力!$K$15*①需要入力!$L$15/①需要入力!$G$41/1000 -> 229.2434917 | L119: =C119*①需要入力!$M$14*①需要入力!$N$14/①需要入力!$G$41/1000+C121*①需要入力!$M$15*①需要入力!$N$15/①需要入力!$G$41/1000 -> 499.7681818
B120: 6 | C120: =VLOOKUP(B120,①需要入力!$B$21:$L$27,$B$101,FALSE) -> 49950.25 | H120: アンモニアクラッキング | I120: =I119/(1-①需要入力!$G$46) -> 0 | J120: =J119/(1-①需要入力!$G$46) -> 127.1968857 | K120: =K119/(1-①需要入力!$G$46) -> 279.5652338 | L120: =L119/(1-①需要入力!$G$46) -> 609.4733925
B121: 6 | C121: =VLOOKUP(B121,①需要入力!$B$21:$L$27,$B$101,FALSE) -> 49950.25 | H121: メタネーション | I121: =I119/(1-①需要入力!$G$47) -> 0 | J121: =J119/(1-①需要入力!$G$47) -> 153.3844798 | K121: =K119/(1-①需要入力!$G$47) -> 337.122782 | L121: =L119/(1-①需要入力!$G$47) -> 734.9532086
B122: 7 | C122: =VLOOKUP(B122,①需要入力!$B$21:$L$27,$B$101,FALSE) -> 15249 | F122: 停泊中船舶への陸電供給 | G122: アンモニア換算 | J122: =C122*①需要入力!$I$16*①需要入力!$J$16/①需要入力!$G$40/1000 -> 204.9596774 | K122: =C122*①需要入力!$K$16*①需要入力!$L$16/①需要入力!$G$40/1000 -> 409.9193548 | L122: =C122*①需要入力!$M$16*①需要入力!$N$16/①需要入力!$G$40/1000 -> 819.8387097
B123: 7 | C123: =VLOOKUP(B123,①需要入力!$B$21:$L$27,$B$101,FALSE) -> 15249 | G123: 水素換算 | H123: 水素 | J123: =C123*①需要入力!$I$16*①需要入力!$J$16/①需要入力!$G$41/1000 -> 31.50619835 | K123: =C123*①需要入力!$K$16*①需要入力!$L$16/①需要入力!$G$41/1000 -> 63.01239669 | L123: =C123*①需要入力!$M$16*①需要入力!$N$16/①需要入力!$G$41/1000 -> 126.0247934
H124: アンモニアクラッキング | I124: =I123/(1-①需要入力!$G$46) -> 0 | J124: =J123/(1-①需要入力!$G$46) -> 38.42219311 | K124: =K123/(1-①需要入力!$G$46) -> 76.84438621 | L124: =L123/(1-①需要入力!$G$46) -> 153.6887724
H125: メタネーション | I125: =I123/(1-①需要入力!$G$47) -> 0 | J125: =J123/(1-①需要入力!$G$47) -> 46.33264463 | K125: =K123/(1-①需要入力!$G$47) -> 92.66528926 | L125: =L123/(1-①需要入力!$G$47) -> 185.3305785
D126: =D94+4 -> 16 | F126: 合計 | G126: アンモニア換算 | I126: =SUM(I102,I106,I110,I114,I118,I122) -> 0 | J126: 4183.150226 | K126: 138525.3793 | L126: 277319.3084
D127: =D95+4 -> 13 | G127: 水素換算 | H127: 水素 | I127: =SUM(I103,I107,I111,I115,I119,I123) -> 0.782 | J127: 456.2050532 | K127: 18092.04638 | L127: 24936.92628
D128: 14 | H128: アンモニアクラッキング | I128: =SUM(I104,I108,I112,I116,I120,I124) -> 0.9536585366 | J128: 556.3476258 | K128: 22063.4712 | L128: 30410.88571
D129: 15 | H129: メタネーション | I129: =SUM(I105,I109,I113,I117,I121,I125) -> 1.15 | J129: 670.8897841 | K129: 26605.95056 | L129: 36671.95041
J130: =J126*$N$36 -> 642.9216682
F132: 七尾港 | L132: 単位：トン／年
B133: 10 | C133: エネルギー消費量 | D133: ボイラー・タービン燃料転換率 | I133: 実証期 | J133: 2030年 | K133: 移行期 | L133: 2050年
B134: 1 | C134: =VLOOKUP(B134,①需要入力!$B$21:$L$27,$B$133,FALSE) -> 65234564.3 | D134: =VLOOKUP(B134,①需要入力!$B$32:$L$33,$B$133,FALSE) -> 0.9758135241 | F134: 石炭火力等によるアンモニア利用（ボイラー・タービン利用） | I134: =C134*D134*①需要入力!$G$8*①需要入力!$H$8/①需要入力!$G$40/1000 -> 171120.3497 | J134: =C134*D134*①需要入力!$I$8*①需要入力!$J$8/①需要入力!$G$40/1000 -> 684481.3987 | K134: =C134*D134*①需要入力!$K$8*①需要入力!$L$8/①需要入力!$G$40/1000 -> 1283402.623 | L134: =C134*D134*①需要入力!$M$8*①需要入力!$N$8/①需要入力!$G$40/1000 -> 3422406.994
A135: 5 | B135: 1 | C135: =VLOOKUP(B135,①需要入力!$B$21:$L$27,$B$133,FALSE) -> 65234564.3 | D135: =VLOOKUP(B138,①需要入力!$B$32:$L$33,$B$133,FALSE) -> 0.02418647589 | F135: LNG火力等による水素利用（ボイラー・タービン利用） | G135: 水素換算 | H135: 水素 | I135: =C135*D135*①需要入力!$G$9*①需要入力!$H$9/①需要入力!$G$41/1000 -> 162.9952703 | J135: =C135*D135*①需要入力!$I$9*①需要入力!$J$9/①需要入力!$G$41/1000 -> 325.9905407 | K135: =C135*D135*①需要入力!$K$9*①需要入力!$L$9/①需要入力!$G$41/1000 -> 1955.943244 | L135: =C135*D135*①需要入力!$M$9*①需要入力!$N$9/①需要入力!$G$41/1000 -> 13039.62163
H136: アンモニアクラッキング | I136: =I135/(1-①需要入力!$G$46) -> 198.7747199 | J136: =J135/(1-①需要入力!$G$46) -> 397.5494398 | K136: =K135/(1-①需要入力!$G$46) -> 2385.296639 | L136: =L135/(1-①需要入力!$G$46) -> 15901.97759
H137: メタネーション | I137: =I135/(1-①需要入力!$G$47) -> 239.698927 | J137: =J135/(1-①需要入力!$G$47) -> 479.3978539 | K137: =K135/(1-①需要入力!$G$47) -> 2876.387124 | L137: =L135/(1-①需要入力!$G$47) -> 19175.91416
B138: 2 | C138: =VLOOKUP(B138,①需要入力!$B$21:$L$27,$B$133,FALSE) -> 0 | F138: 都市ガスＣＮメタン化 | G138: アンモニア換算 | J138: =VLOOKUP($F132,都市ガス!$F$82:$I$87,2,FALSE) -> 2876.877914 | K138: =VLOOKUP($F132,都市ガス!$F$82:$I$87,3,FALSE) -> 135567.1636 | L138: =VLOOKUP($F132,都市ガス!$F$82:$I$87,4,FALSE) -> 271134.3272
B139: 2 | C139: =VLOOKUP(B139,①需要入力!$B$21:$L$27,$B$133,FALSE) -> 0 | G139: 水素換算 | H139: 水素 | J139: =VLOOKUP($F132,都市ガス!$F$91:$I$96,2,FALSE) -> 253.8421689 | K139: =VLOOKUP($F132,都市ガス!$F$91:$I$96,3,FALSE) -> 17627.92839 | L139: =VLOOKUP($F132,都市ガス!$F$91:$I$96,4,FALSE) -> 23923.61711
H140: アンモニアクラッキング | I140: =I139/(1-①需要入力!$G$46) -> 0 | J140: =J139/(1-①需要入力!$G$46) -> 309.5636206 | K140: =K139/(1-①需要入力!$G$46) -> 21497.47365 | L140: =L139/(1-①需要入力!$G$46) -> 29175.14281
H141: メタネーション | I141: =I139/(1-①需要入力!$G$47) -> 0 | J141: =J139/(1-①需要入力!$G$47) -> 373.2973072 | K141: =K139/(1-①需要入力!$G$47) -> 25923.42411 | L141: =L139/(1-①需要入力!$G$47) -> 35181.78986
B142: 3 | C142: =VLOOKUP(B142,①需要入力!$B$21:$L$27,$B$133,FALSE) -> 0 | F142: セメント産業のFC化 | G142: アンモニア換算 | K142: =C142*①需要入力!$K$12*①需要入力!$L$12/①需要入力!$G$40/1000 -> 0 | L142: =C142*①需要入力!$M$12*①需要入力!$N$12/①需要入力!$G$40/1000 -> 0
B143: 3 | C143: =VLOOKUP(B143,①需要入力!$B$21:$L$27,$B$133,FALSE) -> 0 | G143: 水素換算 | H143: 水素 | K143: =C143*①需要入力!$K$12*①需要入力!$L$12/①需要入力!$G$41/1000 -> 0 | L143: =C143*①需要入力!$M$12*①需要入力!$N$12/①需要入力!$G$41/1000 -> 0
H144: アンモニアクラッキング | I144: =I143/(1-①需要入力!$G$46) -> 0 | J144: =J143/(1-①需要入力!$G$46) -> 0 | K144: =K143/(1-①需要入力!$G$46) -> 0 | L144: =L143/(1-①需要入力!$G$46) -> 0
H145: メタネーション | I145: =I143/(1-①需要入力!$G$47) -> 0 | J145: =J143/(1-①需要入力!$G$47) -> 0 | K145: =K143/(1-①需要入力!$G$47) -> 0 | L145: =L143/(1-①需要入力!$G$47) -> 0
B146: 4 | C146: =VLOOKUP(B146,①需要入力!$B$21:$L$27,$B$133,FALSE) -> 50668.8 | F146: 輸送車両のFC化 | G146: アンモニア換算 | J146: =C146*①需要入力!$I$13*①需要入力!$J$13/①需要入力!$G$40/1000 -> 544.8258065 | K146: =C146*①需要入力!$K$13*①需要入力!$L$13/①需要入力!$G$40/1000 -> 1362.064516 | L146: =C146*①需要入力!$M$13*①需要入力!$N$13/①需要入力!$G$40/1000 -> 2724.129032
B147: 4 | C147: =VLOOKUP(B147,①需要入力!$B$21:$L$27,$B$133,FALSE) -> 50668.8 | G147: 水素換算 | H147: 水素 | J147: =C147*①需要入力!$I$13*①需要入力!$J$13/①需要入力!$G$41/1000 -> 83.75008264 | K147: =C147*①需要入力!$K$13*①需要入力!$L$13/①需要入力!$G$41/1000 -> 209.3752066 | L147: =C147*①需要入力!$M$13*①需要入力!$N$13/①需要入力!$G$41/1000 -> 418.7504132
H148: アンモニアクラッキング | I148: =I147/(1-①需要入力!$G$46) -> 0 | J148: =J147/(1-①需要入力!$G$46) -> 102.1342471 | K148: =K147/(1-①需要入力!$G$46) -> 255.3356178 | L148: =L147/(1-①需要入力!$G$46) -> 510.6712356
H149: メタネーション | I149: =I147/(1-①需要入力!$G$47) -> 0 | J149: =J147/(1-①需要入力!$G$47) -> 123.1618862 | K149: =K147/(1-①需要入力!$G$47) -> 307.9047156 | L149: =L147/(1-①需要入力!$G$47) -> 615.8094312
B150: 5 | C150: =VLOOKUP(B150,①需要入力!$B$21:$L$27,$B$133,FALSE) -> 8498.8 | F150: ターミナル内のFC化 （荷役機械・タグボート等） | G150: アンモニア換算 | J150: =C150*①需要入力!$I$14*①需要入力!$J$14/①需要入力!$G$40/1000+C152*①需要入力!$I$15*①需要入力!$J$15/①需要入力!$G$40/1000 -> 651.3306452 | K150: =C150*①需要入力!$K$14*①需要入力!$L$14/①需要入力!$G$40/1000+C152*①需要入力!$K$15*①需要入力!$L$15/①需要入力!$G$40/1000 -> 1436.936156 | L150: =C150*①需要入力!$M$14*①需要入力!$N$14/①需要入力!$G$40/1000+C152*①需要入力!$M$15*①需要入力!$N$15/①需要入力!$G$40/1000 -> 3142.422043
B151: 5 | C151: =VLOOKUP(B151,①需要入力!$B$21:$L$27,$B$133,FALSE) -> 8498.8 | G151: 水素換算 | H151: 水素 | J151: =C151*①需要入力!$I$14*①需要入力!$J$14/①需要入力!$G$41/1000+C153*①需要入力!$I$15*①需要入力!$J$15/①需要入力!$G$41/1000 -> 100.1219008 | K151: =C151*①需要入力!$K$14*①需要入力!$L$14/①需要入力!$G$41/1000+C153*①需要入力!$K$15*①需要入力!$L$15/①需要入力!$G$41/1000 -> 220.8844008 | L151: =C151*①需要入力!$M$14*①需要入力!$N$14/①需要入力!$G$41/1000+C153*①需要入力!$M$15*①需要入力!$N$15/①需要入力!$G$41/1000 -> 483.05
B152: 6 | C152: =VLOOKUP(B152,①需要入力!$B$21:$L$27,$B$133,FALSE) -> 49950.25 | H152: アンモニアクラッキング | I152: =I151/(1-①需要入力!$G$46) -> 0 | J152: =J151/(1-①需要入力!$G$46) -> 122.0998791 | K152: =K151/(1-①需要入力!$G$46) -> 269.3712205 | L152: =L151/(1-①需要入力!$G$46) -> 589.0853659
B153: 6 | C153: =VLOOKUP(B153,①需要入力!$B$21:$L$27,$B$133,FALSE) -> 49950.25 | H153: メタネーション | I153: =I151/(1-①需要入力!$G$47) -> 0 | J153: =J151/(1-①需要入力!$G$47) -> 147.2380895 | K153: =K151/(1-①需要入力!$G$47) -> 324.8300012 | L153: =L151/(1-①需要入力!$G$47) -> 710.3676471
B154: 7 | C154: =VLOOKUP(B154,①需要入力!$B$21:$L$27,$B$133,FALSE) -> 11456.3 | F154: 停泊中船舶への陸電供給 | G154: アンモニア換算 | J154: =C154*①需要入力!$I$16*①需要入力!$J$16/①需要入力!$G$40/1000 -> 153.9825269 | K154: =C154*①需要入力!$K$16*①需要入力!$L$16/①需要入力!$G$40/1000 -> 307.9650538 | L154: =C154*①需要入力!$M$16*①需要入力!$N$16/①需要入力!$G$40/1000 -> 615.9301075
B155: 7 | C155: =VLOOKUP(B155,①需要入力!$B$21:$L$27,$B$133,FALSE) -> 11456.3 | G155: 水素換算 | H155: 水素 | J155: =C155*①需要入力!$I$16*①需要入力!$J$16/①需要入力!$G$41/1000 -> 23.67004132 | K155: =C155*①需要入力!$K$16*①需要入力!$L$16/①需要入力!$G$41/1000 -> 47.34008264 | L155: =C155*①需要入力!$M$16*①需要入力!$N$16/①需要入力!$G$41/1000 -> 94.68016529
H156: アンモニアクラッキング | I156: =I155/(1-①需要入力!$G$46) -> 0 | J156: =J155/(1-①需要入力!$G$46) -> 28.86590405 | K156: =K155/(1-①需要入力!$G$46) -> 57.7318081 | L156: =L155/(1-①需要入力!$G$46) -> 115.4636162
H157: メタネーション | I157: =I155/(1-①需要入力!$G$47) -> 0 | J157: =J155/(1-①需要入力!$G$47) -> 34.8088843 | K157: =K155/(1-①需要入力!$G$47) -> 69.6177686 | L157: =L155/(1-①需要入力!$G$47) -> 139.2355372
D158: =D126+4 -> 20 | F158: 合計 | G158: アンモニア換算 | I158: =SUM(I134,I138,I142,I146,I150,I154) -> 171120.3497 | J158: 688708.4156 | K158: 1422076.752 | L158: 3700023.802
D159: =D127+4 -> 17 | G159: 水素換算 | H159: 水素 | I159: =SUM(I135,I139,I143,I147,I151,I155) -> 162.9952703 | J159: 787.3747343 | K159: 20061.47133 | L159: 37959.71931
D160: 18 | H160: アンモニアクラッキング | I160: =SUM(I136,I140,I144,I148,I152,I156) -> 198.7747199 | J160: 960.2130907 | K160: 24465.20894 | L160: 46292.34062
D161: 19 | H161: メタネーション | I161: =SUM(I137,I141,I145,I149,I153,I157) -> 239.698927 | J161: 1157.904021 | K161: 29502.16372 | L161: 55823.11664
J162: =J158*$N$36 -> 105849.7877
F164: 敦賀港 | L164: 単位：トン／年
B165: 11 | C165: エネルギー消費量 | D165: ボイラー・タービン燃料転換率 | I165: 実証期 | J165: 2030年 | K165: 移行期 | L165: 2050年
B166: 1 | C166: =VLOOKUP(B166,①需要入力!$B$21:$L$27,$B$165,FALSE) -> 65752106.11 | D166: =VLOOKUP(B166,①需要入力!$B$32:$L$33,$B$165,FALSE) -> 0.9974315652 | F166: 石炭火力等によるアンモニア利用（ボイラー・タービン利用） | I166: =C166*D166*①需要入力!$G$8*①需要入力!$H$8/①需要入力!$G$40/1000 -> 176298.9949 | J166: =C166*D166*①需要入力!$I$8*①需要入力!$J$8/①需要入力!$G$40/1000 -> 705195.9797 | K166: =C166*D166*①需要入力!$K$8*①需要入力!$L$8/①需要入力!$G$40/1000 -> 1322242.462 | L166: =C166*D166*①需要入力!$M$8*①需要入力!$N$8/①需要入力!$G$40/1000 -> 3525979.898
A167: 6 | B167: 1 | C167: =VLOOKUP(B167,①需要入力!$B$21:$L$27,$B$165,FALSE) -> 65752106.11 | D167: =VLOOKUP(B170,①需要入力!$B$32:$L$33,$B$165,FALSE) -> 0.002568434838 | F167: LNG火力等による水素利用（ボイラー・タービン利用） | G167: 水素換算 | H167: 水素 | I167: =C167*D167*①需要入力!$G$9*①需要入力!$H$9/①需要入力!$G$41/1000 -> 17.44628099 | J167: =C167*D167*①需要入力!$I$9*①需要入力!$J$9/①需要入力!$G$41/1000 -> 34.89256198 | K167: =C167*D167*①需要入力!$K$9*①需要入力!$L$9/①需要入力!$G$41/1000 -> 209.3553719 | L167: =C167*D167*①需要入力!$M$9*①需要入力!$N$9/①需要入力!$G$41/1000 -> 1395.702479
H168: アンモニアクラッキング | I168: =I167/(1-①需要入力!$G$46) -> 21.27595243 | J168: =J167/(1-①需要入力!$G$46) -> 42.55190486 | K168: =K167/(1-①需要入力!$G$46) -> 255.3114291 | L168: =L167/(1-①需要入力!$G$46) -> 1702.076194
H169: メタネーション | I169: =I167/(1-①需要入力!$G$47) -> 25.65629558 | J169: =J167/(1-①需要入力!$G$47) -> 51.31259115 | K169: =K167/(1-①需要入力!$G$47) -> 307.8755469 | L169: =L167/(1-①需要入力!$G$47) -> 2052.503646
B170: 2 | C170: =VLOOKUP(B170,①需要入力!$B$21:$L$27,$B$165,FALSE) -> 0 | F170: 都市ガスＣＮメタン化 | G170: アンモニア換算 | J170: =VLOOKUP($F164,都市ガス!$F$82:$I$87,2,FALSE) -> 1917.918609 | K170: =VLOOKUP($F164,都市ガス!$F$82:$I$87,3,FALSE) -> 90378.10907 | L170: =VLOOKUP($F164,都市ガス!$F$82:$I$87,4,FALSE) -> 180756.2181
B171: 2 | C171: =VLOOKUP(B171,①需要入力!$B$21:$L$27,$B$165,FALSE) -> 0 | G171: 水素換算 | H171: 水素 | J171: =VLOOKUP($F164,都市ガス!$F$91:$I$96,2,FALSE) -> 338.4562252 | K171: =VLOOKUP($F164,都市ガス!$F$91:$I$96,3,FALSE) -> 15949.07807 | L171: =VLOOKUP($F164,都市ガス!$F$91:$I$96,4,FALSE) -> 31898.15614
H172: アンモニアクラッキング | I172: =I171/(1-①需要入力!$G$46) -> 0 | J172: =J171/(1-①需要入力!$G$46) -> 412.7514941 | K172: =K171/(1-①需要入力!$G$46) -> 19450.09521 | L172: =L171/(1-①需要入力!$G$46) -> 38900.19042
H173: メタネーション | I173: =I171/(1-①需要入力!$G$47) -> 0 | J173: =J171/(1-①需要入力!$G$47) -> 497.7297429 | K173: =K171/(1-①需要入力!$G$47) -> 23454.52658 | L173: =L171/(1-①需要入力!$G$47) -> 46909.05315
B174: 3 | C174: =VLOOKUP(B174,①需要入力!$B$21:$L$27,$B$165,FALSE) -> 2033555.1 | F174: セメント産業のFC化 | G174: アンモニア換算 | K174: =C174*①需要入力!$K$12*①需要入力!$L$12/①需要入力!$G$40/1000 -> 43732.36774 | L174: =C174*①需要入力!$M$12*①需要入力!$N$12/①需要入力!$G$40/1000 -> 54665.45968
B175: 3 | C175: =VLOOKUP(B175,①需要入力!$B$21:$L$27,$B$165,FALSE) -> 2033555.1 | G175: 水素換算 | H175: 水素 | K175: =C175*①需要入力!$K$12*①需要入力!$L$12/①需要入力!$G$41/1000 -> 6722.496198 | L175: =C175*①需要入力!$M$12*①需要入力!$N$12/①需要入力!$G$41/1000 -> 8403.120248
H176: アンモニアクラッキング | I176: =I175/(1-①需要入力!$G$46) -> 0 | J176: =J175/(1-①需要入力!$G$46) -> 0 | K176: =K175/(1-①需要入力!$G$46) -> 8198.166096 | L176: =L175/(1-①需要入力!$G$46) -> 10247.70762
H177: メタネーション | I177: =I175/(1-①需要入力!$G$47) -> 0 | J177: =J175/(1-①需要入力!$G$47) -> 0 | K177: =K175/(1-①需要入力!$G$47) -> 9886.023821 | L177: =L175/(1-①需要入力!$G$47) -> 12357.52978
B178: 4 | C178: =VLOOKUP(B178,①需要入力!$B$21:$L$27,$B$165,FALSE) -> 925351.5733 | F178: 輸送車両のFC化 | G178: アンモニア換算 | J178: =C178*①需要入力!$I$13*①需要入力!$J$13/①需要入力!$G$40/1000 -> 9950.016917 | K178: =C178*①需要入力!$K$13*①需要入力!$L$13/①需要入力!$G$40/1000 -> 24875.04229 | L178: =C178*①需要入力!$M$13*①需要入力!$N$13/①需要入力!$G$40/1000 -> 49750.08459
B179: 4 | C179: =VLOOKUP(B179,①需要入力!$B$21:$L$27,$B$165,FALSE) -> 925351.5733 | G179: 水素換算 | H179: 水素 | J179: =C179*①需要入力!$I$13*①需要入力!$J$13/①需要入力!$G$41/1000 -> 1529.506733 | K179: =C179*①需要入力!$K$13*①需要入力!$L$13/①需要入力!$G$41/1000 -> 3823.766832 | L179: =C179*①需要入力!$M$13*①需要入力!$N$13/①需要入力!$G$41/1000 -> 7647.533664
H180: アンモニアクラッキング | I180: =I179/(1-①需要入力!$G$46) -> 0 | J180: =J179/(1-①需要入力!$G$46) -> 1865.252113 | K180: =K179/(1-①需要入力!$G$46) -> 4663.130283 | L180: =L179/(1-①需要入力!$G$46) -> 9326.260565
H181: メタネーション | I181: =I179/(1-①需要入力!$G$47) -> 0 | J181: =J179/(1-①需要入力!$G$47) -> 2249.274607 | K181: =K179/(1-①需要入力!$G$47) -> 5623.186517 | L181: =L179/(1-①需要入力!$G$47) -> 11246.37303
B182: 5 | C182: =VLOOKUP(B182,①需要入力!$B$21:$L$27,$B$165,FALSE) -> 19233.63543 | F182: ターミナル内のFC化 （荷役機械・タグボート等） | G182: アンモニア換算 | J182: =C182*①需要入力!$I$14*①需要入力!$J$14/①需要入力!$G$40/1000+C184*①需要入力!$I$15*①需要入力!$J$15/①需要入力!$G$40/1000 -> 795.6160676 | K182: =C182*①需要入力!$K$14*①需要入力!$L$14/①需要入力!$G$40/1000+C184*①需要入力!$K$15*①需要入力!$L$15/①需要入力!$G$40/1000 -> 1725.507001 | L182: =C182*①需要入力!$M$14*①需要入力!$N$14/①需要入力!$G$40/1000+C184*①需要入力!$M$15*①需要入力!$N$15/①需要入力!$G$40/1000 -> 3719.563733
B183: 5 | C183: =VLOOKUP(B183,①需要入力!$B$21:$L$27,$B$165,FALSE) -> 19233.63543 | G183: 水素換算 | H183: 水素 | J183: =C183*①需要入力!$I$14*①需要入力!$J$14/①需要入力!$G$41/1000+C185*①需要入力!$I$15*①需要入力!$J$15/①需要入力!$G$41/1000 -> 122.3013129 | K183: =C183*①需要入力!$K$14*①需要入力!$L$14/①需要入力!$G$41/1000+C185*①需要入力!$K$15*①需要入力!$L$15/①需要入力!$G$41/1000 -> 265.2432249 | L183: =C183*①需要入力!$M$14*①需要入力!$N$14/①需要入力!$G$41/1000+C185*①需要入力!$M$15*①需要入力!$N$15/①需要入力!$G$41/1000 -> 571.7676482
B184: 6 | C184: =VLOOKUP(B184,①需要入力!$B$21:$L$27,$B$165,FALSE) -> 49950.25 | H184: アンモニアクラッキング | I184: =I183/(1-①需要入力!$G$46) -> 0 | J184: =J183/(1-①需要入力!$G$46) -> 149.1479425 | K184: =K183/(1-①需要入力!$G$46) -> 323.4673475 | L184: =L183/(1-①需要入力!$G$46) -> 697.2776198
B185: 6 | C185: =VLOOKUP(B185,①需要入力!$B$21:$L$27,$B$165,FALSE) -> 49950.25 | H185: メタネーション | I185: =I183/(1-①需要入力!$G$47) -> 0 | J185: =J183/(1-①需要入力!$G$47) -> 179.8548719 | K185: =K183/(1-①需要入力!$G$47) -> 390.0635661 | L185: =L183/(1-①需要入力!$G$47) -> 840.8347768
B186: 7 | C186: =VLOOKUP(B186,①需要入力!$B$21:$L$27,$B$165,FALSE) -> 158497.5066 | F186: 停泊中船舶への陸電供給 | G186: アンモニア換算 | J186: =C186*①需要入力!$I$16*①需要入力!$J$16/①需要入力!$G$40/1000 -> 2130.342831 | K186: =C186*①需要入力!$K$16*①需要入力!$L$16/①需要入力!$G$40/1000 -> 4260.685661 | L186: =C186*①需要入力!$M$16*①需要入力!$N$16/①需要入力!$G$40/1000 -> 8521.371322
B187: 7 | C187: =VLOOKUP(B187,①需要入力!$B$21:$L$27,$B$165,FALSE) -> 158497.5066 | G187: 水素換算 | H187: 水素 | J187: =C187*①需要入力!$I$16*①需要入力!$J$16/①需要入力!$G$41/1000 -> 327.4741872 | K187: =C187*①需要入力!$K$16*①需要入力!$L$16/①需要入力!$G$41/1000 -> 654.9483743 | L187: =C187*①需要入力!$M$16*①需要入力!$N$16/①需要入力!$G$41/1000 -> 1309.896749
H188: アンモニアクラッキング | I188: =I187/(1-①需要入力!$G$46) -> 0 | J188: =J187/(1-①需要入力!$G$46) -> 399.3587648 | K188: =K187/(1-①需要入力!$G$46) -> 798.7175297 | L188: =L187/(1-①需要入力!$G$46) -> 1597.435059
H189: メタネーション | I189: =I187/(1-①需要入力!$G$47) -> 0 | J189: =J187/(1-①需要入力!$G$47) -> 481.579687 | K189: =K187/(1-①需要入力!$G$47) -> 963.159374 | L189: =L187/(1-①需要入力!$G$47) -> 1926.318748
D190: =D158+4 -> 24 | F190: 合計 | G190: アンモニア換算 | I190: =SUM(I166,I170,I174,I178,I182,I186) -> 176298.9949 | J190: 719989.8741 | K190: 1487214.174 | L190: 3823392.596
D191: =D159+4 -> 21 | G191: 水素換算 | H191: 水素 | I191: =SUM(I167,I171,I175,I179,I183,I187) -> 17.44628099 | J191: 2352.63102 | K191: 27624.88807 | L191: 51226.17693
D192: 22 | H192: アンモニアクラッキング | I192: =SUM(I168,I172,I176,I180,I184,I188) -> 21.27595243 | J192: 2869.062219 | K192: 33688.88789 | L192: 62470.94748
D193: 23 | H193: メタネーション | I193: =SUM(I169,I173,I177,I181,I185,I189) -> 25.65629558 | J193: 3459.7515 | K193: 40624.8354 | L193: 75332.61313
J194: =J190*$N$36 -> 110657.5346
F197: 北陸管内港湾 総計 | L197: 単位：トン／年
B198: 11 | C198: エネルギー消費量 | D198: ボイラー・タービン燃料転換率 | I198: 実証期 | J198: 2030年 | K198: 移行期 | L198: 2050年
B199: 1 | C199: =VLOOKUP(B199,①需要入力!$B$21:$L$27,$B$165,FALSE) -> 65752106.11 | D199: =VLOOKUP(B199,①需要入力!$B$32:$L$33,$B$165,FALSE) -> 0.9974315652 | F199: 石炭火力等によるアンモニア利用（ボイラー・タービン利用） | I199: =I166+I134+I102+I70+I38+I6 -> 431302.4225 | J199: =J166+J134+J102+J70+J38+J6 -> 1725209.69 | K199: =K166+K134+K102+K70+K38+K6 -> 3234768.168 | L199: =L166+L134+L102+L70+L38+L6 -> 8626048.449
A200: 6 | B200: 1 | C200: =VLOOKUP(B200,①需要入力!$B$21:$L$27,$B$165,FALSE) -> 65752106.11 | D200: =VLOOKUP(B203,①需要入力!$B$32:$L$33,$B$165,FALSE) -> 0.002568434838 | F200: LNG火力等による水素利用（ボイラー・タービン利用） | G200: 水素換算 | H200: 水素 | I200: =I167+I135+I103+I71+I39+I7 -> 35516.4829 | J200: 71032.9658 | K200: 426197.7948 | L200: 2841318.632
H201: アンモニアクラッキング | I201: =I168+I136+I104+I72+I40+I8 -> 43312.78402 | J201: 86625.56804 | K201: 519753.4083 | L201: 3465022.722
H202: メタネーション | I202: =I169+I137+I105+I73+I41+I9 -> 52230.12191 | J202: 104460.2438 | K202: 626761.4629 | L202: 4178409.753
B203: 2 | C203: =VLOOKUP(B203,①需要入力!$B$21:$L$27,$B$165,FALSE) -> 0 | F203: 都市ガスＣＮメタン化 | G203: アンモニア換算 | I203: =I170+I138+I106+I74+I42+I10 -> 0 | J203: 20206.64249 | K203: 952197.9349 | L203: 1904395.87
B204: 2 | C204: =VLOOKUP(B204,①需要入力!$B$21:$L$27,$B$165,FALSE) -> 0 | G204: 水素換算 | H204: 水素 | I204: =I171+I139+I107+I75+I43+I11 -> 0 | J204: 3058.193749 | K204: 155443.5523 | L204: 288222.6251
H205: アンモニアクラッキング | I205: =I172+I140+I108+I76+I44+I12 -> 0 | J205: 3729.504572 | K205: 189565.3076 | L205: 351491.0063
H206: メタネーション | I206: =I173+I141+I109+I77+I45+I13 -> 0 | J206: 4497.343748 | K206: 228593.4592 | L206: 423856.8017
B207: 3 | C207: =VLOOKUP(B207,①需要入力!$B$21:$L$27,$B$165,FALSE) -> 2033555.1 | F207: セメント産業のFC化 | G207: アンモニア換算 | I207: =I174+I142+I110+I78+I46+I14 -> 0 | J207: 0 | K207: 43732.36774 | L207: 54665.45968
B208: 3 | C208: =VLOOKUP(B208,①需要入力!$B$21:$L$27,$B$165,FALSE) -> 2033555.1 | G208: 水素換算 | H208: 水素 | I208: =I175+I143+I111+I79+I47+I15 -> 0 | J208: 0 | K208: 6722.496198 | L208: 8403.120248
... 18 more rows

Sheet 都市ガス
B3: 合成メタンの製造に必要な液体水素及び液体アンモニア量 | M3: 入力項目
B4: 都道府県別 都市ガスの消費量
C6: 単位：106 m3／年
C7: 都道府県 | D7: 消費量 | G7: 都市ガス 年間消費量 （106 m3/年） | H7: 対全国比率
B8: 1 | C8: 北海道 | D8: 460
B9: 2 | C9: 青森県 | D9: 77
B10: 3 | C10: 岩手県 | D10: 75 | F10: 新潟県 | G10: =VLOOKUP(F10,$C$8:$D$54,2,FALSE) -> 240 | H10: =G10/$G$14 -> 0.0207218097
B11: 4 | C11: 宮城県 | D11: 183 | F11: 富山県 | G11: =VLOOKUP(F11,$C$8:$D$54,2,FALSE) -> 126 | H11: =G11/$G$14 -> 0.01087895009
B12: 5 | C12: 秋田県 | D12: 77 | F12: 石川県 | G12: =VLOOKUP(F12,$C$8:$D$54,2,FALSE) -> 84 | H12: =G12/$G$14 -> 0.007252633397
B13: 6 | C13: 山形県 | D13: 78 | F13: 福井県 | G13: =VLOOKUP(F13,$C$8:$D$54,2,FALSE) -> 56 | H13: =G13/$G$14 -> 0.004835088931
B14: 7 | C14: 福島県 | D14: 157 | F14: 全 国 合 計 | G14: =D55 -> 11582 | H14: =G14/$D$55 -> 1
B15: 8 | C15: 茨城県 | D15: 284 | F15: 出典：「令和３年度エネルギー消費統計調査（2023.3）」 （資源エネルギー庁） 参考表2 都道府県・エネルギー 種別エネルギー消費量表
B16: 9 | C16: 栃木県 | D16: 175
B17: 10 | C17: 群馬県 | D17: 178
B18: 11 | C18: 埼玉県 | D18: 624
B19: 12 | C19: 千葉県 | D19: 473
B20: 13 | C20: 東京都 | D20: 1622 | F20: 合成メタンの導入に必要な液体水素量及び液体アンモニア量
B21: 14 | C21: 神奈川県 | D21: 716 | F21: 合成メタン利用
B22: 15 | C22: 新潟県 | D22: 240
B23: 16 | C23: 山梨県 | D23: 64 | F23: 2030年 | G23: （合成メタン1%導入）
B24: 17 | C24: 長野県 | D24: 179 | G24: 合成メタン導入量 （万トン/年） | I24: 水素換算比率 H4/CH4 | J24: 液体水素必要量 （万トン/年） | K24: アンモニア換算比率 4NH3/3CH4 | L24: 液体アンモニア必要量 （万トン/年）
B25: 18 | C25: 静岡県 | D25: 359 | G25: 全国 | H25: 北陸地方
B26: 19 | C26: 富山県 | D26: 126 | F26: 新潟県 | G26: 28 | H26: =$G$26*H10 -> 0.5802106717 | I26: =4/(12+4) -> 0.25 | J26: =H26*$I$26 -> 0.1450526679 | K26: =4*(14+3)/(3*(12+4)) -> 1.416666667 | L26: =H26*$K$26 -> 0.8219651183
B27: 20 | C27: 石川県 | D27: 84 | F27: 富山県 | H27: =$G$26*H11 -> 0.3046106027 | J27: =H27*$I$26 -> 0.07615265066 | L27: =H27*$K$26 -> 0.4315316871
B28: 21 | C28: 岐阜県 | D28: 205 | F28: 石川県 | H28: =$G$26*H12 -> 0.2030737351 | J28: =H28*$I$26 -> 0.05076843378 | L28: =H28*$K$26 -> 0.2876877914
B29: 22 | C29: 愛知県 | D29: 955 | F29: 福井県 | H29: =$G$26*H13 -> 0.1353824901 | J29: =H29*$I$26 -> 0.03384562252 | L29: =H29*$K$26 -> 0.1917918609
B30: 23 | C30: 三重県 | D30: 211 | F30: 合 計 | G30: － | H30: =SUM(H26:H29) -> 1.2232775 | I30: － | J30: =SUM(J26:J29) -> 0.3058193749 | K30: － | L30: =SUM(L26:L29) -> 1.732976458
B31: 24 | C31: 福井県 | D31: 56
B32: 25 | C32: 滋賀県 | D32: 170 | F32: 移行期 | G32: （合成メタン45%導入）
B33: 26 | C33: 京都府 | D33: 243 | G33: 合成メタン導入量 （万トン/年） | I33: 水素換算比率 H4/CH4 | J33: 液体水素必要量 （万トン/年） | K33: アンモニア換算比率 4NH3/3CH4 | L33: 液体アンモニア必要量 （万トン/年）
B34: 27 | C34: 大阪府 | D34: 943 | G34: 全国 | H34: 北陸地方
B35: 28 | C35: 兵庫県 | D35: 585 | F35: 新潟県 | G35: =G44/2 -> 1250 | H35: =$G$35*H10 -> 25.90226213 | I35: =4/(12+4) -> 0.25 | J35: =H35*$I$35 -> 6.475565533 | K35: =4*(14+3)/(3*(12+4)) -> 1.416666667 | L35: =H35*$K$35 -> 36.69487135
B36: 29 | C36: 奈良県 | D36: 90 | F36: 富山県 | H36: =$G$35*H11 -> 13.59868762 | J36: =H36*$I$35 -> 3.399671905 | L36: =H36*$K$35 -> 19.26480746
B37: 30 | C37: 和歌山県 | D37: 66 | F37: 石川県 | H37: =$G$35*H12 -> 9.065791746 | J37: =H37*$I$35 -> 2.266447936 | L37: =H37*$K$35 -> 12.84320497
B38: 31 | C38: 鳥取県 | D38: 35 | F38: 福井県 | H38: =$G$35*H13 -> 6.043861164 | J38: =H38*$I$35 -> 1.510965291 | L38: =H38*$K$35 -> 8.562136649
B39: 32 | C39: 島根県 | D39: 41 | F39: 合 計 | G39: － | H39: =SUM(H35:H38) -> 54.61060266 | I39: － | J39: =SUM(J35:J38) -> 13.65265066 | K39: － | L39: =SUM(L35:L38) -> 77.36502043
B40: 33 | C40: 岡山県 | D40: 144
B41: 34 | C41: 広島県 | D41: 210 | F41: 2050年 | G41: （合成メタン90%導入）
B42: 35 | C42: 山口県 | D42: 104 | G42: 合成メタン導入量 （万トン/年） | I42: 水素換算比率 H4/CH4 | J42: 液体水素必要量 （万トン/年） | K42: アンモニア換算比率 4NH3/3CH4 | L42: 液体アンモニア必要量 （万トン/年）
B43: 36 | C43: 徳島県 | D43: 42 | G43: 全国 | H43: 北陸地方
B44: 37 | C44: 香川県 | D44: 73 | F44: 新潟県 | G44: 2500 | H44: =$G$44*H10 -> 51.80452426 | I44: =4/(12+4) -> 0.25 | J44: =H44*$I$44 -> 12.95113107 | K44: =4*(14+3)/(3*(12+4)) -> 1.416666667 | L44: =H44*$K$44 -> 73.3897427
B45: 38 | C45: 愛媛県 | D45: 111 | F45: 富山県 | H45: =$G$44*H11 -> 27.19737524 | J45: =H45*$I$44 -> 6.799343809 | L45: =H45*$K$44 -> 38.52961492
B46: 39 | C46: 高知県 | D46: 41 | F46: 石川県 | H46: =$G$44*H12 -> 18.13158349 | J46: =H46*$I$44 -> 4.532895873 | L46: =H46*$K$44 -> 25.68640995
B47: 40 | C47: 福岡県 | D47: 408 | F47: 福井県 | H47: =$G$44*H13 -> 12.08772233 | J47: =H47*$I$44 -> 3.021930582 | L47: =H47*$K$44 -> 17.1242733
B48: 41 | C48: 佐賀県 | D48: 60 | F48: 合 計 | G48: － | H48: =SUM(H44:H47) -> 109.2212053 | I48: － | J48: =SUM(J44:J47) -> 27.30530133 | K48: － | L48: =SUM(L44:L47) -> 154.7300409
B49: 42 | C49: 長崎県 | D49: 88
B50: 43 | C50: 熊本県 | D50: 130
B51: 44 | C51: 大分県 | D51: 78 | F51: 水素直接利用 （合成メタン需要の「2030年：2.5％」「2050年：５％」）
B52: 45 | C52: 宮崎県 | D52: 57
B53: 46 | C53: 鹿児島県 | D53: 102 | F53: 北陸４県合計 | G53: 合成メタン導入量 （万トン/年） | H53: 1％あたりの導入量 （万トン/年） | I53: 水素直接利用率 （％） | J53: 水素直接利用率分の 合成メタン導入量 （万トン/年）
B54: 47 | C54: 沖縄県 | D54: 103
B55: 全国 合計 | D55: =SUM(D8:D54) -> 11582
B56: 出典：「令和３年度エネルギー消費統計調査（2023.3）」 （資源エネルギー庁） 参考表2 都道府県・ エネルギー種別エネルギー消費量表 | F56: 移行期（45％導入） | G56: 1250 | H56: =G56/45 -> 27.77777778 | I56: 2.5 | J56: =H56*I56 -> 69.44444444
F57: 2050年（90％導入） | G57: 2500 | H57: =G57/90 -> 27.77777778 | I57: 5 | J57: =H57*I57 -> 138.8888889
F60: 移行期 | G60: （2.5%水素直接利用）
G61: 合成メタン導入量（万トン/年） | I61: 水素換算比率 H4/CH4 | J61: 液体水素必要量 （万トン/年） | K61: アンモニア換算比率 4NH3/3CH4 | L61: 液体アンモニア必要量 （万トン/年）
G62: 全国 | H62: 北陸地方
F63: 新潟県 | G63: =J56 -> 69.44444444 | H63: =$G$63*H10 -> 1.439014563 | I63: =4/(12+4) -> 0.25 | J63: =H63*$I$44 -> 0.3597536407 | K63: =4*(14+3)/(3*(12+4)) -> 1.416666667 | L63: =H63*$K$44 -> 2.038603964
F64: 富山県 | H64: =$G$63*H11 -> 0.7554826455 | J64: =H64*$I$44 -> 0.1888706614 | L64: =H64*$K$44 -> 1.070267081
F65: 石川県 | H65: =$G$63*H12 -> 0.503655097 | J65: =H65*$I$44 -> 0.1259137742 | L65: =H65*$K$44 -> 0.7135113874
F66: 福井県 | H66: =$G$63*H13 -> 0.3357700647 | J66: =H66*$I$44 -> 0.08394251616 | L66: =H66*$K$44 -> 0.4756742583
F67: 合 計 | G67: － | H67: =SUM(H63:H66) -> 3.03392237 | I67: － | J67: =SUM(J63:J66) -> 0.7584805925 | K67: － | L67: =SUM(L63:L66) -> 4.298056691
F69: 2050年 | G69: （5%水素直接利用）
G70: 合成メタン導入量（万トン/年） | I70: 水素換算比率 H4/CH4 | J70: 液体水素必要量 （万トン/年） | K70: アンモニア換算比率 4NH3/3CH4 | L70: 液体アンモニア必要量 （万トン/年）
G71: 全国 | H71: 北陸地方
F72: 新潟県 | G72: =J57 -> 138.8888889 | H72: =$G$72*H10 -> 2.878029126 | I72: =4/(12+4) -> 0.25 | J72: =H72*$I$44 -> 0.7195072814 | K72: =4*(14+3)/(3*(12+4)) -> 1.416666667 | L72: =H72*$K$44 -> 4.077207928
F73: 富山県 | H73: =$G$72*H11 -> 1.510965291 | J73: =H73*$I$44 -> 0.3777413227 | L73: =H73*$K$44 -> 2.140534162
F74: 石川県 | H74: =$G$72*H12 -> 1.007310194 | J74: =H74*$I$44 -> 0.2518275485 | L74: =H74*$K$44 -> 1.427022775
F75: 福井県 | H75: =$G$72*H13 -> 0.6715401293 | J75: =H75*$I$44 -> 0.1678850323 | L75: =H75*$K$44 -> 0.9513485165
F76: 合 計 | G76: － | H76: =SUM(H72:H75) -> 6.06784474 | I76: － | J76: =SUM(J72:J75) -> 1.516961185 | K76: － | L76: =SUM(L72:L75) -> 8.596113382
F80: アンモニア | I80: 単位：トン／年
G81: 2030年 | H81: 移行期 | I81: 2050年
F82: 新潟港 | G82: =L26*10000/2*①需要入力!$M$22 -> 4109.825591 | H82: =(L35+L63)*10000/2*①需要入力!$M$22 -> 193667.3766 | I82: =(L44+L72)*10000/2*①需要入力!$M$22 -> 387334.7532
F83: 直江津港 | G83: =G82 -> 4109.825591 | H83: =H82 -> 193667.3766 | I83: 387334.7532
F84: 伏木富山港 | G84: =L27*10000*①需要入力!$M$22 -> 4315.316871 | H84: =(L36+L64)*10000*①需要入力!$M$22 -> 203350.7454 | I84: =(L45+L73)*10000*①需要入力!$M$22 -> 406701.4908
F85: 金沢港 | G85: =L28*10000*①需要入力!$M$22 -> 2876.877914 | H85: =(L37+L65)*10000*①需要入力!$M$22 -> 135567.1636 | I85: =(L46+L74)*10000*①需要入力!$M$22 -> 271134.3272
F86: 七尾港 | G86: =G85 -> 2876.877914 | H86: =H85 -> 135567.1636 | I86: 271134.3272
F87: 敦賀港 | G87: =L29*10000*①需要入力!$M$22 -> 1917.918609 | H87: =(L38+L66)*10000*①需要入力!$M$22 -> 90378.10907 | I87: =(L47+L75)*10000*①需要入力!$M$22 -> 180756.2181
F89: 水素 | I89: 単位：トン／年
G90: 2030年 | H90: 移行期 | I90: 2050年
F91: 新潟港 | G91: =J26*10000/2*①需要入力!$M$22 -> 725.2633397 | H91: =(J35+J63)*10000/2*①需要入力!$M$22 -> 34176.59587 | I91: =(J44+J72)*10000/2*①需要入力!$M$22 -> 68353.19173
F92: 直江津港 | G92: =G91 -> 725.2633397 | H92: =H91 -> 34176.59587 | I92: =I91 -> 68353.19173
F93: 伏木富山港 | G93: =J27*10000*①需要入力!$M$22 -> 761.5265066 | H93: =(J36+J64)*10000*①需要入力!$M$22 -> 35885.42566 | I93: =(J45+J73)*10000*①需要入力!$M$22 -> 71770.85132
F94: 金沢港 | G94: =J28*10000/2*①需要入力!$M$22*①需要入力!$M$22 -> 253.8421689 | H94: =(J36+J65)*10000/2*①需要入力!$M$22 -> 17627.92839 | I94: =(J46+J74)*10000/2*①需要入力!$M$22 -> 23923.61711
F95: 七尾港 | G95: =G94*①需要入力!$M$22 -> 253.8421689 | H95: =H94 -> 17627.92839 | I95: =I94 -> 23923.61711
F96: 敦賀港 | G96: =J29*10000*①需要入力!$M$22 -> 338.4562252 | H96: =(J38+J66)*10000*①需要入力!$M$22 -> 15949.07807 | I96: =(J47+J75)*10000*①需要入力!$M$22 -> 31898.15614

Sheet グラフ(割合)
B2: 北陸管内港湾（水素：水素利用） | F2: 単位：万トン／年
C3: 実証期 | D3: 2030年 | E3: 移行期 | F3: 2050年
B4: LNG火力等による水素利用（ボイラー・タービン利用） | C4: =C44+C84+C124+C164+C204+C244 -> 3.55164829 | D4: =D44+D84+D124+D164+D204+D244 -> 7.10329658 | E4: 42.61977948 | F4: 284.1318632
B5: 都市ガスＣＮメタン化 | C5: =C45+C85+C125+C165+C205+C245 -> 0 | D5: 0.3058193749 | E5: 15.54435523 | F5: 28.82226251
B6: セメント産業のFC化 | C6: =C46+C86+C126+C166+C206+C246 -> 0 | D6: 0 | E6: 0.6722496198 | F6: 0.8403120248
B7: 輸送車両のFC化 | C7: =C47+C87+C127+C167+C207+C247 -> 0 | D7: 0.3003393583 | E7: 0.7267694114 | F7: 1.453538823
B8: ターミナル内のFC化（荷役機械・タグボート等） | C8: =C48+C88+C128+C168+C208+C248 -> 0 | D8: 0.1123951937 | E8: 0.2454309865 | F8: 0.5321431713
B9: 停泊中船舶への陸電供給 | C9: =C49+C89+C129+C169+C209+C249 -> 0 | D9: 0.2400779841 | E9: 0.4801559683 | F9: 0.9603119365
B10: 合計 | C10: =SUM(C4:C9) -> 3.55164829 | D10: =SUM(D4:D9) -> 8.061928491 | E10: =SUM(E4:E9) -> 60.28874069 | F10: =SUM(F4:F9) -> 316.7404317
B12: 北陸管内港湾（メタネーション：水素利用） | F12: 単位：万トン／年
C13: 実証期 | D13: 2030年 | E13: 移行期 | F13: 2050年
B14: LNG火力等による水素利用（ボイラー・タービン利用） | C14: =SUM(C54,C94,C134,C174,C214,C254) -> 5.223012191 | D14: =SUM(D54,D94,D134,D174,D214,D254) -> 10.44602438 | E14: 62.67614629 | F14: 417.8409753
B15: 都市ガスＣＮメタン化 | C15: =SUM(C55,C95,C135,C175,C215,C255) -> 0 | D15: 0.4497343748 | E15: 22.85934592 | F15: 42.38568017
B16: セメント産業のFC化 | C16: =SUM(C56,C96,C136,C176,C216,C256) -> 0 | D16: 0 | E16: 0.9886023821 | F16: 1.235752978
B17: 輸送車両のFC化 | C17: =SUM(C57,C97,C137,C177,C217,C257) -> 0 | D17: 0.5957824454 | E17: 1.489456114 | F17: 2.978912227
B18: ターミナル内のFC化（荷役機械・タグボート等） | C18: =SUM(C58,C98,C138,C178,C218,C258) -> 0 | D18: 0.1652870495 | E18: 0.3609279213 | F18: 0.7825634872
B19: 停泊中船舶への陸電供給 | C19: =SUM(C59,C99,C139,C179,C219,C259) -> 0 | D19: 0.353055859 | E19: 0.706111718 | F19: 1.412223436
B20: 合計 | C20: =SUM(C14:C19) -> 5.223012191 | D20: =SUM(D14:D19) -> 12.00988411 | E20: 89.08059035 | F20: 466.6361076
B22: 北陸管内港湾（アンモニアクラッキング：水素利用） | F22: 単位：万トン／年
C23: 実証期 | D23: 2030年 | E23: 移行期 | F23: 2050年
B24: LNG火力等による水素利用（ボイラー・タービン利用） | C24: =SUM(C64,C104,C144,C184,C224,C264) -> 4.331278402 | D24: =SUM(D64,D104,D144,D184,D224,D264) -> 8.662556804 | E24: 51.97534083 | F24: 346.5022722
B25: 都市ガスＣＮメタン化 | C25: =SUM(C65,C105,C145,C185,C225,C265) -> 0 | D25: 0.3729504572 | E25: 18.95653076 | F25: 35.14910063
B26: セメント産業のFC化 | C26: =SUM(C66,C106,C146,C186,C226,C266) -> 0 | D26: 0 | E26: 0.8198166096 | F26: 1.024770762
B27: 輸送車両のFC化 | C27: =SUM(C67,C107,C147,C187,C227,C267) -> 0 | D27: 0.4940634913 | E27: 1.235158728 | F27: 2.470317457
B28: ターミナル内のFC化（荷役機械・タグボート等） | C28: =SUM(C68,C108,C148,C188,C228,C268) -> 0 | D28: 0.1370673093 | E28: 0.2993060811 | F28: 0.648955087
B29: 停泊中船舶への陸電供給 | C29: =SUM(C69,C109,C149,C189,C229,C269) -> 0 | D29: 0.2927780294 | E29: 0.5855560589 | F29: 1.171112118
B30: 合計 | C30: =SUM(C24:C29) -> 4.331278402 | D30: =SUM(D24:D29) -> 9.959416092 | E30: =SUM(E24:E29) -> 73.87170907 | F30: =SUM(F24:F29) -> 386.9665282
B32: 北陸管内港湾（アンモニア） | F32: 単位：万トン／年
C33: 実証期 | D33: 2030年 | E33: 移行期 | F33: 2050年
B34: 石炭火力等によるアンモニア利用（ボイラー・タービン利用） | C34: =SUM(C74,C114,C154,C194,C234,C274) -> 43.13024225 | D34: =SUM(D74,D114,D154,D194,D234,D274) -> 172.520969 | E34: 323.4768168 | F34: 862.6048449
B35: 都市ガスＣＮメタン化 | C35: =SUM(C75,C115,C155,C195,C235,C275) -> 0 | D35: 2.020664249 | E35: 95.21979349 | F35: 190.439587
B36: セメント産業のFC化 | C36: =SUM(C76,C116,C156,C196,C236,C276) -> 0 | D36: 0 | E36: 4.373236774 | F36: 5.466545968
B37: 輸送車両のFC化 | C37: =SUM(C77,C117,C157,C197,C237,C277) -> 0 | D37: 2.635536538 | E37: 6.588841345 | F37: 13.17768269
B38: ターミナル内のFC化（荷役機械・タグボート等） | C38: =SUM(C78,C118,C158,C198,C238,C278) -> 0 | D38: 0.731173034 | E38: 1.596620934 | F38: 3.461791598
B39: 停泊中船舶への陸電供給 | C39: =SUM(C79,C119,C159,C199,C239,C279) -> 0 | D39: 1.561797639 | E39: 3.123595277 | F39: 6.247190555
B40: 合計 | C40: =SUM(C34:C39) -> 43.13024225 | D40: =SUM(D34:D39) -> 179.4701404 | E40: =SUM(E34:E39) -> 434.3789047 | F40: =SUM(F34:F39) -> 1081.397643
B42: 新潟港（水素：水素利用） | F42: 単位：万トン／年
C43: 実証期 | D43: 2030年 | E43: 移行期 | F43: 2050年
B44: LNG火力等による水素利用（ボイラー・タービン利用） | C44: =①需要!I7/10000 -> 1.995456991 | D44: =①需要!J7/10000 -> 3.990913982 | E44: =①需要!K7/10000 -> 23.94548389 | F44: =①需要!L7/10000 -> 159.6365593
B45: 都市ガスＣＮメタン化 | C45: =①需要!I11/10000 -> 0 | D45: =①需要!J11/10000 -> 0.07252633397 | E45: =①需要!K11/10000 -> 3.417659587 | F45: =①需要!L11/10000 -> 6.835319173
B46: セメント産業のFC化 | C46: =①需要!I15/10000 -> 0 | D46: =①需要!J15/10000 -> 0 | E46: =①需要!K15/10000 -> 0 | F46: =①需要!L15/10000 -> 0
B47: 輸送車両のFC化 | C47: =①需要!I19/10000 -> 0 | D47: =①需要!J19/10000 -> 0.1822474246 | E47: =①需要!K19/10000 -> 0.4556185615 | F47: =①需要!L19/10000 -> 0.9112371231
B48: ターミナル内のFC化 （荷役機械・タグボート等） | C48: =①需要!I23/10000 -> 0 | D48: =①需要!J23/10000 -> 0.02970155033 | E48: =①需要!K23/10000 -> 0.06559528041 | F48: =①需要!L23/10000 -> 0.1435749203
B49: 停泊中船舶への陸電供給 | C49: =①需要!I27/10000 -> 0 | D49: =①需要!J27/10000 -> 0.1099618868 | E49: =①需要!K27/10000 -> 0.2199237736 | F49: =①需要!L27/10000 -> 0.4398475471
B50: 合計 | C50: =SUM(C44:C49) -> 1.995456991 | D50: =SUM(D44:D49) -> 4.385351177 | E50: =SUM(E44:E49) -> 28.10428109 | F50: =SUM(F44:F49) -> 167.966538
B52: 新潟港（メタネーション：水素利用） | F52: 単位：万トン／年
C53: 実証期 | D53: 2030年 | E53: 移行期 | F53: 2050年
B54: LNG火力等による水素利用（ボイラー・タービン利用） | C54: =①需要!I9/10000 -> 2.934495575 | D54: =①需要!J9/10000 -> 5.868991149 | E54: =①需要!K9/10000 -> 35.2139469 | F54: =①需要!L9/10000 -> 234.759646
B55: 都市ガスＣＮメタン化 | C55: =①需要!I13/10000 -> 0 | D55: =①需要!J13/10000 -> 0.1066563735 | E55: =①需要!K13/10000 -> 5.02596998 | F55: =①需要!L13/10000 -> 10.05193996
B56: セメント産業のFC化 | C56: =①需要!I17/10000 -> 0 | D56: =①需要!J17/10000 -> 0 | E56: =①需要!K17/10000 -> 0 | F56: =①需要!L17/10000 -> 0
B57: 輸送車両のFC化 | C57: =①需要!I21/10000 -> 0 | D57: =①需要!J21/10000 -> 0.2680109186 | E57: =①需要!K21/10000 -> 0.6700272964 | F57: =①需要!L21/10000 -> 1.340054593
B58: ターミナル内のFC化 （荷役機械・タグボート等） | C58: =①需要!I25/10000 -> 0 | D58: =①需要!J25/10000 -> 0.04367875049 | E58: =①需要!K25/10000 -> 0.09646364767 | F58: =①需要!L25/10000 -> 0.2111395887
B59: 停泊中船舶への陸電供給 | C59: =①需要!I29/10000 -> 0 | D59: =①需要!J29/10000 -> 0.161708657 | E59: =①需要!K29/10000 -> 0.323417314 | F59: =①需要!L29/10000 -> 0.6468346281
B60: 合計 | C60: =SUM(C54:C59) -> 2.934495575 | D60: =SUM(D54:D59) -> 6.449045849 | E60: =SUM(E54:E59) -> 41.32982513 | F60: =SUM(F54:F59) -> 247.0096147
B62: 新潟港（アンモニアクラッキング：水素利用） | F62: 単位：万トン／年
C63: 実証期 | D63: 2030年 | E63: 移行期 | F63: 2050年
B64: LNG火力等による水素利用（ボイラー・タービン利用） | C64: =①需要!I8/10000 -> 2.433484135 | D64: =①需要!J8/10000 -> 4.86696827 | E64: =①需要!K8/10000 -> 29.20180962 | F64: =①需要!L8/10000 -> 194.6787308
B65: 都市ガスＣＮメタン化 | C65: =①需要!I12/10000 -> 0 | D65: =①需要!J12/10000 -> 0.08844674874 | E65: =①需要!K12/10000 -> 4.167877545 | F65: =①需要!L12/10000 -> 8.33575509
B66: セメント産業のFC化 | C66: =①需要!I16/10000 -> 0 | D66: =①需要!J16/10000 -> 0 | E66: =①需要!K16/10000 -> 0 | F66: =①需要!L16/10000 -> 0
B67: 輸送車両のFC化 | C67: =①需要!I20/10000 -> 0 | D67: =①需要!J20/10000 -> 0.2222529569 | E67: =①需要!K20/10000 -> 0.5556323921 | F67: =①需要!L20/10000 -> 1.111264784
B68: ターミナル内のFC化 （荷役機械・タグボート等） | C68: =①需要!I24/10000 -> 0 | D68: =①需要!J24/10000 -> 0.03622140284 | E68: =①需要!K24/10000 -> 0.07999424441 | F68: =①需要!L24/10000 -> 0.1750913663
B69: 停泊中船舶への陸電供給 | C69: =①需要!I28/10000 -> 0 | D69: =①需要!J28/10000 -> 0.1340998619 | E69: =①需要!K28/10000 -> 0.2681997238 | F69: =①需要!L28/10000 -> 0.5363994477
B70: 合計 | C70: =SUM(C64:C69) -> 2.433484135 | D70: =SUM(D64:D69) -> 5.347989241 | E70: =SUM(E64:E69) -> 34.27351353 | F70: =SUM(F64:F69) -> 204.8372415
B72: 新潟港（アンモニア） | F72: 単位：万トン／年
C73: 実証期 | D73: 2030年 | E73: 移行期 | F73: 2050年
B74: 石炭火力等によるアンモニア利用（ボイラー・タービン利用） | C74: =①需要!I6/10000 -> 0 | D74: =①需要!J6/10000 -> 0 | E74: =①需要!K6/10000 -> 0 | F74: =①需要!L6/10000 -> 0
B75: 都市ガスＣＮメタン化 | C75: =①需要!I10/10000 -> 0 | D75: =①需要!J10/10000 -> 0.4109825591 | E75: =①需要!K10/10000 -> 19.36673766 | F75: =①需要!L10/10000 -> 38.73347532
B76: セメント産業のFC化 | C76: =①需要!I14/10000 -> 0 | D76: =①需要!J14/10000 -> 0 | E76: =①需要!K14/10000 -> 0 | F76: =①需要!L14/10000 -> 0
B77: 輸送車両のFC化 | C77: =①需要!I18/10000 -> 0 | D77: =①需要!J18/10000 -> 1.185588085 | E77: =①需要!K18/10000 -> 2.963970212 | F77: =①需要!L18/10000 -> 5.927940424
B78: ターミナル内のFC化 （荷役機械・タグボート等） | C78: =①需要!I22/10000 -> 0 | D78: =①需要!J22/10000 -> 0.1932197629 | E78: =①需要!K22/10000 -> 0.4267219855 | F78: =①需要!L22/10000 -> 0.9340088903
B79: 停泊中船舶への陸電供給 | C79: =①需要!I26/10000 -> 0 | D79: =①需要!J26/10000 -> 0.715343457 | E79: =①需要!K26/10000 -> 1.430686914 | F79: =①需要!L26/10000 -> 2.861373828
B80: 合計 | C80: =SUM(C74:C79) -> 0 | D80: =SUM(D74:D79) -> 2.505133864 | E80: =SUM(E74:E79) -> 24.18811677 | F80: =SUM(F74:F79) -> 48.45679846
B82: 直江津港（水素：水素利用） | F82: 単位：万トン／年
C83: 実証期 | D83: 2030年 | E83: 移行期 | F83: 2050年
B84: LNG火力等による水素利用（ボイラー・タービン利用） | C84: =①需要!I39/10000 -> 1.242693429 | D84: =①需要!J39/10000 -> 2.485386859 | E84: =①需要!K39/10000 -> 14.91232115 | F84: =①需要!L39/10000 -> 99.41547436
B85: 都市ガスＣＮメタン化 | C85: =①需要!I43/10000 -> 0 | D85: =①需要!J43/10000 -> 0.07252633397 | E85: =①需要!K43/10000 -> 3.417659587 | F85: =①需要!L43/10000 -> 6.835319173
B86: セメント産業のFC化 | C86: =①需要!I47/10000 -> 0 | D86: =①需要!J47/10000 -> 0 | E86: =①需要!K47/10000 -> 0 | F86: =①需要!L47/10000 -> 0
B87: 輸送車両のFC化 | C87: =①需要!I51/10000 -> 0 | D87: =①需要!J51/10000 -> 0.03232968241 | E87: =①需要!K51/10000 -> 0.08082420603 | F87: =①需要!L51/10000 -> 0.1616484121
B88: ターミナル内のFC化 （荷役機械・タグボート等） | C88: =①需要!I55/10000 -> 0 | D88: =①需要!J55/10000 -> 0.02804880302 | E88: =①需要!K55/10000 -> 0.06125775583 | F88: =①需要!L55/10000 -> 0.1328358113
B89: 停泊中船舶への陸電供給 | C89: =①需要!I59/10000 -> 0 | D89: =①需要!J59/10000 -> 0.03444133112 | E89: =①需要!K59/10000 -> 0.06888266224 | F89: =①需要!L59/10000 -> 0.1377653245
B90: 合計 | C90: =SUM(C84:C89) -> 1.242693429 | D90: =SUM(D84:D89) -> 2.652733009 | E90: =SUM(E84:E89) -> 18.54094536 | F90: =SUM(F84:F89) -> 106.6830431
B92: 直江津港（メタネーション：水素利用） | F92: 単位：万トン／年
C93: 実証期 | D93: 2030年 | E93: 移行期 | F93: 2050年
B94: LNG火力等による水素利用（ボイラー・タービン利用） | C94: =①需要!I41/10000 -> 1.827490337 | D94: =①需要!J41/10000 -> 3.654980675 | E94: =①需要!K41/10000 -> 21.92988405 | F94: =①需要!L41/10000 -> 146.199227
B95: 都市ガスＣＮメタン化 | C95: =①需要!I45/10000 -> 0 | D95: =①需要!J45/10000 -> 0.1066563735 | E95: =①需要!K45/10000 -> 5.02596998 | F95: =①需要!L45/10000 -> 10.05193996
B96: セメント産業のFC化 | C96: =①需要!I49/10000 -> 0 | D96: =①需要!J49/10000 -> 0 | E96: =①需要!K49/10000 -> 0 | F96: =①需要!L49/10000 -> 0
B97: 輸送車両のFC化 | C97: =①需要!I53/10000 -> 0 | D97: =①需要!J53/10000 -> 0.04754365061 | E97: =①需要!K53/10000 -> 0.1188591265 | F97: =①需要!L53/10000 -> 0.237718253
B98: ターミナル内のFC化 （荷役機械・タグボート等） | C98: =①需要!I57/10000 -> 0 | D98: =①需要!J57/10000 -> 0.04124823974 | E98: =①需要!K57/10000 -> 0.09008493505 | F98: =①需要!L57/10000 -> 0.1953467813
B99: 停泊中船舶への陸電供給 | C99: =①需要!I61/10000 -> 0 | D99: =①需要!J61/10000 -> 0.05064901635 | E99: =①需要!K61/10000 -> 0.1012980327 | F99: =①需要!L61/10000 -> 0.2025960654
B100: 合計 | C100: =SUM(C94:C99) -> 1.827490337 | D100: =SUM(D94:D99) -> 3.901077955 | E100: =SUM(E94:E99) -> 27.26609612 | F100: =SUM(F94:F99) -> 156.8868281
B102: 直江津港（アンモニアクラッキング：水素利用） | F102: 単位：万トン／年
C103: 実証期 | D103: 2030年 | E103: 移行期 | F103: 2050年
B104: LNG火力等による水素利用（ボイラー・タービン利用） | C104: =①需要!I40/10000 -> 1.515479792 | D104: =①需要!J40/10000 -> 3.030959584 | E104: =①需要!K40/10000 -> 18.1857575 | F104: =①需要!L40/10000 -> 121.2383834
B105: 都市ガスＣＮメタン化 | C105: =①需要!I44/10000 -> 0 | D105: =①需要!J44/10000 -> 0.08844674874 | E105: =①需要!K44/10000 -> 4.167877545 | F105: =①需要!L44/10000 -> 8.33575509
B106: セメント産業のFC化 | C106: =①需要!I48/10000 -> 0 | D106: =①需要!J48/10000 -> 0 | E106: =①需要!K48/10000 -> 0 | F106: =①需要!L48/10000 -> 0
B107: 輸送車両のFC化 | C107: =①需要!I52/10000 -> 0 | D107: =①需要!J52/10000 -> 0.03942644197 | E107: =①需要!K52/10000 -> 0.09856610491 | F107: =①需要!L52/10000 -> 0.1971322098
B108: ターミナル内のFC化 （荷役機械・タグボート等） | C108: =①需要!I56/10000 -> 0 | D108: =①需要!J56/10000 -> 0.03420585734 | E108: =①需要!K56/10000 -> 0.07470458029 | F108: =①需要!L56/10000 -> 0.1619948918
B109: 停泊中船舶への陸電供給 | C109: =①需要!I60/10000 -> 0 | D109: =①需要!J60/10000 -> 0.04200162331 | E109: =①需要!K60/10000 -> 0.08400324663 | F109: =①需要!L60/10000 -> 0.1680064933
B110: 合計 | C110: =SUM(C104:C109) -> 1.515479792 | D110: =SUM(D104:D109) -> 3.235040255 | E110: =SUM(E104:E109) -> 22.61090898 | F110: =SUM(F104:F109) -> 130.101272
B112: 直江津港（アンモニア） | F112: 単位：万トン／年
C113: 実証期 | D113: 2030年 | E113: 移行期 | F113: 2050年
B114: 石炭火力等によるアンモニア利用（ボイラー・タービン利用） | C114: =①需要!I38/10000 -> 0 | D114: =①需要!J38/10000 -> 0 | E114: =①需要!K38/10000 -> 0 | F114: =①需要!L38/10000 -> 0
B115: 都市ガスＣＮメタン化 | C115: =①需要!I42/10000 -> 0 | D115: =①需要!J42/10000 -> 0.4109825591 | E115: =①需要!K42/10000 -> 19.36673766 | F115: =①需要!L42/10000 -> 38.73347532
B116: セメント産業のFC化 | C116: =①需要!I46/10000 -> 0 | D116: =①需要!J46/10000 -> 0 | E116: =①需要!K46/10000 -> 0 | F116: =①需要!L46/10000 -> 0
B117: 輸送車両のFC化 | C117: =①需要!I50/10000 -> 0 | D117: =①需要!J50/10000 -> 0.2103167512 | E117: =①需要!K50/10000 -> 0.5257918779 | F117: =①需要!L50/10000 -> 1.051583756
B118: ターミナル内のFC化 （荷役機械・タグボート等） | C118: =①需要!I54/10000 -> 0 | D118: =①需要!J54/10000 -> 0.1824680197 | E118: =①需要!K54/10000 -> 0.3985047557 | F118: =①需要!L54/10000 -> 0.8641469442
B119: 停泊中船舶への陸電供給 | C119: =①需要!I58/10000 -> 0 | D119: =①需要!J58/10000 -> 0.2240538207 | E119: =①需要!K58/10000 -> 0.4481076414 | F119: =①需要!L58/10000 -> 0.8962152828
B120: 合計 | C120: =SUM(C114:C119) -> 0 | D120: =SUM(D114:D119) -> 1.027821151 | E120: =SUM(E114:E119) -> 20.73914193 | F120: =SUM(F114:F119) -> 41.5454213
B122: 伏木富山港（水素：水素利用） | F122: 単位：万トン／年
C123: 実証期 | D123: 2030年 | E123: 移行期 | F123: 2050年
B124: LNG火力等による水素利用（ボイラー・タービン利用） | C124: =①需要!I71/10000 -> 0.2953755145 | D124: =①需要!J71/10000 -> 0.5907510289 | E124: =①需要!K71/10000 -> 3.544506174 | F124: =①需要!L71/10000 -> 23.63004116
B125: 都市ガスＣＮメタン化 | C125: =①需要!I75/10000 -> 0 | D125: =①需要!J75/10000 -> 0.07615265066 | E125: =①需要!K75/10000 -> 3.588542566 | F125: =①需要!L75/10000 -> 7.177085132
B126: セメント産業のFC化 | C126: =①需要!I79/10000 -> 0 | D126: =①需要!J79/10000 -> 0 | E126: =①需要!K79/10000 -> 0 | F126: =①需要!L79/10000 -> 0
B127: 輸送車両のFC化 | C127: =①需要!I83/10000 -> 0 | D127: =①需要!J83/10000 -> 0.02273015035 | E127: =①需要!K83/10000 -> 0.05682537586 | F127: =①需要!L83/10000 -> 0.1136507517
B128: ターミナル内のFC化 （荷役機械・タグボート等） | C128: =①需要!I87/10000 -> 0 | D128: =①需要!J87/10000 -> 0.02197237431 | E128: =①需要!K87/10000 -> 0.04704083849 | F128: =①需要!L87/10000 -> 0.1002738567
B129: 停泊中船舶への陸電供給 | C129: =①需要!I91/10000 -> 0 | D129: =①需要!J91/10000 -> 0.05740972356 | E129: =①需要!K91/10000 -> 0.1148194471 | F129: =①需要!L91/10000 -> 0.2296388942
B130: 合計 | C130: =SUM(C124:C129) -> 0.2953755145 | D130: =SUM(D124:D129) -> 0.7690159278 | E130: =SUM(E124:E129) -> 7.351734401 | F130: =SUM(F124:F129) -> 31.25068979
B132: 伏木富山港（メタネーション：水素利用） | F132: 単位：万トン／年
C133: 実証期 | D133: 2030年 | E133: 移行期 | F133: 2050年
B134: LNG火力等による水素利用（ボイラー・タービン利用） | C134: =①需要!I73/10000 -> 0.4343757566 | D134: =①需要!J73/10000 -> 0.8687515131 | E134: =①需要!K73/10000 -> 5.212509079 | F134: =①需要!L73/10000 -> 34.75006053
B135: 都市ガスＣＮメタン化 | C135: =①需要!I77/10000 -> 0 | D135: =①需要!J77/10000 -> 0.1119891922 | E135: =①需要!K77/10000 -> 5.277268479 | F135: =①需要!L77/10000 -> 10.55453696
B136: セメント産業のFC化 | C136: =①需要!I81/10000 -> 0 | D136: =①需要!J81/10000 -> 0 | E136: =①需要!K81/10000 -> 0 | F136: =①需要!L81/10000 -> 0
B137: 輸送車両のFC化 | C137: =①需要!I85/10000 -> 0 | D137: =①需要!J85/10000 -> 0.03342669169 | E137: =①需要!K85/10000 -> 0.08356672921 | F137: =①需要!L85/10000 -> 0.1671334584
B138: ターミナル内のFC化 （荷役機械・タグボート等） | C138: =①需要!I89/10000 -> 0 | D138: =①需要!J89/10000 -> 0.03231231516 | E138: =①需要!K89/10000 -> 0.06917770366 | F138: =①需要!L89/10000 -> 0.147461554
B139: 停泊中船舶への陸電供給 | C139: =①需要!I93/10000 -> 0 | D139: =①需要!J93/10000 -> 0.08442606405 | E139: =①需要!K93/10000 -> 0.1688521281 | F139: =①需要!L93/10000 -> 0.3377042562
B140: 合計 | C140: =SUM(C134:C139) -> 0.4343757566 | D140: =SUM(D134:D139) -> 1.130905776 | E140: =SUM(E134:E139) -> 10.81137412 | F140: =SUM(F134:F139) -> 45.95689675
B142: 伏木富山港（アンモニアクラッキング：水素利用） | F142: 単位：万トン／年
C143: 実証期 | D143: 2030年 | E143: 移行期 | F143: 2050年
B144: LNG火力等による水素利用（ボイラー・タービン利用） | C144: =①需要!I72/10000 -> 0.360214042 | D144: =①需要!J72/10000 -> 0.7204280841 | E144: =①需要!K72/10000 -> 4.322568504 | F144: =①需要!L72/10000 -> 28.81712336
B145: 都市ガスＣＮメタン化 | C145: =①需要!I76/10000 -> 0 | D145: =①需要!J76/10000 -> 0.09286908618 | E145: =①需要!K76/10000 -> 4.376271422 | F145: =①需要!L76/10000 -> 8.752542844
B146: セメント産業のFC化 | C146: =①需要!I80/10000 -> 0 | D146: =①需要!J80/10000 -> 0 | E146: =①需要!K80/10000 -> 0 | F146: =①需要!L80/10000 -> 0
B147: 輸送車両のFC化 | C147: =①需要!I84/10000 -> 0 | D147: =①需要!J84/10000 -> 0.02771969554 | E147: =①需要!K84/10000 -> 0.06929923886 | F147: =①需要!L84/10000 -> 0.1385984777
B148: ターミナル内のFC化 （荷役機械・タグボート等） | C148: =①需要!I88/10000 -> 0 | D148: =①需要!J88/10000 -> 0.02679557842 | E148: =①需要!K88/10000 -> 0.0573668762 | F148: =①需要!L88/10000 -> 0.1222851911
B149: 停泊中船舶への陸電供給 | C149: =①需要!I92/10000 -> 0 | D149: =①需要!J92/10000 -> 0.07001185799 | E149: =①需要!K92/10000 -> 0.140023716 | F149: =①需要!L92/10000 -> 0.280047432
B150: 合計 | C150: =SUM(C144:C149) -> 0.360214042 | D150: =SUM(D144:D149) -> 0.9378243022 | E150: =SUM(E144:E149) -> 8.965529757 | F150: =SUM(F144:F149) -> 38.11059731
B152: 伏木富山港（アンモニア） | F152: 単位：万トン／年
C153: 実証期 | D153: 2030年 | E153: 移行期 | F153: 2050年
B154: 石炭火力等によるアンモニア利用（ボイラー・タービン利用） | C154: =①需要!I70/10000 -> 8.388307785 | D154: =①需要!J70/10000 -> 33.55323114 | E154: =①需要!K70/10000 -> 62.91230839 | F154: =①需要!L70/10000 -> 167.7661557
B155: 都市ガスＣＮメタン化 | C155: =①需要!I74/10000 -> 0 | D155: =①需要!J74/10000 -> 0.4315316871 | E155: =①需要!K74/10000 -> 20.33507454 | F155: =①需要!L74/10000 -> 40.67014908
B156: セメント産業のFC化 | C156: =①需要!I78/10000 -> 0 | D156: =①需要!J78/10000 -> 0 | E156: =①需要!K78/10000 -> 0 | F156: =①需要!L78/10000 -> 0
B157: 輸送車両のFC化 | C157: =①需要!I82/10000 -> 0 | D157: =①需要!J82/10000 -> 0.1478681824 | E157: =①需要!K82/10000 -> 0.3696704559 | F157: =①需要!L82/10000 -> 0.7393409118
B158: ターミナル内のFC化 （荷役機械・タグボート等） | C158: =①需要!I86/10000 -> 0 | D158: =①需要!J86/10000 -> 0.142938564 | E158: =①需要!K86/10000 -> 0.3060183579 | F158: =①需要!L86/10000 -> 0.6523191755
B159: 停泊中船舶への陸電供給 | C159: =①需要!I90/10000 -> 0 | D159: =①需要!J90/10000 -> 0.3734718575 | E159: =①需要!K90/10000 -> 0.7469437151 | F159: =①需要!L90/10000 -> 1.49388743
B160: 合計 | C160: =SUM(C154:C159) -> 8.388307785 | D160: =SUM(D154:D159) -> 34.64904143 | E160: =SUM(E154:E159) -> 84.67001546 | F160: =SUM(F154:F159) -> 211.3218523
B162: 金沢港（水素：水素利用） | F162: 単位：万トン／年
C163: 実証期 | D163: 2030年 | E163: 移行期 | F163: 2050年
B164: LNG火力等による水素利用（ボイラー・タービン利用） | C164: =①需要!I103/10000 -> 7.82e-05 | D164: =①需要!J103/10000 -> 0.0001564 | E164: =①需要!K103/10000 -> 0.0009384 | F164: =①需要!L103/10000 -> 0.006256
B165: 都市ガスＣＮメタン化 | C165: =①需要!I107/10000 -> 0 | D165: =①需要!J107/10000 -> 0.02538421689 | E165: =①需要!K107/10000 -> 1.762792839 | F165: =①需要!L107/10000 -> 2.392361711
B166: セメント産業のFC化 | C166: =①需要!I111/10000 -> 0 | D166: =①需要!J111/10000 -> 0 | E166: =①需要!K111/10000 -> 0 | F166: =①需要!L111/10000 -> 0
B167: 輸送車両のFC化 | C167: =①需要!I115/10000 -> 0 | D167: =①需要!J115/10000 -> 0.006499123967 | E167: =①需要!K115/10000 -> 0.01624780992 | F167: =①需要!L115/10000 -> 0.03249561983
B168: ターミナル内のFC化 （荷役機械・タグボート等） | C168: =①需要!I119/10000 -> 0 | D168: =①需要!J119/10000 -> 0.01043014463 | E168: =①需要!K119/10000 -> 0.02292434917 | F168: =①需要!L119/10000 -> 0.04997681818
B169: 停泊中船舶への陸電供給 | C169: =①需要!I123/10000 -> 0 | D169: =①需要!J123/10000 -> 0.003150619835 | E169: =①需要!K123/10000 -> 0.006301239669 | F169: =①需要!L123/10000 -> 0.01260247934
B170: 合計 | C170: =SUM(C164:C169) -> 7.82e-05 | D170: =SUM(D164:D169) -> 0.04562050532 | E170: =SUM(E164:E169) -> 1.809204638 | F170: =SUM(F164:F169) -> 2.493692628
B172: 金沢港（メタネーション：水素利用） | F172: 単位：万トン／年
C173: 実証期 | D173: 2030年 | E173: 移行期 | F173: 2050年
B174: LNG火力等による水素利用（ボイラー・タービン利用） | C174: =①需要!I105/10000 -> 0.000115 | D174: =①需要!J105/10000 -> 0.00023 | E174: =①需要!K105/10000 -> 0.00138 | F174: =①需要!L105/10000 -> 0.0092
B175: 都市ガスＣＮメタン化 | C175: =①需要!I109/10000 -> 0 | D175: =①需要!J109/10000 -> 0.03732973072 | E175: =①需要!K109/10000 -> 2.592342411 | F175: =①需要!L109/10000 -> 3.518178986
B176: セメント産業のFC化 | C176: =①需要!I113/10000 -> 0 | D176: =①需要!J113/10000 -> 0 | E176: =①需要!K113/10000 -> 0 | F176: =①需要!L113/10000 -> 0
B177: 輸送車両のFC化 | C177: =①需要!I117/10000 -> 0 | D177: =①需要!J117/10000 -> 0.009557535246 | E177: =①需要!K117/10000 -> 0.02389383811 | F177: =①需要!L117/10000 -> 0.04778767623
B178: ターミナル内のFC化 （荷役機械・タグボート等） | C178: =①需要!I121/10000 -> 0 | D178: =①需要!J121/10000 -> 0.01533844798 | E178: =①需要!K121/10000 -> 0.0337122782 | F178: =①需要!L121/10000 -> 0.07349532086
B179: 停泊中船舶への陸電供給 | C179: =①需要!I125/10000 -> 0 | D179: =①需要!J125/10000 -> 0.004633264463 | E179: =①需要!K125/10000 -> 0.009266528926 | F179: =①需要!L125/10000 -> 0.01853305785
B180: 合計 | C180: =SUM(C174:C179) -> 0.000115 | D180: =SUM(D174:D179) -> 0.06708897841 | E180: =SUM(E174:E179) -> 2.660595056 | F180: =SUM(F174:F179) -> 3.667195041
B182: 金沢港（アンモニアクラッキング：水素利用） | F182: 単位：万トン／年
C183: 実証期 | D183: 2030年 | E183: 移行期 | F183: 2050年
B184: LNG火力等による水素利用（ボイラー・タービン利用） | C184: =①需要!I104/10000 -> 9.536585366e-05 | D184: =①需要!J104/10000 -> 0.0001907317073 | E184: =①需要!K104/10000 -> 0.001144390244 | F184: =①需要!L104/10000 -> 0.007629268293
B185: 都市ガスＣＮメタン化 | C185: =①需要!I108/10000 -> 0 | D185: =①需要!J108/10000 -> 0.03095636206 | E185: =①需要!K108/10000 -> 2.149747365 | F185: =①需要!L108/10000 -> 2.917514281
B186: セメント産業のFC化 | C186: =①需要!I112/10000 -> 0 | D186: =①需要!J112/10000 -> 0 | E186: =①需要!K112/10000 -> 0 | F186: =①需要!L112/10000 -> 0
B187: 輸送車両のFC化 | C187: =①需要!I116/10000 -> 0 | D187: =①需要!J116/10000 -> 0.007925760935 | E187: =①需要!K116/10000 -> 0.01981440234 | F187: =①需要!L116/10000 -> 0.03962880468
B188: ターミナル内のFC化 （荷役機械・タグボート等） | C188: =①需要!I120/10000 -> 0 | D188: =①需要!J120/10000 -> 0.01271968857 | E188: =①需要!K120/10000 -> 0.02795652338 | F188: =①需要!L120/10000 -> 0.06094733925
B189: 停泊中船舶への陸電供給 | C189: =①需要!I124/10000 -> 0 | D189: =①需要!J124/10000 -> 0.003842219311 | E189: =①需要!K124/10000 -> 0.007684438621 | F189: =①需要!L124/10000 -> 0.01536887724
B190: 合計 | C190: =SUM(C184:C189) -> 9.536585366e-05 | D190: =SUM(D184:D189) -> 0.05563476258 | E190: =SUM(E184:E189) -> 2.20634712 | F190: =SUM(F184:F189) -> 3.041088571
B192: 金沢港（アンモニア） | F192: 単位：万トン／年
C193: 実証期 | D193: 2030年 | E193: 移行期 | F193: 2050年
B194: 石炭火力等によるアンモニア利用（ボイラー・タービン利用） | C194: =①需要!I102/10000 -> 0 | D194: =①需要!J102/10000 -> 0 | E194: =①需要!K102/10000 -> 0 | F194: =①需要!L102/10000 -> 0
B195: 都市ガスＣＮメタン化 | C195: =①需要!I106/10000 -> 0 | D195: =①需要!J106/10000 -> 0.2876877914 | E195: =①需要!K106/10000 -> 13.55671636 | F195: =①需要!L106/10000 -> 27.11343272
B196: セメント産業のFC化 | C196: =①需要!I110/10000 -> 0 | D196: =①需要!J110/10000 -> 0 | E196: =①需要!K110/10000 -> 0 | F196: =①需要!L110/10000 -> 0
B197: 輸送車両のFC化 | C197: =①需要!I114/10000 -> 0 | D197: =①需要!J114/10000 -> 0.04227924731 | E197: =①需要!K114/10000 -> 0.1056981183 | F197: =①需要!L114/10000 -> 0.2113962366
B198: ターミナル内のFC化 （荷役機械・タグボート等） | C198: =①需要!I118/10000 -> 0 | D198: =①需要!J118/10000 -> 0.06785201613 | E198: =①需要!K118/10000 -> 0.1491315188 | F198: =①需要!L118/10000 -> 0.3251180108
B199: 停泊中船舶への陸電供給 | C199: =①需要!I122/10000 -> 0 | D199: =①需要!J122/10000 -> 0.02049596774 | E199: =①需要!K122/10000 -> 0.04099193548 | F199: =①需要!L122/10000 -> 0.08198387097
B200: 合計 | C200: =SUM(C194:C199) -> 0 | D200: =SUM(D194:D199) -> 0.4183150226 | E200: =SUM(E194:E199) -> 13.85253793 | F200: =SUM(F194:F199) -> 27.73193084
B202: 七尾港（水素：水素利用） | F202: 単位：万トン／年
C203: 実証期 | D203: 2030年 | E203: 移行期 | F203: 2050年
B204: LNG火力等による水素利用（ボイラー・タービン利用） | C204: =①需要!I135/10000 -> 0.01629952703 | D204: =①需要!J135/10000 -> 0.03259905407 | E204: =①需要!K135/10000 -> 0.1955943244 | F204: =①需要!L135/10000 -> 1.303962163
B205: 都市ガスＣＮメタン化 | C205: =①需要!I139/10000 -> 0 | D205: =①需要!J139/10000 -> 0.02538421689 | E205: =①需要!K139/10000 -> 1.762792839 | F205: =①需要!L139/10000 -> 2.392361711
B206: セメント産業のFC化 | C206: =①需要!I143/10000 -> 0 | D206: =①需要!J143/10000 -> 0 | E206: =①需要!K143/10000 -> 0 | F206: =①需要!L143/10000 -> 0
B207: 輸送車両のFC化 | C207: =①需要!I147/10000 -> 0 | D207: =①需要!J147/10000 -> 0.008375008264 | E207: =①需要!K147/10000 -> 0.02093752066 | F207: =①需要!L147/10000 -> 0.04187504132
B208: ターミナル内のFC化 （荷役機械・タグボート等） | C208: =①需要!I151/10000 -> 0 | D208: =①需要!J151/10000 -> 0.01001219008 | E208: =①需要!K151/10000 -> 0.02208844008 | F208: =①需要!L151/10000 -> 0.048305
B209: 停泊中船舶への陸電供給 | C209: =①需要!I155/10000 -> 0 | D209: =①需要!J155/10000 -> 0.002367004132 | E209: =①需要!K155/10000 -> 0.004734008264 | F209: =①需要!L155/10000 -> 0.009468016529
B210: 合計 | C210: =SUM(C204:C209) -> 0.01629952703 | D210: =SUM(D204:D209) -> 0.07873747343 | E210: =SUM(E204:E209) -> 2.006147133 | F210: =SUM(F204:F209) -> 3.795971931
B212: 七尾港（メタネーション：水素利用） | F212: 単位：万トン／年
C213: 実証期 | D213: 2030年 | E213: 移行期 | F213: 2050年
B214: LNG火力等による水素利用（ボイラー・タービン利用） | C214: =①需要!I137/10000 -> 0.0239698927 | D214: =①需要!J137/10000 -> 0.04793978539 | E214: =①需要!K137/10000 -> 0.2876387124 | F214: =①需要!L137/10000 -> 1.917591416
B215: 都市ガスＣＮメタン化 | C215: =①需要!I141/10000 -> 0 | D215: =①需要!J141/10000 -> 0.03732973072 | E215: =①需要!K141/10000 -> 2.592342411 | F215: =①需要!L141/10000 -> 3.518178986
B216: セメント産業のFC化 | C216: =①需要!I145/10000 -> 0 | D216: =①需要!J145/10000 -> 0 | E216: =①需要!K145/10000 -> 0 | F216: =①需要!L145/10000 -> 0
B217: 輸送車両のFC化 | C217: =①需要!I149/10000 -> 0 | D217: =①需要!J149/10000 -> 0.01231618862 | E217: =①需要!K149/10000 -> 0.03079047156 | F217: =①需要!L149/10000 -> 0.06158094312
B218: ターミナル内のFC化 （荷役機械・タグボート等） | C218: =①需要!I153/10000 -> 0 | D218: =①需要!J153/10000 -> 0.01472380895 | E218: =①需要!K153/10000 -> 0.03248300012 | F218: =①需要!L153/10000 -> 0.07103676471
B219: 停泊中船舶への陸電供給 | C219: =①需要!I157/10000 -> 0 | D219: =①需要!J157/10000 -> 0.00348088843 | E219: =①需要!K157/10000 -> 0.00696177686 | F219: =①需要!L157/10000 -> 0.01392355372
B220: 合計 | C220: =SUM(C214:C219) -> 0.0239698927 | D220: =SUM(D214:D219) -> 0.1157904021 | E220: =SUM(E214:E219) -> 2.950216372 | F220: =SUM(F214:F219) -> 5.582311664
B222: 七尾港（アンモニアクラッキング：水素利用） | F222: 単位：万トン／年
C223: 実証期 | D223: 2030年 | E223: 移行期 | F223: 2050年
... 52 more rows

Sheet グラフ(量)
B2: 北陸管内港湾（水素：水素利用） | F2: 単位：万トン／年
C3: 実証期 | D3: 2030年 | E3: 移行期 | F3: 2050年
B4: LNG火力等による水素利用 （ボイラー・タービン利用） | C4: ='グラフ(割合) '!C4 -> 3.55164829 | D4: ='グラフ(割合) '!D4 -> 7.10329658 | E4: ='グラフ(割合) '!E4 -> 42.61977948 | F4: ='グラフ(割合) '!F4 -> 284.1318632
B5: 都市ガスＣＮメタン化 | C5: ='グラフ(割合) '!C5 -> 0 | D5: ='グラフ(割合) '!D5 -> 0.3058193749 | E5: ='グラフ(割合) '!E5 -> 15.54435523 | F5: ='グラフ(割合) '!F5 -> 28.82226251
B6: セメント産業のFC化 | C6: ='グラフ(割合) '!C6 -> 0 | D6: ='グラフ(割合) '!D6 -> 0 | E6: ='グラフ(割合) '!E6 -> 0.6722496198 | F6: ='グラフ(割合) '!F6 -> 0.8403120248
B7: 輸送車両のFC化 | C7: ='グラフ(割合) '!C7 -> 0 | D7: ='グラフ(割合) '!D7 -> 0.3003393583 | E7: ='グラフ(割合) '!E7 -> 0.7267694114 | F7: ='グラフ(割合) '!F7 -> 1.453538823
B8: ターミナル内のFC化 （荷役機械・タグボート等） | C8: ='グラフ(割合) '!C8 -> 0 | D8: ='グラフ(割合) '!D8 -> 0.1123951937 | E8: ='グラフ(割合) '!E8 -> 0.2454309865 | F8: ='グラフ(割合) '!F8 -> 0.5321431713
B9: 停泊中船舶への陸電供給 | C9: ='グラフ(割合) '!C9 -> 0 | D9: ='グラフ(割合) '!D9 -> 0.2400779841 | E9: ='グラフ(割合) '!E9 -> 0.4801559683 | F9: ='グラフ(割合) '!F9 -> 0.9603119365
B10: 合計 | C10: ='グラフ(割合) '!C10 -> 3.55164829 | D10: ='グラフ(割合) '!D10 -> 8.061928491 | E10: ='グラフ(割合) '!E10 -> 60.28874069 | F10: ='グラフ(割合) '!F10 -> 316.7404317
B12: 北陸管内港湾（メタネーション：水素利用） | F12: 単位：万トン／年
C13: 実証期 | D13: 2030年 | E13: 移行期 | F13: 2050年
B14: LNG火力等による水素利用 （ボイラー・タービン利用） | C14: ='グラフ(割合) '!C14 -> 5.223012191 | D14: ='グラフ(割合) '!D14 -> 10.44602438 | E14: ='グラフ(割合) '!E14 -> 62.67614629 | F14: ='グラフ(割合) '!F14 -> 417.8409753
B15: 都市ガスＣＮメタン化 | C15: ='グラフ(割合) '!C15 -> 0 | D15: ='グラフ(割合) '!D15 -> 0.4497343748 | E15: ='グラフ(割合) '!E15 -> 22.85934592 | F15: ='グラフ(割合) '!F15 -> 42.38568017
B16: セメント産業のFC化 | C16: ='グラフ(割合) '!C16 -> 0 | D16: ='グラフ(割合) '!D16 -> 0 | E16: ='グラフ(割合) '!E16 -> 0.9886023821 | F16: ='グラフ(割合) '!F16 -> 1.235752978
B17: 輸送車両のFC化 | C17: ='グラフ(割合) '!C17 -> 0 | D17: ='グラフ(割合) '!D17 -> 0.5957824454 | E17: ='グラフ(割合) '!E17 -> 1.489456114 | F17: ='グラフ(割合) '!F17 -> 2.978912227
B18: ターミナル内のFC化 （荷役機械・タグボート等） | C18: ='グラフ(割合) '!C18 -> 0 | D18: ='グラフ(割合) '!D18 -> 0.1652870495 | E18: ='グラフ(割合) '!E18 -> 0.3609279213 | F18: ='グラフ(割合) '!F18 -> 0.7825634872
B19: 停泊中船舶への陸電供給 | C19: ='グラフ(割合) '!C19 -> 0 | D19: ='グラフ(割合) '!D19 -> 0.353055859 | E19: ='グラフ(割合) '!E19 -> 0.706111718 | F19: ='グラフ(割合) '!F19 -> 1.412223436
B20: 合計 | C20: ='グラフ(割合) '!C20 -> 5.223012191 | D20: ='グラフ(割合) '!D20 -> 12.00988411 | E20: ='グラフ(割合) '!E20 -> 89.08059035 | F20: ='グラフ(割合) '!F20 -> 466.6361076
B22: 北陸管内港湾（アンモニアクラッキング：水素利用） | F22: 単位：万トン／年
C23: 実証期 | D23: 2030年 | E23: 移行期 | F23: 2050年
B24: LNG火力等による水素利用 （ボイラー・タービン利用） | C24: ='グラフ(割合) '!C24 -> 4.331278402 | D24: ='グラフ(割合) '!D24 -> 8.662556804 | E24: ='グラフ(割合) '!E24 -> 51.97534083 | F24: ='グラフ(割合) '!F24 -> 346.5022722
B25: 都市ガスＣＮメタン化 | C25: ='グラフ(割合) '!C25 -> 0 | D25: ='グラフ(割合) '!D25 -> 0.3729504572 | E25: ='グラフ(割合) '!E25 -> 18.95653076 | F25: ='グラフ(割合) '!F25 -> 35.14910063
B26: セメント産業のFC化 | C26: ='グラフ(割合) '!C26 -> 0 | D26: ='グラフ(割合) '!D26 -> 0 | E26: ='グラフ(割合) '!E26 -> 0.8198166096 | F26: ='グラフ(割合) '!F26 -> 1.024770762
B27: 輸送車両のFC化 | C27: ='グラフ(割合) '!C27 -> 0 | D27: ='グラフ(割合) '!D27 -> 0.4940634913 | E27: ='グラフ(割合) '!E27 -> 1.235158728 | F27: ='グラフ(割合) '!F27 -> 2.470317457
B28: ターミナル内のFC化 （荷役機械・タグボート等） | C28: ='グラフ(割合) '!C28 -> 0 | D28: ='グラフ(割合) '!D28 -> 0.1370673093 | E28: ='グラフ(割合) '!E28 -> 0.2993060811 | F28: ='グラフ(割合) '!F28 -> 0.648955087
B29: 停泊中船舶への陸電供給 | C29: ='グラフ(割合) '!C29 -> 0 | D29: ='グラフ(割合) '!D29 -> 0.2927780294 | E29: ='グラフ(割合) '!E29 -> 0.5855560589 | F29: ='グラフ(割合) '!F29 -> 1.171112118
B30: 合計 | C30: ='グラフ(割合) '!C30 -> 4.331278402 | D30: ='グラフ(割合) '!D30 -> 9.959416092 | E30: ='グラフ(割合) '!E30 -> 73.87170907 | F30: ='グラフ(割合) '!F30 -> 386.9665282
B32: 北陸管内港湾（アンモニア） | F32: 単位：万トン／年
C33: 実証期 | D33: 2030年 | E33: 移行期 | F33: 2050年
B34: 石炭火力等によるアンモニア利用 （ボイラー・タービン利用） | C34: ='グラフ(割合) '!C34 -> 43.13024225 | D34: ='グラフ(割合) '!D34 -> 172.520969 | E34: ='グラフ(割合) '!E34 -> 323.4768168 | F34: ='グラフ(割合) '!F34 -> 862.6048449
B35: 都市ガスＣＮメタン化 | C35: ='グラフ(割合) '!C35 -> 0 | D35: ='グラフ(割合) '!D35 -> 2.020664249 | E35: ='グラフ(割合) '!E35 -> 95.21979349 | F35: ='グラフ(割合) '!F35 -> 190.439587
B36: セメント産業のFC化 | C36: ='グラフ(割合) '!C36 -> 0 | D36: ='グラフ(割合) '!D36 -> 0 | E36: ='グラフ(割合) '!E36 -> 4.373236774 | F36: ='グラフ(割合) '!F36 -> 5.466545968
B37: 輸送車両のFC化 | C37: ='グラフ(割合) '!C37 -> 0 | D37: ='グラフ(割合) '!D37 -> 2.635536538 | E37: ='グラフ(割合) '!E37 -> 6.588841345 | F37: ='グラフ(割合) '!F37 -> 13.17768269
B38: ターミナル内のFC化 （荷役機械・タグボート等） | C38: ='グラフ(割合) '!C38 -> 0 | D38: ='グラフ(割合) '!D38 -> 0.731173034 | E38: ='グラフ(割合) '!E38 -> 1.596620934 | F38: ='グラフ(割合) '!F38 -> 3.461791598
B39: 停泊中船舶への陸電供給 | C39: ='グラフ(割合) '!C39 -> 0 | D39: ='グラフ(割合) '!D39 -> 1.561797639 | E39: ='グラフ(割合) '!E39 -> 3.123595277 | F39: ='グラフ(割合) '!F39 -> 6.247190555
B40: 合計 | C40: ='グラフ(割合) '!C40 -> 43.13024225 | D40: ='グラフ(割合) '!D40 -> 179.4701404 | E40: ='グラフ(割合) '!E40 -> 434.3789047 | F40: ='グラフ(割合) '!F40 -> 1081.397643
B42: 新潟港（水素：水素利用） | F42: 単位：万トン／年
C43: 実証期 | D43: 2030年 | E43: 移行期 | F43: 2050年
B44: LNG火力等による水素利用 （ボイラー・タービン利用） | C44: ='グラフ(割合) '!C44 -> 1.995456991 | D44: ='グラフ(割合) '!D44 -> 3.990913982 | E44: ='グラフ(割合) '!E44 -> 23.94548389 | F44: ='グラフ(割合) '!F44 -> 159.6365593
B45: 都市ガスＣＮメタン化 | C45: ='グラフ(割合) '!C45 -> 0 | D45: ='グラフ(割合) '!D45 -> 0.07252633397 | E45: ='グラフ(割合) '!E45 -> 3.417659587 | F45: ='グラフ(割合) '!F45 -> 6.835319173
B46: セメント産業のFC化 | C46: ='グラフ(割合) '!C46 -> 0 | D46: ='グラフ(割合) '!D46 -> 0 | E46: ='グラフ(割合) '!E46 -> 0 | F46: ='グラフ(割合) '!F46 -> 0
B47: 輸送車両のFC化 | C47: ='グラフ(割合) '!C47 -> 0 | D47: ='グラフ(割合) '!D47 -> 0.1822474246 | E47: ='グラフ(割合) '!E47 -> 0.4556185615 | F47: ='グラフ(割合) '!F47 -> 0.9112371231
B48: ターミナル内のFC化 （荷役機械・タグボート等） | C48: ='グラフ(割合) '!C48 -> 0 | D48: ='グラフ(割合) '!D48 -> 0.02970155033 | E48: ='グラフ(割合) '!E48 -> 0.06559528041 | F48: ='グラフ(割合) '!F48 -> 0.1435749203
B49: 停泊中船舶への陸電供給 | C49: ='グラフ(割合) '!C49 -> 0 | D49: ='グラフ(割合) '!D49 -> 0.1099618868 | E49: ='グラフ(割合) '!E49 -> 0.2199237736 | F49: ='グラフ(割合) '!F49 -> 0.4398475471
B50: 合計 | C50: ='グラフ(割合) '!C50 -> 1.995456991 | D50: ='グラフ(割合) '!D50 -> 4.385351177 | E50: ='グラフ(割合) '!E50 -> 28.10428109 | F50: ='グラフ(割合) '!F50 -> 167.966538
B52: 新潟港（メタネーション：水素利用） | F52: 単位：万トン／年
C53: 実証期 | D53: 2030年 | E53: 移行期 | F53: 2050年
B54: LNG火力等による水素利用 （ボイラー・タービン利用） | C54: ='グラフ(割合) '!C54 -> 2.934495575 | D54: ='グラフ(割合) '!D54 -> 5.868991149 | E54: ='グラフ(割合) '!E54 -> 35.2139469 | F54: ='グラフ(割合) '!F54 -> 234.759646
B55: 都市ガスＣＮメタン化 | C55: ='グラフ(割合) '!C55 -> 0 | D55: ='グラフ(割合) '!D55 -> 0.1066563735 | E55: ='グラフ(割合) '!E55 -> 5.02596998 | F55: ='グラフ(割合) '!F55 -> 10.05193996
B56: セメント産業のFC化 | C56: ='グラフ(割合) '!C56 -> 0 | D56: ='グラフ(割合) '!D56 -> 0 | E56: ='グラフ(割合) '!E56 -> 0 | F56: ='グラフ(割合) '!F56 -> 0
B57: 輸送車両のFC化 | C57: ='グラフ(割合) '!C57 -> 0 | D57: ='グラフ(割合) '!D57 -> 0.2680109186 | E57: ='グラフ(割合) '!E57 -> 0.6700272964 | F57: ='グラフ(割合) '!F57 -> 1.340054593
B58: ターミナル内のFC化 （荷役機械・タグボート等） | C58: ='グラフ(割合) '!C58 -> 0 | D58: ='グラフ(割合) '!D58 -> 0.04367875049 | E58: ='グラフ(割合) '!E58 -> 0.09646364767 | F58: ='グラフ(割合) '!F58 -> 0.2111395887
B59: 停泊中船舶への陸電供給 | C59: ='グラフ(割合) '!C59 -> 0 | D59: ='グラフ(割合) '!D59 -> 0.161708657 | E59: ='グラフ(割合) '!E59 -> 0.323417314 | F59: ='グラフ(割合) '!F59 -> 0.6468346281
B60: 合計 | C60: ='グラフ(割合) '!C60 -> 2.934495575 | D60: ='グラフ(割合) '!D60 -> 6.449045849 | E60: ='グラフ(割合) '!E60 -> 41.32982513 | F60: ='グラフ(割合) '!F60 -> 247.0096147
B62: 新潟港（アンモニアクラッキング：水素利用） | F62: 単位：万トン／年
C63: 実証期 | D63: 2030年 | E63: 移行期 | F63: 2050年
B64: LNG火力等による水素利用 （ボイラー・タービン利用） | C64: ='グラフ(割合) '!C64 -> 2.433484135 | D64: ='グラフ(割合) '!D64 -> 4.86696827 | E64: ='グラフ(割合) '!E64 -> 29.20180962 | F64: ='グラフ(割合) '!F64 -> 194.6787308
B65: 都市ガスＣＮメタン化 | C65: ='グラフ(割合) '!C65 -> 0 | D65: ='グラフ(割合) '!D65 -> 0.08844674874 | E65: ='グラフ(割合) '!E65 -> 4.167877545 | F65: ='グラフ(割合) '!F65 -> 8.33575509
B66: セメント産業のFC化 | C66: ='グラフ(割合) '!C66 -> 0 | D66: ='グラフ(割合) '!D66 -> 0 | E66: ='グラフ(割合) '!E66 -> 0 | F66: ='グラフ(割合) '!F66 -> 0
B67: 輸送車両のFC化 | C67: ='グラフ(割合) '!C67 -> 0 | D67: ='グラフ(割合) '!D67 -> 0.2222529569 | E67: ='グラフ(割合) '!E67 -> 0.5556323921 | F67: ='グラフ(割合) '!F67 -> 1.111264784
B68: ターミナル内のFC化 （荷役機械・タグボート等） | C68: ='グラフ(割合) '!C68 -> 0 | D68: ='グラフ(割合) '!D68 -> 0.03622140284 | E68: ='グラフ(割合) '!E68 -> 0.07999424441 | F68: ='グラフ(割合) '!F68 -> 0.1750913663
B69: 停泊中船舶への陸電供給 | C69: ='グラフ(割合) '!C69 -> 0 | D69: ='グラフ(割合) '!D69 -> 0.1340998619 | E69: ='グラフ(割合) '!E69 -> 0.2681997238 | F69: ='グラフ(割合) '!F69 -> 0.5363994477
B70: 合計 | C70: ='グラフ(割合) '!C70 -> 2.433484135 | D70: ='グラフ(割合) '!D70 -> 5.347989241 | E70: ='グラフ(割合) '!E70 -> 34.27351353 | F70: ='グラフ(割合) '!F70 -> 204.8372415
B72: 新潟港（アンモニア） | F72: 単位：万トン／年
C73: 実証期 | D73: 2030年 | E73: 移行期 | F73: 2050年
B74: 石炭火力等によるアンモニア利用 （ボイラー・タービン利用） | C74: ='グラフ(割合) '!C74 -> 0 | D74: ='グラフ(割合) '!D74 -> 0 | E74: ='グラフ(割合) '!E74 -> 0 | F74: ='グラフ(割合) '!F74 -> 0
B75: 都市ガスＣＮメタン化 | C75: ='グラフ(割合) '!C75 -> 0 | D75: ='グラフ(割合) '!D75 -> 0.4109825591 | E75: ='グラフ(割合) '!E75 -> 19.36673766 | F75: ='グラフ(割合) '!F75 -> 38.73347532
B76: セメント産業のFC化 | C76: ='グラフ(割合) '!C76 -> 0 | D76: ='グラフ(割合) '!D76 -> 0 | E76: ='グラフ(割合) '!E76 -> 0 | F76: ='グラフ(割合) '!F76 -> 0
B77: 輸送車両のFC化 | C77: ='グラフ(割合) '!C77 -> 0 | D77: ='グラフ(割合) '!D77 -> 1.185588085 | E77: ='グラフ(割合) '!E77 -> 2.963970212 | F77: ='グラフ(割合) '!F77 -> 5.927940424
B78: ターミナル内のFC化 （荷役機械・タグボート等） | C78: ='グラフ(割合) '!C78 -> 0 | D78: ='グラフ(割合) '!D78 -> 0.1932197629 | E78: ='グラフ(割合) '!E78 -> 0.4267219855 | F78: ='グラフ(割合) '!F78 -> 0.9340088903
B79: 停泊中船舶への陸電供給 | C79: ='グラフ(割合) '!C79 -> 0 | D79: ='グラフ(割合) '!D79 -> 0.715343457 | E79: ='グラフ(割合) '!E79 -> 1.430686914 | F79: ='グラフ(割合) '!F79 -> 2.861373828
B80: 合計 | C80: ='グラフ(割合) '!C80 -> 0 | D80: ='グラフ(割合) '!D80 -> 2.505133864 | E80: ='グラフ(割合) '!E80 -> 24.18811677 | F80: ='グラフ(割合) '!F80 -> 48.45679846
B82: 直江津港（水素：水素利用） | F82: 単位：万トン／年
C83: 実証期 | D83: 2030年 | E83: 移行期 | F83: 2050年
B84: LNG火力等による水素利用 （ボイラー・タービン利用） | C84: ='グラフ(割合) '!C84 -> 1.242693429 | D84: ='グラフ(割合) '!D84 -> 2.485386859 | E84: ='グラフ(割合) '!E84 -> 14.91232115 | F84: ='グラフ(割合) '!F84 -> 99.41547436
B85: 都市ガスＣＮメタン化 | C85: ='グラフ(割合) '!C85 -> 0 | D85: ='グラフ(割合) '!D85 -> 0.07252633397 | E85: ='グラフ(割合) '!E85 -> 3.417659587 | F85: ='グラフ(割合) '!F85 -> 6.835319173
B86: セメント産業のFC化 | C86: ='グラフ(割合) '!C86 -> 0 | D86: ='グラフ(割合) '!D86 -> 0 | E86: ='グラフ(割合) '!E86 -> 0 | F86: ='グラフ(割合) '!F86 -> 0
B87: 輸送車両のFC化 | C87: ='グラフ(割合) '!C87 -> 0 | D87: ='グラフ(割合) '!D87 -> 0.03232968241 | E87: ='グラフ(割合) '!E87 -> 0.08082420603 | F87: ='グラフ(割合) '!F87 -> 0.1616484121
B88: ターミナル内のFC化 （荷役機械・タグボート等） | C88: ='グラフ(割合) '!C88 -> 0 | D88: ='グラフ(割合) '!D88 -> 0.02804880302 | E88: ='グラフ(割合) '!E88 -> 0.06125775583 | F88: ='グラフ(割合) '!F88 -> 0.1328358113
B89: 停泊中船舶への陸電供給 | C89: ='グラフ(割合) '!C89 -> 0 | D89: ='グラフ(割合) '!D89 -> 0.03444133112 | E89: ='グラフ(割合) '!E89 -> 0.06888266224 | F89: ='グラフ(割合) '!F89 -> 0.1377653245
B90: 合計 | C90: ='グラフ(割合) '!C90 -> 1.242693429 | D90: ='グラフ(割合) '!D90 -> 2.652733009 | E90: ='グラフ(割合) '!E90 -> 18.54094536 | F90: ='グラフ(割合) '!F90 -> 106.6830431
B92: 直江津港（メタネーション：水素利用） | F92: 単位：万トン／年
C93: 実証期 | D93: 2030年 | E93: 移行期 | F93: 2050年
B94: LNG火力等による水素利用 （ボイラー・タービン利用） | C94: ='グラフ(割合) '!C94 -> 1.827490337 | D94: ='グラフ(割合) '!D94 -> 3.654980675 | E94: ='グラフ(割合) '!E94 -> 21.92988405 | F94: ='グラフ(割合) '!F94 -> 146.199227
B95: 都市ガスＣＮメタン化 | C95: ='グラフ(割合) '!C95 -> 0 | D95: ='グラフ(割合) '!D95 -> 0.1066563735 | E95: ='グラフ(割合) '!E95 -> 5.02596998 | F95: ='グラフ(割合) '!F95 -> 10.05193996
B96: セメント産業のFC化 | C96: ='グラフ(割合) '!C96 -> 0 | D96: ='グラフ(割合) '!D96 -> 0 | E96: ='グラフ(割合) '!E96 -> 0 | F96: ='グラフ(割合) '!F96 -> 0
B97: 輸送車両のFC化 | C97: ='グラフ(割合) '!C97 -> 0 | D97: ='グラフ(割合) '!D97 -> 0.04754365061 | E97: ='グラフ(割合) '!E97 -> 0.1188591265 | F97: ='グラフ(割合) '!F97 -> 0.237718253
B98: ターミナル内のFC化 （荷役機械・タグボート等） | C98: ='グラフ(割合) '!C98 -> 0 | D98: ='グラフ(割合) '!D98 -> 0.04124823974 | E98: ='グラフ(割合) '!E98 -> 0.09008493505 | F98: ='グラフ(割合) '!F98 -> 0.1953467813
B99: 停泊中船舶への陸電供給 | C99: ='グラフ(割合) '!C99 -> 0 | D99: ='グラフ(割合) '!D99 -> 0.05064901635 | E99: ='グラフ(割合) '!E99 -> 0.1012980327 | F99: ='グラフ(割合) '!F99 -> 0.2025960654
B100: 合計 | C100: ='グラフ(割合) '!C100 -> 1.827490337 | D100: ='グラフ(割合) '!D100 -> 3.901077955 | E100: ='グラフ(割合) '!E100 -> 27.26609612 | F100: ='グラフ(割合) '!F100 -> 156.8868281
B102: 直江津港（アンモニアクラッキング：水素利用） | F102: 単位：万トン／年
C103: 実証期 | D103: 2030年 | E103: 移行期 | F103: 2050年
B104: LNG火力等による水素利用 （ボイラー・タービン利用） | C104: ='グラフ(割合) '!C104 -> 1.515479792 | D104: ='グラフ(割合) '!D104 -> 3.030959584 | E104: ='グラフ(割合) '!E104 -> 18.1857575 | F104: ='グラフ(割合) '!F104 -> 121.2383834
B105: 都市ガスＣＮメタン化 | C105: ='グラフ(割合) '!C105 -> 0 | D105: ='グラフ(割合) '!D105 -> 0.08844674874 | E105: ='グラフ(割合) '!E105 -> 4.167877545 | F105: ='グラフ(割合) '!F105 -> 8.33575509
B106: セメント産業のFC化 | C106: ='グラフ(割合) '!C106 -> 0 | D106: ='グラフ(割合) '!D106 -> 0 | E106: ='グラフ(割合) '!E106 -> 0 | F106: ='グラフ(割合) '!F106 -> 0
B107: 輸送車両のFC化 | C107: ='グラフ(割合) '!C107 -> 0 | D107: ='グラフ(割合) '!D107 -> 0.03942644197 | E107: ='グラフ(割合) '!E107 -> 0.09856610491 | F107: ='グラフ(割合) '!F107 -> 0.1971322098
B108: ターミナル内のFC化 （荷役機械・タグボート等） | C108: ='グラフ(割合) '!C108 -> 0 | D108: ='グラフ(割合) '!D108 -> 0.03420585734 | E108: ='グラフ(割合) '!E108 -> 0.07470458029 | F108: ='グラフ(割合) '!F108 -> 0.1619948918
B109: 停泊中船舶への陸電供給 | C109: ='グラフ(割合) '!C109 -> 0 | D109: ='グラフ(割合) '!D109 -> 0.04200162331 | E109: ='グラフ(割合) '!E109 -> 0.08400324663 | F109: ='グラフ(割合) '!F109 -> 0.1680064933
B110: 合計 | C110: ='グラフ(割合) '!C110 -> 1.515479792 | D110: ='グラフ(割合) '!D110 -> 3.235040255 | E110: ='グラフ(割合) '!E110 -> 22.61090898 | F110: ='グラフ(割合) '!F110 -> 130.101272
B112: 直江津港（アンモニア） | F112: 単位：万トン／年
C113: 実証期 | D113: 2030年 | E113: 移行期 | F113: 2050年
B114: 石炭火力等によるアンモニア利用 （ボイラー・タービン利用） | C114: ='グラフ(割合) '!C114 -> 0 | D114: ='グラフ(割合) '!D114 -> 0 | E114: ='グラフ(割合) '!E114 -> 0 | F114: ='グラフ(割合) '!F114 -> 0
B115: 都市ガスＣＮメタン化 | C115: ='グラフ(割合) '!C115 -> 0 | D115: ='グラフ(割合) '!D115 -> 0.4109825591 | E115: ='グラフ(割合) '!E115 -> 19.36673766 | F115: ='グラフ(割合) '!F115 -> 38.73347532
B116: セメント産業のFC化 | C116: ='グラフ(割合) '!C116 -> 0 | D116: ='グラフ(割合) '!D116 -> 0 | E116: ='グラフ(割合) '!E116 -> 0 | F116: ='グラフ(割合) '!F116 -> 0
B117: 輸送車両のFC化 | C117: ='グラフ(割合) '!C117 -> 0 | D117: ='グラフ(割合) '!D117 -> 0.2103167512 | E117: ='グラフ(割合) '!E117 -> 0.5257918779 | F117: ='グラフ(割合) '!F117 -> 1.051583756
B118: ターミナル内のFC化 （荷役機械・タグボート等） | C118: ='グラフ(割合) '!C118 -> 0 | D118: ='グラフ(割合) '!D118 -> 0.1824680197 | E118: ='グラフ(割合) '!E118 -> 0.3985047557 | F118: ='グラフ(割合) '!F118 -> 0.8641469442
B119: 停泊中船舶への陸電供給 | C119: ='グラフ(割合) '!C119 -> 0 | D119: ='グラフ(割合) '!D119 -> 0.2240538207 | E119: ='グラフ(割合) '!E119 -> 0.4481076414 | F119: ='グラフ(割合) '!F119 -> 0.8962152828
B120: 合計 | C120: ='グラフ(割合) '!C120 -> 0 | D120: ='グラフ(割合) '!D120 -> 1.027821151 | E120: ='グラフ(割合) '!E120 -> 20.73914193 | F120: ='グラフ(割合) '!F120 -> 41.5454213
B122: 伏木富山港（水素：水素利用） | F122: 単位：万トン／年
C123: 実証期 | D123: 2030年 | E123: 移行期 | F123: 2050年
B124: LNG火力等による水素利用 （ボイラー・タービン利用） | C124: ='グラフ(割合) '!C124 -> 0.2953755145 | D124: ='グラフ(割合) '!D124 -> 0.5907510289 | E124: ='グラフ(割合) '!E124 -> 3.544506174 | F124: ='グラフ(割合) '!F124 -> 23.63004116
B125: 都市ガスＣＮメタン化 | C125: ='グラフ(割合) '!C125 -> 0 | D125: ='グラフ(割合) '!D125 -> 0.07615265066 | E125: ='グラフ(割合) '!E125 -> 3.588542566 | F125: ='グラフ(割合) '!F125 -> 7.177085132
B126: セメント産業のFC化 | C126: ='グラフ(割合) '!C126 -> 0 | D126: ='グラフ(割合) '!D126 -> 0 | E126: ='グラフ(割合) '!E126 -> 0 | F126: ='グラフ(割合) '!F126 -> 0
B127: 輸送車両のFC化 | C127: ='グラフ(割合) '!C127 -> 0 | D127: ='グラフ(割合) '!D127 -> 0.02273015035 | E127: ='グラフ(割合) '!E127 -> 0.05682537586 | F127: ='グラフ(割合) '!F127 -> 0.1136507517
B128: ターミナル内のFC化 （荷役機械・タグボート等） | C128: ='グラフ(割合) '!C128 -> 0 | D128: ='グラフ(割合) '!D128 -> 0.02197237431 | E128: ='グラフ(割合) '!E128 -> 0.04704083849 | F128: ='グラフ(割合) '!F128 -> 0.1002738567
B129: 停泊中船舶への陸電供給 | C129: ='グラフ(割合) '!C129 -> 0 | D129: ='グラフ(割合) '!D129 -> 0.05740972356 | E129: ='グラフ(割合) '!E129 -> 0.1148194471 | F129: ='グラフ(割合) '!F129 -> 0.2296388942
B130: 合計 | C130: ='グラフ(割合) '!C130 -> 0.2953755145 | D130: ='グラフ(割合) '!D130 -> 0.7690159278 | E130: ='グラフ(割合) '!E130 -> 7.351734401 | F130: ='グラフ(割合) '!F130 -> 31.25068979
B132: 伏木富山港（メタネーション：水素利用） | F132: 単位：万トン／年
C133: 実証期 | D133: 2030年 | E133: 移行期 | F133: 2050年
B134: LNG火力等による水素利用 （ボイラー・タービン利用） | C134: ='グラフ(割合) '!C134 -> 0.4343757566 | D134: ='グラフ(割合) '!D134 -> 0.8687515131 | E134: ='グラフ(割合) '!E134 -> 5.212509079 | F134: ='グラフ(割合) '!F134 -> 34.75006053
B135: 都市ガスＣＮメタン化 | C135: ='グラフ(割合) '!C135 -> 0 | D135: ='グラフ(割合) '!D135 -> 0.1119891922 | E135: ='グラフ(割合) '!E135 -> 5.277268479 | F135: ='グラフ(割合) '!F135 -> 10.55453696
B136: セメント産業のFC化 | C136: ='グラフ(割合) '!C136 -> 0 | D136: ='グラフ(割合) '!D136 -> 0 | E136: ='グラフ(割合) '!E136 -> 0 | F136: ='グラフ(割合) '!F136 -> 0
B137: 輸送車両のFC化 | C137: ='グラフ(割合) '!C137 -> 0 | D137: ='グラフ(割合) '!D137 -> 0.03342669169 | E137: ='グラフ(割合) '!E137 -> 0.08356672921 | F137: ='グラフ(割合) '!F137 -> 0.1671334584
B138: ターミナル内のFC化 （荷役機械・タグボート等） | C138: ='グラフ(割合) '!C138 -> 0 | D138: ='グラフ(割合) '!D138 -> 0.03231231516 | E138: ='グラフ(割合) '!E138 -> 0.06917770366 | F138: ='グラフ(割合) '!F138 -> 0.147461554
B139: 停泊中船舶への陸電供給 | C139: ='グラフ(割合) '!C139 -> 0 | D139: ='グラフ(割合) '!D139 -> 0.08442606405 | E139: ='グラフ(割合) '!E139 -> 0.1688521281 | F139: ='グラフ(割合) '!F139 -> 0.3377042562
B140: 合計 | C140: ='グラフ(割合) '!C140 -> 0.4343757566 | D140: ='グラフ(割合) '!D140 -> 1.130905776 | E140: ='グラフ(割合) '!E140 -> 10.81137412 | F140: ='グラフ(割合) '!F140 -> 45.95689675
B142: 伏木富山港（アンモニアクラッキング：水素利用） | F142: 単位：万トン／年
C143: 実証期 | D143: 2030年 | E143: 移行期 | F143: 2050年
B144: LNG火力等による水素利用 （ボイラー・タービン利用） | C144: ='グラフ(割合) '!C144 -> 0.360214042 | D144: ='グラフ(割合) '!D144 -> 0.7204280841 | E144: ='グラフ(割合) '!E144 -> 4.322568504 | F144: ='グラフ(割合) '!F144 -> 28.81712336
B145: 都市ガスＣＮメタン化 | C145: ='グラフ(割合) '!C145 -> 0 | D145: ='グラフ(割合) '!D145 -> 0.09286908618 | E145: ='グラフ(割合) '!E145 -> 4.376271422 | F145: ='グラフ(割合) '!F145 -> 8.752542844
B146: セメント産業のFC化 | C146: ='グラフ(割合) '!C146 -> 0 | D146: ='グラフ(割合) '!D146 -> 0 | E146: ='グラフ(割合) '!E146 -> 0 | F146: ='グラフ(割合) '!F146 -> 0
B147: 輸送車両のFC化 | C147: ='グラフ(割合) '!C147 -> 0 | D147: ='グラフ(割合) '!D147 -> 0.02771969554 | E147: ='グラフ(割合) '!E147 -> 0.06929923886 | F147: ='グラフ(割合) '!F147 -> 0.1385984777
B148: ターミナル内のFC化 （荷役機械・タグボート等） | C148: ='グラフ(割合) '!C148 -> 0 | D148: ='グラフ(割合) '!D148 -> 0.02679557842 | E148: ='グラフ(割合) '!E148 -> 0.0573668762 | F148: ='グラフ(割合) '!F148 -> 0.1222851911
B149: 停泊中船舶への陸電供給 | C149: ='グラフ(割合) '!C149 -> 0 | D149: ='グラフ(割合) '!D149 -> 0.07001185799 | E149: ='グラフ(割合) '!E149 -> 0.140023716 | F149: ='グラフ(割合) '!F149 -> 0.280047432
B150: 合計 | C150: ='グラフ(割合) '!C150 -> 0.360214042 | D150: ='グラフ(割合) '!D150 -> 0.9378243022 | E150: ='グラフ(割合) '!E150 -> 8.965529757 | F150: ='グラフ(割合) '!F150 -> 38.11059731
B152: 伏木富山港（アンモニア） | F152: 単位：万トン／年
C153: 実証期 | D153: 2030年 | E153: 移行期 | F153: 2050年
B154: 石炭火力等によるアンモニア利用 （ボイラー・タービン利用） | C154: ='グラフ(割合) '!C154 -> 8.388307785 | D154: ='グラフ(割合) '!D154 -> 33.55323114 | E154: ='グラフ(割合) '!E154 -> 62.91230839 | F154: ='グラフ(割合) '!F154 -> 167.7661557
B155: 都市ガスＣＮメタン化 | C155: ='グラフ(割合) '!C155 -> 0 | D155: ='グラフ(割合) '!D155 -> 0.4315316871 | E155: ='グラフ(割合) '!E155 -> 20.33507454 | F155: ='グラフ(割合) '!F155 -> 40.67014908
B156: セメント産業のFC化 | C156: ='グラフ(割合) '!C156 -> 0 | D156: ='グラフ(割合) '!D156 -> 0 | E156: ='グラフ(割合) '!E156 -> 0 | F156: ='グラフ(割合) '!F156 -> 0
B157: 輸送車両のFC化 | C157: ='グラフ(割合) '!C157 -> 0 | D157: ='グラフ(割合) '!D157 -> 0.1478681824 | E157: ='グラフ(割合) '!E157 -> 0.3696704559 | F157: ='グラフ(割合) '!F157 -> 0.7393409118
B158: ターミナル内のFC化 （荷役機械・タグボート等） | C158: ='グラフ(割合) '!C158 -> 0 | D158: ='グラフ(割合) '!D158 -> 0.142938564 | E158: ='グラフ(割合) '!E158 -> 0.3060183579 | F158: ='グラフ(割合) '!F158 -> 0.6523191755
B159: 停泊中船舶への陸電供給 | C159: ='グラフ(割合) '!C159 -> 0 | D159: ='グラフ(割合) '!D159 -> 0.3734718575 | E159: ='グラフ(割合) '!E159 -> 0.7469437151 | F159: ='グラフ(割合) '!F159 -> 1.49388743
B160: 合計 | C160: ='グラフ(割合) '!C160 -> 8.388307785 | D160: ='グラフ(割合) '!D160 -> 34.64904143 | E160: ='グラフ(割合) '!E160 -> 84.67001546 | F160: ='グラフ(割合) '!F160 -> 211.3218523
B162: 金沢港（水素：水素利用） | F162: 単位：万トン／年
C163: 実証期 | D163: 2030年 | E163: 移行期 | F163: 2050年
B164: LNG火力等による水素利用 （ボイラー・タービン利用） | C164: ='グラフ(割合) '!C164 -> 7.82e-05 | D164: ='グラフ(割合) '!D164 -> 0.0001564 | E164: ='グラフ(割合) '!E164 -> 0.0009384 | F164: ='グラフ(割合) '!F164 -> 0.006256
B165: 都市ガスＣＮメタン化 | C165: ='グラフ(割合) '!C165 -> 0 | D165: ='グラフ(割合) '!D165 -> 0.02538421689 | E165: ='グラフ(割合) '!E165 -> 1.762792839 | F165: ='グラフ(割合) '!F165 -> 2.392361711
B166: セメント産業のFC化 | C166: ='グラフ(割合) '!C166 -> 0 | D166: ='グラフ(割合) '!D166 -> 0 | E166: ='グラフ(割合) '!E166 -> 0 | F166: ='グラフ(割合) '!F166 -> 0
B167: 輸送車両のFC化 | C167: ='グラフ(割合) '!C167 -> 0 | D167: ='グラフ(割合) '!D167 -> 0.006499123967 | E167: ='グラフ(割合) '!E167 -> 0.01624780992 | F167: ='グラフ(割合) '!F167 -> 0.03249561983
B168: ターミナル内のFC化 （荷役機械・タグボート等） | C168: ='グラフ(割合) '!C168 -> 0 | D168: ='グラフ(割合) '!D168 -> 0.01043014463 | E168: ='グラフ(割合) '!E168 -> 0.02292434917 | F168: ='グラフ(割合) '!F168 -> 0.04997681818
B169: 停泊中船舶への陸電供給 | C169: ='グラフ(割合) '!C169 -> 0 | D169: ='グラフ(割合) '!D169 -> 0.003150619835 | E169: ='グラフ(割合) '!E169 -> 0.006301239669 | F169: ='グラフ(割合) '!F169 -> 0.01260247934
B170: 合計 | C170: ='グラフ(割合) '!C170 -> 7.82e-05 | D170: ='グラフ(割合) '!D170 -> 0.04562050532 | E170: ='グラフ(割合) '!E170 -> 1.809204638 | F170: ='グラフ(割合) '!F170 -> 2.493692628
B172: 金沢港（メタネーション：水素利用） | F172: 単位：万トン／年
C173: 実証期 | D173: 2030年 | E173: 移行期 | F173: 2050年
B174: LNG火力等による水素利用 （ボイラー・タービン利用） | C174: ='グラフ(割合) '!C174 -> 0.000115 | D174: ='グラフ(割合) '!D174 -> 0.00023 | E174: ='グラフ(割合) '!E174 -> 0.00138 | F174: ='グラフ(割合) '!F174 -> 0.0092
B175: 都市ガスＣＮメタン化 | C175: ='グラフ(割合) '!C175 -> 0 | D175: ='グラフ(割合) '!D175 -> 0.03732973072 | E175: ='グラフ(割合) '!E175 -> 2.592342411 | F175: ='グラフ(割合) '!F175 -> 3.518178986
B176: セメント産業のFC化 | C176: ='グラフ(割合) '!C176 -> 0 | D176: ='グラフ(割合) '!D176 -> 0 | E176: ='グラフ(割合) '!E176 -> 0 | F176: ='グラフ(割合) '!F176 -> 0
B177: 輸送車両のFC化 | C177: ='グラフ(割合) '!C177 -> 0 | D177: ='グラフ(割合) '!D177 -> 0.009557535246 | E177: ='グラフ(割合) '!E177 -> 0.02389383811 | F177: ='グラフ(割合) '!F177 -> 0.04778767623
B178: ターミナル内のFC化 （荷役機械・タグボート等） | C178: ='グラフ(割合) '!C178 -> 0 | D178: ='グラフ(割合) '!D178 -> 0.01533844798 | E178: ='グラフ(割合) '!E178 -> 0.0337122782 | F178: ='グラフ(割合) '!F178 -> 0.07349532086
B179: 停泊中船舶への陸電供給 | C179: ='グラフ(割合) '!C179 -> 0 | D179: ='グラフ(割合) '!D179 -> 0.004633264463 | E179: ='グラフ(割合) '!E179 -> 0.009266528926 | F179: ='グラフ(割合) '!F179 -> 0.01853305785
B180: 合計 | C180: ='グラフ(割合) '!C180 -> 0.000115 | D180: ='グラフ(割合) '!D180 -> 0.06708897841 | E180: ='グラフ(割合) '!E180 -> 2.660595056 | F180: ='グラフ(割合) '!F180 -> 3.667195041
B182: 金沢港（アンモニアクラッキング：水素利用） | F182: 単位：万トン／年
C183: 実証期 | D183: 2030年 | E183: 移行期 | F183: 2050年
B184: LNG火力等による水素利用 （ボイラー・タービン利用） | C184: ='グラフ(割合) '!C184 -> 9.536585366e-05 | D184: ='グラフ(割合) '!D184 -> 0.0001907317073 | E184: ='グラフ(割合) '!E184 -> 0.001144390244 | F184: ='グラフ(割合) '!F184 -> 0.007629268293
B185: 都市ガスＣＮメタン化 | C185: ='グラフ(割合) '!C185 -> 0 | D185: ='グラフ(割合) '!D185 -> 0.03095636206 | E185: ='グラフ(割合) '!E185 -> 2.149747365 | F185: ='グラフ(割合) '!F185 -> 2.917514281
B186: セメント産業のFC化 | C186: ='グラフ(割合) '!C186 -> 0 | D186: ='グラフ(割合) '!D186 -> 0 | E186: ='グラフ(割合) '!E186 -> 0 | F186: ='グラフ(割合) '!F186 -> 0
B187: 輸送車両のFC化 | C187: ='グラフ(割合) '!C187 -> 0 | D187: ='グラフ(割合) '!D187 -> 0.007925760935 | E187: ='グラフ(割合) '!E187 -> 0.01981440234 | F187: ='グラフ(割合) '!F187 -> 0.03962880468
B188: ターミナル内のFC化 （荷役機械・タグボート等） | C188: ='グラフ(割合) '!C188 -> 0 | D188: ='グラフ(割合) '!D188 -> 0.01271968857 | E188: ='グラフ(割合) '!E188 -> 0.02795652338 | F188: ='グラフ(割合) '!F188 -> 0.06094733925
B189: 停泊中船舶への陸電供給 | C189: ='グラフ(割合) '!C189 -> 0 | D189: ='グラフ(割合) '!D189 -> 0.003842219311 | E189: ='グラフ(割合) '!E189 -> 0.007684438621 | F189: ='グラフ(割合) '!F189 -> 0.01536887724
B190: 合計 | C190: ='グラフ(割合) '!C190 -> 9.536585366e-05 | D190: ='グラフ(割合) '!D190 -> 0.05563476258 | E190: ='グラフ(割合) '!E190 -> 2.20634712 | F190: ='グラフ(割合) '!F190 -> 3.041088571
B192: 金沢港（アンモニア） | F192: 単位：万トン／年
C193: 実証期 | D193: 2030年 | E193: 移行期 | F193: 2050年
B194: 石炭火力等によるアンモニア利用 （ボイラー・タービン利用） | C194: ='グラフ(割合) '!C194 -> 0 | D194: ='グラフ(割合) '!D194 -> 0 | E194: ='グラフ(割合) '!E194 -> 0 | F194: ='グラフ(割合) '!F194 -> 0
B195: 都市ガスＣＮメタン化 | C195: ='グラフ(割合) '!C195 -> 0 | D195: ='グラフ(割合) '!D195 -> 0.2876877914 | E195: ='グラフ(割合) '!E195 -> 13.55671636 | F195: ='グラフ(割合) '!F195 -> 27.11343272
B196: セメント産業のFC化 | C196: ='グラフ(割合) '!C196 -> 0 | D196: ='グラフ(割合) '!D196 -> 0 | E196: ='グラフ(割合) '!E196 -> 0 | F196: ='グラフ(割合) '!F196 -> 0
B197: 輸送車両のFC化 | C197: ='グラフ(割合) '!C197 -> 0 | D197: ='グラフ(割合) '!D197 -> 0.04227924731 | E197: ='グラフ(割合) '!E197 -> 0.1056981183 | F197: ='グラフ(割合) '!F197 -> 0.2113962366
B198: ターミナル内のFC化 （荷役機械・タグボート等） | C198: ='グラフ(割合) '!C198 -> 0 | D198: ='グラフ(割合) '!D198 -> 0.06785201613 | E198: ='グラフ(割合) '!E198 -> 0.1491315188 | F198: ='グラフ(割合) '!F198 -> 0.3251180108
B199: 停泊中船舶への陸電供給 | C199: ='グラフ(割合) '!C199 -> 0 | D199: ='グラフ(割合) '!D199 -> 0.02049596774 | E199: ='グラフ(割合) '!E199 -> 0.04099193548 | F199: ='グラフ(割合) '!F199 -> 0.08198387097
B200: 合計 | C200: ='グラフ(割合) '!C200 -> 0 | D200: ='グラフ(割合) '!D200 -> 0.4183150226 | E200: ='グラフ(割合) '!E200 -> 13.85253793 | F200: ='グラフ(割合) '!F200 -> 27.73193084
B202: 七尾港（水素：水素利用） | F202: 単位：万トン／年
C203: 実証期 | D203: 2030年 | E203: 移行期 | F203: 2050年
B204: LNG火力等による水素利用 （ボイラー・タービン利用） | C204: ='グラフ(割合) '!C204 -> 0.01629952703 | D204: ='グラフ(割合) '!D204 -> 0.03259905407 | E204: ='グラフ(割合) '!E204 -> 0.1955943244 | F204: ='グラフ(割合) '!F204 -> 1.303962163
B205: 都市ガスＣＮメタン化 | C205: ='グラフ(割合) '!C205 -> 0 | D205: ='グラフ(割合) '!D205 -> 0.02538421689 | E205: ='グラフ(割合) '!E205 -> 1.762792839 | F205: ='グラフ(割合) '!F205 -> 2.392361711
B206: セメント産業のFC化 | C206: ='グラフ(割合) '!C206 -> 0 | D206: ='グラフ(割合) '!D206 -> 0 | E206: ='グラフ(割合) '!E206 -> 0 | F206: ='グラフ(割合) '!F206 -> 0
B207: 輸送車両のFC化 | C207: ='グラフ(割合) '!C207 -> 0 | D207: ='グラフ(割合) '!D207 -> 0.008375008264 | E207: ='グラフ(割合) '!E207 -> 0.02093752066 | F207: ='グラフ(割合) '!F207 -> 0.04187504132
B208: ターミナル内のFC化 （荷役機械・タグボート等） | C208: ='グラフ(割合) '!C208 -> 0 | D208: ='グラフ(割合) '!D208 -> 0.01001219008 | E208: ='グラフ(割合) '!E208 -> 0.02208844008 | F208: ='グラフ(割合) '!F208 -> 0.048305
B209: 停泊中船舶への陸電供給 | C209: ='グラフ(割合) '!C209 -> 0 | D209: ='グラフ(割合) '!D209 -> 0.002367004132 | E209: ='グラフ(割合) '!E209 -> 0.004734008264 | F209: ='グラフ(割合) '!F209 -> 0.009468016529
B210: 合計 | C210: ='グラフ(割合) '!C210 -> 0.01629952703 | D210: ='グラフ(割合) '!D210 -> 0.07873747343 | E210: ='グラフ(割合) '!E210 -> 2.006147133 | F210: ='グラフ(割合) '!F210 -> 3.795971931
B212: 七尾港（メタネーション：水素利用） | F212: 単位：万トン／年
C213: 実証期 | D213: 2030年 | E213: 移行期 | F213: 2050年
B214: LNG火力等による水素利用 （ボイラー・タービン利用） | C214: ='グラフ(割合) '!C214 -> 0.0239698927 | D214: ='グラフ(割合) '!D214 -> 0.04793978539 | E214: ='グラフ(割合) '!E214 -> 0.2876387124 | F214: ='グラフ(割合) '!F214 -> 1.917591416
B215: 都市ガスＣＮメタン化 | C215: ='グラフ(割合) '!C215 -> 0 | D215: ='グラフ(割合) '!D215 -> 0.03732973072 | E215: ='グラフ(割合) '!E215 -> 2.592342411 | F215: ='グラフ(割合) '!F215 -> 3.518178986
B216: セメント産業のFC化 | C216: ='グラフ(割合) '!C216 -> 0 | D216: ='グラフ(割合) '!D216 -> 0 | E216: ='グラフ(割合) '!E216 -> 0 | F216: ='グラフ(割合) '!F216 -> 0
B217: 輸送車両のFC化 | C217: ='グラフ(割合) '!C217 -> 0 | D217: ='グラフ(割合) '!D217 -> 0.01231618862 | E217: ='グラフ(割合) '!E217 -> 0.03079047156 | F217: ='グラフ(割合) '!F217 -> 0.06158094312
B218: ターミナル内のFC化 （荷役機械・タグボート等） | C218: ='グラフ(割合) '!C218 -> 0 | D218: ='グラフ(割合) '!D218 -> 0.01472380895 | E218: ='グラフ(割合) '!E218 -> 0.03248300012 | F218: ='グラフ(割合) '!F218 -> 0.07103676471
B219: 停泊中船舶への陸電供給 | C219: ='グラフ(割合) '!C219 -> 0 | D219: ='グラフ(割合) '!D219 -> 0.00348088843 | E219: ='グラフ(割合) '!E219 -> 0.00696177686 | F219: ='グラフ(割合) '!F219 -> 0.01392355372
B220: 合計 | C220: ='グラフ(割合) '!C220 -> 0.0239698927 | D220: ='グラフ(割合) '!D220 -> 0.1157904021 | E220: ='グラフ(割合) '!E220 -> 2.950216372 | F220: ='グラフ(割合) '!F220 -> 5.582311664
B222: 七尾港（アンモニアクラッキング：水素利用） | F222: 単位：万トン／年
C223: 実証期 | D223: 2030年 | E223: 移行期 | F223: 2050年
... 52 more rows

Sheet ②供給
A2: 需要量 単位：トン／年
A3: 港名 | B3: 水素（万トン／年） | F3: アンモニアクラッキング（万トン／年） | J3: メタネーション（万トン／年） | N3: アンモニア（トン／年） | BH3: 実証期 | BJ3: 2030年 | BL3: 移行期 | BN3: 2050年
B4: 実証期 | C4: 2030年 | D4: 移行期 | E4: 2050年 | F4: 実証期 | G4: 2030年 | H4: 移行期 | I4: 2050年 | J4: 実証期 | K4: 2030年 | L4: 移行期 | M4: 2050年 | N4: 実証期 | O4: 2030年 | P4: 移行期 | Q4: 2050年 | BH4: =①需要入力!#REF! ->  | BI4: =BH4/BH$10 ->  | BJ4: =①需要入力!#REF! ->  | BK4: =BJ4/BJ$10 ->  | BL4: =①需要入力!#REF! ->  | BM4: =BL4/BL$10 ->  | BN4: =①需要入力!#REF! ->  | BO4: =BN4/BN$10 -> 
A5: 新潟港 | B5: =①需要!I31/10000 -> 1.995456991 | C5: =①需要!J31/10000 -> 4.385351177 | D5: =①需要!K31/10000 -> 28.10428109 | E5: =①需要!L31/10000 -> 167.966538 | F5: =①需要!I32/10000 -> 2.433484135 | G5: =①需要!J32/10000 -> 5.347989241 | H5: =①需要!K32/10000 -> 34.27351353 | I5: =①需要!L32/10000 -> 204.8372415 | J5: =①需要!I33/10000 -> 2.934495575 | K5: =①需要!J33/10000 -> 6.449045849 | L5: =①需要!K33/10000 -> 41.32982513 | M5: =①需要!L33/10000 -> 247.0096147 | N5: =①需要!I30/10000 -> 0 | O5: =①需要!J30/10000 -> 2.505133864 | P5: =①需要!K30/10000 -> 24.18811677 | Q5: =①需要!L30/10000 -> 48.45679846 | BI5: =BH5/BH$10 ->  | BL5: =①需要入力!#REF! ->  | BM5: =BL5/BL$10 ->  | BN5: =①需要入力!#REF! ->  | BO5: =BN5/BN$10 -> 
A6: 直江津港 | B6: =①需要!I63/10000 -> 1.242693429 | C6: =①需要!J63/10000 -> 2.652733009 | D6: =①需要!K63/10000 -> 18.54094536 | E6: =①需要!L63/10000 -> 106.6830431 | F6: =①需要!I64/10000 -> 1.515479792 | G6: =①需要!J64/10000 -> 3.235040255 | H6: =①需要!K64/10000 -> 22.61090898 | I6: =①需要!L64/10000 -> 130.101272 | J6: =①需要!I65/10000 -> 1.827490337 | K6: =①需要!J65/10000 -> 3.901077955 | L6: =①需要!K65/10000 -> 27.26609612 | M6: =①需要!L65/10000 -> 156.8868281 | N6: =①需要!I62/10000 -> 0 | O6: =①需要!J62/10000 -> 1.027821151 | P6: =①需要!K62/10000 -> 20.73914193 | Q6: =①需要!L62/10000 -> 41.5454213 | BJ6: =①需要入力!#REF! ->  | BL6: =①需要入力!#REF! ->  | BM6: =BL6/BL$10 ->  | BN6: =①需要入力!#REF! -> 
A7: 伏木富山港 | B7: =①需要!I95/10000 -> 0.2953755145 | C7: =①需要!J95/10000 -> 0.7690159278 | D7: =①需要!K95/10000 -> 7.351734401 | E7: =①需要!L95/10000 -> 31.25068979 | F7: =①需要!I96/10000 -> 0.360214042 | G7: =①需要!J96/10000 -> 0.9378243022 | H7: =①需要!K96/10000 -> 8.965529757 | I7: =①需要!L96/10000 -> 38.11059731 | J7: =①需要!I97/10000 -> 0.4343757566 | K7: =①需要!J97/10000 -> 1.130905776 | L7: =①需要!K97/10000 -> 10.81137412 | M7: =①需要!L97/10000 -> 45.95689675 | N7: =①需要!I94/10000 -> 8.388307785 | O7: =①需要!J94/10000 -> 34.64904143 | P7: =①需要!K94/10000 -> 84.67001546 | Q7: =①需要!L94/10000 -> 211.3218523 | BH7: =①需要入力!#REF! ->  | BJ7: =①需要入力!#REF! ->  | BL7: =①需要入力!#REF! ->  | BN7: =①需要入力!#REF! -> 
A8: 金沢港 | B8: =①需要!I127/10000 -> 7.82e-05 | C8: =①需要!J127/10000 -> 0.04562050532 | D8: =①需要!K127/10000 -> 1.809204638 | E8: =①需要!L127/10000 -> 2.493692628 | F8: =①需要!I128/10000 -> 9.536585366e-05 | G8: =①需要!J128/10000 -> 0.05563476258 | H8: =①需要!K128/10000 -> 2.20634712 | I8: =①需要!L128/10000 -> 3.041088571 | J8: =①需要!I129/10000 -> 0.000115 | K8: =①需要!J129/10000 -> 0.06708897841 | L8: =①需要!K129/10000 -> 2.660595056 | M8: =①需要!L129/10000 -> 3.667195041 | N8: =①需要!I126/10000 -> 0 | O8: =①需要!J126/10000 -> 0.4183150226 | P8: =①需要!K126/10000 -> 13.85253793 | Q8: =①需要!L126/10000 -> 27.73193084 | BN8: =①需要入力!#REF! -> 
A9: 七尾港 | B9: =①需要!I159/10000 -> 0.01629952703 | C9: =①需要!J159/10000 -> 0.07873747343 | D9: =①需要!K159/10000 -> 2.006147133 | E9: =①需要!L159/10000 -> 3.795971931 | F9: =①需要!I160/10000 -> 0.01987747199 | G9: =①需要!J160/10000 -> 0.09602130907 | H9: =①需要!K160/10000 -> 2.446520894 | I9: =①需要!L160/10000 -> 4.629234062 | J9: =①需要!I161/10000 -> 0.0239698927 | K9: =①需要!J161/10000 -> 0.1157904021 | L9: =①需要!K161/10000 -> 2.950216372 | M9: =①需要!L161/10000 -> 5.582311664 | N9: =①需要!I158/10000 -> 17.11203497 | O9: =①需要!J158/10000 -> 68.87084156 | P9: =①需要!K158/10000 -> 142.2076752 | Q9: =①需要!L158/10000 -> 370.0023802 | BN9: =②供給入力!#REF! -> 
A10: 敦賀港 | B10: =①需要!I191/10000 -> 0.001744628099 | C10: =①需要!J191/10000 -> 0.235263102 | D10: =①需要!K191/10000 -> 2.762488807 | E10: =①需要!L191/10000 -> 5.122617693 | F10: =①需要!I192/10000 -> 0.002127595243 | G10: =①需要!J192/10000 -> 0.2869062219 | H10: =①需要!K192/10000 -> 3.368888789 | I10: =①需要!L192/10000 -> 6.247094748 | J10: =①需要!I193/10000 -> 0.002565629558 | K10: =①需要!J193/10000 -> 0.34597515 | L10: =①需要!K193/10000 -> 4.06248354 | M10: =①需要!L193/10000 -> 7.533261313 | N10: =①需要!I190/10000 -> 17.62989949 | O10: =①需要!J190/10000 -> 71.99898741 | P10: =①需要!K190/10000 -> 148.7214174 | Q10: =①需要!L190/10000 -> 382.3392596 | S10: ●シナリオ別供給量 | BH10: =SUM(BH4:BH9) ->  | BI10: =BH10/BH$10 ->  | BJ10: =SUM(BJ4:BJ9) ->  | BK10: =BJ10/BJ$10 ->  | BL10: =SUM(BL4:BL9) ->  | BM10: =BL10/BL$10 ->  | BN10: =SUM(BN4:BN9) ->  | BO10: =BN10/BN$10 -> 
S12: 新潟港 | AK12: 金沢港
S13: 供給量（シナリオ１） 単位：万トン／年 | AK13: 供給量（シナリオ１） 単位：万トン／年
S14: 国名 | T14: 水素（トン／年） | X14: アンモニアクラッキング（万トン／年） | AB14: メタネーション（万トン／年） | AF14: アンモニア（トン／年） | AK14: 国名 | AL14: 水素（トン／年） | AP14: アンモニアクラッキング（万トン／年） | AT14: メタネーション（万トン／年） | AX14: アンモニア（トン／年）
T15: 実証期 | U15: 2030年 | V15: 移行期 | W15: 2050年 | X15: 実証期 | Y15: 2030年 | Z15: 移行期 | AA15: 2050年 | AB15: 実証期 | AC15: 2030年 | AD15: 移行期 | AE15: 2050年 | AF15: 実証期 | AG15: 2030年 | AH15: 移行期 | AI15: 2050年 | AL15: 実証期 | AM15: 2030年 | AN15: 移行期 | AO15: 2050年 | AP15: 実証期 | AQ15: 2030年 | AR15: 移行期 | AS15: 2050年 | AT15: 実証期 | AU15: 2030年 | AV15: 移行期 | AW15: 2050年 | AX15: 実証期 | AY15: 2030年 | AZ15: 移行期 | BA15: 2050年
S16: オーストラリア | T16: =B$5*②供給入力!C8 -> 0.9977284954 | U16: =C$5*②供給入力!D8 -> 1.461783726 | V16: =D$5*②供給入力!E8 -> 7.026070273 | W16: =E$5*②供給入力!F8 -> 27.994423 | X16: =F$5*②供給入力!C8 -> 1.216742068 | Y16: =G$5*②供給入力!D8 -> 1.78266308 | Z16: =H$5*②供給入力!E8 -> 8.568378382 | AA16: =I$5*②供給入力!F8 -> 34.13954025 | AB16: =J$5*②供給入力!C8 -> 1.467247787 | AC16: =K$5*②供給入力!D8 -> 2.14968195 | AD16: =L$5*②供給入力!E8 -> 10.33245628 | AE16: =M$5*②供給入力!F8 -> 41.16826912 | AF16: =N$5*②供給入力!C8 -> 0 | AG16: =O$5*②供給入力!D8 -> 0.8350446213 | AH16: =P$5*②供給入力!E8 -> 6.047029192 | AI16: =Q$5*②供給入力!F8 -> 8.076133076 | AK16: オーストラリア | AL16: =B$8*②供給入力!C8 -> 3.91e-05 | AM16: =C$8*②供給入力!D8 -> 0.01520683511 | AN16: =D$8*②供給入力!E8 -> 0.4523011596 | AO16: =E$8*②供給入力!F8 -> 0.415615438 | AP16: =F$8*②供給入力!C8 -> 4.768292683e-05 | AQ16: =G$8*②供給入力!D8 -> 0.01854492086 | AR16: =H$8*②供給入力!E8 -> 0.5515867799 | AS16: =I$8*②供給入力!F8 -> 0.5068480951 | AT16: =J$8*②供給入力!C8 -> 5.75e-05 | AU16: =K$8*②供給入力!D8 -> 0.0223629928 | AV16: =L$8*②供給入力!E8 -> 0.6651487641 | AW16: =M$8*②供給入力!F8 -> 0.6111991735 | AX16: =N$8*②供給入力!C8 -> 0 | AY16: =O$8*②供給入力!D8 -> 0.1394383409 | AZ16: =P$8*②供給入力!E8 -> 3.463134483 | BA16: =Q$8*②供給入力!F8 -> 4.621988473
S17: アメリカ | T17: =B$5*②供給入力!C9 -> 0 | U17: =C$5*②供給入力!D9 -> 0 | V17: =D$5*②供給入力!E9 -> 7.026070273 | W17: =E$5*②供給入力!F9 -> 27.994423 | X17: =F$5*②供給入力!C9 -> 0 | Y17: =G$5*②供給入力!D9 -> 0 | Z17: =H$5*②供給入力!E9 -> 8.568378382 | AA17: =I$5*②供給入力!F9 -> 34.13954025 | AB17: =J$5*②供給入力!C9 -> 0 | AC17: =K$5*②供給入力!D9 -> 0 | AD17: =L$5*②供給入力!E9 -> 10.33245628 | AE17: =M$5*②供給入力!F9 -> 41.16826912 | AF17: =N$5*②供給入力!C9 -> 0 | AG17: =O$5*②供給入力!D9 -> 0 | AH17: =P$5*②供給入力!E9 -> 6.047029192 | AI17: =Q$5*②供給入力!F9 -> 8.076133076 | AK17: アメリカ | AL17: =B$8*②供給入力!C9 -> 0 | AM17: =C$8*②供給入力!D9 -> 0 | AN17: =D$8*②供給入力!E9 -> 0.4523011596 | AO17: =E$8*②供給入力!F9 -> 0.415615438 | AP17: =F$8*②供給入力!C9 -> 0 | AQ17: =G$8*②供給入力!D9 -> 0 | AR17: =H$8*②供給入力!E9 -> 0.5515867799 | AS17: =I$8*②供給入力!F9 -> 0.5068480951 | AT17: =J$8*②供給入力!C9 -> 0 | AU17: =K$8*②供給入力!D9 -> 0 | AV17: =L$8*②供給入力!E9 -> 0.6651487641 | AW17: =M$8*②供給入力!F9 -> 0.6111991735 | AX17: =N$8*②供給入力!C9 -> 0 | AY17: =O$8*②供給入力!D9 -> 0 | AZ17: =P$8*②供給入力!E9 -> 3.463134483 | BA17: =Q$8*②供給入力!F9 -> 4.621988473
S18: カナダ | T18: =B$5*②供給入力!C10 -> 0 | U18: =C$5*②供給入力!D10 -> 1.461783726 | V18: =D$5*②供給入力!E10 -> 7.026070273 | W18: =E$5*②供給入力!F10 -> 27.994423 | X18: =F$5*②供給入力!C10 -> 0 | Y18: =G$5*②供給入力!D10 -> 1.78266308 | Z18: =H$5*②供給入力!E10 -> 8.568378382 | AA18: =I$5*②供給入力!F10 -> 34.13954025 | AB18: =J$5*②供給入力!C10 -> 0 | AC18: =K$5*②供給入力!D10 -> 2.14968195 | AD18: =L$5*②供給入力!E10 -> 10.33245628 | AE18: =M$5*②供給入力!F10 -> 41.16826912 | AF18: =N$5*②供給入力!C10 -> 0 | AG18: =O$5*②供給入力!D10 -> 0.8350446213 | AH18: =P$5*②供給入力!E10 -> 6.047029192 | AI18: =Q$5*②供給入力!F10 -> 8.076133076 | AK18: カナダ | AL18: =B$8*②供給入力!C10 -> 0 | AM18: =C$8*②供給入力!D10 -> 0.01520683511 | AN18: =D$8*②供給入力!E10 -> 0.4523011596 | AO18: =E$8*②供給入力!F10 -> 0.415615438 | AP18: =F$8*②供給入力!C10 -> 0 | AQ18: =G$8*②供給入力!D10 -> 0.01854492086 | AR18: =H$8*②供給入力!E10 -> 0.5515867799 | AS18: =I$8*②供給入力!F10 -> 0.5068480951 | AT18: =J$8*②供給入力!C10 -> 0 | AU18: =K$8*②供給入力!D10 -> 0.0223629928 | AV18: =L$8*②供給入力!E10 -> 0.6651487641 | AW18: =M$8*②供給入力!F10 -> 0.6111991735 | AX18: =N$8*②供給入力!C10 -> 0 | AY18: =O$8*②供給入力!D10 -> 0.1394383409 | AZ18: =P$8*②供給入力!E10 -> 3.463134483 | BA18: =Q$8*②供給入力!F10 -> 4.621988473
S19: チリ | T19: =B$5*②供給入力!C11 -> 0.9977284954 | U19: =C$5*②供給入力!D11 -> 1.461783726 | V19: =D$5*②供給入力!E11 -> 7.026070273 | W19: =E$5*②供給入力!F11 -> 27.994423 | X19: =F$5*②供給入力!C11 -> 1.216742068 | Y19: =G$5*②供給入力!D11 -> 1.78266308 | Z19: =H$5*②供給入力!E11 -> 8.568378382 | AA19: =I$5*②供給入力!F11 -> 34.13954025 | AB19: =J$5*②供給入力!C11 -> 1.467247787 | AC19: =K$5*②供給入力!D11 -> 2.14968195 | AD19: =L$5*②供給入力!E11 -> 10.33245628 | AE19: =M$5*②供給入力!F11 -> 41.16826912 | AF19: =N$5*②供給入力!C11 -> 0 | AG19: =O$5*②供給入力!D11 -> 0.8350446213 | AH19: =P$5*②供給入力!E11 -> 6.047029192 | AI19: =Q$5*②供給入力!F11 -> 8.076133076 | AK19: チリ | AL19: =B$8*②供給入力!C11 -> 3.91e-05 | AM19: =C$8*②供給入力!D11 -> 0.01520683511 | AN19: =D$8*②供給入力!E11 -> 0.4523011596 | AO19: =E$8*②供給入力!F11 -> 0.415615438 | AP19: =F$8*②供給入力!C11 -> 4.768292683e-05 | AQ19: =G$8*②供給入力!D11 -> 0.01854492086 | AR19: =H$8*②供給入力!E11 -> 0.5515867799 | AS19: =I$8*②供給入力!F11 -> 0.5068480951 | AT19: =J$8*②供給入力!C11 -> 5.75e-05 | AU19: =K$8*②供給入力!D11 -> 0.0223629928 | AV19: =L$8*②供給入力!E11 -> 0.6651487641 | AW19: =M$8*②供給入力!F11 -> 0.6111991735 | AX19: =N$8*②供給入力!C11 -> 0 | AY19: =O$8*②供給入力!D11 -> 0.1394383409 | AZ19: =P$8*②供給入力!E11 -> 3.463134483 | BA19: =Q$8*②供給入力!F11 -> 4.621988473
S20: オマーン | T20: =B$5*②供給入力!C12 -> 0 | U20: =C$5*②供給入力!D12 -> 0 | V20: =D$5*②供給入力!E12 -> 0 | W20: =E$5*②供給入力!F12 -> 27.994423 | X20: =F$5*②供給入力!C12 -> 0 | Y20: =G$5*②供給入力!D12 -> 0 | Z20: =H$5*②供給入力!E12 -> 0 | AA20: =I$5*②供給入力!F12 -> 34.13954025 | AB20: =J$5*②供給入力!C12 -> 0 | AC20: =K$5*②供給入力!D12 -> 0 | AD20: =L$5*②供給入力!E12 -> 0 | AE20: =M$5*②供給入力!F12 -> 41.16826912 | AF20: =N$5*②供給入力!C12 -> 0 | AG20: =O$5*②供給入力!D12 -> 0 | AH20: =P$5*②供給入力!E12 -> 0 | AI20: =Q$5*②供給入力!F12 -> 8.076133076 | AK20: オマーン | AL20: =B$8*②供給入力!C12 -> 0 | AM20: =C$8*②供給入力!D12 -> 0 | AN20: =D$8*②供給入力!E12 -> 0 | AO20: =E$8*②供給入力!F12 -> 0.415615438 | AP20: =F$8*②供給入力!C12 -> 0 | AQ20: =G$8*②供給入力!D12 -> 0 | AR20: =H$8*②供給入力!E12 -> 0 | AS20: =I$8*②供給入力!F12 -> 0.5068480951 | AT20: =J$8*②供給入力!C12 -> 0 | AU20: =K$8*②供給入力!D12 -> 0 | AV20: =L$8*②供給入力!E12 -> 0 | AW20: =M$8*②供給入力!F12 -> 0.6111991735 | AX20: =N$8*②供給入力!C12 -> 0 | AY20: =O$8*②供給入力!D12 -> 0 | AZ20: =P$8*②供給入力!E12 -> 0 | BA20: =Q$8*②供給入力!F12 -> 4.621988473
S21: ナミビア | T21: =B$5*②供給入力!C13 -> 0 | U21: =C$5*②供給入力!D13 -> 0 | V21: =D$5*②供給入力!E13 -> 0 | W21: =E$5*②供給入力!F13 -> 27.994423 | X21: =F$5*②供給入力!C13 -> 0 | Y21: =G$5*②供給入力!D13 -> 0 | Z21: =H$5*②供給入力!E13 -> 0 | AA21: =I$5*②供給入力!F13 -> 34.13954025 | AB21: =J$5*②供給入力!C13 -> 0 | AC21: =K$5*②供給入力!D13 -> 0 | AD21: =L$5*②供給入力!E13 -> 0 | AE21: =M$5*②供給入力!F13 -> 41.16826912 | AF21: =N$5*②供給入力!C13 -> 0 | AG21: =O$5*②供給入力!D13 -> 0 | AH21: =P$5*②供給入力!E13 -> 0 | AI21: =Q$5*②供給入力!F13 -> 8.076133076 | AK21: ナミビア | AL21: =B$8*②供給入力!C13 -> 0 | AM21: =C$8*②供給入力!D13 -> 0 | AN21: =D$8*②供給入力!E13 -> 0 | AO21: =E$8*②供給入力!F13 -> 0.415615438 | AP21: =F$8*②供給入力!C13 -> 0 | AQ21: =G$8*②供給入力!D13 -> 0 | AR21: =H$8*②供給入力!E13 -> 0 | AS21: =I$8*②供給入力!F13 -> 0.5068480951 | AT21: =J$8*②供給入力!C13 -> 0 | AU21: =K$8*②供給入力!D13 -> 0 | AV21: =L$8*②供給入力!E13 -> 0 | AW21: =M$8*②供給入力!F13 -> 0.6111991735 | AX21: =N$8*②供給入力!C13 -> 0 | AY21: =O$8*②供給入力!D13 -> 0 | AZ21: =P$8*②供給入力!E13 -> 0 | BA21: =Q$8*②供給入力!F13 -> 4.621988473
S23: 供給量（シナリオ２） 単位：万トン／年 | AK23: 供給量（シナリオ２） 単位：万トン／年
S24: 国名 | T24: 水素（トン／年） | X24: アンモニアクラッキング（万トン／年） | AB24: メタネーション（万トン／年） | AF24: アンモニア（トン／年） | AK24: 国名 | AL24: 水素（トン／年） | AP24: アンモニアクラッキング（万トン／年） | AT24: メタネーション（万トン／年） | AX24: アンモニア（トン／年）
T25: 実証期 | U25: 2030年 | V25: 移行期 | W25: 2050年 | X25: 実証期 | Y25: 2030年 | Z25: 移行期 | AA25: 2050年 | AB25: 実証期 | AC25: 2030年 | AD25: 移行期 | AE25: 2050年 | AF25: 実証期 | AG25: 2030年 | AH25: 移行期 | AI25: 2050年 | AL25: 実証期 | AM25: 2030年 | AN25: 移行期 | AO25: 2050年 | AP25: 実証期 | AQ25: 2030年 | AR25: 移行期 | AS25: 2050年 | AT25: 実証期 | AU25: 2030年 | AV25: 移行期 | AW25: 2050年 | AX25: 実証期 | AY25: 2030年 | AZ25: 移行期 | BA25: 2050年
S26: オーストラリア | T26: =B$5*②供給入力!C18 -> 1.995456991 | U26: =C$5*②供給入力!D18 -> 4.385351177 | V26: =D$5*②供給入力!E18 -> 28.10428109 | W26: =E$5*②供給入力!F18 -> 167.966538 | X26: =F$5*②供給入力!C18 -> 2.433484135 | Y26: =G$5*②供給入力!D18 -> 5.347989241 | Z26: =H$5*②供給入力!E18 -> 34.27351353 | AA26: =I$5*②供給入力!F18 -> 204.8372415 | AB26: =J$5*②供給入力!C18 -> 2.934495575 | AC26: =K$5*②供給入力!D18 -> 6.449045849 | AD26: =L$5*②供給入力!E18 -> 41.32982513 | AE26: =M$5*②供給入力!F18 -> 247.0096147 | AF26: =N$5*②供給入力!C18 -> 0 | AG26: =O$5*②供給入力!D18 -> 2.505133864 | AH26: =P$5*②供給入力!E18 -> 24.18811677 | AI26: =Q$5*②供給入力!F18 -> 48.45679846 | AK26: オーストラリア | AL26: =B$8*②供給入力!C18 -> 7.82e-05 | AM26: =C$8*②供給入力!D18 -> 0.04562050532 | AN26: =D$8*②供給入力!E18 -> 1.809204638 | AO26: =E$8*②供給入力!F18 -> 2.493692628 | AP26: =F$8*②供給入力!C18 -> 9.536585366e-05 | AQ26: =G$8*②供給入力!D18 -> 0.05563476258 | AR26: =H$8*②供給入力!E18 -> 2.20634712 | AS26: =I$8*②供給入力!F18 -> 3.041088571 | AT26: =J$8*②供給入力!C18 -> 0.000115 | AU26: =K$8*②供給入力!D18 -> 0.06708897841 | AV26: =L$8*②供給入力!E18 -> 2.660595056 | AW26: =M$8*②供給入力!F18 -> 3.667195041 | AX26: =N$8*②供給入力!C18 -> 0 | AY26: =O$8*②供給入力!D18 -> 0.4183150226 | AZ26: =P$8*②供給入力!E18 -> 13.85253793 | BA26: =Q$8*②供給入力!F18 -> 27.73193084
S27: アメリカ | T27: =B$5*②供給入力!C19 -> 0 | U27: =C$5*②供給入力!D19 -> 0 | V27: =D$5*②供給入力!E19 -> 0 | W27: =E$5*②供給入力!F19 -> 0 | X27: =F$5*②供給入力!C19 -> 0 | Y27: =G$5*②供給入力!D19 -> 0 | Z27: =H$5*②供給入力!E19 -> 0 | AA27: =I$5*②供給入力!F19 -> 0 | AB27: =J$5*②供給入力!C19 -> 0 | AC27: =K$5*②供給入力!D19 -> 0 | AD27: =L$5*②供給入力!E19 -> 0 | AE27: =M$5*②供給入力!F19 -> 0 | AF27: =N$5*②供給入力!C19 -> 0 | AG27: =O$5*②供給入力!D19 -> 0 | AH27: =P$5*②供給入力!E19 -> 0 | AI27: =Q$5*②供給入力!F19 -> 0 | AK27: アメリカ | AL27: =B$8*②供給入力!C19 -> 0 | AM27: =C$8*②供給入力!D19 -> 0 | AN27: =D$8*②供給入力!E19 -> 0 | AO27: =E$8*②供給入力!F19 -> 0 | AP27: =F$8*②供給入力!C19 -> 0 | AQ27: =G$8*②供給入力!D19 -> 0 | AR27: =H$8*②供給入力!E19 -> 0 | AS27: =I$8*②供給入力!F19 -> 0 | AT27: =J$8*②供給入力!C19 -> 0 | AU27: =K$8*②供給入力!D19 -> 0 | AV27: =L$8*②供給入力!E19 -> 0 | AW27: =M$8*②供給入力!F19 -> 0 | AX27: =N$8*②供給入力!C19 -> 0 | AY27: =O$8*②供給入力!D19 -> 0 | AZ27: =P$8*②供給入力!E19 -> 0 | BA27: =Q$8*②供給入力!F19 -> 0
S28: カナダ | T28: =B$5*②供給入力!C20 -> 0 | U28: =C$5*②供給入力!D20 -> 0 | V28: =D$5*②供給入力!E20 -> 0 | W28: =E$5*②供給入力!F20 -> 0 | X28: =F$5*②供給入力!C20 -> 0 | Y28: =G$5*②供給入力!D20 -> 0 | Z28: =H$5*②供給入力!E20 -> 0 | AA28: =I$5*②供給入力!F20 -> 0 | AB28: =J$5*②供給入力!C20 -> 0 | AC28: =K$5*②供給入力!D20 -> 0 | AD28: =L$5*②供給入力!E20 -> 0 | AE28: =M$5*②供給入力!F20 -> 0 | AF28: =N$5*②供給入力!C20 -> 0 | AG28: =O$5*②供給入力!D20 -> 0 | AH28: =P$5*②供給入力!E20 -> 0 | AI28: =Q$5*②供給入力!F20 -> 0 | AK28: カナダ | AL28: =B$8*②供給入力!C20 -> 0 | AM28: =C$8*②供給入力!D20 -> 0 | AN28: =D$8*②供給入力!E20 -> 0 | AO28: =E$8*②供給入力!F20 -> 0 | AP28: =F$8*②供給入力!C20 -> 0 | AQ28: =G$8*②供給入力!D20 -> 0 | AR28: =H$8*②供給入力!E20 -> 0 | AS28: =I$8*②供給入力!F20 -> 0 | AT28: =J$8*②供給入力!C20 -> 0 | AU28: =K$8*②供給入力!D20 -> 0 | AV28: =L$8*②供給入力!E20 -> 0 | AW28: =M$8*②供給入力!F20 -> 0 | AX28: =N$8*②供給入力!C20 -> 0 | AY28: =O$8*②供給入力!D20 -> 0 | AZ28: =P$8*②供給入力!E20 -> 0 | BA28: =Q$8*②供給入力!F20 -> 0
S29: チリ | T29: =B$5*②供給入力!C21 -> 0 | U29: =C$5*②供給入力!D21 -> 0 | V29: =D$5*②供給入力!E21 -> 0 | W29: =E$5*②供給入力!F21 -> 0 | X29: =F$5*②供給入力!C21 -> 0 | Y29: =G$5*②供給入力!D21 -> 0 | Z29: =H$5*②供給入力!E21 -> 0 | AA29: =I$5*②供給入力!F21 -> 0 | AB29: =J$5*②供給入力!C21 -> 0 | AC29: =K$5*②供給入力!D21 -> 0 | AD29: =L$5*②供給入力!E21 -> 0 | AE29: =M$5*②供給入力!F21 -> 0 | AF29: =N$5*②供給入力!C21 -> 0 | AG29: =O$5*②供給入力!D21 -> 0 | AH29: =P$5*②供給入力!E21 -> 0 | AI29: =Q$5*②供給入力!F21 -> 0 | AK29: チリ | AL29: =B$8*②供給入力!C21 -> 0 | AM29: =C$8*②供給入力!D21 -> 0 | AN29: =D$8*②供給入力!E21 -> 0 | AO29: =E$8*②供給入力!F21 -> 0 | AP29: =F$8*②供給入力!C21 -> 0 | AQ29: =G$8*②供給入力!D21 -> 0 | AR29: =H$8*②供給入力!E21 -> 0 | AS29: =I$8*②供給入力!F21 -> 0 | AT29: =J$8*②供給入力!C21 -> 0 | AU29: =K$8*②供給入力!D21 -> 0 | AV29: =L$8*②供給入力!E21 -> 0 | AW29: =M$8*②供給入力!F21 -> 0 | AX29: =N$8*②供給入力!C21 -> 0 | AY29: =O$8*②供給入力!D21 -> 0 | AZ29: =P$8*②供給入力!E21 -> 0 | BA29: =Q$8*②供給入力!F21 -> 0
S30: オマーン | T30: =B$5*②供給入力!C22 -> 0 | U30: =C$5*②供給入力!D22 -> 0 | V30: =D$5*②供給入力!E22 -> 0 | W30: =E$5*②供給入力!F22 -> 0 | X30: =F$5*②供給入力!C22 -> 0 | Y30: =G$5*②供給入力!D22 -> 0 | Z30: =H$5*②供給入力!E22 -> 0 | AA30: =I$5*②供給入力!F22 -> 0 | AB30: =J$5*②供給入力!C22 -> 0 | AC30: =K$5*②供給入力!D22 -> 0 | AD30: =L$5*②供給入力!E22 -> 0 | AE30: =M$5*②供給入力!F22 -> 0 | AF30: =N$5*②供給入力!C22 -> 0 | AG30: =O$5*②供給入力!D22 -> 0 | AH30: =P$5*②供給入力!E22 -> 0 | AI30: =Q$5*②供給入力!F22 -> 0 | AK30: オマーン | AL30: =B$8*②供給入力!C22 -> 0 | AM30: =C$8*②供給入力!D22 -> 0 | AN30: =D$8*②供給入力!E22 -> 0 | AO30: =E$8*②供給入力!F22 -> 0 | AP30: =F$8*②供給入力!C22 -> 0 | AQ30: =G$8*②供給入力!D22 -> 0 | AR30: =H$8*②供給入力!E22 -> 0 | AS30: =I$8*②供給入力!F22 -> 0 | AT30: =J$8*②供給入力!C22 -> 0 | AU30: =K$8*②供給入力!D22 -> 0 | AV30: =L$8*②供給入力!E22 -> 0 | AW30: =M$8*②供給入力!F22 -> 0 | AX30: =N$8*②供給入力!C22 -> 0 | AY30: =O$8*②供給入力!D22 -> 0 | AZ30: =P$8*②供給入力!E22 -> 0 | BA30: =Q$8*②供給入力!F22 -> 0
S31: ナミビア | T31: =B$5*②供給入力!C23 -> 0 | U31: =C$5*②供給入力!D23 -> 0 | V31: =D$5*②供給入力!E23 -> 0 | W31: =E$5*②供給入力!F23 -> 0 | X31: =F$5*②供給入力!C23 -> 0 | Y31: =G$5*②供給入力!D23 -> 0 | Z31: =H$5*②供給入力!E23 -> 0 | AA31: =I$5*②供給入力!F23 -> 0 | AB31: =J$5*②供給入力!C23 -> 0 | AC31: =K$5*②供給入力!D23 -> 0 | AD31: =L$5*②供給入力!E23 -> 0 | AE31: =M$5*②供給入力!F23 -> 0 | AF31: =N$5*②供給入力!C23 -> 0 | AG31: =O$5*②供給入力!D23 -> 0 | AH31: =P$5*②供給入力!E23 -> 0 | AI31: =Q$5*②供給入力!F23 -> 0 | AK31: ナミビア | AL31: =B$8*②供給入力!C23 -> 0 | AM31: =C$8*②供給入力!D23 -> 0 | AN31: =D$8*②供給入力!E23 -> 0 | AO31: =E$8*②供給入力!F23 -> 0 | AP31: =F$8*②供給入力!C23 -> 0 | AQ31: =G$8*②供給入力!D23 -> 0 | AR31: =H$8*②供給入力!E23 -> 0 | AS31: =I$8*②供給入力!F23 -> 0 | AT31: =J$8*②供給入力!C23 -> 0 | AU31: =K$8*②供給入力!D23 -> 0 | AV31: =L$8*②供給入力!E23 -> 0 | AW31: =M$8*②供給入力!F23 -> 0 | AX31: =N$8*②供給入力!C23 -> 0 | AY31: =O$8*②供給入力!D23 -> 0 | AZ31: =P$8*②供給入力!E23 -> 0 | BA31: =Q$8*②供給入力!F23 -> 0
S33: 供給量（シナリオ３） 単位：万トン／年 | AK33: 供給量（シナリオ３） 単位：万トン／年
S34: 国名 | T34: 水素（トン／年） | X34: アンモニアクラッキング（万トン／年） | AB34: メタネーション（万トン／年） | AF34: アンモニア（トン／年） | AK34: 国名 | AL34: 水素（トン／年） | AP34: アンモニアクラッキング（万トン／年） | AT34: メタネーション（万トン／年） | AX34: アンモニア（トン／年）
T35: 実証期 | U35: 2030年 | V35: 移行期 | W35: 2050年 | X35: 実証期 | Y35: 2030年 | Z35: 移行期 | AA35: 2050年 | AB35: 実証期 | AC35: 2030年 | AD35: 移行期 | AE35: 2050年 | AF35: 実証期 | AG35: 2030年 | AH35: 移行期 | AI35: 2050年 | AL35: 実証期 | AM35: 2030年 | AN35: 移行期 | AO35: 2050年 | AP35: 実証期 | AQ35: 2030年 | AR35: 移行期 | AS35: 2050年 | AT35: 実証期 | AU35: 2030年 | AV35: 移行期 | AW35: 2050年 | AX35: 実証期 | AY35: 2030年 | AZ35: 移行期 | BA35: 2050年
S36: オーストラリア | T36: =B$5*②供給入力!C28 -> 1.396819894 | U36: =C$5*②供給入力!D28 -> 3.069745824 | V36: =D$5*②供給入力!E28 -> 19.67299676 | W36: =E$5*②供給入力!F28 -> 117.5765766 | X36: =F$5*②供給入力!C28 -> 1.703438895 | Y36: =G$5*②供給入力!D28 -> 3.743592468 | Z36: =H$5*②供給入力!E28 -> 23.99145947 | AA36: =I$5*②供給入力!F28 -> 143.386069 | AB36: =J$5*②供給入力!C28 -> 2.054146902 | AC36: =K$5*②供給入力!D28 -> 4.514332094 | AD36: =L$5*②供給入力!E28 -> 28.93087759 | AE36: =M$5*②供給入力!F28 -> 172.9067303 | AF36: =N$5*②供給入力!C28 -> 0 | AG36: =O$5*②供給入力!D28 -> 1.753593705 | AH36: =P$5*②供給入力!E28 -> 16.93168174 | AI36: =Q$5*②供給入力!F28 -> 33.91975892 | AK36: オーストラリア | AL36: =B$8*②供給入力!C28 -> 5.474e-05 | AM36: =C$8*②供給入力!D28 -> 0.03193435372 | AN36: =D$8*②供給入力!E28 -> 1.266443247 | AO36: =E$8*②供給入力!F28 -> 1.74558484 | AP36: =F$8*②供給入力!C28 -> 6.675609756e-05 | AQ36: =G$8*②供給入力!D28 -> 0.03894433381 | AR36: =H$8*②供給入力!E28 -> 1.544442984 | AS36: =I$8*②供給入力!F28 -> 2.128762 | AT36: =J$8*②供給入力!C28 -> 8.05e-05 | AU36: =K$8*②供給入力!D28 -> 0.04696228489 | AV36: =L$8*②供給入力!E28 -> 1.862416539 | AW36: =M$8*②供給入力!F28 -> 2.567036529 | AX36: =N$8*②供給入力!C28 -> 0 | AY36: =O$8*②供給入力!D28 -> 0.2928205158 | AZ36: =P$8*②供給入力!E28 -> 9.696776553 | BA36: =Q$8*②供給入力!F28 -> 19.41235159
S37: アメリカ | T37: =B$5*②供給入力!C29 -> 0 | U37: =C$5*②供給入力!D29 -> 0 | V37: =D$5*②供給入力!E29 -> 2.810428109 | W37: =E$5*②供給入力!F29 -> 10.07799228 | X37: =F$5*②供給入力!C29 -> 0 | Y37: =G$5*②供給入力!D29 -> 0 | Z37: =H$5*②供給入力!E29 -> 3.427351353 | AA37: =I$5*②供給入力!F29 -> 12.29023449 | AB37: =J$5*②供給入力!C29 -> 0 | AC37: =K$5*②供給入力!D29 -> 0 | AD37: =L$5*②供給入力!E29 -> 4.132982513 | AE37: =M$5*②供給入力!F29 -> 14.82057688 | AF37: =N$5*②供給入力!C29 -> 0 | AG37: =O$5*②供給入力!D29 -> 0 | AH37: =P$5*②供給入力!E29 -> 2.418811677 | AI37: =Q$5*②供給入力!F29 -> 2.907407908 | AK37: アメリカ | AL37: =B$8*②供給入力!C29 -> 0 | AM37: =C$8*②供給入力!D29 -> 0 | AN37: =D$8*②供給入力!E29 -> 0.1809204638 | AO37: =E$8*②供給入力!F29 -> 0.1496215577 | AP37: =F$8*②供給入力!C29 -> 0 | AQ37: =G$8*②供給入力!D29 -> 0 | AR37: =H$8*②供給入力!E29 -> 0.220634712 | AS37: =I$8*②供給入力!F29 -> 0.1824653142 | AT37: =J$8*②供給入力!C29 -> 0 | AU37: =K$8*②供給入力!D29 -> 0 | AV37: =L$8*②供給入力!E29 -> 0.2660595056 | AW37: =M$8*②供給入力!F29 -> 0.2200317025 | AX37: =N$8*②供給入力!C29 -> 0 | AY37: =O$8*②供給入力!D29 -> 0 | AZ37: =P$8*②供給入力!E29 -> 1.385253793 | BA37: =Q$8*②供給入力!F29 -> 1.66391585
S38: カナダ | T38: =B$5*②供給入力!C30 -> 0 | U38: =C$5*②供給入力!D30 -> 0.6578026766 | V38: =D$5*②供給入力!E30 -> 2.810428109 | W38: =E$5*②供給入力!F30 -> 10.07799228 | X38: =F$5*②供給入力!C30 -> 0 | Y38: =G$5*②供給入力!D30 -> 0.8021983861 | Z38: =H$5*②供給入力!E30 -> 3.427351353 | AA38: =I$5*②供給入力!F30 -> 12.29023449 | AB38: =J$5*②供給入力!C30 -> 0 | AC38: =K$5*②供給入力!D30 -> 0.9673568773 | AD38: =L$5*②供給入力!E30 -> 4.132982513 | AE38: =M$5*②供給入力!F30 -> 14.82057688 | AF38: =N$5*②供給入力!C30 -> 0 | AG38: =O$5*②供給入力!D30 -> 0.3757700796 | AH38: =P$5*②供給入力!E30 -> 2.418811677 | AI38: =Q$5*②供給入力!F30 -> 2.907407908 | AK38: カナダ | AL38: =B$8*②供給入力!C30 -> 0 | AM38: =C$8*②供給入力!D30 -> 0.006843075798 | AN38: =D$8*②供給入力!E30 -> 0.1809204638 | AO38: =E$8*②供給入力!F30 -> 0.1496215577 | AP38: =F$8*②供給入力!C30 -> 0 | AQ38: =G$8*②供給入力!D30 -> 0.008345214387 | AR38: =H$8*②供給入力!E30 -> 0.220634712 | AS38: =I$8*②供給入力!F30 -> 0.1824653142 | AT38: =J$8*②供給入力!C30 -> 0 | AU38: =K$8*②供給入力!D30 -> 0.01006334676 | AV38: =L$8*②供給入力!E30 -> 0.2660595056 | AW38: =M$8*②供給入力!F30 -> 0.2200317025 | AX38: =N$8*②供給入力!C30 -> 0 | AY38: =O$8*②供給入力!D30 -> 0.06274725339 | AZ38: =P$8*②供給入力!E30 -> 1.385253793 | BA38: =Q$8*②供給入力!F30 -> 1.66391585
S39: チリ | T39: =B$5*②供給入力!C31 -> 0.5986370972 | U39: =C$5*②供給入力!D31 -> 0.6578026766 | V39: =D$5*②供給入力!E31 -> 2.810428109 | W39: =E$5*②供給入力!F31 -> 10.07799228 | X39: =F$5*②供給入力!C31 -> 0.7300452405 | Y39: =G$5*②供給入力!D31 -> 0.8021983861 | Z39: =H$5*②供給入力!E31 -> 3.427351353 | AA39: =I$5*②供給入力!F31 -> 12.29023449 | AB39: =J$5*②供給入力!C31 -> 0.8803486724 | AC39: =K$5*②供給入力!D31 -> 0.9673568773 | AD39: =L$5*②供給入力!E31 -> 4.132982513 | AE39: =M$5*②供給入力!F31 -> 14.82057688 | AF39: =N$5*②供給入力!C31 -> 0 | AG39: =O$5*②供給入力!D31 -> 0.3757700796 | AH39: =P$5*②供給入力!E31 -> 2.418811677 | AI39: =Q$5*②供給入力!F31 -> 2.907407908 | AK39: チリ | AL39: =B$8*②供給入力!C31 -> 2.346e-05 | AM39: =C$8*②供給入力!D31 -> 0.006843075798 | AN39: =D$8*②供給入力!E31 -> 0.1809204638 | AO39: =E$8*②供給入力!F31 -> 0.1496215577 | AP39: =F$8*②供給入力!C31 -> 2.86097561e-05 | AQ39: =G$8*②供給入力!D31 -> 0.008345214387 | AR39: =H$8*②供給入力!E31 -> 0.220634712 | AS39: =I$8*②供給入力!F31 -> 0.1824653142 | AT39: =J$8*②供給入力!C31 -> 3.45e-05 | AU39: =K$8*②供給入力!D31 -> 0.01006334676 | AV39: =L$8*②供給入力!E31 -> 0.2660595056 | AW39: =M$8*②供給入力!F31 -> 0.2200317025 | AX39: =N$8*②供給入力!C31 -> 0 | AY39: =O$8*②供給入力!D31 -> 0.06274725339 | AZ39: =P$8*②供給入力!E31 -> 1.385253793 | BA39: =Q$8*②供給入力!F31 -> 1.66391585
S40: オマーン | T40: =B$5*②供給入力!C32 -> 0 | U40: =C$5*②供給入力!D32 -> 0 | V40: =D$5*②供給入力!E32 -> 0 | W40: =E$5*②供給入力!F32 -> 10.07799228 | X40: =F$5*②供給入力!C32 -> 0 | Y40: =G$5*②供給入力!D32 -> 0 | Z40: =H$5*②供給入力!E32 -> 0 | AA40: =I$5*②供給入力!F32 -> 12.29023449 | AB40: =J$5*②供給入力!C32 -> 0 | AC40: =K$5*②供給入力!D32 -> 0 | AD40: =L$5*②供給入力!E32 -> 0 | AE40: =M$5*②供給入力!F32 -> 14.82057688 | AF40: =N$5*②供給入力!C32 -> 0 | AG40: =O$5*②供給入力!D32 -> 0 | AH40: =P$5*②供給入力!E32 -> 0 | AI40: =Q$5*②供給入力!F32 -> 2.907407908 | AK40: オマーン | AL40: =B$8*②供給入力!C32 -> 0 | AM40: =C$8*②供給入力!D32 -> 0 | AN40: =D$8*②供給入力!E32 -> 0 | AO40: =E$8*②供給入力!F32 -> 0.1496215577 | AP40: =F$8*②供給入力!C32 -> 0 | AQ40: =G$8*②供給入力!D32 -> 0 | AR40: =H$8*②供給入力!E32 -> 0 | AS40: =I$8*②供給入力!F32 -> 0.1824653142 | AT40: =J$8*②供給入力!C32 -> 0 | AU40: =K$8*②供給入力!D32 -> 0 | AV40: =L$8*②供給入力!E32 -> 0 | AW40: =M$8*②供給入力!F32 -> 0.2200317025 | AX40: =N$8*②供給入力!C32 -> 0 | AY40: =O$8*②供給入力!D32 -> 0 | AZ40: =P$8*②供給入力!E32 -> 0 | BA40: =Q$8*②供給入力!F32 -> 1.66391585
S41: ナミビア | T41: =B$5*②供給入力!C33 -> 0 | U41: =C$5*②供給入力!D33 -> 0 | V41: =D$5*②供給入力!E33 -> 0 | W41: =E$5*②供給入力!F33 -> 10.07799228 | X41: =F$5*②供給入力!C33 -> 0 | Y41: =G$5*②供給入力!D33 -> 0 | Z41: =H$5*②供給入力!E33 -> 0 | AA41: =I$5*②供給入力!F33 -> 12.29023449 | AB41: =J$5*②供給入力!C33 -> 0 | AC41: =K$5*②供給入力!D33 -> 0 | AD41: =L$5*②供給入力!E33 -> 0 | AE41: =M$5*②供給入力!F33 -> 14.82057688 | AF41: =N$5*②供給入力!C33 -> 0 | AG41: =O$5*②供給入力!D33 -> 0 | AH41: =P$5*②供給入力!E33 -> 0 | AI41: =Q$5*②供給入力!F33 -> 2.907407908 | AK41: ナミビア | AL41: =B$8*②供給入力!C33 -> 0 | AM41: =C$8*②供給入力!D33 -> 0 | AN41: =D$8*②供給入力!E33 -> 0 | AO41: =E$8*②供給入力!F33 -> 0.1496215577 | AP41: =F$8*②供給入力!C33 -> 0 | AQ41: =G$8*②供給入力!D33 -> 0 | AR41: =H$8*②供給入力!E33 -> 0 | AS41: =I$8*②供給入力!F33 -> 0.1824653142 | AT41: =J$8*②供給入力!C33 -> 0 | AU41: =K$8*②供給入力!D33 -> 0 | AV41: =L$8*②供給入力!E33 -> 0 | AW41: =M$8*②供給入力!F33 -> 0.2200317025 | AX41: =N$8*②供給入力!C33 -> 0 | AY41: =O$8*②供給入力!D33 -> 0 | AZ41: =P$8*②供給入力!E33 -> 0 | BA41: =Q$8*②供給入力!F33 -> 1.66391585
S43: 供給量（シナリオ４） 単位：万トン／年 | AK43: 供給量（シナリオ４） 単位：万トン／年
S44: 国名 | T44: 水素（トン／年） | X44: アンモニアクラッキング（万トン／年） | AB44: メタネーション（万トン／年） | AF44: アンモニア（トン／年） | AK44: 国名 | AL44: 水素（トン／年） | AP44: アンモニアクラッキング（万トン／年） | AT44: メタネーション（万トン／年） | AX44: アンモニア（トン／年）
T45: 実証期 | U45: 2030年 | V45: 移行期 | W45: 2050年 | X45: 実証期 | Y45: 2030年 | Z45: 移行期 | AA45: 2050年 | AB45: 実証期 | AC45: 2030年 | AD45: 移行期 | AE45: 2050年 | AF45: 実証期 | AG45: 2030年 | AH45: 移行期 | AI45: 2050年 | AL45: 実証期 | AM45: 2030年 | AN45: 移行期 | AO45: 2050年 | AP45: 実証期 | AQ45: 2030年 | AR45: 移行期 | AS45: 2050年 | AT45: 実証期 | AU45: 2030年 | AV45: 移行期 | AW45: 2050年 | AX45: 実証期 | AY45: 2030年 | AZ45: 移行期 | BA45: 2050年
S46: オーストラリア | T46: =B$5*②供給入力!C38 -> 1.474745852 | U46: =C$5*②供給入力!D38 -> 2.034414472 | V46: =D$5*②供給入力!E38 -> 9.894466696 | W46: =E$5*②供給入力!F38 -> 44.60398984 | X46: =F$5*②供給入力!C38 -> 1.798470551 | Y46: =G$5*②供給入力!D38 -> 2.480993259 | Z46: =H$5*②供給入力!E38 -> 12.0664228 | AA46: =I$5*②供給入力!F38 -> 54.39510956 | AB46: =J$5*②供給入力!C38 -> 2.168743899 | AC46: =K$5*②供給入力!D38 -> 2.991785989 | AD46: =L$5*②供給入力!E38 -> 14.55068632 | AE46: =M$5*②供給入力!F38 -> 65.5941027 | AF46: =N$5*②供給入力!C38 -> 0 | AG46: =O$5*②供給入力!D38 -> 1.162160197 | AH46: =P$5*②供給入力!E38 -> 8.515731644 | AI46: =Q$5*②供給入力!F38 -> 12.86784006 | AK46: オーストラリア | AL46: =B$8*②供給入力!C38 -> 5.779384178e-05 | AM46: =C$8*②供給入力!D38 -> 0.0211638732 | AN46: =D$8*②供給入力!E38 -> 0.6369533162 | AO46: =E$8*②供給入力!F38 -> 0.6622071393 | AP46: =F$8*②供給入力!C38 -> 7.048029485e-05 | AQ46: =G$8*②供給入力!D38 -> 0.02580960146 | AR46: =H$8*②供給入力!E38 -> 0.7767723368 | AS46: =I$8*②供給入力!F38 -> 0.8075696821 | AT46: =J$8*②供給入力!C38 -> 8.499094379e-05 | AU46: =K$8*②供給入力!D38 -> 0.03112334294 | AV46: =L$8*②供給入力!E38 -> 0.9366960532 | AW46: =M$8*②供給入力!F38 -> 0.9738340284 | AX46: =N$8*②供給入力!C38 -> 0 | AY46: =O$8*②供給入力!D38 -> 0.1940611143 | AZ46: =P$8*②供給入力!E38 -> 4.87696073 | BA46: =Q$8*②供給入力!F38 -> 7.364292769
S47: アメリカ | T47: =B$5*②供給入力!C39 -> 0 | U47: =C$5*②供給入力!D39 -> 0 | V47: =D$5*②供給入力!E39 -> 6.775927521 | W47: =E$5*②供給入力!F39 -> 30.54569908 | X47: =F$5*②供給入力!C39 -> 0 | Y47: =G$5*②供給入力!D39 -> 0 | Z47: =H$5*②供給入力!E39 -> 8.263326245 | AA47: =I$5*②供給入力!F39 -> 37.25085254 | AB47: =J$5*②供給入力!C39 -> 0 | AC47: =K$5*②供給入力!D39 -> 0 | AD47: =L$5*②供給入力!E39 -> 9.964599295 | AE47: =M$5*②供給入力!F39 -> 44.92014571 | AF47: =N$5*②供給入力!C39 -> 0 | AG47: =O$5*②供給入力!D39 -> 0 | AH47: =P$5*②供給入力!E39 -> 5.831742344 | AI47: =Q$5*②供給入力!F39 -> 8.812152716 | AK47: アメリカ | AL47: =B$8*②供給入力!C39 -> 0 | AM47: =C$8*②供給入力!D39 -> 0 | AN47: =D$8*②供給入力!E39 -> 0.4361982951 | AO47: =E$8*②供給入力!F39 -> 0.4534926153 | AP47: =F$8*②供給入力!C39 -> 0 | AQ47: =G$8*②供給入力!D39 -> 0 | AR47: =H$8*②供給入力!E39 -> 0.5319491404 | AS47: =I$8*②供給入力!F39 -> 0.5530397748 | AT47: =J$8*②供給入力!C39 -> 0 | AU47: =K$8*②供給入力!D39 -> 0 | AV47: =L$8*②供給入力!E39 -> 0.6414680811 | AW47: =M$8*②供給入力!F39 -> 0.6669009049 | AX47: =N$8*②供給入力!C39 -> 0 | AY47: =O$8*②供給入力!D39 -> 0 | AZ47: =P$8*②供給入力!E39 -> 3.339839674 | BA47: =Q$8*②供給入力!F39 -> 5.043214109
S48: カナダ | T48: =B$5*②供給入力!C40 -> 0 | U48: =C$5*②供給入力!D40 -> 1.632614781 | V48: =D$5*②供給入力!E40 -> 7.940295745 | W48: =E$5*②供給入力!F40 -> 35.79463973 | X48: =F$5*②供給入力!C40 -> 0 | Y48: =G$5*②供給入力!D40 -> 1.990993635 | Z48: =H$5*②供給入力!E40 -> 9.683287494 | AA48: =I$5*②供給入力!F40 -> 43.65199967 | AB48: =J$5*②供給入力!C40 -> 0 | AC48: =K$5*②供給入力!D40 -> 2.40090409 | AD48: =L$5*②供給入力!E40 -> 11.67690551 | AE48: =M$5*②供給入力!F40 -> 52.63917608 | AF48: =N$5*②供給入力!C40 -> 0 | AG48: =O$5*②供給入力!D40 -> 0.9326319397 | AH48: =P$5*②供給入力!E40 -> 6.833862786 | AI48: =Q$5*②供給入力!F40 -> 10.32642373 | AK48: カナダ | AL48: =B$8*②供給入力!C40 -> 0 | AM48: =C$8*②供給入力!D40 -> 0.01698397877 | AN48: =D$8*②供給入力!E40 -> 0.5111541492 | AO48: =E$8*②供給入力!F40 -> 0.5314203071 | AP48: =F$8*②供給入力!C40 -> 0 | AQ48: =G$8*②供給入力!D40 -> 0.02071216923 | AR48: =H$8*②供給入力!E40 -> 0.6233587186 | AS48: =I$8*②供給入力!F40 -> 0.6480735453 | AT48: =J$8*②供給入力!C40 -> 0 | AU48: =K$8*②供給入力!D40 -> 0.02497643937 | AV48: =L$8*②供給入力!E40 -> 0.7516972783 | AW48: =M$8*②供給入力!F40 -> 0.7815004517 | AX48: =N$8*②供給入力!C40 -> 0 | AY48: =O$8*②供給入力!D40 -> 0.155733774 | AZ48: =P$8*②供給入力!E40 -> 3.913754195 | BA48: =Q$8*②供給入力!F40 -> 5.909834692
S49: チリ | T49: =B$5*②供給入力!C41 -> 0.5207111392 | U49: =C$5*②供給入力!D41 -> 0.7183219239 | V49: =D$5*②供給入力!E41 -> 3.493591129 | W49: =E$5*②供給入力!F41 -> 15.74901488 | X49: =F$5*②供給入力!C41 -> 0.6350135844 | Y49: =G$5*②供給入力!D41 -> 0.8760023463 | Z49: =H$5*②供給入力!E41 -> 4.260476987 | AA49: =I$5*②供給入力!F41 -> 19.20611571 | AB49: =J$5*②供給入力!C41 -> 0.7657516753 | AC49: =K$5*②供給入力!D41 -> 1.056355771 | AD49: =L$5*②供給入力!E41 -> 5.137634014 | AE49: =M$5*②供給入力!F41 -> 23.160316 | AF49: =N$5*②供給入力!C41 -> 0 | AG49: =O$5*②供給入力!D41 -> 0.4103417273 | AH49: =P$5*②供給入力!E41 -> 3.006779996 | AI49: =Q$5*②供給入力!F41 -> 4.543445671 | AK49: チリ | AL49: =B$8*②供給入力!C41 -> 2.040615822e-05 | AM49: =C$8*②供給入力!D41 -> 0.007472653347 | AN49: =D$8*②供給入力!E41 -> 0.2248988777 | AO49: =E$8*②供給入力!F41 -> 0.2338156324 | AP49: =F$8*②供給入力!C41 -> 2.488555881e-05 | AQ49: =G$8*②供給入力!D41 -> 0.009112991886 | AR49: =H$8*②供給入力!E41 -> 0.274266924 | AS49: =I$8*②供給入力!F41 -> 0.2851410151 | AT49: =J$8*②供給入力!C41 -> 3.000905621e-05 | AU49: =K$8*②供給入力!D41 -> 0.0109891961 | AV49: =L$8*②供給入力!E41 -> 0.3307336436 | AW49: =M$8*②供給入力!F41 -> 0.3438465182 | AX49: =N$8*②供給入力!C41 -> 0 | AY49: =O$8*②供給入力!D41 -> 0.06852013435 | AZ49: =P$8*②供給入力!E41 -> 1.721983334 | BA49: =Q$8*②供給入力!F41 -> 2.60022381
S50: オマーン | T50: =B$5*②供給入力!C42 -> 0 | U50: =C$5*②供給入力!D42 -> 0 | V50: =D$5*②供給入力!E42 -> 0 | W50: =E$5*②供給入力!F42 -> 24.74591471 | X50: =F$5*②供給入力!C42 -> 0 | Y50: =G$5*②供給入力!D42 -> 0 | Z50: =H$5*②供給入力!E42 -> 0 | AA50: =I$5*②供給入力!F42 -> 30.17794476 | AB50: =J$5*②供給入力!C42 -> 0 | AC50: =K$5*②供給入力!D42 -> 0 | AD50: =L$5*②供給入力!E42 -> 0 | AE50: =M$5*②供給入力!F42 -> 36.39105104 | AF50: =N$5*②供給入力!C42 -> 0 | AG50: =O$5*②供給入力!D42 -> 0 | AH50: =P$5*②供給入力!E42 -> 0 | AI50: =Q$5*②供給入力!F42 -> 7.138968367 | AK50: オマーン | AL50: =B$8*②供給入力!C42 -> 0 | AM50: =C$8*②供給入力!D42 -> 0 | AN50: =D$8*②供給入力!E42 -> 0 | AO50: =E$8*②供給入力!F42 -> 0.3673868962 | AP50: =F$8*②供給入力!C42 -> 0 | AQ50: =G$8*②供給入力!D42 -> 0 | AR50: =H$8*②供給入力!E42 -> 0 | AS50: =I$8*②供給入力!F42 -> 0.4480328003 | AT50: =J$8*②供給入力!C42 -> 0 | AU50: =K$8*②供給入力!D42 -> 0 | AV50: =L$8*②供給入力!E42 -> 0 | AW50: =M$8*②供給入力!F42 -> 0.5402748474 | AX50: =N$8*②供給入力!C42 -> 0 | AY50: =O$8*②供給入力!D42 -> 0 | AZ50: =P$8*②供給入力!E42 -> 0 | BA50: =Q$8*②供給入力!F42 -> 4.085647077
S51: ナミビア | T51: =B$5*②供給入力!C43 -> 0 | U51: =C$5*②供給入力!D43 -> 0 | V51: =D$5*②供給入力!E43 -> 0 | W51: =E$5*②供給入力!F43 -> 16.52727978 | X51: =F$5*②供給入力!C43 -> 0 | Y51: =G$5*②供給入力!D43 -> 0 | Z51: =H$5*②供給入力!E43 -> 0 | AA51: =I$5*②供給入力!F43 -> 20.15521925 | AB51: =J$5*②供給入力!C43 -> 0 | AC51: =K$5*②供給入力!D43 -> 0 | AD51: =L$5*②供給入力!E43 -> 0 | AE51: =M$5*②供給入力!F43 -> 24.30482321 | AF51: =N$5*②供給入力!C43 -> 0 | AG51: =O$5*②供給入力!D43 -> 0 | AH51: =P$5*②供給入力!E43 -> 0 | AI51: =Q$5*②供給入力!F43 -> 4.767967924 | AK51: ナミビア | AL51: =B$8*②供給入力!C43 -> 0 | AM51: =C$8*②供給入力!D43 -> 0 | AN51: =D$8*②供給入力!E43 -> 0 | AO51: =E$8*②供給入力!F43 -> 0.2453700377 | AP51: =F$8*②供給入力!C43 -> 0 | AQ51: =G$8*②供給入力!D43 -> 0 | AR51: =H$8*②供給入力!E43 -> 0 | AS51: =I$8*②供給入力!F43 -> 0.2992317532 | AT51: =J$8*②供給入力!C43 -> 0 | AU51: =K$8*②供給入力!D43 -> 0 | AV51: =L$8*②供給入力!E43 -> 0 | AW51: =M$8*②供給入力!F43 -> 0.3608382907 | AX51: =N$8*②供給入力!C43 -> 0 | AY51: =O$8*②供給入力!D43 -> 0 | AZ51: =P$8*②供給入力!E43 -> 0 | BA51: =Q$8*②供給入力!F43 -> 2.728718382
S53: 直江津港 | AK53: 七尾港
S54: 供給量（シナリオ１） 単位：万トン／年 | AK54: 供給量（シナリオ１） 単位：万トン／年
S55: 国名 | T55: 水素（トン／年） | X55: アンモニアクラッキング（万トン／年） | AB55: メタネーション（万トン／年） | AF55: アンモニア（トン／年） | AK55: 国名 | AL55: 水素（トン／年） | AP55: アンモニアクラッキング（万トン／年） | AT55: メタネーション（万トン／年） | AX55: アンモニア（トン／年）
T56: 実証期 | U56: 2030年 | V56: 移行期 | W56: 2050年 | X56: 実証期 | Y56: 2030年 | Z56: 移行期 | AA56: 2050年 | AB56: 実証期 | AC56: 2030年 | AD56: 移行期 | AE56: 2050年 | AF56: 実証期 | AG56: 2030年 | AH56: 移行期 | AI56: 2050年 | AL56: 実証期 | AM56: 2030年 | AN56: 移行期 | AO56: 2050年 | AP56: 実証期 | AQ56: 2030年 | AR56: 移行期 | AS56: 2050年 | AT56: 実証期 | AU56: 2030年 | AV56: 移行期 | AW56: 2050年 | AX56: 実証期 | AY56: 2030年 | AZ56: 移行期 | BA56: 2050年
S57: オーストラリア | T57: =B$6*②供給入力!C49 -> 0.6213467147 | U57: =C$6*②供給入力!D49 -> 0.8842443365 | V57: =D$6*②供給入力!E49 -> 4.635236341 | W57: =E$6*②供給入力!F49 -> 17.78050718 | X57: =F$6*②供給入力!C49 -> 0.757739896 | Y57: =G$6*②供給入力!D49 -> 1.078346752 | Z57: =H$6*②供給入力!E49 -> 5.652727245 | AA57: =I$6*②供給入力!F49 -> 21.68354534 | AB57: =J$6*②供給入力!C49 -> 0.9137451687 | AC57: =K$6*②供給入力!D49 -> 1.300359318 | AD57: =L$6*②供給入力!E49 -> 6.816524031 | AE57: =M$6*②供給入力!F49 -> 26.14780468 | AF57: =N$6*②供給入力!C49 -> 0 | AG57: =O$6*②供給入力!D49 -> 0.3426070502 | AH57: =P$6*②供給入力!E49 -> 5.184785483 | AI57: =Q$6*②供給入力!F49 -> 6.924236883 | AK57: オーストラリア | AL57: =B$9*②供給入力!C49 -> 0.008149763517 | AM57: =C$9*②供給入力!D49 -> 0.02624582448 | AN57: =D$9*②供給入力!E49 -> 0.5015367832 | AO57: =E$9*②供給入力!F49 -> 0.6326619885 | AP57: =F$9*②供給入力!C49 -> 0.009938735996 | AQ57: =G$9*②供給入力!D49 -> 0.03200710302 | AR57: =H$9*②供給入力!E49 -> 0.6116302234 | AS57: =I$9*②供給入力!F49 -> 0.7715390104 | AT57: =J$9*②供給入力!C49 -> 0.01198494635 | AU57: =K$9*②供給入力!D49 -> 0.0385968007 | AV57: =L$9*②供給入力!E49 -> 0.737554093 | AW57: =M$9*②供給入力!F49 -> 0.9303852773 | AX57: =N$9*②供給入力!C49 -> 8.556017484 | AY57: =O$9*②供給入力!D49 -> 22.95694719 | AZ57: =P$9*②供給入力!E49 -> 35.5519188 | BA57: =Q$9*②供給入力!F49 -> 61.66706337
S58: アメリカ | T58: =B$6*②供給入力!C50 -> 0 | U58: =C$6*②供給入力!D50 -> 0 | V58: =D$6*②供給入力!E50 -> 4.635236341 | W58: =E$6*②供給入力!F50 -> 17.78050718 | X58: =F$6*②供給入力!C50 -> 0 | Y58: =G$6*②供給入力!D50 -> 0 | Z58: =H$6*②供給入力!E50 -> 5.652727245 | AA58: =I$6*②供給入力!F50 -> 21.68354534 | AB58: =J$6*②供給入力!C50 -> 0 | AC58: =K$6*②供給入力!D50 -> 0 | AD58: =L$6*②供給入力!E50 -> 6.816524031 | AE58: =M$6*②供給入力!F50 -> 26.14780468 | AF58: =N$6*②供給入力!C50 -> 0 | AG58: =O$6*②供給入力!D50 -> 0 | AH58: =P$6*②供給入力!E50 -> 5.184785483 | AI58: =Q$6*②供給入力!F50 -> 6.924236883 | AK58: アメリカ | AL58: =B$9*②供給入力!C50 -> 0 | AM58: =C$9*②供給入力!D50 -> 0 | AN58: =D$9*②供給入力!E50 -> 0.5015367832 | AO58: =E$9*②供給入力!F50 -> 0.6326619885 | AP58: =F$9*②供給入力!C50 -> 0 | AQ58: =G$9*②供給入力!D50 -> 0 | AR58: =H$9*②供給入力!E50 -> 0.6116302234 | AS58: =I$9*②供給入力!F50 -> 0.7715390104 | AT58: =J$9*②供給入力!C50 -> 0 | AU58: =K$9*②供給入力!D50 -> 0 | AV58: =L$9*②供給入力!E50 -> 0.737554093 | AW58: =M$9*②供給入力!F50 -> 0.9303852773 | AX58: =N$9*②供給入力!C50 -> 0 | AY58: =O$9*②供給入力!D50 -> 0 | AZ58: =P$9*②供給入力!E50 -> 35.5519188 | BA58: =Q$9*②供給入力!F50 -> 61.66706337
S59: カナダ | T59: =B$6*②供給入力!C51 -> 0 | U59: =C$6*②供給入力!D51 -> 0.8842443365 | V59: =D$6*②供給入力!E51 -> 4.635236341 | W59: =E$6*②供給入力!F51 -> 17.78050718 | X59: =F$6*②供給入力!C51 -> 0 | Y59: =G$6*②供給入力!D51 -> 1.078346752 | Z59: =H$6*②供給入力!E51 -> 5.652727245 | AA59: =I$6*②供給入力!F51 -> 21.68354534 | AB59: =J$6*②供給入力!C51 -> 0 | AC59: =K$6*②供給入力!D51 -> 1.300359318 | AD59: =L$6*②供給入力!E51 -> 6.816524031 | AE59: =M$6*②供給入力!F51 -> 26.14780468 | AF59: =N$6*②供給入力!C51 -> 0 | AG59: =O$6*②供給入力!D51 -> 0.3426070502 | AH59: =P$6*②供給入力!E51 -> 5.184785483 | AI59: =Q$6*②供給入力!F51 -> 6.924236883 | AK59: カナダ | AL59: =B$9*②供給入力!C51 -> 0 | AM59: =C$9*②供給入力!D51 -> 0.02624582448 | AN59: =D$9*②供給入力!E51 -> 0.5015367832 | AO59: =E$9*②供給入力!F51 -> 0.6326619885 | AP59: =F$9*②供給入力!C51 -> 0 | AQ59: =G$9*②供給入力!D51 -> 0.03200710302 | AR59: =H$9*②供給入力!E51 -> 0.6116302234 | AS59: =I$9*②供給入力!F51 -> 0.7715390104 | AT59: =J$9*②供給入力!C51 -> 0 | AU59: =K$9*②供給入力!D51 -> 0.0385968007 | AV59: =L$9*②供給入力!E51 -> 0.737554093 | AW59: =M$9*②供給入力!F51 -> 0.9303852773 | AX59: =N$9*②供給入力!C51 -> 0 | AY59: =O$9*②供給入力!D51 -> 22.95694719 | AZ59: =P$9*②供給入力!E51 -> 35.5519188 | BA59: =Q$9*②供給入力!F51 -> 61.66706337
S60: チリ | T60: =B$6*②供給入力!C52 -> 0.6213467147 | U60: =C$6*②供給入力!D52 -> 0.8842443365 | V60: =D$6*②供給入力!E52 -> 4.635236341 | W60: =E$6*②供給入力!F52 -> 17.78050718 | X60: =F$6*②供給入力!C52 -> 0.757739896 | Y60: =G$6*②供給入力!D52 -> 1.078346752 | Z60: =H$6*②供給入力!E52 -> 5.652727245 | AA60: =I$6*②供給入力!F52 -> 21.68354534 | AB60: =J$6*②供給入力!C52 -> 0.9137451687 | AC60: =K$6*②供給入力!D52 -> 1.300359318 | AD60: =L$6*②供給入力!E52 -> 6.816524031 | AE60: =M$6*②供給入力!F52 -> 26.14780468 | AF60: =N$6*②供給入力!C52 -> 0 | AG60: =O$6*②供給入力!D52 -> 0.3426070502 | AH60: =P$6*②供給入力!E52 -> 5.184785483 | AI60: =Q$6*②供給入力!F52 -> 6.924236883 | AK60: チリ | AL60: =B$9*②供給入力!C52 -> 0.008149763517 | AM60: =C$9*②供給入力!D52 -> 0.02624582448 | AN60: =D$9*②供給入力!E52 -> 0.5015367832 | AO60: =E$9*②供給入力!F52 -> 0.6326619885 | AP60: =F$9*②供給入力!C52 -> 0.009938735996 | AQ60: =G$9*②供給入力!D52 -> 0.03200710302 | AR60: =H$9*②供給入力!E52 -> 0.6116302234 | AS60: =I$9*②供給入力!F52 -> 0.7715390104 | AT60: =J$9*②供給入力!C52 -> 0.01198494635 | AU60: =K$9*②供給入力!D52 -> 0.0385968007 | AV60: =L$9*②供給入力!E52 -> 0.737554093 | AW60: =M$9*②供給入力!F52 -> 0.9303852773 | AX60: =N$9*②供給入力!C52 -> 8.556017484 | AY60: =O$9*②供給入力!D52 -> 22.95694719 | AZ60: =P$9*②供給入力!E52 -> 35.5519188 | BA60: =Q$9*②供給入力!F52 -> 61.66706337
S61: オマーン | T61: =B$6*②供給入力!C53 -> 0 | U61: =C$6*②供給入力!D53 -> 0 | V61: =D$6*②供給入力!E53 -> 0 | W61: =E$6*②供給入力!F53 -> 17.78050718 | X61: =F$6*②供給入力!C53 -> 0 | Y61: =G$6*②供給入力!D53 -> 0 | Z61: =H$6*②供給入力!E53 -> 0 | AA61: =I$6*②供給入力!F53 -> 21.68354534 | AB61: =J$6*②供給入力!C53 -> 0 | AC61: =K$6*②供給入力!D53 -> 0 | AD61: =L$6*②供給入力!E53 -> 0 | AE61: =M$6*②供給入力!F53 -> 26.14780468 | AF61: =N$6*②供給入力!C53 -> 0 | AG61: =O$6*②供給入力!D53 -> 0 | AH61: =P$6*②供給入力!E53 -> 0 | AI61: =Q$6*②供給入力!F53 -> 6.924236883 | AK61: オマーン | AL61: =B$9*②供給入力!C53 -> 0 | AM61: =C$9*②供給入力!D53 -> 0 | AN61: =D$9*②供給入力!E53 -> 0 | AO61: =E$9*②供給入力!F53 -> 0.6326619885 | AP61: =F$9*②供給入力!C53 -> 0 | AQ61: =G$9*②供給入力!D53 -> 0 | AR61: =H$9*②供給入力!E53 -> 0 | AS61: =I$9*②供給入力!F53 -> 0.7715390104 | AT61: =J$9*②供給入力!C53 -> 0 | AU61: =K$9*②供給入力!D53 -> 0 | AV61: =L$9*②供給入力!E53 -> 0 | AW61: =M$9*②供給入力!F53 -> 0.9303852773 | AX61: =N$9*②供給入力!C53 -> 0 | AY61: =O$9*②供給入力!D53 -> 0 | AZ61: =P$9*②供給入力!E53 -> 0 | BA61: =Q$9*②供給入力!F53 -> 61.66706337
S62: ナミビア | T62: =B$6*②供給入力!C54 -> 0 | U62: =C$6*②供給入力!D54 -> 0 | V62: =D$6*②供給入力!E54 -> 0 | W62: =E$6*②供給入力!F54 -> 17.78050718 | X62: =F$6*②供給入力!C54 -> 0 | Y62: =G$6*②供給入力!D54 -> 0 | Z62: =H$6*②供給入力!E54 -> 0 | AA62: =I$6*②供給入力!F54 -> 21.68354534 | AB62: =J$6*②供給入力!C54 -> 0 | AC62: =K$6*②供給入力!D54 -> 0 | AD62: =L$6*②供給入力!E54 -> 0 | AE62: =M$6*②供給入力!F54 -> 26.14780468 | AF62: =N$6*②供給入力!C54 -> 0 | AG62: =O$6*②供給入力!D54 -> 0 | AH62: =P$6*②供給入力!E54 -> 0 | AI62: =Q$6*②供給入力!F54 -> 6.924236883 | AK62: ナミビア | AL62: =B$9*②供給入力!C54 -> 0 | AM62: =C$9*②供給入力!D54 -> 0 | AN62: =D$9*②供給入力!E54 -> 0 | AO62: =E$9*②供給入力!F54 -> 0.6326619885 | AP62: =F$9*②供給入力!C54 -> 0 | AQ62: =G$9*②供給入力!D54 -> 0 | AR62: =H$9*②供給入力!E54 -> 0 | AS62: =I$9*②供給入力!F54 -> 0.7715390104 | AT62: =J$9*②供給入力!C54 -> 0 | AU62: =K$9*②供給入力!D54 -> 0 | AV62: =L$9*②供給入力!E54 -> 0 | AW62: =M$9*②供給入力!F54 -> 0.9303852773 | AX62: =N$9*②供給入力!C54 -> 0 | AY62: =O$9*②供給入力!D54 -> 0 | AZ62: =P$9*②供給入力!E54 -> 0 | BA62: =Q$9*②供給入力!F54 -> 61.66706337
S64: 供給量（シナリオ２） 単位：万トン／年 | AK64: 供給量（シナリオ２） 単位：万トン／年
S65: 国名 | T65: 水素（トン／年） | X65: アンモニアクラッキング（万トン／年） | AB65: メタネーション（万トン／年） | AF65: アンモニア（トン／年） | AK65: 国名 | AL65: 水素（トン／年） | AP65: アンモニアクラッキング（万トン／年） | AT65: メタネーション（万トン／年） | AX65: アンモニア（トン／年）
T66: 実証期 | U66: 2030年 | V66: 移行期 | W66: 2050年 | X66: 実証期 | Y66: 2030年 | Z66: 移行期 | AA66: 2050年 | AB66: 実証期 | AC66: 2030年 | AD66: 移行期 | AE66: 2050年 | AF66: 実証期 | AG66: 2030年 | AH66: 移行期 | AI66: 2050年 | AL66: 実証期 | AM66: 2030年 | AN66: 移行期 | AO66: 2050年 | AP66: 実証期 | AQ66: 2030年 | AR66: 移行期 | AS66: 2050年 | AT66: 実証期 | AU66: 2030年 | AV66: 移行期 | AW66: 2050年 | AX66: 実証期 | AY66: 2030年 | AZ66: 移行期 | BA66: 2050年
S67: オーストラリア | T67: =B$6*②供給入力!C59 -> 1.242693429 | U67: =C$6*②供給入力!D59 -> 2.652733009 | V67: =D$6*②供給入力!E59 -> 18.54094536 | W67: =E$6*②供給入力!F59 -> 106.6830431 | X67: =F$6*②供給入力!C59 -> 1.515479792 | Y67: =G$6*②供給入力!D59 -> 3.235040255 | Z67: =H$6*②供給入力!E59 -> 22.61090898 | AA67: =I$6*②供給入力!F59 -> 130.101272 | AB67: =J$6*②供給入力!C59 -> 1.827490337 | AC67: =K$6*②供給入力!D59 -> 3.901077955 | AD67: =L$6*②供給入力!E59 -> 27.26609612 | AE67: =M$6*②供給入力!F59 -> 156.8868281 | AF67: =N$6*②供給入力!C59 -> 0 | AG67: =O$6*②供給入力!D59 -> 1.027821151 | AH67: =P$6*②供給入力!E59 -> 20.73914193 | AI67: =Q$6*②供給入力!F59 -> 41.5454213 | AK67: オーストラリア | AL67: =B$9*②供給入力!C59 -> 0.01629952703 | AM67: =C$9*②供給入力!D59 -> 0.07873747343 | AN67: =D$9*②供給入力!E59 -> 2.006147133 | AO67: =E$9*②供給入力!F59 -> 3.795971931 | AP67: =F$9*②供給入力!C59 -> 0.01987747199 | AQ67: =G$9*②供給入力!D59 -> 0.09602130907 | AR67: =H$9*②供給入力!E59 -> 2.446520894 | AS67: =I$9*②供給入力!F59 -> 4.629234062 | AT67: =J$9*②供給入力!C59 -> 0.0239698927 | AU67: =K$9*②供給入力!D59 -> 0.1157904021 | AV67: =L$9*②供給入力!E59 -> 2.950216372 | AW67: =M$9*②供給入力!F59 -> 5.582311664 | AX67: =N$9*②供給入力!C59 -> 17.11203497 | AY67: =O$9*②供給入力!D59 -> 68.87084156 | AZ67: =P$9*②供給入力!E59 -> 142.2076752 | BA67: =Q$9*②供給入力!F59 -> 370.0023802
S68: アメリカ | T68: =B$6*②供給入力!C60 -> 0 | U68: =C$6*②供給入力!D60 -> 0 | V68: =D$6*②供給入力!E60 -> 0 | W68: =E$6*②供給入力!F60 -> 0 | X68: =F$6*②供給入力!C60 -> 0 | Y68: =G$6*②供給入力!D60 -> 0 | Z68: =H$6*②供給入力!E60 -> 0 | AA68: =I$6*②供給入力!F60 -> 0 | AB68: =J$6*②供給入力!C60 -> 0 | AC68: =K$6*②供給入力!D60 -> 0 | AD68: =L$6*②供給入力!E60 -> 0 | AE68: =M$6*②供給入力!F60 -> 0 | AF68: =N$6*②供給入力!C60 -> 0 | AG68: =O$6*②供給入力!D60 -> 0 | AH68: =P$6*②供給入力!E60 -> 0 | AI68: =Q$6*②供給入力!F60 -> 0 | AK68: アメリカ | AL68: =B$9*②供給入力!C60 -> 0 | AM68: =C$9*②供給入力!D60 -> 0 | AN68: =D$9*②供給入力!E60 -> 0 | AO68: =E$9*②供給入力!F60 -> 0 | AP68: =F$9*②供給入力!C60 -> 0 | AQ68: =G$9*②供給入力!D60 -> 0 | AR68: =H$9*②供給入力!E60 -> 0 | AS68: =I$9*②供給入力!F60 -> 0 | AT68: =J$9*②供給入力!C60 -> 0 | AU68: =K$9*②供給入力!D60 -> 0 | AV68: =L$9*②供給入力!E60 -> 0 | AW68: =M$9*②供給入力!F60 -> 0 | AX68: =N$9*②供給入力!C60 -> 0 | AY68: =O$9*②供給入力!D60 -> 0 | AZ68: =P$9*②供給入力!E60 -> 0 | BA68: =Q$9*②供給入力!F60 -> 0
S69: カナダ | T69: =B$6*②供給入力!C61 -> 0 | U69: =C$6*②供給入力!D61 -> 0 | V69: =D$6*②供給入力!E61 -> 0 | W69: =E$6*②供給入力!F61 -> 0 | X69: =F$6*②供給入力!C61 -> 0 | Y69: =G$6*②供給入力!D61 -> 0 | Z69: =H$6*②供給入力!E61 -> 0 | AA69: =I$6*②供給入力!F61 -> 0 | AB69: =J$6*②供給入力!C61 -> 0 | AC69: =K$6*②供給入力!D61 -> 0 | AD69: =L$6*②供給入力!E61 -> 0 | AE69: =M$6*②供給入力!F61 -> 0 | AF69: =N$6*②供給入力!C61 -> 0 | AG69: =O$6*②供給入力!D61 -> 0 | AH69: =P$6*②供給入力!E61 -> 0 | AI69: =Q$6*②供給入力!F61 -> 0 | AK69: カナダ | AL69: =B$9*②供給入力!C61 -> 0 | AM69: =C$9*②供給入力!D61 -> 0 | AN69: =D$9*②供給入力!E61 -> 0 | AO69: =E$9*②供給入力!F61 -> 0 | AP69: =F$9*②供給入力!C61 -> 0 | AQ69: =G$9*②供給入力!D61 -> 0 | AR69: =H$9*②供給入力!E61 -> 0 | AS69: =I$9*②供給入力!F61 -> 0 | AT69: =J$9*②供給入力!C61 -> 0 | AU69: =K$9*②供給入力!D61 -> 0 | AV69: =L$9*②供給入力!E61 -> 0 | AW69: =M$9*②供給入力!F61 -> 0 | AX69: =N$9*②供給入力!C61 -> 0 | AY69: =O$9*②供給入力!D61 -> 0 | AZ69: =P$9*②供給入力!E61 -> 0 | BA69: =Q$9*②供給入力!F61 -> 0
S70: チリ | T70: =B$6*②供給入力!C62 -> 0 | U70: =C$6*②供給入力!D62 -> 0 | V70: =D$6*②供給入力!E62 -> 0 | W70: =E$6*②供給入力!F62 -> 0 | X70: =F$6*②供給入力!C62 -> 0 | Y70: =G$6*②供給入力!D62 -> 0 | Z70: =H$6*②供給入力!E62 -> 0 | AA70: =I$6*②供給入力!F62 -> 0 | AB70: =J$6*②供給入力!C62 -> 0 | AC70: =K$6*②供給入力!D62 -> 0 | AD70: =L$6*②供給入力!E62 -> 0 | AE70: =M$6*②供給入力!F62 -> 0 | AF70: =N$6*②供給入力!C62 -> 0 | AG70: =O$6*②供給入力!D62 -> 0 | AH70: =P$6*②供給入力!E62 -> 0 | AI70: =Q$6*②供給入力!F62 -> 0 | AK70: チリ | AL70: =B$9*②供給入力!C62 -> 0 | AM70: =C$9*②供給入力!D62 -> 0 | AN70: =D$9*②供給入力!E62 -> 0 | AO70: =E$9*②供給入力!F62 -> 0 | AP70: =F$9*②供給入力!C62 -> 0 | AQ70: =G$9*②供給入力!D62 -> 0 | AR70: =H$9*②供給入力!E62 -> 0 | AS70: =I$9*②供給入力!F62 -> 0 | AT70: =J$9*②供給入力!C62 -> 0 | AU70: =K$9*②供給入力!D62 -> 0 | AV70: =L$9*②供給入力!E62 -> 0 | AW70: =M$9*②供給入力!F62 -> 0 | AX70: =N$9*②供給入力!C62 -> 0 | AY70: =O$9*②供給入力!D62 -> 0 | AZ70: =P$9*②供給入力!E62 -> 0 | BA70: =Q$9*②供給入力!F62 -> 0
S71: オマーン | T71: =B$6*②供給入力!C63 -> 0 | U71: =C$6*②供給入力!D63 -> 0 | V71: =D$6*②供給入力!E63 -> 0 | W71: =E$6*②供給入力!F63 -> 0 | X71: =F$6*②供給入力!C63 -> 0 | Y71: =G$6*②供給入力!D63 -> 0 | Z71: =H$6*②供給入力!E63 -> 0 | AA71: =I$6*②供給入力!F63 -> 0 | AB71: =J$6*②供給入力!C63 -> 0 | AC71: =K$6*②供給入力!D63 -> 0 | AD71: =L$6*②供給入力!E63 -> 0 | AE71: =M$6*②供給入力!F63 -> 0 | AF71: =N$6*②供給入力!C63 -> 0 | AG71: =O$6*②供給入力!D63 -> 0 | AH71: =P$6*②供給入力!E63 -> 0 | AI71: =Q$6*②供給入力!F63 -> 0 | AK71: オマーン | AL71: =B$9*②供給入力!C63 -> 0 | AM71: =C$9*②供給入力!D63 -> 0 | AN71: =D$9*②供給入力!E63 -> 0 | AO71: =E$9*②供給入力!F63 -> 0 | AP71: =F$9*②供給入力!C63 -> 0 | AQ71: =G$9*②供給入力!D63 -> 0 | AR71: =H$9*②供給入力!E63 -> 0 | AS71: =I$9*②供給入力!F63 -> 0 | AT71: =J$9*②供給入力!C63 -> 0 | AU71: =K$9*②供給入力!D63 -> 0 | AV71: =L$9*②供給入力!E63 -> 0 | AW71: =M$9*②供給入力!F63 -> 0 | AX71: =N$9*②供給入力!C63 -> 0 | AY71: =O$9*②供給入力!D63 -> 0 | AZ71: =P$9*②供給入力!E63 -> 0 | BA71: =Q$9*②供給入力!F63 -> 0
S72: ナミビア | T72: =B$6*②供給入力!C64 -> 0 | U72: =C$6*②供給入力!D64 -> 0 | V72: =D$6*②供給入力!E64 -> 0 | W72: =E$6*②供給入力!F64 -> 0 | X72: =F$6*②供給入力!C64 -> 0 | Y72: =G$6*②供給入力!D64 -> 0 | Z72: =H$6*②供給入力!E64 -> 0 | AA72: =I$6*②供給入力!F64 -> 0 | AB72: =J$6*②供給入力!C64 -> 0 | AC72: =K$6*②供給入力!D64 -> 0 | AD72: =L$6*②供給入力!E64 -> 0 | AE72: =M$6*②供給入力!F64 -> 0 | AF72: =N$6*②供給入力!C64 -> 0 | AG72: =O$6*②供給入力!D64 -> 0 | AH72: =P$6*②供給入力!E64 -> 0 | AI72: =Q$6*②供給入力!F64 -> 0 | AK72: ナミビア | AL72: =B$9*②供給入力!C64 -> 0 | AM72: =C$9*②供給入力!D64 -> 0 | AN72: =D$9*②供給入力!E64 -> 0 | AO72: =E$9*②供給入力!F64 -> 0 | AP72: =F$9*②供給入力!C64 -> 0 | AQ72: =G$9*②供給入力!D64 -> 0 | AR72: =H$9*②供給入力!E64 -> 0 | AS72: =I$9*②供給入力!F64 -> 0 | AT72: =J$9*②供給入力!C64 -> 0 | AU72: =K$9*②供給入力!D64 -> 0 | AV72: =L$9*②供給入力!E64 -> 0 | AW72: =M$9*②供給入力!F64 -> 0 | AX72: =N$9*②供給入力!C64 -> 0 | AY72: =O$9*②供給入力!D64 -> 0 | AZ72: =P$9*②供給入力!E64 -> 0 | BA72: =Q$9*②供給入力!F64 -> 0
S74: 供給量（シナリオ３） 単位：万トン／年 | AK74: 供給量（シナリオ３） 単位：万トン／年
S75: 国名 | T75: 水素（トン／年） | X75: アンモニアクラッキング（万トン／年） | AB75: メタネーション（万トン／年） | AF75: アンモニア（トン／年） | AK75: 国名 | AL75: 水素（トン／年） | AP75: アンモニアクラッキング（万トン／年） | AT75: メタネーション（万トン／年） | AX75: アンモニア（トン／年）
T76: 実証期 | U76: 2030年 | V76: 移行期 | W76: 2050年 | X76: 実証期 | Y76: 2030年 | Z76: 移行期 | AA76: 2050年 | AB76: 実証期 | AC76: 2030年 | AD76: 移行期 | AE76: 2050年 | AF76: 実証期 | AG76: 2030年 | AH76: 移行期 | AI76: 2050年 | AL76: 実証期 | AM76: 2030年 | AN76: 移行期 | AO76: 2050年 | AP76: 実証期 | AQ76: 2030年 | AR76: 移行期 | AS76: 2050年 | AT76: 実証期 | AU76: 2030年 | AV76: 移行期 | AW76: 2050年 | AX76: 実証期 | AY76: 2030年 | AZ76: 移行期 | BA76: 2050年
S77: オーストラリア | T77: =B$6*②供給入力!C69 -> 0.8698854006 | U77: =C$6*②供給入力!D69 -> 1.856913107 | V77: =D$6*②供給入力!E69 -> 12.97866176 | W77: =E$6*②供給入力!F69 -> 74.67813016 | X77: =F$6*②供給入力!C69 -> 1.060835854 | Y77: =G$6*②供給入力!D69 -> 2.264528179 | Z77: =H$6*②供給入力!E69 -> 15.82763629 | AA77: =I$6*②供給入力!F69 -> 91.07089043 | AB77: =J$6*②供給入力!C69 -> 1.279243236 | AC77: =K$6*②供給入力!D69 -> 2.730754569 | AD77: =L$6*②供給入力!E69 -> 19.08626729 | AE77: =M$6*②供給入力!F69 -> 109.8207796 | AF77: =N$6*②供給入力!C69 -> 0 | AG77: =O$6*②供給入力!D69 -> 0.7194748055 | AH77: =P$6*②供給入力!E69 -> 14.51739935 | AI77: =Q$6*②供給入力!F69 -> 29.08179491 | AK77: オーストラリア | AL77: =B$9*②供給入力!C69 -> 0.01140966892 | AM77: =C$9*②供給入力!D69 -> 0.0551162314 | AN77: =D$9*②供給入力!E69 -> 1.404302993 | AO77: =E$9*②供給入力!F69 -> 2.657180352 | AP77: =F$9*②供給入力!C69 -> 0.01391423039 | AQ77: =G$9*②供給入力!D69 -> 0.06721491635 | AR77: =H$9*②供給入力!E69 -> 1.712564626 | AS77: =I$9*②供給入力!F69 -> 3.240463844 | AT77: =J$9*②供給入力!C69 -> 0.01677892489 | AU77: =K$9*②供給入力!D69 -> 0.08105328148 | AV77: =L$9*②供給入力!E69 -> 2.06515146 | AW77: =M$9*②供給入力!F69 -> 3.907618164 | AX77: =N$9*②供給入力!C69 -> 11.97842448 | AY77: =O$9*②供給入力!D69 -> 48.20958909 | AZ77: =P$9*②供給入力!E69 -> 99.54537264 | BA77: =Q$9*②供給入力!F69 -> 259.0016661
S78: アメリカ | T78: =B$6*②供給入力!C70 -> 0 | U78: =C$6*②供給入力!D70 -> 0 | V78: =D$6*②供給入力!E70 -> 1.854094536 | W78: =E$6*②供給入力!F70 -> 6.400982585 | X78: =F$6*②供給入力!C70 -> 0 | Y78: =G$6*②供給入力!D70 -> 0 | Z78: =H$6*②供給入力!E70 -> 2.261090898 | AA78: =I$6*②供給入力!F70 -> 7.806076323 | AB78: =J$6*②供給入力!C70 -> 0 | AC78: =K$6*②供給入力!D70 -> 0 | AD78: =L$6*②供給入力!E70 -> 2.726609612 | AE78: =M$6*②供給入力!F70 -> 9.413209683 | AF78: =N$6*②供給入力!C70 -> 0 | AG78: =O$6*②供給入力!D70 -> 0 | AH78: =P$6*②供給入力!E70 -> 2.073914193 | AI78: =Q$6*②供給入力!F70 -> 2.492725278 | AK78: アメリカ | AL78: =B$9*②供給入力!C70 -> 0 | AM78: =C$9*②供給入力!D70 -> 0 | AN78: =D$9*②供給入力!E70 -> 0.2006147133 | AO78: =E$9*②供給入力!F70 -> 0.2277583159 | AP78: =F$9*②供給入力!C70 -> 0 | AQ78: =G$9*②供給入力!D70 -> 0 | AR78: =H$9*②供給入力!E70 -> 0.2446520894 | AS78: =I$9*②供給入力!F70 -> 0.2777540437 | AT78: =J$9*②供給入力!C70 -> 0 | AU78: =K$9*②供給入力!D70 -> 0 | AV78: =L$9*②供給入力!E70 -> 0.2950216372 | AW78: =M$9*②供給入力!F70 -> 0.3349386998 | AX78: =N$9*②供給入力!C70 -> 0 | AY78: =O$9*②供給入力!D70 -> 0 | AZ78: =P$9*②供給入力!E70 -> 14.22076752 | BA78: =Q$9*②供給入力!F70 -> 22.20014281
S79: カナダ | T79: =B$6*②供給入力!C71 -> 0 | U79: =C$6*②供給入力!D71 -> 0.3979099514 | V79: =D$6*②供給入力!E71 -> 1.854094536 | W79: =E$6*②供給入力!F71 -> 6.400982585 | X79: =F$6*②供給入力!C71 -> 0 | Y79: =G$6*②供給入力!D71 -> 0.4852560383 | Z79: =H$6*②供給入力!E71 -> 2.261090898 | AA79: =I$6*②供給入力!F71 -> 7.806076323 | AB79: =J$6*②供給入力!C71 -> 0 | AC79: =K$6*②供給入力!D71 -> 0.5851616933 | AD79: =L$6*②供給入力!E71 -> 2.726609612 | AE79: =M$6*②供給入力!F71 -> 9.413209683 | AF79: =N$6*②供給入力!C71 -> 0 | AG79: =O$6*②供給入力!D71 -> 0.1541731726 | AH79: =P$6*②供給入力!E71 -> 2.073914193 | AI79: =Q$6*②供給入力!F71 -> 2.492725278 | AK79: カナダ | AL79: =B$9*②供給入力!C71 -> 0 | AM79: =C$9*②供給入力!D71 -> 0.01181062102 | AN79: =D$9*②供給入力!E71 -> 0.2006147133 | AO79: =E$9*②供給入力!F71 -> 0.2277583159 | AP79: =F$9*②供給入力!C71 -> 0 | AQ79: =G$9*②供給入力!D71 -> 0.01440319636 | AR79: =H$9*②供給入力!E71 -> 0.2446520894 | AS79: =I$9*②供給入力!F71 -> 0.2777540437 | AT79: =J$9*②供給入力!C71 -> 0 | AU79: =K$9*②供給入力!D71 -> 0.01736856032 | AV79: =L$9*②供給入力!E71 -> 0.2950216372 | AW79: =M$9*②供給入力!F71 -> 0.3349386998 | AX79: =N$9*②供給入力!C71 -> 0 | AY79: =O$9*②供給入力!D71 -> 10.33062623 | AZ79: =P$9*②供給入力!E71 -> 14.22076752 | BA79: =Q$9*②供給入力!F71 -> 22.20014281
S80: チリ | T80: =B$6*②供給入力!C72 -> 0.3728080288 | U80: =C$6*②供給入力!D72 -> 0.3979099514 | V80: =D$6*②供給入力!E72 -> 1.854094536 | W80: =E$6*②供給入力!F72 -> 6.400982585 | X80: =F$6*②供給入力!C72 -> 0.4546439376 | Y80: =G$6*②供給入力!D72 -> 0.4852560383 | Z80: =H$6*②供給入力!E72 -> 2.261090898 | AA80: =I$6*②供給入力!F72 -> 7.806076323 | AB80: =J$6*②供給入力!C72 -> 0.5482471012 | AC80: =K$6*②供給入力!D72 -> 0.5851616933 | AD80: =L$6*②供給入力!E72 -> 2.726609612 | AE80: =M$6*②供給入力!F72 -> 9.413209683 | AF80: =N$6*②供給入力!C72 -> 0 | AG80: =O$6*②供給入力!D72 -> 0.1541731726 | AH80: =P$6*②供給入力!E72 -> 2.073914193 | AI80: =Q$6*②供給入力!F72 -> 2.492725278 | AK80: チリ | AL80: =B$9*②供給入力!C72 -> 0.00488985811 | AM80: =C$9*②供給入力!D72 -> 0.01181062102 | AN80: =D$9*②供給入力!E72 -> 0.2006147133 | AO80: =E$9*②供給入力!F72 -> 0.2277583159 | AP80: =F$9*②供給入力!C72 -> 0.005963241598 | AQ80: =G$9*②供給入力!D72 -> 0.01440319636 | AR80: =H$9*②供給入力!E72 -> 0.2446520894 | AS80: =I$9*②供給入力!F72 -> 0.2777540437 | AT80: =J$9*②供給入力!C72 -> 0.007190967809 | AU80: =K$9*②供給入力!D72 -> 0.01736856032 | AV80: =L$9*②供給入力!E72 -> 0.2950216372 | AW80: =M$9*②供給入力!F72 -> 0.3349386998 | AX80: =N$9*②供給入力!C72 -> 5.133610491 | AY80: =O$9*②供給入力!D72 -> 10.33062623 | AZ80: =P$9*②供給入力!E72 -> 14.22076752 | BA80: =Q$9*②供給入力!F72 -> 22.20014281
S81: オマーン | T81: =B$6*②供給入力!C73 -> 0 | U81: =C$6*②供給入力!D73 -> 0 | V81: =D$6*②供給入力!E73 -> 0 | W81: =E$6*②供給入力!F73 -> 6.400982585 | X81: =F$6*②供給入力!C73 -> 0 | Y81: =G$6*②供給入力!D73 -> 0 | Z81: =H$6*②供給入力!E73 -> 0 | AA81: =I$6*②供給入力!F73 -> 7.806076323 | AB81: =J$6*②供給入力!C73 -> 0 | AC81: =K$6*②供給入力!D73 -> 0 | AD81: =L$6*②供給入力!E73 -> 0 | AE81: =M$6*②供給入力!F73 -> 9.413209683 | AF81: =N$6*②供給入力!C73 -> 0 | AG81: =O$6*②供給入力!D73 -> 0 | AH81: =P$6*②供給入力!E73 -> 0 | AI81: =Q$6*②供給入力!F73 -> 2.492725278 | AK81: オマーン | AL81: =B$9*②供給入力!C73 -> 0 | AM81: =C$9*②供給入力!D73 -> 0 | AN81: =D$9*②供給入力!E73 -> 0 | AO81: =E$9*②供給入力!F73 -> 0.2277583159 | AP81: =F$9*②供給入力!C73 -> 0 | AQ81: =G$9*②供給入力!D73 -> 0 | AR81: =H$9*②供給入力!E73 -> 0 | AS81: =I$9*②供給入力!F73 -> 0.2777540437 | AT81: =J$9*②供給入力!C73 -> 0 | AU81: =K$9*②供給入力!D73 -> 0 | AV81: =L$9*②供給入力!E73 -> 0 | AW81: =M$9*②供給入力!F73 -> 0.3349386998 | AX81: =N$9*②供給入力!C73 -> 0 | AY81: =O$9*②供給入力!D73 -> 0 | AZ81: =P$9*②供給入力!E73 -> 0 | BA81: =Q$9*②供給入力!F73 -> 22.20014281
S82: ナミビア | T82: =B$6*②供給入力!C74 -> 0 | U82: =C$6*②供給入力!D74 -> 0 | V82: =D$6*②供給入力!E74 -> 0 | W82: =E$6*②供給入力!F74 -> 6.400982585 | X82: =F$6*②供給入力!C74 -> 0 | Y82: =G$6*②供給入力!D74 -> 0 | Z82: =H$6*②供給入力!E74 -> 0 | AA82: =I$6*②供給入力!F74 -> 7.806076323 | AB82: =J$6*②供給入力!C74 -> 0 | AC82: =K$6*②供給入力!D74 -> 0 | AD82: =L$6*②供給入力!E74 -> 0 | AE82: =M$6*②供給入力!F74 -> 9.413209683 | AF82: =N$6*②供給入力!C74 -> 0 | AG82: =O$6*②供給入力!D74 -> 0 | AH82: =P$6*②供給入力!E74 -> 0 | AI82: =Q$6*②供給入力!F74 -> 2.492725278 | AK82: ナミビア | AL82: =B$9*②供給入力!C74 -> 0 | AM82: =C$9*②供給入力!D74 -> 0 | AN82: =D$9*②供給入力!E74 -> 0 | AO82: =E$9*②供給入力!F74 -> 0.2277583159 | AP82: =F$9*②供給入力!C74 -> 0 | AQ82: =G$9*②供給入力!D74 -> 0 | AR82: =H$9*②供給入力!E74 -> 0 | AS82: =I$9*②供給入力!F74 -> 0.2777540437 | AT82: =J$9*②供給入力!C74 -> 0 | AU82: =K$9*②供給入力!D74 -> 0 | AV82: =L$9*②供給入力!E74 -> 0 | AW82: =M$9*②供給入力!F74 -> 0.3349386998 | AX82: =N$9*②供給入力!C74 -> 0 | AY82: =O$9*②供給入力!D74 -> 0 | AZ82: =P$9*②供給入力!E74 -> 0 | BA82: =Q$9*②供給入力!F74 -> 22.20014281
S84: 供給量（シナリオ４） 単位：万トン／年 | AK84: 供給量（シナリオ４） 単位：万トン／年
S85: 国名 | T85: 水素（トン／年） | X85: アンモニアクラッキング（万トン／年） | AB85: メタネーション（万トン／年） | AF85: アンモニア（トン／年） | AK85: 国名 | AL85: 水素（トン／年） | AP85: アンモニアクラッキング（万トン／年） | AT85: メタネーション（万トン／年） | AX85: アンモニア（トン／年）
T86: 実証期 | U86: 2030年 | V86: 移行期 | W86: 2050年 | X86: 実証期 | Y86: 2030年 | Z86: 移行期 | AA86: 2050年 | AB86: 実証期 | AC86: 2030年 | AD86: 移行期 | AE86: 2050年 | AF86: 実証期 | AG86: 2030年 | AH86: 移行期 | AI86: 2050年 | AL86: 実証期 | AM86: 2030年 | AN86: 移行期 | AO86: 2050年 | AP86: 実証期 | AQ86: 2030年 | AR86: 移行期 | AS86: 2050年 | AT86: 実証期 | AU86: 2030年 | AV86: 移行期 | AW86: 2050年 | AX86: 実証期 | AY86: 2030年 | AZ86: 移行期 | BA86: 2050年
S87: オーストラリア | T87: =B$6*②供給入力!C79 -> 0.9184146731 | U87: =C$6*②供給入力!D79 -> 1.230633125 | V87: =D$6*②供給入力!E79 -> 6.527573711 | W87: =E$6*②供給入力!F79 -> 28.32998421 | X87: =F$6*②供給入力!C79 -> 1.120017894 | Y87: =G$6*②供給入力!D79 -> 1.500772104 | Z87: =H$6*②供給入力!E79 -> 7.960455745 | AA87: =I$6*②供給入力!F79 -> 34.54876123 | AB87: =J$6*②供給入力!C79 -> 1.350609813 | AC87: =K$6*②供給入力!D79 -> 1.809754596 | AD87: =L$6*②供給入力!E79 -> 9.599373105 | AE87: =M$6*②供給入力!F79 -> 41.66174148 | AF87: =N$6*②供給入力!C79 -> 0 | AG87: =O$6*②供給入力!D79 -> 0.4768179649 | AH87: =P$6*②供給入力!E79 -> 7.301476544 | AI87: =Q$6*②供給入力!F79 -> 11.03250428 | AK87: オーストラリア | AL87: =B$9*②供給入力!C79 -> 0.01204619292 | AM87: =C$9*②供給入力!D79 -> 0.03652721276 | AN87: =D$9*②供給入力!E79 -> 0.7062894059 | AO87: =E$9*②供給入力!F79 -> 1.008031096 | AP87: =F$9*②供給入力!C79 -> 0.01469047917 | AQ87: =G$9*②供給入力!D79 -> 0.04454538141 | AR87: =H$9*②供給入力!E79 -> 0.8613285437 | AS87: =I$9*②供給入力!F79 -> 1.229306215 | AT87: =J$9*②供給入力!C79 -> 0.01771498959 | AU87: =K$9*②供給入力!D79 -> 0.05371648935 | AV87: =L$9*②供給入力!E79 -> 1.038660891 | AW87: =M$9*②供給入力!F79 -> 1.482398671 | AX87: =N$9*②供給入力!C79 -> 12.64667828 | AY87: =O$9*②供給入力!D79 -> 31.9499696 | AZ87: =P$9*②供給入力!E79 -> 50.06600602 | BA87: =Q$9*②供給入力!F79 -> 98.25517988
S88: アメリカ | T88: =B$6*②供給入力!C80 -> 0 | U88: =C$6*②供給入力!D80 -> 0 | V88: =D$6*②供給入力!E80 -> 4.470212262 | W88: =E$6*②供給入力!F80 -> 19.40093646 | X88: =F$6*②供給入力!C80 -> 0 | Y88: =G$6*②供給入力!D80 -> 0 | Z88: =H$6*②供給入力!E80 -> 5.451478368 | AA88: =I$6*②供給入力!F80 -> 23.65967861 | AB88: =J$6*②供給入力!C80 -> 0 | AC88: =K$6*②供給入力!D80 -> 0 | AD88: =L$6*②供給入力!E80 -> 6.573841562 | AE88: =M$6*②供給入力!F80 -> 28.53078891 | AF88: =N$6*②供給入力!C80 -> 0 | AG88: =O$6*②供給入力!D80 -> 0 | AH88: =P$6*②供給入力!E80 -> 5.000196309 | AI88: =Q$6*②供給入力!F80 -> 7.555278284 | AK88: アメリカ | AL88: =B$9*②供給入力!C80 -> 0 | AM88: =C$9*②供給入力!D80 -> 0 | AN88: =D$9*②供給入力!E80 -> 0.4836810279 | AO88: =E$9*②供給入力!F80 -> 0.6903197369 | AP88: =F$9*②供給入力!C80 -> 0 | AQ88: =G$9*②供給入力!D80 -> 0 | AR88: =H$9*②供給入力!E80 -> 0.5898549121 | AS88: =I$9*②供給入力!F80 -> 0.8418533377 | AT88: =J$9*②供給入力!C80 -> 0 | AU88: =K$9*②供給入力!D80 -> 0 | AV88: =L$9*②供給入力!E80 -> 0.7112956293 | AW88: =M$9*②供給入力!F80 -> 1.015176084 | AX88: =N$9*②供給入力!C80 -> 0 | AY88: =O$9*②供給入力!D80 -> 0 | AZ88: =P$9*②供給入力!E80 -> 34.28619636 | BA88: =Q$9*②供給入力!F80 -> 67.28710074
S89: カナダ | T89: =B$6*②供給入力!C81 -> 0 | U89: =C$6*②供給入力!D81 -> 0.9875813695 | V89: =D$6*②供給入力!E81 -> 5.238368813 | W89: =E$6*②供給入力!F81 -> 22.73477288 | X89: =F$6*②供給入力!C81 -> 0 | Y89: =G$6*②供給入力!D81 -> 1.204367524 | Z89: =H$6*②供給入力!E81 -> 6.38825465 | AA89: =I$6*②供給入力!F81 -> 27.72533277 | AB89: =J$6*②供給入力!C81 -> 0 | AC89: =K$6*②供給入力!D81 -> 1.452325543 | AD89: =L$6*②供給入力!E81 -> 7.703483549 | AE89: =M$6*②供給入力!F81 -> 33.43348952 | AF89: =N$6*②供給入力!C81 -> 0 | AG89: =O$6*②供給入力!D81 -> 0.3826457529 | AH89: =P$6*②供給入力!E81 -> 5.859424759 | AI89: =Q$6*②供給入力!F81 -> 8.853569321 | AK89: カナダ | AL89: =B$9*②供給入力!C81 -> 0 | AM89: =C$9*②供給入力!D81 -> 0.02931303737 | AN89: =D$9*②供給入力!E81 -> 0.5667962647 | AO89: =E$9*②供給入力!F81 -> 0.808943551 | AP89: =F$9*②供給入力!C81 -> 0 | AQ89: =G$9*②供給入力!D81 -> 0.03574760655 | AR89: =H$9*②供給入力!E81 -> 0.6912149569 | AS89: =I$9*②供給入力!F81 -> 0.9865165256 | AT89: =J$9*②供給入力!C81 -> 0 | AU89: =K$9*②供給入力!D81 -> 0.0431074079 | AV89: =L$9*②供給入力!E81 -> 0.8335239186 | AW89: =M$9*②供給入力!F81 -> 1.189622869 | AX89: =N$9*②供給入力!C81 -> 0 | AY89: =O$9*②供給入力!D81 -> 25.63980611 | AZ89: =P$9*②供給入力!E81 -> 40.17790011 | BA89: =Q$9*②供給入力!F81 -> 78.84964503
S90: チリ | T90: =B$6*②供給入力!C82 -> 0.3242787564 | U90: =C$6*②供給入力!D82 -> 0.4345185145 | V90: =D$6*②供給入力!E82 -> 2.304790578 | W90: =E$6*②供給入力!F82 -> 10.00290208 | X90: =F$6*②供給入力!C82 -> 0.395461898 | Y90: =G$6*②供給入力!D82 -> 0.5299006274 | Z90: =H$6*②供給入力!E82 -> 2.810720217 | AA90: =I$6*②供給入力!F82 -> 12.19866108 | AB90: =J$6*②供給入力!C82 -> 0.4768805241 | AC90: =K$6*②供給入力!D82 -> 0.6389978154 | AD90: =L$6*②供給入力!E82 -> 3.389397908 | AE90: =M$6*②供給入力!F82 -> 14.71015012 | AF90: =N$6*②供給入力!C82 -> 0 | AG90: =O$6*②供給入力!D82 -> 0.1683574329 | AH90: =P$6*②供給入力!E82 -> 2.578044322 | AI90: =Q$6*②供給入力!F82 -> 3.895415515 | AK90: チリ | AL90: =B$9*②供給入力!C82 -> 0.004253334113 | AM90: =C$9*②供給入力!D82 -> 0.01289722331 | AN90: =D$9*②供給入力!E82 -> 0.2493804344 | AO90: =E$9*②供給入力!F82 -> 0.3559210015 | AP90: =F$9*②供給入力!C82 -> 0.005186992821 | AQ90: =G$9*②供給入力!D82 -> 0.0157283211 | AR90: =H$9*②供給入力!E82 -> 0.304122481 | AS90: =I$9*②供給入力!F82 -> 0.4340500018 | AT90: =J$9*②供給入力!C82 -> 0.006254903107 | AU90: =K$9*②供給入力!D82 -> 0.01896650486 | AV90: =L$9*②供給入力!E82 -> 0.366735933 | AW90: =M$9*②供給入力!F82 -> 0.5234132375 | AX90: =N$9*②供給入力!C82 -> 4.46535669 | AY90: =O$9*②供給入力!D82 -> 11.28106585 | AZ90: =P$9*②供給入力!E82 -> 17.67757271 | BA90: =Q$9*②供給入力!F82 -> 34.69246351
S91: オマーン | T91: =B$6*②供給入力!C83 -> 0 | U91: =C$6*②供給入力!D83 -> 0 | V91: =D$6*②供給入力!E83 -> 0 | W91: =E$6*②供給入力!F83 -> 15.71723461 | X91: =F$6*②供給入力!C83 -> 0 | Y91: =G$6*②供給入力!D83 -> 0 | Z91: =H$6*②供給入力!E83 -> 0 | AA91: =I$6*②供給入力!F83 -> 19.16735928 | AB91: =J$6*②供給入力!C83 -> 0 | AC91: =K$6*②供給入力!D83 -> 0 | AD91: =L$6*②供給入力!E83 -> 0 | AE91: =M$6*②供給入力!F83 -> 23.11358031 | AF91: =N$6*②供給入力!C83 -> 0 | AG91: =O$6*②供給入力!D83 -> 0 | AH91: =P$6*②供給入力!E83 -> 0 | AI91: =Q$6*②供給入力!F83 -> 6.120739666 | AK91: オマーン | AL91: =B$9*②供給入力!C83 -> 0 | AM91: =C$9*②供給入力!D83 -> 0 | AN91: =D$9*②供給入力!E83 -> 0 | AO91: =E$9*②供給入力!F83 -> 0.5592470902 | AP91: =F$9*②供給入力!C83 -> 0 | AQ91: =G$9*②供給入力!D83 -> 0 | AR91: =H$9*②供給入力!E83 -> 0 | AS91: =I$9*②供給入力!F83 -> 0.6820086466 | AT91: =J$9*②供給入力!C83 -> 0 | AU91: =K$9*②供給入力!D83 -> 0 | AV91: =L$9*②供給入力!E83 -> 0 | AW91: =M$9*②供給入力!F83 -> 0.8224221914 | AX91: =N$9*②供給入力!C83 -> 0 | AY91: =O$9*②供給入力!D83 -> 0 | AZ91: =P$9*②供給入力!E83 -> 0 | BA91: =Q$9*②供給入力!F83 -> 54.51113924
S92: ナミビア | T92: =B$6*②供給入力!C84 -> 0 | U92: =C$6*②供給入力!D84 -> 0 | V92: =D$6*②供給入力!E84 -> 0 | W92: =E$6*②供給入力!F84 -> 10.49721285 | X92: =F$6*②供給入力!C84 -> 0 | Y92: =G$6*②供給入力!D84 -> 0 | Z92: =H$6*②供給入力!E84 -> 0 | AA92: =I$6*②供給入力!F84 -> 12.80147908 | AB92: =J$6*②供給入力!C84 -> 0 | AC92: =K$6*②供給入力!D84 -> 0 | AD92: =L$6*②供給入力!E84 -> 0 | AE92: =M$6*②供給入力!F84 -> 15.43707772 | AF92: =N$6*②供給入力!C84 -> 0 | AG92: =O$6*②供給入力!D84 -> 0 | AH92: =P$6*②供給入力!E84 -> 0 | AI92: =Q$6*②供給入力!F84 -> 4.087914234 | AK92: ナミビア | AL92: =B$9*②供給入力!C84 -> 0 | AM92: =C$9*②供給入力!D84 -> 0 | AN92: =D$9*②供給入力!E84 -> 0 | AO92: =E$9*②供給入力!F84 -> 0.3735094555 | AP92: =F$9*②供給入力!C84 -> 0 | AQ92: =G$9*②供給入力!D84 -> 0 | AR92: =H$9*②供給入力!E84 -> 0 | AS92: =I$9*②供給入力!F84 -> 0.455499336 | AT92: =J$9*②供給入力!C84 -> 0 | AU92: =K$9*②供給入力!D84 -> 0 | AV92: =L$9*②供給入力!E84 -> 0 | AW92: =M$9*②供給入力!F84 -> 0.549278611 | AX92: =N$9*②供給入力!C84 -> 0 | AY92: =O$9*②供給入力!D84 -> 0 | AZ92: =P$9*②供給入力!E84 -> 0 | BA92: =Q$9*②供給入力!F84 -> 36.40685181
S94: 伏木富山港 | AK94: 敦賀港
S95: 供給量（シナリオ１） 単位：万トン／年 | AK95: 供給量（シナリオ１） 単位：万トン／年
S96: 国名 | T96: 水素（トン／年） | X96: アンモニアクラッキング（万トン／年） | AB96: メタネーション（万トン／年） | AF96: アンモニア（トン／年） | AK96: 国名 | AL96: 水素（トン／年） | AP96: アンモニアクラッキング（万トン／年） | AT96: メタネーション（万トン／年） | AX96: アンモニア（トン／年）
T97: 実証期 | U97: 2030年 | V97: 移行期 | W97: 2050年 | X97: 実証期 | Y97: 2030年 | Z97: 移行期 | AA97: 2050年 | AB97: 実証期 | AC97: 2030年 | AD97: 移行期 | AE97: 2050年 | AF97: 実証期 | AG97: 2030年 | AH97: 移行期 | AI97: 2050年 | AL97: 実証期 | AM97: 2030年 | AN97: 移行期 | AO97: 2050年 | AP97: 実証期 | AQ97: 2030年 | AR97: 移行期 | AS97: 2050年 | AT97: 実証期 | AU97: 2030年 | AV97: 移行期 | AW97: 2050年 | AX97: 実証期 | AY97: 2030年 | AZ97: 移行期 | BA97: 2050年
S98: オーストラリア | T98: =B$7*②供給入力!C90 -> 0.1476877572 | U98: =C$7*②供給入力!D90 -> 0.2563386426 | V98: =D$7*②供給入力!E90 -> 1.8379336 | W98: =E$7*②供給入力!F90 -> 5.208448299 | X98: =F$7*②供給入力!C90 -> 0.180107021 | Y98: =G$7*②供給入力!D90 -> 0.3126081007 | Z98: =H$7*②供給入力!E90 -> 2.241382439 | AA98: =I$7*②供給入力!F90 -> 6.351766218 | AB98: =J$7*②供給入力!C90 -> 0.2171878783 | AC98: =K$7*②供給入力!D90 -> 0.3769685921 | AD98: =L$7*②供給入力!E90 -> 2.70284353 | AE98: =M$7*②供給入力!F90 -> 7.659482792 | AF98: =N$7*②供給入力!C90 -> 4.194153892 | AG98: =O$7*②供給入力!D90 -> 11.54968048 | AH98: =P$7*②供給入力!E90 -> 21.16750386 | AI98: =Q$7*②供給入力!F90 -> 35.22030872 | AK98: オーストラリア | AL98: =B$10*②供給入力!C90 -> 0.0008723140496 | AM98: =C$10*②供給入力!D90 -> 0.078421034 | AN98: =D$10*②供給入力!E90 -> 0.6906222018 | AO98: =E$10*②供給入力!F90 -> 0.8537696155 | AP98: =F$10*②供給入力!C90 -> 0.001063797621 | AQ98: =G$10*②供給入力!D90 -> 0.09563540731 | AR98: =H$10*②供給入力!E90 -> 0.8422221973 | AS98: =I$10*②供給入力!F90 -> 1.041182458 | AT98: =J$10*②供給入力!C90 -> 0.001282814779 | AU98: =K$10*②供給入力!D90 -> 0.11532505 | AV98: =L$10*②供給入力!E90 -> 1.015620885 | AW98: =M$10*②供給入力!F90 -> 1.255543552 | AX98: =N$10*②供給入力!C90 -> 8.814949746 | AY98: =O$10*②供給入力!D90 -> 23.99966247 | AZ98: =P$10*②供給入力!E90 -> 37.18035434 | BA98: =Q$10*②供給入力!F90 -> 63.72320993
S99: アメリカ | T99: =B$7*②供給入力!C91 -> 0 | U99: =C$7*②供給入力!D91 -> 0 | V99: =D$7*②供給入力!E91 -> 1.8379336 | W99: =E$7*②供給入力!F91 -> 5.208448299 | X99: =F$7*②供給入力!C91 -> 0 | Y99: =G$7*②供給入力!D91 -> 0 | Z99: =H$7*②供給入力!E91 -> 2.241382439 | AA99: =I$7*②供給入力!F91 -> 6.351766218 | AB99: =J$7*②供給入力!C91 -> 0 | AC99: =K$7*②供給入力!D91 -> 0 | AD99: =L$7*②供給入力!E91 -> 2.70284353 | AE99: =M$7*②供給入力!F91 -> 7.659482792 | AF99: =N$7*②供給入力!C91 -> 0 | AG99: =O$7*②供給入力!D91 -> 0 | AH99: =P$7*②供給入力!E91 -> 21.16750386 | AI99: =Q$7*②供給入力!F91 -> 35.22030872 | AK99: アメリカ | AL99: =B$10*②供給入力!C91 -> 0 | AM99: =C$10*②供給入力!D91 -> 0 | AN99: =D$10*②供給入力!E91 -> 0.6906222018 | AO99: =E$10*②供給入力!F91 -> 0.8537696155 | AP99: =F$10*②供給入力!C91 -> 0 | AQ99: =G$10*②供給入力!D91 -> 0 | AR99: =H$10*②供給入力!E91 -> 0.8422221973 | AS99: =I$10*②供給入力!F91 -> 1.041182458 | AT99: =J$10*②供給入力!C91 -> 0 | AU99: =K$10*②供給入力!D91 -> 0 | AV99: =L$10*②供給入力!E91 -> 1.015620885 | AW99: =M$10*②供給入力!F91 -> 1.255543552 | AX99: =N$10*②供給入力!C91 -> 0 | AY99: =O$10*②供給入力!D91 -> 0 | AZ99: =P$10*②供給入力!E91 -> 37.18035434 | BA99: =Q$10*②供給入力!F91 -> 63.72320993
S100: カナダ | T100: =B$7*②供給入力!C92 -> 0 | U100: =C$7*②供給入力!D92 -> 0.2563386426 | V100: =D$7*②供給入力!E92 -> 1.8379336 | W100: =E$7*②供給入力!F92 -> 5.208448299 | X100: =F$7*②供給入力!C92 -> 0 | Y100: =G$7*②供給入力!D92 -> 0.3126081007 | Z100: =H$7*②供給入力!E92 -> 2.241382439 | AA100: =I$7*②供給入力!F92 -> 6.351766218 | AB100: =J$7*②供給入力!C92 -> 0 | AC100: =K$7*②供給入力!D92 -> 0.3769685921 | AD100: =L$7*②供給入力!E92 -> 2.70284353 | AE100: =M$7*②供給入力!F92 -> 7.659482792 | AF100: =N$7*②供給入力!C92 -> 0 | AG100: =O$7*②供給入力!D92 -> 11.54968048 | AH100: =P$7*②供給入力!E92 -> 21.16750386 | AI100: =Q$7*②供給入力!F92 -> 35.22030872 | AK100: カナダ | AL100: =B$10*②供給入力!C92 -> 0 | AM100: =C$10*②供給入力!D92 -> 0.078421034 | AN100: =D$10*②供給入力!E92 -> 0.6906222018 | AO100: =E$10*②供給入力!F92 -> 0.8537696155 | AP100: =F$10*②供給入力!C92 -> 0 | AQ100: =G$10*②供給入力!D92 -> 0.09563540731 | AR100: =H$10*②供給入力!E92 -> 0.8422221973 | AS100: =I$10*②供給入力!F92 -> 1.041182458 | AT100: =J$10*②供給入力!C92 -> 0 | AU100: =K$10*②供給入力!D92 -> 0.11532505 | AV100: =L$10*②供給入力!E92 -> 1.015620885 | AW100: =M$10*②供給入力!F92 -> 1.255543552 | AX100: =N$10*②供給入力!C92 -> 0 | AY100: =O$10*②供給入力!D92 -> 23.99966247 | AZ100: =P$10*②供給入力!E92 -> 37.18035434 | BA100: =Q$10*②供給入力!F92 -> 63.72320993
S101: チリ | T101: =B$7*②供給入力!C93 -> 0.1476877572 | U101: =C$7*②供給入力!D93 -> 0.2563386426 | V101: =D$7*②供給入力!E93 -> 1.8379336 | W101: =E$7*②供給入力!F93 -> 5.208448299 | X101: =F$7*②供給入力!C93 -> 0.180107021 | Y101: =G$7*②供給入力!D93 -> 0.3126081007 | Z101: =H$7*②供給入力!E93 -> 2.241382439 | AA101: =I$7*②供給入力!F93 -> 6.351766218 | AB101: =J$7*②供給入力!C93 -> 0.2171878783 | AC101: =K$7*②供給入力!D93 -> 0.3769685921 | AD101: =L$7*②供給入力!E93 -> 2.70284353 | AE101: =M$7*②供給入力!F93 -> 7.659482792 | AF101: =N$7*②供給入力!C93 -> 4.194153892 | AG101: =O$7*②供給入力!D93 -> 11.54968048 | AH101: =P$7*②供給入力!E93 -> 21.16750386 | AI101: =Q$7*②供給入力!F93 -> 35.22030872 | AK101: チリ | AL101: =B$10*②供給入力!C93 -> 0.0008723140496 | AM101: =C$10*②供給入力!D93 -> 0.078421034 | AN101: =D$10*②供給入力!E93 -> 0.6906222018 | AO101: =E$10*②供給入力!F93 -> 0.8537696155 | AP101: =F$10*②供給入力!C93 -> 0.001063797621 | AQ101: =G$10*②供給入力!D93 -> 0.09563540731 | AR101: =H$10*②供給入力!E93 -> 0.8422221973 | AS101: =I$10*②供給入力!F93 -> 1.041182458 | AT101: =J$10*②供給入力!C93 -> 0.001282814779 | AU101: =K$10*②供給入力!D93 -> 0.11532505 | AV101: =L$10*②供給入力!E93 -> 1.015620885 | AW101: =M$10*②供給入力!F93 -> 1.255543552 | AX101: =N$10*②供給入力!C93 -> 8.814949746 | AY101: =O$10*②供給入力!D93 -> 23.99966247 | AZ101: =P$10*②供給入力!E93 -> 37.18035434 | BA101: =Q$10*②供給入力!F93 -> 63.72320993
S102: オマーン | T102: =B$7*②供給入力!C94 -> 0 | U102: =C$7*②供給入力!D94 -> 0 | V102: =D$7*②供給入力!E94 -> 0 | W102: =E$7*②供給入力!F94 -> 5.208448299 | X102: =F$7*②供給入力!C94 -> 0 | Y102: =G$7*②供給入力!D94 -> 0 | Z102: =H$7*②供給入力!E94 -> 0 | AA102: =I$7*②供給入力!F94 -> 6.351766218 | AB102: =J$7*②供給入力!C94 -> 0 | AC102: =K$7*②供給入力!D94 -> 0 | AD102: =L$7*②供給入力!E94 -> 0 | AE102: =M$7*②供給入力!F94 -> 7.659482792 | AF102: =N$7*②供給入力!C94 -> 0 | AG102: =O$7*②供給入力!D94 -> 0 | AH102: =P$7*②供給入力!E94 -> 0 | AI102: =Q$7*②供給入力!F94 -> 35.22030872 | AK102: オマーン | AL102: =B$10*②供給入力!C94 -> 0 | AM102: =C$10*②供給入力!D94 -> 0 | AN102: =D$10*②供給入力!E94 -> 0 | AO102: =E$10*②供給入力!F94 -> 0.8537696155 | AP102: =F$10*②供給入力!C94 -> 0 | AQ102: =G$10*②供給入力!D94 -> 0 | AR102: =H$10*②供給入力!E94 -> 0 | AS102: =I$10*②供給入力!F94 -> 1.041182458 | AT102: =J$10*②供給入力!C94 -> 0 | AU102: =K$10*②供給入力!D94 -> 0 | AV102: =L$10*②供給入力!E94 -> 0 | AW102: =M$10*②供給入力!F94 -> 1.255543552 | AX102: =N$10*②供給入力!C94 -> 0 | AY102: =O$10*②供給入力!D94 -> 0 | AZ102: =P$10*②供給入力!E94 -> 0 | BA102: =Q$10*②供給入力!F94 -> 63.72320993
S103: ナミビア | T103: =B$7*②供給入力!C95 -> 0 | U103: =C$7*②供給入力!D95 -> 0 | V103: =D$7*②供給入力!E95 -> 0 | W103: =E$7*②供給入力!F95 -> 5.208448299 | X103: =F$7*②供給入力!C95 -> 0 | Y103: =G$7*②供給入力!D95 -> 0 | Z103: =H$7*②供給入力!E95 -> 0 | AA103: =I$7*②供給入力!F95 -> 6.351766218 | AB103: =J$7*②供給入力!C95 -> 0 | AC103: =K$7*②供給入力!D95 -> 0 | AD103: =L$7*②供給入力!E95 -> 0 | AE103: =M$7*②供給入力!F95 -> 7.659482792 | AF103: =N$7*②供給入力!C95 -> 0 | AG103: =O$7*②供給入力!D95 -> 0 | AH103: =P$7*②供給入力!E95 -> 0 | AI103: =Q$7*②供給入力!F95 -> 35.22030872 | AK103: ナミビア | AL103: =B$10*②供給入力!C95 -> 0 | AM103: =C$10*②供給入力!D95 -> 0 | AN103: =D$10*②供給入力!E95 -> 0 | AO103: =E$10*②供給入力!F95 -> 0.8537696155 | AP103: =F$10*②供給入力!C95 -> 0 | AQ103: =G$10*②供給入力!D95 -> 0 | AR103: =H$10*②供給入力!E95 -> 0 | AS103: =I$10*②供給入力!F95 -> 1.041182458 | AT103: =J$10*②供給入力!C95 -> 0 | AU103: =K$10*②供給入力!D95 -> 0 | AV103: =L$10*②供給入力!E95 -> 0 | AW103: =M$10*②供給入力!F95 -> 1.255543552 | AX103: =N$10*②供給入力!C95 -> 0 | AY103: =O$10*②供給入力!D95 -> 0 | AZ103: =P$10*②供給入力!E95 -> 0 | BA103: =Q$10*②供給入力!F95 -> 63.72320993
S105: 供給量（シナリオ２） 単位：万トン／年 | AK105: 供給量（シナリオ２） 単位：万トン／年
S106: 国名 | T106: 水素（トン／年） | X106: アンモニアクラッキング（万トン／年） | AB106: メタネーション（万トン／年） | AF106: アンモニア（トン／年） | AK106: 国名 | AL106: 水素（トン／年） | AP106: アンモニアクラッキング（万トン／年） | AT106: メタネーション（万トン／年） | AX106: アンモニア（トン／年）
T107: 実証期 | U107: 2030年 | V107: 移行期 | W107: 2050年 | X107: 実証期 | Y107: 2030年 | Z107: 移行期 | AA107: 2050年 | AB107: 実証期 | AC107: 2030年 | AD107: 移行期 | AE107: 2050年 | AF107: 実証期 | AG107: 2030年 | AH107: 移行期 | AI107: 2050年 | AL107: 実証期 | AM107: 2030年 | AN107: 移行期 | AO107: 2050年 | AP107: 実証期 | AQ107: 2030年 | AR107: 移行期 | AS107: 2050年 | AT107: 実証期 | AU107: 2030年 | AV107: 移行期 | AW107: 2050年 | AX107: 実証期 | AY107: 2030年 | AZ107: 移行期 | BA107: 2050年
S108: オーストラリア | T108: =B$7*②供給入力!C100 -> 0.2953755145 | U108: =C$7*②供給入力!D100 -> 0.7690159278 | V108: =D$7*②供給入力!E100 -> 7.351734401 | W108: =E$7*②供給入力!F100 -> 31.25068979 | X108: =F$7*②供給入力!C100 -> 0.360214042 | Y108: =G$7*②供給入力!D100 -> 0.9378243022 | Z108: =H$7*②供給入力!E100 -> 8.965529757 | AA108: =I$7*②供給入力!F100 -> 38.11059731 | AB108: =J$7*②供給入力!C100 -> 0.4343757566 | AC108: =K$7*②供給入力!D100 -> 1.130905776 | AD108: =L$7*②供給入力!E100 -> 10.81137412 | AE108: =M$7*②供給入力!F100 -> 45.95689675 | AF108: =N$7*②供給入力!C100 -> 8.388307785 | AG108: =O$7*②供給入力!D100 -> 34.64904143 | AH108: =P$7*②供給入力!E100 -> 84.67001546 | AI108: =Q$7*②供給入力!F100 -> 211.3218523 | AK108: オーストラリア | AL108: =B$10*②供給入力!C100 -> 0.001744628099 | AM108: =C$10*②供給入力!D100 -> 0.235263102 | AN108: =D$10*②供給入力!E100 -> 2.762488807 | AO108: =E$10*②供給入力!F100 -> 5.122617693 | AP108: =F$10*②供給入力!C100 -> 0.002127595243 | AQ108: =G$10*②供給入力!D100 -> 0.2869062219 | AR108: =H$10*②供給入力!E100 -> 3.368888789 | AS108: =I$10*②供給入力!F100 -> 6.247094748 | AT108: =J$10*②供給入力!C100 -> 0.002565629558 | AU108: =K$10*②供給入力!D100 -> 0.34597515 | AV108: =L$10*②供給入力!E100 -> 4.06248354 | AW108: =M$10*②供給入力!F100 -> 7.533261313 | AX108: =N$10*②供給入力!C100 -> 17.62989949 | AY108: =O$10*②供給入力!D100 -> 71.99898741 | AZ108: =P$10*②供給入力!E100 -> 148.7214174 | BA108: =Q$10*②供給入力!F100 -> 382.3392596
S109: アメリカ | T109: =B$7*②供給入力!C101 -> 0 | U109: =C$7*②供給入力!D101 -> 0 | V109: =D$7*②供給入力!E101 -> 0 | W109: =E$7*②供給入力!F101 -> 0 | X109: =F$7*②供給入力!C101 -> 0 | Y109: =G$7*②供給入力!D101 -> 0 | Z109: =H$7*②供給入力!E101 -> 0 | AA109: =I$7*②供給入力!F101 -> 0 | AB109: =J$7*②供給入力!C101 -> 0 | AC109: =K$7*②供給入力!D101 -> 0 | AD109: =L$7*②供給入力!E101 -> 0 | AE109: =M$7*②供給入力!F101 -> 0 | AF109: =N$7*②供給入力!C101 -> 0 | AG109: =O$7*②供給入力!D101 -> 0 | AH109: =P$7*②供給入力!E101 -> 0 | AI109: =Q$7*②供給入力!F101 -> 0 | AK109: アメリカ | AL109: =B$10*②供給入力!C101 -> 0 | AM109: =C$10*②供給入力!D101 -> 0 | AN109: =D$10*②供給入力!E101 -> 0 | AO109: =E$10*②供給入力!F101 -> 0 | AP109: =F$10*②供給入力!C101 -> 0 | AQ109: =G$10*②供給入力!D101 -> 0 | AR109: =H$10*②供給入力!E101 -> 0 | AS109: =I$10*②供給入力!F101 -> 0 | AT109: =J$10*②供給入力!C101 -> 0 | AU109: =K$10*②供給入力!D101 -> 0 | AV109: =L$10*②供給入力!E101 -> 0 | AW109: =M$10*②供給入力!F101 -> 0 | AX109: =N$10*②供給入力!C101 -> 0 | AY109: =O$10*②供給入力!D101 -> 0 | AZ109: =P$10*②供給入力!E101 -> 0 | BA109: =Q$10*②供給入力!F101 -> 0
S110: カナダ | T110: =B$7*②供給入力!C102 -> 0 | U110: =C$7*②供給入力!D102 -> 0 | V110: =D$7*②供給入力!E102 -> 0 | W110: =E$7*②供給入力!F102 -> 0 | X110: =F$7*②供給入力!C102 -> 0 | Y110: =G$7*②供給入力!D102 -> 0 | Z110: =H$7*②供給入力!E102 -> 0 | AA110: =I$7*②供給入力!F102 -> 0 | AB110: =J$7*②供給入力!C102 -> 0 | AC110: =K$7*②供給入力!D102 -> 0 | AD110: =L$7*②供給入力!E102 -> 0 | AE110: =M$7*②供給入力!F102 -> 0 | AF110: =N$7*②供給入力!C102 -> 0 | AG110: =O$7*②供給入力!D102 -> 0 | AH110: =P$7*②供給入力!E102 -> 0 | AI110: =Q$7*②供給入力!F102 -> 0 | AK110: カナダ | AL110: =B$10*②供給入力!C102 -> 0 | AM110: =C$10*②供給入力!D102 -> 0 | AN110: =D$10*②供給入力!E102 -> 0 | AO110: =E$10*②供給入力!F102 -> 0 | AP110: =F$10*②供給入力!C102 -> 0 | AQ110: =G$10*②供給入力!D102 -> 0 | AR110: =H$10*②供給入力!E102 -> 0 | AS110: =I$10*②供給入力!F102 -> 0 | AT110: =J$10*②供給入力!C102 -> 0 | AU110: =K$10*②供給入力!D102 -> 0 | AV110: =L$10*②供給入力!E102 -> 0 | AW110: =M$10*②供給入力!F102 -> 0 | AX110: =N$10*②供給入力!C102 -> 0 | AY110: =O$10*②供給入力!D102 -> 0 | AZ110: =P$10*②供給入力!E102 -> 0 | BA110: =Q$10*②供給入力!F102 -> 0
S111: チリ | T111: =B$7*②供給入力!C103 -> 0 | U111: =C$7*②供給入力!D103 -> 0 | V111: =D$7*②供給入力!E103 -> 0 | W111: =E$7*②供給入力!F103 -> 0 | X111: =F$7*②供給入力!C103 -> 0 | Y111: =G$7*②供給入力!D103 -> 0 | Z111: =H$7*②供給入力!E103 -> 0 | AA111: =I$7*②供給入力!F103 -> 0 | AB111: =J$7*②供給入力!C103 -> 0 | AC111: =K$7*②供給入力!D103 -> 0 | AD111: =L$7*②供給入力!E103 -> 0 | AE111: =M$7*②供給入力!F103 -> 0 | AF111: =N$7*②供給入力!C103 -> 0 | AG111: =O$7*②供給入力!D103 -> 0 | AH111: =P$7*②供給入力!E103 -> 0 | AI111: =Q$7*②供給入力!F103 -> 0 | AK111: チリ | AL111: =B$10*②供給入力!C103 -> 0 | AM111: =C$10*②供給入力!D103 -> 0 | AN111: =D$10*②供給入力!E103 -> 0 | AO111: =E$10*②供給入力!F103 -> 0 | AP111: =F$10*②供給入力!C103 -> 0 | AQ111: =G$10*②供給入力!D103 -> 0 | AR111: =H$10*②供給入力!E103 -> 0 | AS111: =I$10*②供給入力!F103 -> 0 | AT111: =J$10*②供給入力!C103 -> 0 | AU111: =K$10*②供給入力!D103 -> 0 | AV111: =L$10*②供給入力!E103 -> 0 | AW111: =M$10*②供給入力!F103 -> 0 | AX111: =N$10*②供給入力!C103 -> 0 | AY111: =O$10*②供給入力!D103 -> 0 | AZ111: =P$10*②供給入力!E103 -> 0 | BA111: =Q$10*②供給入力!F103 -> 0
S112: オマーン | T112: =B$7*②供給入力!C104 -> 0 | U112: =C$7*②供給入力!D104 -> 0 | V112: =D$7*②供給入力!E104 -> 0 | W112: =E$7*②供給入力!F104 -> 0 | X112: =F$7*②供給入力!C104 -> 0 | Y112: =G$7*②供給入力!D104 -> 0 | Z112: =H$7*②供給入力!E104 -> 0 | AA112: =I$7*②供給入力!F104 -> 0 | AB112: =J$7*②供給入力!C104 -> 0 | AC112: =K$7*②供給入力!D104 -> 0 | AD112: =L$7*②供給入力!E104 -> 0 | AE112: =M$7*②供給入力!F104 -> 0 | AF112: =N$7*②供給入力!C104 -> 0 | AG112: =O$7*②供給入力!D104 -> 0 | AH112: =P$7*②供給入力!E104 -> 0 | AI112: =Q$7*②供給入力!F104 -> 0 | AK112: オマーン | AL112: =B$10*②供給入力!C104 -> 0 | AM112: =C$10*②供給入力!D104 -> 0 | AN112: =D$10*②供給入力!E104 -> 0 | AO112: =E$10*②供給入力!F104 -> 0 | AP112: =F$10*②供給入力!C104 -> 0 | AQ112: =G$10*②供給入力!D104 -> 0 | AR112: =H$10*②供給入力!E104 -> 0 | AS112: =I$10*②供給入力!F104 -> 0 | AT112: =J$10*②供給入力!C104 -> 0 | AU112: =K$10*②供給入力!D104 -> 0 | AV112: =L$10*②供給入力!E104 -> 0 | AW112: =M$10*②供給入力!F104 -> 0 | AX112: =N$10*②供給入力!C104 -> 0 | AY112: =O$10*②供給入力!D104 -> 0 | AZ112: =P$10*②供給入力!E104 -> 0 | BA112: =Q$10*②供給入力!F104 -> 0
S113: ナミビア | T113: =B$7*②供給入力!C105 -> 0 | U113: =C$7*②供給入力!D105 -> 0 | V113: =D$7*②供給入力!E105 -> 0 | W113: =E$7*②供給入力!F105 -> 0 | X113: =F$7*②供給入力!C105 -> 0 | Y113: =G$7*②供給入力!D105 -> 0 | Z113: =H$7*②供給入力!E105 -> 0 | AA113: =I$7*②供給入力!F105 -> 0 | AB113: =J$7*②供給入力!C105 -> 0 | AC113: =K$7*②供給入力!D105 -> 0 | AD113: =L$7*②供給入力!E105 -> 0 | AE113: =M$7*②供給入力!F105 -> 0 | AF113: =N$7*②供給入力!C105 -> 0 | AG113: =O$7*②供給入力!D105 -> 0 | AH113: =P$7*②供給入力!E105 -> 0 | AI113: =Q$7*②供給入力!F105 -> 0 | AK113: ナミビア | AL113: =B$10*②供給入力!C105 -> 0 | AM113: =C$10*②供給入力!D105 -> 0 | AN113: =D$10*②供給入力!E105 -> 0 | AO113: =E$10*②供給入力!F105 -> 0 | AP113: =F$10*②供給入力!C105 -> 0 | AQ113: =G$10*②供給入力!D105 -> 0 | AR113: =H$10*②供給入力!E105 -> 0 | AS113: =I$10*②供給入力!F105 -> 0 | AT113: =J$10*②供給入力!C105 -> 0 | AU113: =K$10*②供給入力!D105 -> 0 | AV113: =L$10*②供給入力!E105 -> 0 | AW113: =M$10*②供給入力!F105 -> 0 | AX113: =N$10*②供給入力!C105 -> 0 | AY113: =O$10*②供給入力!D105 -> 0 | AZ113: =P$10*②供給入力!E105 -> 0 | BA113: =Q$10*②供給入力!F105 -> 0
S115: 供給量（シナリオ３） 単位：万トン／年 | AK115: 供給量（シナリオ３） 単位：万トン／年
S116: 国名 | T116: 水素（トン／年） | X116: アンモニアクラッキング（万トン／年） | AB116: メタネーション（万トン／年） | AF116: アンモニア（トン／年） | AK116: 国名 | AL116: 水素（トン／年） | AP116: アンモニアクラッキング（万トン／年） | AT116: メタネーション（万トン／年） | AX116: アンモニア（トン／年）
T117: 実証期 | U117: 2030年 | V117: 移行期 | W117: 2050年 | X117: 実証期 | Y117: 2030年 | Z117: 移行期 | AA117: 2050年 | AB117: 実証期 | AC117: 2030年 | AD117: 移行期 | AE117: 2050年 | AF117: 実証期 | AG117: 2030年 | AH117: 移行期 | AI117: 2050年 | AL117: 実証期 | AM117: 2030年 | AN117: 移行期 | AO117: 2050年 | AP117: 実証期 | AQ117: 2030年 | AR117: 移行期 | AS117: 2050年 | AT117: 実証期 | AU117: 2030年 | AV117: 移行期 | AW117: 2050年 | AX117: 実証期 | AY117: 2030年 | AZ117: 移行期 | BA117: 2050年
S118: オーストラリア | T118: =B$7*②供給入力!C110 -> 0.2067628601 | U118: =C$7*②供給入力!D110 -> 0.5383111495 | V118: =D$7*②供給入力!E110 -> 5.146214081 | W118: =E$7*②供給入力!F110 -> 21.87548285 | X118: =F$7*②供給入力!C110 -> 0.2521498294 | Y118: =G$7*②供給入力!D110 -> 0.6564770115 | Z118: =H$7*②供給入力!E110 -> 6.27587083 | AA118: =I$7*②供給入力!F110 -> 26.67741811 | AB118: =J$7*②供給入力!C110 -> 0.3040630296 | AC118: =K$7*②供給入力!D110 -> 0.7916340433 | AD118: =L$7*②供給入力!E110 -> 7.567961883 | AE118: =M$7*②供給入力!F110 -> 32.16982773 | AF118: =N$7*②供給入力!C110 -> 5.871815449 | AG118: =O$7*②供給入力!D110 -> 24.254329 | AH118: =P$7*②供給入力!E110 -> 59.26901082 | AI118: =Q$7*②供給入力!F110 -> 147.9252966 | AK118: オーストラリア | AL118: =B$10*②供給入力!C110 -> 0.001221239669 | AM118: =C$10*②供給入力!D110 -> 0.1646841714 | AN118: =D$10*②供給入力!E110 -> 1.933742165 | AO118: =E$10*②供給入力!F110 -> 3.585832385 | AP118: =F$10*②供給入力!C110 -> 0.00148931667 | AQ118: =G$10*②供給入力!D110 -> 0.2008343554 | AR118: =H$10*②供給入力!E110 -> 2.358222153 | AS118: =I$10*②供給入力!F110 -> 4.372966323 | AT118: =J$10*②供給入力!C110 -> 0.00179594069 | AU118: =K$10*②供給入力!D110 -> 0.242182605 | AV118: =L$10*②供給入力!E110 -> 2.843738478 | AW118: =M$10*②供給入力!F110 -> 5.273282919 | AX118: =N$10*②供給入力!C110 -> 12.34092964 | AY118: =O$10*②供給入力!D110 -> 50.39929119 | AZ118: =P$10*②供給入力!E110 -> 104.1049922 | BA118: =Q$10*②供給入力!F110 -> 267.6374817
S119: アメリカ | T119: =B$7*②供給入力!C111 -> 0 | U119: =C$7*②供給入力!D111 -> 0 | V119: =D$7*②供給入力!E111 -> 0.7351734401 | W119: =E$7*②供給入力!F111 -> 1.875041388 | X119: =F$7*②供給入力!C111 -> 0 | Y119: =G$7*②供給入力!D111 -> 0 | Z119: =H$7*②供給入力!E111 -> 0.8965529757 | AA119: =I$7*②供給入力!F111 -> 2.286635838 | AB119: =J$7*②供給入力!C111 -> 0 | AC119: =K$7*②供給入力!D111 -> 0 | AD119: =L$7*②供給入力!E111 -> 1.081137412 | AE119: =M$7*②供給入力!F111 -> 2.757413805 | AF119: =N$7*②供給入力!C111 -> 0 | AG119: =O$7*②供給入力!D111 -> 0 | AH119: =P$7*②供給入力!E111 -> 8.467001546 | AI119: =Q$7*②供給入力!F111 -> 12.67931114 | AK119: アメリカ | AL119: =B$10*②供給入力!C111 -> 0 | AM119: =C$10*②供給入力!D111 -> 0 | AN119: =D$10*②供給入力!E111 -> 0.2762488807 | AO119: =E$10*②供給入力!F111 -> 0.3073570616 | AP119: =F$10*②供給入力!C111 -> 0 | AQ119: =G$10*②供給入力!D111 -> 0 | AR119: =H$10*②供給入力!E111 -> 0.3368888789 | AS119: =I$10*②供給入力!F111 -> 0.3748256849 | AT119: =J$10*②供給入力!C111 -> 0 | AU119: =K$10*②供給入力!D111 -> 0 | AV119: =L$10*②供給入力!E111 -> 0.406248354 | AW119: =M$10*②供給入力!F111 -> 0.4519956788 | AX119: =N$10*②供給入力!C111 -> 0 | AY119: =O$10*②供給入力!D111 -> 0 | AZ119: =P$10*②供給入力!E111 -> 14.87214174 | BA119: =Q$10*②供給入力!F111 -> 22.94035558
S120: カナダ | T120: =B$7*②供給入力!C112 -> 0 | U120: =C$7*②供給入力!D112 -> 0.1153523892 | V120: =D$7*②供給入力!E112 -> 0.7351734401 | W120: =E$7*②供給入力!F112 -> 1.875041388 | X120: =F$7*②供給入力!C112 -> 0 | Y120: =G$7*②供給入力!D112 -> 0.1406736453 | Z120: =H$7*②供給入力!E112 -> 0.8965529757 | AA120: =I$7*②供給入力!F112 -> 2.286635838 | AB120: =J$7*②供給入力!C112 -> 0 | AC120: =K$7*②供給入力!D112 -> 0.1696358664 | AD120: =L$7*②供給入力!E112 -> 1.081137412 | AE120: =M$7*②供給入力!F112 -> 2.757413805 | AF120: =N$7*②供給入力!C112 -> 0 | AG120: =O$7*②供給入力!D112 -> 5.197356215 | AH120: =P$7*②供給入力!E112 -> 8.467001546 | AI120: =Q$7*②供給入力!F112 -> 12.67931114 | AK120: カナダ | AL120: =B$10*②供給入力!C112 -> 0 | AM120: =C$10*②供給入力!D112 -> 0.0352894653 | AN120: =D$10*②供給入力!E112 -> 0.2762488807 | AO120: =E$10*②供給入力!F112 -> 0.3073570616 | AP120: =F$10*②供給入力!C112 -> 0 | AQ120: =G$10*②供給入力!D112 -> 0.04303593329 | AR120: =H$10*②供給入力!E112 -> 0.3368888789 | AS120: =I$10*②供給入力!F112 -> 0.3748256849 | AT120: =J$10*②供給入力!C112 -> 0 | AU120: =K$10*②供給入力!D112 -> 0.0518962725 | AV120: =L$10*②供給入力!E112 -> 0.406248354 | AW120: =M$10*②供給入力!F112 -> 0.4519956788 | AX120: =N$10*②供給入力!C112 -> 0 | AY120: =O$10*②供給入力!D112 -> 10.79984811 | AZ120: =P$10*②供給入力!E112 -> 14.87214174 | BA120: =Q$10*②供給入力!F112 -> 22.94035558
S121: チリ | T121: =B$7*②供給入力!C113 -> 0.08861265434 | U121: =C$7*②供給入力!D113 -> 0.1153523892 | V121: =D$7*②供給入力!E113 -> 0.7351734401 | W121: =E$7*②供給入力!F113 -> 1.875041388 | X121: =F$7*②供給入力!C113 -> 0.1080642126 | Y121: =G$7*②供給入力!D113 -> 0.1406736453 | Z121: =H$7*②供給入力!E113 -> 0.8965529757 | AA121: =I$7*②供給入力!F113 -> 2.286635838 | AB121: =J$7*②供給入力!C113 -> 0.130312727 | AC121: =K$7*②供給入力!D113 -> 0.1696358664 | AD121: =L$7*②供給入力!E113 -> 1.081137412 | AE121: =M$7*②供給入力!F113 -> 2.757413805 | AF121: =N$7*②供給入力!C113 -> 2.516492335 | AG121: =O$7*②供給入力!D113 -> 5.197356215 | AH121: =P$7*②供給入力!E113 -> 8.467001546 | AI121: =Q$7*②供給入力!F113 -> 12.67931114 | AK121: チリ | AL121: =B$10*②供給入力!C113 -> 0.0005233884298 | AM121: =C$10*②供給入力!D113 -> 0.0352894653 | AN121: =D$10*②供給入力!E113 -> 0.2762488807 | AO121: =E$10*②供給入力!F113 -> 0.3073570616 | AP121: =F$10*②供給入力!C113 -> 0.0006382785729 | AQ121: =G$10*②供給入力!D113 -> 0.04303593329 | AR121: =H$10*②供給入力!E113 -> 0.3368888789 | AS121: =I$10*②供給入力!F113 -> 0.3748256849 | AT121: =J$10*②供給入力!C113 -> 0.0007696888673 | AU121: =K$10*②供給入力!D113 -> 0.0518962725 | AV121: =L$10*②供給入力!E113 -> 0.406248354 | AW121: =M$10*②供給入力!F113 -> 0.4519956788 | AX121: =N$10*②供給入力!C113 -> 5.288969848 | AY121: =O$10*②供給入力!D113 -> 10.79984811 | AZ121: =P$10*②供給入力!E113 -> 14.87214174 | BA121: =Q$10*②供給入力!F113 -> 22.94035558
S122: オマーン | T122: =B$7*②供給入力!C114 -> 0 | U122: =C$7*②供給入力!D114 -> 0 | V122: =D$7*②供給入力!E114 -> 0 | W122: =E$7*②供給入力!F114 -> 1.875041388 | X122: =F$7*②供給入力!C114 -> 0 | Y122: =G$7*②供給入力!D114 -> 0 | Z122: =H$7*②供給入力!E114 -> 0 | AA122: =I$7*②供給入力!F114 -> 2.286635838 | AB122: =J$7*②供給入力!C114 -> 0 | AC122: =K$7*②供給入力!D114 -> 0 | AD122: =L$7*②供給入力!E114 -> 0 | AE122: =M$7*②供給入力!F114 -> 2.757413805 | AF122: =N$7*②供給入力!C114 -> 0 | AG122: =O$7*②供給入力!D114 -> 0 | AH122: =P$7*②供給入力!E114 -> 0 | AI122: =Q$7*②供給入力!F114 -> 12.67931114 | AK122: オマーン | AL122: =B$10*②供給入力!C114 -> 0 | AM122: =C$10*②供給入力!D114 -> 0 | AN122: =D$10*②供給入力!E114 -> 0 | AO122: =E$10*②供給入力!F114 -> 0.3073570616 | AP122: =F$10*②供給入力!C114 -> 0 | AQ122: =G$10*②供給入力!D114 -> 0 | AR122: =H$10*②供給入力!E114 -> 0 | AS122: =I$10*②供給入力!F114 -> 0.3748256849 | AT122: =J$10*②供給入力!C114 -> 0 | AU122: =K$10*②供給入力!D114 -> 0 | AV122: =L$10*②供給入力!E114 -> 0 | AW122: =M$10*②供給入力!F114 -> 0.4519956788 | AX122: =N$10*②供給入力!C114 -> 0 | AY122: =O$10*②供給入力!D114 -> 0 | AZ122: =P$10*②供給入力!E114 -> 0 | BA122: =Q$10*②供給入力!F114 -> 22.94035558
S123: ナミビア | T123: =B$7*②供給入力!C115 -> 0 | U123: =C$7*②供給入力!D115 -> 0 | V123: =D$7*②供給入力!E115 -> 0 | W123: =E$7*②供給入力!F115 -> 1.875041388 | X123: =F$7*②供給入力!C115 -> 0 | Y123: =G$7*②供給入力!D115 -> 0 | Z123: =H$7*②供給入力!E115 -> 0 | AA123: =I$7*②供給入力!F115 -> 2.286635838 | AB123: =J$7*②供給入力!C115 -> 0 | AC123: =K$7*②供給入力!D115 -> 0 | AD123: =L$7*②供給入力!E115 -> 0 | AE123: =M$7*②供給入力!F115 -> 2.757413805 | AF123: =N$7*②供給入力!C115 -> 0 | AG123: =O$7*②供給入力!D115 -> 0 | AH123: =P$7*②供給入力!E115 -> 0 | AI123: =Q$7*②供給入力!F115 -> 12.67931114 | AK123: ナミビア | AL123: =B$10*②供給入力!C115 -> 0 | AM123: =C$10*②供給入力!D115 -> 0 | AN123: =D$10*②供給入力!E115 -> 0 | AO123: =E$10*②供給入力!F115 -> 0.3073570616 | AP123: =F$10*②供給入力!C115 -> 0 | AQ123: =G$10*②供給入力!D115 -> 0 | AR123: =H$10*②供給入力!E115 -> 0 | AS123: =I$10*②供給入力!F115 -> 0.3748256849 | AT123: =J$10*②供給入力!C115 -> 0 | AU123: =K$10*②供給入力!D115 -> 0 | AV123: =L$10*②供給入力!E115 -> 0 | AW123: =M$10*②供給入力!F115 -> 0.4519956788 | AX123: =N$10*②供給入力!C115 -> 0 | AY123: =O$10*②供給入力!D115 -> 0 | AZ123: =P$10*②供給入力!E115 -> 0 | BA123: =Q$10*②供給入力!F115 -> 22.94035558
S125: 供給量（シナリオ４） 単位：万トン／年 | AK125: 供給量（シナリオ４） 単位：万トン／年
S126: 国名 | T126: 水素（トン／年） | X126: アンモニアクラッキング（万トン／年） | AB126: メタネーション（万トン／年） | AF126: アンモニア（トン／年） | AK126: 国名 | AL126: 水素（トン／年） | AP126: アンモニアクラッキング（万トン／年） | AT126: メタネーション（万トン／年） | AX126: アンモニア（トン／年）
T127: 実証期 | U127: 2030年 | V127: 移行期 | W127: 2050年 | X127: 実証期 | Y127: 2030年 | Z127: 移行期 | AA127: 2050年 | AB127: 実証期 | AC127: 2030年 | AD127: 移行期 | AE127: 2050年 | AF127: 実証期 | AG127: 2030年 | AH127: 移行期 | AI127: 2050年 | AL127: 実証期 | AM127: 2030年 | AN127: 移行期 | AO127: 2050年 | AP127: 実証期 | AQ127: 2030年 | AR127: 移行期 | AS127: 2050年 | AT127: 実証期 | AU127: 2030年 | AV127: 移行期 | AW127: 2050年 | AX127: 実証期 | AY127: 2030年 | AZ127: 移行期 | BA127: 2050年
S128: オーストラリア | T128: =B$7*②供給入力!C120 -> 0.2182977717 | U128: =C$7*②供給入力!D120 -> 0.3567552676 | V128: =D$7*②供給入力!E120 -> 2.588270839 | W128: =E$7*②供給入力!F120 -> 8.298709173 | X128: =F$7*②供給入力!C120 -> 0.2662167948 | Y128: =G$7*②供給入力!D120 -> 0.4350673996 | Z128: =H$7*②供給入力!E120 -> 3.156427852 | AA128: =I$7*②供給入力!F120 -> 10.12037704 | AB128: =J$7*②供給入力!C120 -> 0.3210261349 | AC128: =K$7*②供給入力!D120 -> 0.5246400995 | AD128: =L$7*②供給入力!E120 -> 3.806280645 | AE128: =M$7*②供給入力!F120 -> 12.20398408 | AF128: =N$7*②供給入力!C120 -> 6.199393004 | AG128: =O$7*②供給入力!D120 -> 16.07408586 | AH128: =P$7*②供給入力!E120 -> 29.80914706 | AI128: =Q$7*②供給入力!F120 -> 56.11711632 | AK128: オーストラリア | AL128: =B$10*②供給入力!C120 -> 0.001289370337 | AM128: =C$10*②供給入力!D120 -> 0.1091412387 | AN128: =D$10*②供給入力!E120 -> 0.9725690336 | AO128: =E$10*②供給入力!F120 -> 1.360325635 | AP128: =F$10*②供給入力!C120 -> 0.001572402849 | AQ128: =G$10*②供給入力!D120 -> 0.1330990715 | AR128: =H$10*②供給入力!E120 -> 1.186059797 | AS128: =I$10*②供給入力!F120 -> 1.658933701 | AT128: =J$10*②供給入力!C120 -> 0.001896132848 | AU128: =K$10*②供給入力!D120 -> 0.1605018216 | AV128: =L$10*②供給入力!E120 -> 1.430248579 | AW128: =M$10*②供給入力!F120 -> 2.000478875 | AX128: =N$10*②供給入力!C120 -> 13.02940693 | AY128: =O$10*②供給入力!D120 -> 33.40115217 | AZ128: =P$10*②供給入力!E120 -> 52.35925112 | BA128: =Q$10*②供給入力!F120 -> 101.5312731
S129: アメリカ | T129: =B$7*②供給入力!C121 -> 0 | U129: =C$7*②供給入力!D121 -> 0 | V129: =D$7*②供給入力!E121 -> 1.772499332 | W129: =E$7*②供給入力!F121 -> 5.683121041 | X129: =F$7*②供給入力!C121 -> 0 | Y129: =G$7*②供給入力!D121 -> 0 | Z129: =H$7*②供給入力!E121 -> 2.161584551 | AA129: =I$7*②供給入力!F121 -> 6.930635416 | AB129: =J$7*②供給入力!C121 -> 0 | AC129: =K$7*②供給入力!D121 -> 0 | AD129: =L$7*②供給入力!E121 -> 2.606616664 | AE129: =M$7*②供給入力!F121 -> 8.357530943 | AF129: =N$7*②供給入力!C121 -> 0 | AG129: =O$7*②供給入力!D121 -> 0 | AH129: =P$7*②供給入力!E121 -> 20.41389659 | AI129: =Q$7*②供給入力!F121 -> 38.43011701 | AK129: アメリカ | AL129: =B$10*②供給入力!C121 -> 0 | AM129: =C$10*②供給入力!D121 -> 0 | AN129: =D$10*②供給入力!E121 -> 0.6660346114 | AO129: =E$10*②供給入力!F121 -> 0.9315780417 | AP129: =F$10*②供給入力!C121 -> 0 | AQ129: =G$10*②供給入力!D121 -> 0 | AR129: =H$10*②供給入力!E121 -> 0.8122373309 | AS129: =I$10*②供給入力!F121 -> 1.136070783 | AT129: =J$10*②供給入力!C121 -> 0 | AU129: =K$10*②供給入力!D121 -> 0 | AV129: =L$10*②供給入力!E121 -> 0.9794626638 | AW129: =M$10*②供給入力!F121 -> 1.369967708 | AX129: =N$10*②供給入力!C121 -> 0 | AY129: =O$10*②供給入力!D121 -> 0 | AZ129: =P$10*②供給入力!E121 -> 35.8566562 | BA129: =Q$10*②供給入力!F121 -> 69.53063454
S130: カナダ | T130: =B$7*②供給入力!C122 -> 0 | U130: =C$7*②供給入力!D122 -> 0.2862956055 | V130: =D$7*②供給入力!E122 -> 2.077083744 | W130: =E$7*②供給入力!F122 -> 6.659702555 | X130: =F$7*②供給入力!C122 -> 0 | Y130: =G$7*②供給入力!D122 -> 0.3491409823 | Z130: =H$7*②供給入力!E122 -> 2.533028956 | AA130: =I$7*②供給入力!F122 -> 8.121588482 | AB130: =J$7*②供給入力!C122 -> 0 | AC130: =K$7*②供給入力!D122 -> 0.4210229492 | AD130: =L$7*②供給入力!E122 -> 3.054534917 | AE130: =M$7*②供給入力!F122 -> 9.793680229 | AF130: =N$7*②供給入力!C122 -> 0 | AG130: =O$7*②供給入力!D122 -> 12.89943152 | AH130: =P$7*②供給入力!E122 -> 23.92179901 | AI130: =Q$7*②供給入力!F122 -> 45.0339077 | AK130: カナダ | AL130: =B$10*②供給入力!C122 -> 0 | AM130: =C$10*②供給入力!D122 -> 0.08758569205 | AN130: =D$10*②供給入力!E122 -> 0.7804852952 | AO130: =E$10*②供給入力!F122 -> 1.091659428 | AP130: =F$10*②供給入力!C122 -> 0 | AQ130: =G$10*②供給入力!D122 -> 0.1068118196 | AR130: =H$10*②供給入力!E122 -> 0.9518113356 | AS130: =I$10*②供給入力!F122 -> 1.331291985 | AT130: =J$10*②供給入力!C122 -> 0 | AU130: =K$10*②供給入力!D122 -> 0.1288024883 | AV130: =L$10*②供給入力!E122 -> 1.147772493 | AW130: =M$10*②供給入力!F122 -> 1.605381512 | AX130: =N$10*②供給入力!C122 -> 0 | AY130: =O$10*②供給入力!D122 -> 26.8043781 | AZ130: =P$10*②供給入力!E122 -> 42.01822611 | BA130: =Q$10*②供給入力!F122 -> 81.47870531
S131: チリ | T131: =B$7*②供給入力!C123 -> 0.07707774276 | U131: =C$7*②供給入力!D123 -> 0.1259650547 | V131: =D$7*②供給入力!E123 -> 0.9138804869 | W131: =E$7*②供給入力!F123 -> 2.930152543 | X131: =F$7*②供給入力!C123 -> 0.09399724727 | Y131: =G$7*②供給入力!D123 -> 0.1536159203 | Z131: =H$7*②供給入力!E123 -> 1.114488399 | AA131: =I$7*②供給入力!F123 -> 3.57335676 | AB131: =J$7*②供給入力!C123 -> 0.1133496217 | AC131: =K$7*②供給入力!D123 -> 0.1852427275 | AD131: =L$7*②供給入力!E123 -> 1.343941893 | AE131: =M$7*②供給入力!F123 -> 4.309047858 | AF131: =N$7*②供給入力!C123 -> 2.188914781 | AG131: =O$7*②供給入力!D123 -> 5.675524057 | AH131: =P$7*②供給入力!E123 -> 10.5251728 | AI131: =Q$7*②供給入力!F123 -> 19.81413105 | AK131: チリ | AL131: =B$10*②供給入力!C123 -> 0.0004552577626 | AM131: =C$10*②供給入力!D123 -> 0.03853617127 | AN131: =D$10*②供給入力!E123 -> 0.3433998671 | AO131: =E$10*②供給入力!F123 -> 0.4803110383 | AP131: =F$10*②供給入力!C123 -> 0.0005551923934 | AQ131: =G$10*②供給入力!D123 -> 0.04699533082 | AR131: =H$10*②供給入力!E123 -> 0.4187803257 | AS131: =I$10*②供給入力!F123 -> 0.5857451686 | AT131: =J$10*②供給入力!C123 -> 0.0006694967097 | AU131: =K$10*②供給入力!D123 -> 0.05667084011 | AV131: =L$10*②供給入力!E123 -> 0.5049998046 | AW131: =M$10*②供給入力!F123 -> 0.7063397622 | AX131: =N$10*②供給入力!C123 -> 4.600492564 | AY131: =O$10*②供給入力!D123 -> 11.79345714 | AZ131: =P$10*②供給入力!E123 -> 18.48728394 | BA131: =Q$10*②供給入力!F123 -> 35.84920401
S132: オマーン | T132: =B$7*②供給入力!C124 -> 0 | U132: =C$7*②供給入力!D124 -> 0 | V132: =D$7*②供給入力!E124 -> 0 | W132: =E$7*②供給入力!F124 -> 4.604053362 | X132: =F$7*②供給入力!C124 -> 0 | Y132: =G$7*②供給入力!D124 -> 0 | Z132: =H$7*②供給入力!E124 -> 0 | AA132: =I$7*②供給入力!F124 -> 5.614699222 | AB132: =J$7*②供給入力!C124 -> 0 | AC132: =K$7*②供給入力!D124 -> 0 | AD132: =L$7*②供給入力!E124 -> 0 | AE132: =M$7*②供給入力!F124 -> 6.770666709 | AF132: =N$7*②供給入力!C124 -> 0 | AG132: =O$7*②供給入力!D124 -> 0 | AH132: =P$7*②供給入力!E124 -> 0 | AI132: =Q$7*②供給入力!F124 -> 31.13329949 | AK132: オマーン | AL132: =B$10*②供給入力!C124 -> 0 | AM132: =C$10*②供給入力!D124 -> 0 | AN132: =D$10*②供給入力!E124 -> 0 | AO132: =E$10*②供給入力!F124 -> 0.7546971081 | AP132: =F$10*②供給入力!C124 -> 0 | AQ132: =G$10*②供給入力!D124 -> 0 | AR132: =H$10*②供給入力!E124 -> 0 | AS132: =I$10*②供給入力!F124 -> 0.9203623269 | AT132: =J$10*②供給入力!C124 -> 0 | AU132: =K$10*②供給入力!D124 -> 0 | AV132: =L$10*②供給入力!E124 -> 0 | AW132: =M$10*②供給入力!F124 -> 1.109848688 | AX132: =N$10*②供給入力!C124 -> 0 | AY132: =O$10*②供給入力!D124 -> 0 | AZ132: =P$10*②供給入力!E124 -> 0 | BA132: =Q$10*②供給入力!F124 -> 56.32868795
S133: ナミビア | T133: =B$7*②供給入力!C125 -> 0 | U133: =C$7*②供給入力!D125 -> 0 | V133: =D$7*②供給入力!E125 -> 0 | W133: =E$7*②供給入力!F125 -> 3.074951117 | X133: =F$7*②供給入力!C125 -> 0 | Y133: =G$7*②供給入力!D125 -> 0 | Z133: =H$7*②供給入力!E125 -> 0 | AA133: =I$7*②供給入力!F125 -> 3.749940386 | AB133: =J$7*②供給入力!C125 -> 0 | AC133: =K$7*②供給入力!D125 -> 0 | AD133: =L$7*②供給入力!E125 -> 0 | AE133: =M$7*②供給入力!F125 -> 4.521986936 | AF133: =N$7*②供給入力!C125 -> 0 | AG133: =O$7*②供給入力!D125 -> 0 | AH133: =P$7*②供給入力!E125 -> 0 | AI133: =Q$7*②供給入力!F125 -> 20.79328072 | AK133: ナミビア | AL133: =B$10*②供給入力!C125 -> 0 | AM133: =C$10*②供給入力!D125 -> 0 | AN133: =D$10*②供給入力!E125 -> 0 | AO133: =E$10*②供給入力!F125 -> 0.5040464418 | AP133: =F$10*②供給入力!C125 -> 0 | AQ133: =G$10*②供給入力!D125 -> 0 | AR133: =H$10*②供給入力!E125 -> 0 | AS133: =I$10*②供給入力!F125 -> 0.6146907827 | AT133: =J$10*②供給入力!C125 -> 0 | AU133: =K$10*②供給入力!D125 -> 0 | AV133: =L$10*②供給入力!E125 -> 0 | AW133: =M$10*②供給入力!F125 -> 0.7412447674 | AX133: =N$10*②供給入力!C125 -> 0 | AY133: =O$10*②供給入力!D125 -> 0 | AZ133: =P$10*②供給入力!E125 -> 0 | BA133: =Q$10*②供給入力!F125 -> 37.62075465
S135: 北陸管内港湾
S136: 供給量（シナリオ１） 単位：万トン／年
S137: 国名 | T137: 水素（トン／年） | X137: アンモニアクラッキング（万トン／年） | AB137: メタネーション（万トン／年） | AF137: アンモニア（トン／年）
T138: 実証期 | U138: 2030年 | V138: 移行期 | W138: 2050年 | X138: 実証期 | Y138: 2030年 | Z138: 移行期 | AA138: 2050年 | AB138: 実証期 | AC138: 2030年 | AD138: 移行期 | AE138: 2050年 | AF138: 実証期 | AG138: 2030年 | AH138: 移行期 | AI138: 2050年
S139: オーストラリア | T139: =T16+AL16+T57+AL57+T98+AL98 -> 1.775824145 | U139: 2.722240398 | V139: 15.14370036 | W139: 52.88542552 | X139: =X16+AX16+X57+AX57+X98+AX98 -> 19.52555622 | Y139: 50.26966593 | Z139: 92.65789569 | AA139: 192.1871136 | AB139: 2.598180834 | AC139: 3.82700986 | AD139: 19.85182384 | AE139: 74.97555659 | AF139: =AF16+AX16+AF57+AX57+AF98+AX98 -> 21.56512112 | AG139: 59.82338015 | AH139: 108.5947262 | AI139: 180.2329404
S140: アメリカ | T140: 0 | U140: 0 | V140: 15.14370036 | W140: 52.88542552 | X140: 0 | Y140: 0 | Z140: 92.65789569 | AA140: 192.1871136 | AB140: 0 | AC140: 0 | AD140: 19.85182384 | AE140: 74.97555659 | AF140: 0 | AG140: 0 | AH140: 108.5947262 | AI140: 180.2329404
S141: カナダ | T141: 0 | U141: 2.722240398 | V141: 15.14370036 | W141: 52.88542552 | X141: 0 | Y141: 50.26966593 | Z141: 92.65789569 | AA141: 192.1871136 | AB141: 0 | AC141: 3.82700986 | AD141: 19.85182384 | AE141: 74.97555659 | AF141: 0 | AG141: 59.82338015 | AH141: 108.5947262 | AI141: 180.2329404
S142: チリ | T142: 1.775824145 | U142: 2.722240398 | V142: 15.14370036 | W142: 52.88542552 | X142: 19.52555622 | Y142: 50.26966593 | Z142: 92.65789569 | AA142: 192.1871136 | AB142: 2.598180834 | AC142: 3.82700986 | AD142: 19.85182384 | AE142: 74.97555659 | AF142: 21.56512112 | AG142: 59.82338015 | AH142: 108.5947262 | AI142: 180.2329404
S143: オマーン | T143: 0 | U143: 0 | V143: 0 | W143: 52.88542552 | X143: 0 | Y143: 0 | Z143: 0 | AA143: 192.1871136 | AB143: 0 | AC143: 0 | AD143: 0 | AE143: 74.97555659 | AF143: 0 | AG143: 0 | AH143: 0 | AI143: 180.2329404
S144: ナミビア | T144: 0 | U144: 0 | V144: 0 | W144: 52.88542552 | X144: 0 | Y144: 0 | Z144: 0 | AA144: 192.1871136 | AB144: 0 | AC144: 0 | AD144: 0 | AE144: 74.97555659 | AF144: 0 | AG144: 0 | AH144: 0 | AI144: 180.2329404
S146: 供給量（シナリオ２） 単位：万トン／年
S147: 国名 | T147: 水素（トン／年） | X147: アンモニアクラッキング（万トン／年） | AB147: メタネーション（万トン／年） | AF147: アンモニア（トン／年）
T148: 実証期 | U148: 2030年 | V148: 移行期 | W148: 2050年 | X148: 実証期 | Y148: 2030年 | Z148: 移行期 | AA148: 2050年 | AB148: 実証期 | AC148: 2030年 | AD148: 移行期 | AE148: 2050年 | AF148: 実証期 | AG148: 2030年 | AH148: 移行期 | AI148: 2050年
S149: オーストラリア | T149: =T26+AL26+T67+AL67+T108+AL108 -> 3.55164829 | U149: 8.166721195 | V149: 60.57480144 | W149: 317.3125531 | X149: 4.331278402 | Y149: 9.959416092 | Z149: 73.87170907 | AA149: 386.9665282 | AB149: 5.223012191 | AC149: 12.00988411 | AD149: 89.08059035 | AE149: 466.6361076 | AF149: 43.13024225 | AG149: 179.4701404 | AH149: 434.3789047 | AI149: 1081.397643
S150: アメリカ | T150: 0 | U150: 0 | V150: 0 | W150: 0 | X150: 0 | Y150: 0 | Z150: 0 | AA150: 0 | AB150: 0 | AC150: 0 | AD150: 0 | AE150: 0 | AF150: 0 | AG150: 0 | AH150: 0 | AI150: 0
S151: カナダ | T151: 0 | U151: 0 | V151: 0 | W151: 0 | X151: 0 | Y151: 0 | Z151: 0 | AA151: 0 | AB151: 0 | AC151: 0 | AD151: 0 | AE151: 0 | AF151: 0 | AG151: 0 | AH151: 0 | AI151: 0
S152: チリ | T152: 0 | U152: 0 | V152: 0 | W152: 0 | X152: 0 | Y152: 0 | Z152: 0 | AA152: 0 | AB152: 0 | AC152: 0 | AD152: 0 | AE152: 0 | AF152: 0 | AG152: 0 | AH152: 0 | AI152: 0
S153: オマーン | T153: 0 | U153: 0 | V153: 0 | W153: 0 | X153: 0 | Y153: 0 | Z153: 0 | AA153: 0 | AB153: 0 | AC153: 0 | AD153: 0 | AE153: 0 | AF153: 0 | AG153: 0 | AH153: 0 | AI153: 0
S154: ナミビア | T154: 0 | U154: 0 | V154: 0 | W154: 0 | X154: 0 | Y154: 0 | Z154: 0 | AA154: 0 | AB154: 0 | AC154: 0 | AD154: 0 | AE154: 0 | AF154: 0 | AG154: 0 | AH154: 0 | AI154: 0
S156: 供給量（シナリオ３） 単位：万トン／年
S157: 国名 | T157: 水素（トン／年） | X157: アンモニアクラッキング（万トン／年） | AB157: メタネーション（万トン／年） | AF157: アンモニア（トン／年）
T158: 実証期 | U158: 2030年 | V158: 移行期 | W158: 2050年 | X158: 実証期 | Y158: 2030年 | Z158: 移行期 | AA158: 2050年 | AB158: 実証期 | AC158: 2030年 | AD158: 移行期 | AE158: 2050年 | AF158: 実証期 | AG158: 2030年 | AH158: 移行期 | AI158: 2050年
S159: オーストラリア | T159: =T36+AL36+T77+AL77+T118+AL118 -> 2.486153803 | U159: 5.716704837 | V159: 42.402361 | W159: 222.1187872 | X159: 3.031894882 | Y159: 6.971591264 | Z159: 51.71019635 | AA159: 270.8765698 | AB159: 3.656108534 | AC159: 8.406918877 | AD159: 62.35641324 | AE159: 326.6452753 | AF159: 30.19116957 | AG159: 125.6290983 | AH159: 304.0652333 | AI159: 756.9783499
S160: アメリカ | T160: 0 | U160: 0 | V160: 6.057480144 | W160: 19.03875319 | X160: 0 | Y160: 0 | Z160: 7.387170907 | AA160: 23.21799169 | AB160: 0 | AC160: 0 | AD160: 8.908059035 | AE160: 27.99816645 | AF160: 0 | AG160: 0 | AH160: 43.43789047 | AI160: 64.88385856
S161: カナダ | T161: 0 | U161: 1.225008179 | V161: 6.057480144 | W161: 19.03875319 | X161: 0 | Y161: 1.493912414 | Z161: 7.387170907 | AA161: 23.21799169 | AB161: 0 | AC161: 1.801482617 | AD161: 8.908059035 | AE161: 27.99816645 | AF161: 0 | AG161: 26.92052107 | AH161: 43.43789047 | AI161: 64.88385856
S162: チリ | T162: 1.065494487 | U162: 1.225008179 | V162: 6.057480144 | W162: 19.03875319 | X162: 1.299383521 | Y162: 1.493912414 | Z162: 7.387170907 | AA162: 23.21799169 | AB162: 1.566903657 | AC162: 1.801482617 | AD162: 8.908059035 | AE162: 27.99816645 | AF162: 12.93907267 | AG162: 26.92052107 | AH162: 43.43789047 | AI162: 64.88385856
S163: オマーン | T163: 0 | U163: 0 | V163: 0 | W163: 19.03875319 | X163: 0 | Y163: 0 | Z163: 0 | AA163: 23.21799169 | AB163: 0 | AC163: 0 | AD163: 0 | AE163: 27.99816645 | AF163: 0 | AG163: 0 | AH163: 0 | AI163: 64.88385856
S164: ナミビア | T164: 0 | U164: 0 | V164: 0 | W164: 19.03875319 | X164: 0 | Y164: 0 | Z164: 0 | AA164: 23.21799169 | AB164: 0 | AC164: 0 | AD164: 0 | AE164: 27.99816645 | AF164: 0 | AG164: 0 | AH164: 0 | AI164: 64.88385856
S166: 供給量（シナリオ４） 単位：万トン／年
S167: 国名 | T167: 水素（トン／年） | X167: アンモニアクラッキング（万トン／年） | AB167: メタネーション（万トン／年） | AF167: アンモニア（トン／年）
T168: 実証期 | U168: 2030年 | V168: 移行期 | W168: 2050年 | X168: 実証期 | Y168: 2030年 | Z168: 移行期 | AA168: 2050年 | AB168: 実証期 | AC168: 2030年 | AD168: 移行期 | AE168: 2050年 | AF168: 実証期 | AG168: 2030年 | AH168: 移行期 | AI168: 2050年
S169: オーストラリア | T169: =T46+AL46+T87+AL87+T128+AL128 -> 2.624851653 | U169: 3.78863519 | V169: 21.326123 | W169: 84.26324709 | X169: 3.201038602 | Y169: 4.620286817 | Z169: 26.00746708 | AA169: 102.7600574 | AB169: 3.860075961 | AC169: 5.571522338 | AD169: 31.36194559 | AE169: 123.9165398 | AF169: 31.87547821 | AG169: 83.2582469 | AH169: 152.9285731 | AI169: 287.1682064
S170: アメリカ | T170: 0 | U170: 0 | V170: 14.60455305 | W170: 57.70514697 | X170: 0 | Y170: 0 | Z170: 17.81043055 | AA170: 70.37213046 | AB170: 0 | AC170: 0 | AD170: 21.4772839 | AE170: 84.86051025 | AF170: 0 | AG170: 0 | AH170: 104.7285275 | AI170: 196.6584974
S171: カナダ | T171: 0 | U171: 3.040374464 | V171: 17.11418401 | W171: 67.62113845 | X171: 0 | Y171: 3.707773737 | Z171: 20.87095611 | AA171: 82.46480299 | AB171: 0 | AC171: 4.471138918 | AD171: 25.16791766 | AE171: 99.44285066 | AF171: 0 | AG171: 66.8146272 | AH171: 122.724967 | AI171: 230.4520858
S172: チリ | T172: 0.9267966363 | U172: 1.337711541 | V172: 7.529941373 | W172: 29.75211718 | X172: 1.1302398 | Y172: 1.631355538 | Z172: 9.182855333 | AA172: 36.28306973 | AB172: 1.36293623 | AC172: 1.967222854 | AD172: 11.0734432 | AE172: 43.7531135 | AF172: 11.25476404 | AG172: 29.39726635 | AH172: 53.99683711 | AI172: 101.3948836
S173: オマーン | T173: 0 | U173: 0 | V173: 0 | W173: 46.74853377 | X173: 0 | Y173: 0 | Z173: 0 | AA173: 57.01040704 | AB173: 0 | AC173: 0 | AD173: 0 | AE173: 68.74784378 | AF173: 0 | AG173: 0 | AH173: 0 | AI173: 159.3184818
S174: ナミビア | T174: 0 | U174: 0 | V174: 0 | W174: 31.22236968 | X174: 0 | Y174: 0 | Z174: 0 | AA174: 38.07606059 | AB174: 0 | AC174: 0 | AD174: 0 | AE174: 45.91524954 | AF174: 0 | AG174: 0 | AH174: 0 | AI174: 106.4054877

Sheet 金沢港・七尾港エネルギー消費量（熱量換算） (hidden)
B1: ●金沢港
B2: エネルギー消費量（燃料消費量） | C2: 単位：MWh／年 | D2: 単位：KL／年 | H2: 単位：ｔ/年 | J2: 単位：Nｍ３ | K2: 単位：KL／年 | L2: 単位：ｔ/年
C3: 金沢港（2021年）
C4: 液体燃料 | H4: 気体燃料 | K4: 七尾大田火力発電所 | M4: 合計
C5: 電気 | D5: ガソリン | E5: 軽油 | F5: 灯油 | G5: A重油 | H5: LPG | I5: LNG | J5: 都市ガス | K5: A重油 | L5: 一般炭
B6: ターミナル内 | D6: 12 | E6: 226 | F6: 7 | G6: 34 | K6: － | L6: － | M6: －
B7: 出入車両 | D7: 268 | E7: 797 | K7: － | L7: － | M7: －
B8: 停泊船舶 | G8: 390 | K8: － | L8: － | M8: －
B9: ターミナル外 | G9: 131 | H9: 47 | I9: 1.1 | K9: － | L9: － | M9: －
B10: 合計 | C10: =SUM(C6:C9) -> 0 | D10: =SUM(D6:D9) -> 280 | E10: 1023 | F10: 7 | G10: 555 | H10: 47 | I10: 1.1 | J10: 0 | K10: － | L10: － | M10: －
B11: ※都市ガスと電気は二重計上になるため除く
B12: ※ガスタービンに使用しないガソリンはターミナル外から除く
B13: ※石川県からの提供資料から産業部門の燃料消費量と七尾大田火力発電所のみの数値を利用
B15: エネルギー消費量（熱量換算）
C16: 金沢港（2021年）
C17: 液体燃料 | H17: 気体燃料 | K17: 七尾大田火力発電所 | M17: 合計
C18: 電気 | D18: ガソリン | E18: 軽油 | F18: 灯油 | G18: A重油 | H18: LPG | I18: LNG | J18: 都市ガス | K18: A重油 | L18: 一般炭
B19: ターミナル内 | C19: =C6*P$60 -> 0 | D19: 415.2 | E19: 8520.2 | F19: 256.9 | G19: 1329.4 | H19: =H6*X$60 -> 0 | I19: 0 | J19: 0 | K19: － | L19: － | M19: =SUM(C19:L19) -> 10521.7
B20: 出入車両 | C20: 0 | D20: 9272.8 | E20: 30046.9 | F20: 0 | G20: 0 | H20: 0 | I20: 0 | J20: 0 | K20: － | L20: － | M20: =SUM(C20:L20) -> 39319.7
B21: 停泊船舶 | C21: 0 | D21: 0 | E21: 0 | F21: 0 | G21: 15249 | H21: 0 | I21: 0 | J21: 0 | K21: － | L21: － | M21: =SUM(C21:L21) -> 15249
B22: ターミナル外 | C22: 0 | D22: 0 | E22: 0 | F22: 0 | G22: 5122.1 | H22: 2387.6 | I22: 60.06 | J22: 0 | K22: － | L22: － | M22: =SUM(C22:L22) -> 7569.76
B23: 合計 | C23: =SUM(C19:C22) -> 0 | D23: 9688 | E23: 38567.1 | F23: 256.9 | G23: 21700.5 | H23: 2387.6 | I23: 60.06 | J23: 0 | K23: － | L23: － | M23: =SUM(C23:L23) -> 72660.16
B24: ※都市ガスと電気は二重計上になるため除く
B25: ※ガスタービンに使用しないガソリンはターミナル外から除く
B26: ※石川県からの提供資料から産業部門の燃料消費量と七尾大田火力発電所のみの数値を利用
B28: ●七尾港
B29: エネルギー消費量（燃料消費量） | C29: 単位：MWh／年 | D29: 単位：KL／年 | H29: 単位：ｔ/年 | J29: 単位：Nｍ３ | K29: 単位：KL／年 | L29: 単位：ｔ/年
C30: 七尾港（2021年）
C31: 液体燃料 | H31: 気体燃料 | K31: 七尾大田火力発電所 | M31: 合計
C32: 電気 | D32: ガソリン | E32: 軽油 | F32: 灯油 | G32: A重油 | H32: LPG | I32: LNG | J32: 都市ガス | K32: A重油 | L32: 一般炭
B33: ターミナル内 | E33: 216 | H33: 7 | M33: －
B34: 出入車両 | E34: 1344 | M34: －
B35: 停泊船舶 | G35: 293 | M35: －
B36: ターミナル外 | F36: 611 | G36: 103 | K36: 4050 | L36: 2531119 | M36: －
B37: 合計 | C37: =SUM(C33:C36) -> 0 | D37: 0 | E37: 1560 | F37: 611 | G37: 396 | H37: 7 | I37: 0 | J37: 0 | K37: 4050 | L37: 2531119 | M37: －
B38: ※都市ガスと電気は二重計上になるため除く
B39: ※ガスタービンに使用しないガソリンはターミナル外から除く
B40: ※七尾太田火力発電所のみCO２排出量の値しかないため、CO2排出量からエネルギー換算した
B41: ※石川県からの提供資料から産業部門の燃料消費量と七尾大田火力発電所のみの数値を利用
B43: エネルギー消費量（熱量換算）
C44: 七尾港（2021年）
C45: 液体燃料 | H45: 気体燃料 | K45: 七尾大田火力発電所 | M45: 合計
C46: 電気 | D46: ガソリン | E46: 軽油 | F46: 灯油 | G46: A重油 | H46: LPG | I46: LNG | J46: 都市ガス | K46: A重油 | L46: 一般炭
B47: ターミナル内 | C47: =C33*P$60 -> 0 | D47: 0 | E47: 8143.2 | F47: 0 | G47: 0 | H47: =H33*X$60 -> 355.6 | I47: 0 | J47: 0 | K47: =K33*T$60 -> 0 | L47: =L33*AF$60 -> 0 | M47: =SUM(C47:L47) -> 8498.8
B48: 出入車両 | C48: 0 | D48: 0 | E48: 50668.8 | F48: 0 | G48: 0 | H48: 0 | I48: 0 | J48: 0 | K48: =K34*T$60 -> 0 | L48: =L34*AF$60 -> 0 | M48: =SUM(C48:L48) -> 50668.8
B49: 停泊船舶 | C49: 0 | D49: 0 | E49: 0 | F49: 0 | G49: 11456.3 | H49: 0 | I49: 0 | J49: 0 | K49: =K35*T$60 -> 0 | L49: =L35*AF$60 -> 0 | M49: =SUM(C49:L49) -> 11456.3
B50: ターミナル外 | C50: 0 | D50: 0 | E50: 0 | F50: 22423.7 | G50: 4027.3 | H50: 0 | I50: 0 | J50: 0 | K50: =K36*T$60 -> 158355 | L50: =L36*AF$60 -> 65049758.3 | M50: =SUM(C50:L50) -> 65234564.3
B51: 合計 | C51: =SUM(C47:C50) -> 0 | D51: 0 | E51: 58812 | F51: 22423.7 | G51: 15483.6 | H51: 355.6 | I51: 0 | J51: 0 | K51: =SUM(K47:L50) -> 65208113.3 | M51: =SUM(C51:L51) -> 65305188.2
B52: ※都市ガスと電気は二重計上になるため除く
B53: ※ガスタービンに使用しないガソリンはターミナル外から除く
B54: ※七尾太田火力発電所のみCO２排出量の値しかないため、CO2排出量からエネルギー換算した
B55: ※石川県からの提供資料から産業部門の燃料消費量と七尾大田火力発電所のみの数値を利用
O56: (1)単位発熱量
P57: 電気 | Q57: 液体燃料 | X57: 気体燃料 | AE57: 個体燃料 | AJ57: エネルギー
P58: 電気 | Q58: ガソリン | R58: 軽油 | S58: 灯油 | T58: A重油 | U58: B・C重油 | V58: 原油 （NGLを除く） | W58: コンデンセート （NGL） | X58: 液化石油ガス （LPG） | Y58: 液化天然ガス （LNG） | Z58: 天然ガス （LNGを除く） | AA58: 都市ガス | AB58: コークス炉ガス | AC58: 高炉ガス （BFG） | AD58: 転炉ガス （LDG） | AE58: 原料炭 | AF58: 一般炭 | AG58: 無煙炭 | AH58: コークス | AI58: 石油コークス
P59: GJ/MWh | Q59: GJ/kL | R59: GJ/kL | S59: GJ/kL | T59: GJ/kL | U59: GJ/kL | V59: GJ/kL | W59: GJ/kL | X59: GJ/t | Y59: GJ/t | Z59: ＧJ/1,000Nm3 | AA59: ＧJ/1,000Nm3 | AB59: ＧJ/1,000Nm3 | AC59: ＧJ/1,000Nm3 | AD59: ＧJ/1,000Nm3 | AE59: GJ/t | AF59: GJ/t | AG59: GJ/t | AH59: GJ/t | AI59: GJ/t | AJ59: GJ/GJ
O60: 係数 | P60: 3.6 | Q60: 34.6 | R60: 37.7 | S60: 36.7 | T60: 39.1 | U60: 41.9 | V60: 38.2 | W60: 35.3 | X60: 50.8 | Y60: 54.6 | Z60: 43.5 | AA60: 44.8 | AB60: 21.1 | AC60: 3.41 | AD60: 8.41 | AE60: 29 | AF60: 25.7 | AG60: 26.9 | AH60: 29.4 | AI60: 29.9 | AJ60: 1
P61: 出典：算定・報告・公表制度における算定方法・排出係数一覧（環境省ホームページ）
O63: (2)炭素排出係数
P64: 電気 | Q64: 液体燃料 | X64: 気体燃料 | AE64: 個体燃料 | AJ64: エネルギー （原油換算）
P65: 電気 | Q65: ガソリン | R65: 軽油 | S65: 灯油 | T65: A重油 | U65: B・C重油 | V65: 原油 （NGLを除く） | W65: コンデンセート （NGL） | X65: 液化石油ガス （LPG） | Y65: 液化天然ガス （LNG） | Z65: 天然ガス （LNGを除く） | AA65: 都市ガス | AB65: コークス炉ガス | AC65: 高炉ガス （BFG） | AD65: 転炉ガス （LDG） | AE65: 原料炭 | AF65: 一般炭 | AG65: 無煙炭 | AH65: コークス | AI65: 石油コークス
P66: MJ/KWh | Q66: ｔC/GJ | R66: ｔC/GJ | S66: ｔC/GJ | T66: ｔC/GJ | U66: ｔC/GJ | V66: ｔC/GJ | W66: ｔC/GJ | X66: ｔC/GJ | Y66: ｔC/GJ | Z66: ｔC/GJ | AA66: ｔC/GJ | AB66: ｔC/GJ | AC66: ｔC/GJ | AD66: ｔC/GJ | AE66: ｔC/GJ | AF66: ｔC/GJ | AG66: ｔC/GJ | AH66: ｔC/GJ | AI66: ｔC/GJ | AJ66: ｔC/GJ
O67: 係数 | P67: - | Q67: 0.0183 | R67: 0.0187 | S67: 0.0185 | T67: 0.0189 | U67: 0.0195 | V67: 0.0187 | W67: 0.0184 | X67: 0.0161 | Y67: 0.0135 | Z67: 0.0139 | AA67: 0.0136 | AB67: 0.011 | AC67: 0.0263 | AD67: 0.0384 | AE67: 0.0245 | AF67: 0.0247 | AG67: 0.0255 | AH67: 0.0294 | AI67: 0.0254 | AJ67: =V67 -> 0.0187
P68: 出典：算定・報告・公表制度における算定方法・排出係数一覧（環境省ホームページ）
O71: (3)二酸化炭素排出係数
P72: 電気 | X72: 気体燃料 | AE72: 個体燃料 | AJ72: エネルギー （原油換算）
P73: 電気 | Q73: ガソリン | R73: 軽油 | S73: 灯油 | T73: A重油 | U73: B・C重油 | V73: 原油 （NGLを除く） | W73: コンデンセート （NGL） | X73: 液化石油ガス （LPG） | Y73: 液化天然ガス （LNG） | Z73: 天然ガス （LNGを除く） | AA73: 都市ガス | AB73: コークス炉ガス | AC73: 高炉ガス （BFG） | AD73: 転炉ガス （LDG） | AE73: 原料炭 | AF73: 一般炭 | AG73: 無煙炭 | AH73: コークス | AI73: 石油コークス
P74: t-CO2/MWh | Q74: ｔ-CO2/kL | R74: ｔ-CO2/kL | S74: ｔ-CO2/kL | T74: ｔ-CO2/kL | U74: ｔ-CO2/kL | V74: ｔ-CO2/kL | W74: ｔ-CO2/kL | X74: ｔ-CO2/t | Y74: ｔ-CO2/t | Z74: ｔ-CO2/1,000Nm3 | AA74: ｔ-CO2/1,000Nm3 | AB74: ｔ-CO2/1,000Nm3 | AC74: ｔ-CO2/1,000Nm3 | AD74: ｔ-CO2/1,000Nm3 | AE74: ｔ-CO2/t | AF74: ｔ-CO2/t | AG74: ｔ-CO2/t | AH74: ｔ-CO2/t | AI74: ｔ-CO2/t | AJ74: ｔ-CO2/GJ
O75: 2013 | Q75: =Q60*Q67*44/12 -> 2.32166 | R75: 2.584963333 | S75: 2.489483333 | T75: 2.70963 | U75: 2.99585 | V75: 2.619246667 | W75: 2.381573333 | X75: 2.998893333 | Y75: 2.7027 | Z75: 2.21705 | AA75: 2.234026667 | AB75: 0.8510333333 | AC75: 0.3288376667 | AD75: 1.184128 | AE75: 2.605166667 | AF75: 2.327563333 | AG75: 2.51515 | AH75: 3.16932 | AI75: 2.784686667 | AJ75: =AJ60*AJ67*44/12 -> 0.06856666667
O76: 2019 | Q76: =Q75 -> 2.32166 | R76: =R75 -> 2.584963333 | S76: 2.489483333 | T76: 2.70963 | U76: 2.99585 | V76: 2.619246667 | W76: 2.381573333 | X76: 2.998893333 | Y76: 2.7027 | Z76: 2.21705 | AA76: 2.234026667 | AB76: 0.8510333333 | AC76: 0.3288376667 | AD76: 1.184128 | AE76: 2.605166667 | AF76: 2.327563333 | AG76: 2.51515 | AH76: 3.16932 | AI76: 2.784686667 | AJ76: =AJ75 -> 0.06856666667
O80: (4)水素換算係数
O81: 水素（気体） | P81: 熱量 | Q81: 0.121 | R81: GJ/kg
P82: 密度 | Q82: 0.0899 | R82: kg/m3
O83: 液化水素 | P83: 熱量 | Q83: 0.121 | R83: GJ/kg
P84: 密度 | Q84: 70.8 | R84: kg/m3
P85: 出典：「カーボンニュートラルポート（CNP）形成計画」策定マニュアル 初版 2021年12月 国土交通省港湾局
P87: 電気 | Q87: 液体燃料 | X87: 気体燃料 | AE87: 個体燃料 | AJ87: エネルギー （原油換算）
P88: 電気 | Q88: ガソリン | R88: 軽油 | S88: 灯油 | T88: A重油 | U88: B・C重油 | V88: 原油 （NGLを除く） | W88: コンデンセート （NGL） | X88: 液化石油ガス （LPG） | Y88: 液化天然ガス （LNG） | Z88: 天然ガス （LNGを除く） | AA88: 都市ガス | AB88: コークス炉ガス | AC88: 高炉ガス （BFG） | AD88: 転炉ガス （LDG） | AE88: 原料炭 | AF88: 一般炭 | AG88: 無煙炭 | AH88: コークス | AI88: 石油コークス
P89: 1MWhあたり | Q89: 1kLあたり | R89: 1kLあたり | S89: 1kLあたり | T89: 1kLあたり | U89: 1kLあたり | V89: 1kLあたり | W89: 1kLあたり | X89: 1tあたり | Y89: 1tあたり | Z89: 1,000Nm3あたり | AA89: 1,000Nm3あたり | AB89: 1,000Nm3あたり | AC89: 1,000Nm3あたり | AD89: 1,000Nm3あたり | AE89: 1tあたり | AF89: 1tあたり | AG89: 1tあたり | AH89: 1tあたり | AI89: 1tあたり | AJ89: 1GJあたり
O90: 水素重量（kg） | P90: 54.1 | Q90: =Q$60/$Q$81 -> 285.9504132 | R90: =R$60/$Q$81 -> 311.5702479 | S90: 303.3057851 | T90: 323.1404959 | U90: 346.2809917 | V90: 315.7024793 | W90: 291.7355372 | X90: 419.8347107 | Y90: 451.2396694 | Z90: 359.5041322 | AA90: 370.2479339 | AB90: 174.3801653 | AC90: 28.18181818 | AD90: 69.50413223 | AE90: 239.6694215 | AF90: 212.3966942 | AG90: 222.3140496 | AH90: 242.9752066 | AI90: 247.107438 | AJ90: 8.26446281
O91: 水素体積（気体m3） | P91: =P90/$Q$82 -> 601.7797553 | Q91: =Q90/$Q$82 -> 3180.760992 | R91: =R90/$Q$82 -> 3465.742469 | S91: 3373.81296 | T91: 3594.443781 | U91: 3851.846404 | V91: 3511.707223 | W91: 3245.111648 | X91: 4670.019029 | Y91: 5019.351162 | Z91: 3998.933618 | AA91: 4118.441979 | AB91: 1939.712628 | AC91: 313.4796238 | AD91: 773.1271661 | AE91: 2665.955745 | AF91: 2362.588367 | AG91: 2472.903777 | AH91: 2702.727549 | AI91: 2748.692303 | AJ91: =AJ90/$Q$82 -> 91.92950845
O92: 水素体積（液体m3） | P92: =P90/$Q$84 -> 0.7641242938 | Q92: =Q90/$Q$84 -> 4.038847644 | R92: =R90/$Q$84 -> 4.400709717 | S92: 4.283980016 | T92: 4.564131298 | U92: 4.89097446 | V92: 4.459074567 | W92: 4.120558435 | X92: 5.929868796 | Y92: 6.373441658 | Z92: 5.077741981 | AA92: 5.229490592 | AB92: 2.462996685 | AC92: 0.3980482794 | AD92: 0.9816967829 | AE92: 3.38516132 | AF92: 2.999953308 | AG92: 3.140028949 | AH92: 3.431853201 | AI92: 3.490218051 | AJ92: =AJ90/$Q$84 -> 0.1167297007
P93: 出典：「カーボンニュートラルポート（CNP）形成計画」策定マニュアル 初版 2021年12月 国土交通省港湾局
O96: (5)燃料アンモニア換算係数
O97: 燃料アンモニア | P97: 熱量 | Q97: =18.6/1000 -> 0.0186 | R97: GJ/kg
P98: 密度 | Q98: 682 | R98: kg/m3
P99: 出典：「カーボンニュートラルポート（CNP）形成計画」策定マニュアル 初版 2021年12月 国土交通省港湾局
P101: 電気 | Q101: 液体燃料 | X101: 気体燃料 | AE101: 個体燃料 | AJ101: エネルギー （原油換算）
P102: 電気 | Q102: ガソリン | R102: 軽油 | S102: 灯油 | T102: A重油 | U102: B・C重油 | V102: 原油 （NGLを除く） | W102: コンデンセート （NGL） | X102: 液化石油ガス （LPG） | Y102: 液化天然ガス （LNG） | Z102: 天然ガス （LNGを除く） | AA102: 都市ガス | AB102: コークス炉ガス | AC102: 高炉ガス （BFG） | AD102: 転炉ガス （LDG） | AE102: 原料炭 | AF102: 一般炭 | AG102: 無煙炭 | AH102: コークス | AI102: 石油コークス
P103: 1MWhあたり | Q103: 1kLあたり | R103: 1kLあたり | S103: 1kLあたり | T103: 1kLあたり | U103: 1kLあたり | V103: 1kLあたり | W103: 1kLあたり | X103: 1tあたり | Y103: 1tあたり | Z103: 1,000Nm3あたり | AA103: 1,000Nm3あたり | AB103: 1,000Nm3あたり | AC103: 1,000Nm3あたり | AD103: 1,000Nm3あたり | AE103: 1tあたり | AF103: 1tあたり | AG103: 1tあたり | AH103: 1tあたり | AI103: 1tあたり | AJ103: 1GJあたり
O104: 重量（kg） | P104: 352 | Q104: =Q$60/$Q$97 -> 1860.215054 | R104: =R$60/$Q$97 -> 2026.88172 | S104: 1973.11828 | T104: 2102.150538 | U104: 2252.688172 | V104: 2053.763441 | W104: 1897.849462 | X104: 2731.182796 | Y104: 2935.483871 | Z104: 2338.709677 | AA104: 2408.602151 | AB104: 1134.408602 | AC104: 183.3333333 | AD104: 452.1505376 | AE104: 1559.139785 | AF104: 1381.72043 | AG104: 1446.236559 | AH104: 1580.645161 | AI104: 1607.526882 | AJ104: 53.76344086
O105: 体積（m3） | P105: =P104/$Q$98 -> 0.5161290323 | Q105: =Q104/$Q$98 -> 2.727588055 | R105: =R104/$Q$98 -> 2.971967332 | S105: 2.893135307 | T105: 3.082332167 | U105: 3.303061836 | V105: 3.011383344 | W105: 2.782770473 | X105: 4.004666856 | Y105: 4.30422855 | Z105: 3.429193075 | AA105: 3.531674708 | AB105: 1.663355722 | AC105: 0.2688172043 | AD105: 0.6629773279 | AE105: 2.286128717 | AF105: 2.025983035 | AG105: 2.120581465 | AH105: 2.317661527 | AI105: 2.357077539 | AJ105: 0.07883202472
P106: 出典：「カーボンニュートラルポート（CNP）形成計画」策定マニュアル 初版 2021年12月 国土交通省港湾局
O109: (6)MCH換算係数
O110: MCH | P110: 熱量 | Q110: =7.45/1000 -> 0.00745 | R110: GJ/kg
P111: 密度 | Q111: 770 | R111: kg/m3
P112: 出典：「カーボンニュートラルポート（CNP）形成計画」策定マニュアル 初版 2021年12月 国土交通省港湾局
P114: 電気 | Q114: 液体燃料 | X114: 気体燃料 | AE114: 個体燃料 | AJ114: エネルギー （原油換算）
P115: 電気 | Q115: ガソリン | R115: 軽油 | S115: 灯油 | T115: A重油 | U115: B・C重油 | V115: 原油 （NGLを除く） | W115: コンデンセート （NGL） | X115: 液化石油ガス （LPG） | Y115: 液化天然ガス （LNG） | Z115: 天然ガス （LNGを除く） | AA115: 都市ガス | AB115: コークス炉ガス | AC115: 高炉ガス （BFG） | AD115: 転炉ガス （LDG） | AE115: 原料炭 | AF115: 一般炭 | AG115: 無煙炭 | AH115: コークス | AI115: 石油コークス
P116: 1MWhあたり | Q116: 1kLあたり | R116: 1kLあたり | S116: 1kLあたり | T116: 1kLあたり | U116: 1kLあたり | V116: 1kLあたり | W116: 1kLあたり | X116: 1tあたり | Y116: 1tあたり | Z116: 1,000Nm3あたり | AA116: 1,000Nm3あたり | AB116: 1,000Nm3あたり | AC116: 1,000Nm3あたり | AD116: 1,000Nm3あたり | AE116: 1tあたり | AF116: 1tあたり | AG116: 1tあたり | AH116: 1tあたり | AI116: 1tあたり | AJ116: 1GJあたり
O117: 重量（kg） | P117: 879 | Q117: =Q$60/$Q$110 -> 4644.295302 | R117: =R$60/$Q$110 -> 5060.402685 | S117: 4926.174497 | T117: 5248.322148 | U117: 5624.161074 | V117: 5127.516779 | W117: 4738.255034 | X117: 6818.791946 | Y117: 7328.85906 | Z117: 5838.926174 | AA117: 6013.422819 | AB117: 2832.214765 | AC117: 457.7181208 | AD117: 1128.85906 | AE117: 3892.61745 | AF117: 3449.66443 | AG117: 3610.738255 | AH117: 3946.308725 | AI117: 4013.422819 | AJ117: 134.2281879
O118: 体積（m3） | P118: =P117/$Q$111 -> 1.141558442 | Q118: =Q117/$Q$111 -> 6.03155234 | R118: =R117/$Q$111 -> 6.571951538 | S118: 6.397629216 | T118: 6.816002789 | U118: 7.304105291 | V118: 6.659112699 | W118: 6.153577966 | X118: 8.855573956 | Y118: 9.51799878 | Z118: 7.583021006 | AA118: 7.809640024 | AB118: 3.678200994 | AC118: 0.5944391179 | AD118: 1.466050728 | AE118: 5.055347337 | AF118: 4.480083675 | AG118: 4.689270461 | AH118: 5.125076266 | AI118: 5.212237427 | AJ118: 0.174322322
P119: 出典：「カーボンニュートラルポート（CNP）形成計画」策定マニュアル 初版 2021年12月 国土交通省港湾局

Sheet ③輸送・貯蔵
I1: 1 | J1: 2 | K1: 3 | L1: 4 | M1: 5 | N1: 6 | O1: 7 | P1: 8 | Q1: 9 | R1: 10 | S1: 11 | T1: 12 | U1: 13 | V1: 14 | W1: 15 | X1: 16 | Y1: 17 | Z1: 18 | AA1: 19 | AB1: 20 | AC1: 21 | AD1: 22 | AE1: 23 | AF1: 24
E2: 9 | H2: 10 | I2: 11 | L2: 12 | M2: 13 | P2: 14 | Q2: 15 | T2: 16 | U2: 17 | X2: 18 | Y2: 19 | AB2: 20
C5: ●年間需要量及び備蓄タンク必要基数・用地面積 （備蓄タンクは1ヵ月分の必要量を確保できる基数 ※１ヵ月分：年間需要÷12ヵ月×ピーク月係数)
C6: 寄港頻度：月1便 | E6: 北陸管内港湾全体に必要な機能 | I6: 新潟港への直送時に必要な機能 | M6: 直江津港への直送時に必要な機能 | Q6: 伏木富山港への直送時に必要な機能 | U6: 金沢港への直送時に必要な機能 | Y6: 七尾港への直送時に必要な機能 | AC6: 敦賀港への直送時に必要な機能
E7: 水素のみ | H7: アンモニア のみ | I7: 水素のみ | L7: アンモニア のみ | M7: 水素のみ | P7: アンモニア のみ | Q7: 水素のみ | T7: アンモニア のみ | U7: 水素のみ | X7: アンモニア のみ | Y7: 水素のみ | AB7: アンモニア のみ | AC7: 水素のみ | AF7: アンモニア のみ
F8: アンモニアクラッキング | G8: メタネーション | J8: アンモニアクラッキング | K8: メタネーション | N8: アンモニアクラッキング | O8: メタネーション | R8: アンモニアクラッキング | S8: メタネーション | V8: アンモニアクラッキング | W8: メタネーション | Z8: アンモニアクラッキング | AA8: メタネーション | AD8: アンモニアクラッキング | AE8: メタネーション
C10: 実証期 | D10: 年間需要 | E10: =SUM(I10,M10,Q10,U10,Y10,AC10) -> 3.55164829 | F10: =SUM(J10,N10,R10,V10,Z10,AD10) -> 4.331278402 | G10: =SUM(K10,O10,S10,W10,AA10,AE10) -> 5.223012191 | H10: =SUM(L10,P10,T10,X10,AB10,AF10) -> 43.13024225 | I10: =VLOOKUP(I$1,①需要!$D$30:$M$193,$A25,FALSE)/10000 -> 1.995456991 | J10: =VLOOKUP(J$1,①需要!$D$30:$M$193,$A25,FALSE)/10000 -> 2.433484135 | K10: =VLOOKUP(K$1,①需要!$D$30:$M$193,$A25,FALSE)/10000 -> 2.934495575 | L10: =VLOOKUP(L$1,①需要!$D$30:$M$193,$A25,FALSE)/10000 -> 0 | M10: =VLOOKUP(M$1,①需要!$D$30:$M$193,$A25,FALSE)/10000 -> 1.242693429 | N10: =VLOOKUP(N$1,①需要!$D$30:$M$193,$A25,FALSE)/10000 -> 1.515479792 | O10: =VLOOKUP(O$1,①需要!$D$30:$M$193,$A25,FALSE)/10000 -> 1.827490337 | P10: =VLOOKUP(P$1,①需要!$D$30:$M$193,$A25,FALSE)/10000 -> 0 | Q10: =VLOOKUP(Q$1,①需要!$D$30:$M$193,$A25,FALSE)/10000 -> 0.2953755145 | R10: =VLOOKUP(R$1,①需要!$D$30:$M$193,$A25,FALSE)/10000 -> 0.360214042 | S10: =VLOOKUP(S$1,①需要!$D$30:$M$193,$A25,FALSE)/10000 -> 0.4343757566 | T10: =VLOOKUP(T$1,①需要!$D$30:$M$193,$A25,FALSE)/10000 -> 8.388307785 | U10: =VLOOKUP(U$1,①需要!$D$30:$M$193,$A25,FALSE)/10000 -> 7.82e-05 | V10: =VLOOKUP(V$1,①需要!$D$30:$M$193,$A25,FALSE)/10000 -> 9.536585366e-05 | W10: =VLOOKUP(W$1,①需要!$D$30:$M$193,$A25,FALSE)/10000 -> 0.000115 | X10: =VLOOKUP(X$1,①需要!$D$30:$M$193,$A25,FALSE)/10000 -> 0 | Y10: =VLOOKUP(Y$1,①需要!$D$30:$M$193,$A25,FALSE)/10000 -> 0.01629952703 | Z10: =VLOOKUP(Z$1,①需要!$D$30:$M$193,$A25,FALSE)/10000 -> 0.01987747199 | AA10: =VLOOKUP(AA$1,①需要!$D$30:$M$193,$A25,FALSE)/10000 -> 0.0239698927 | AB10: =VLOOKUP(AB$1,①需要!$D$30:$M$193,$A25,FALSE)/10000 -> 17.11203497 | AC10: =VLOOKUP(AC$1,①需要!$D$30:$M$193,$A25,FALSE)/10000 -> 0.001744628099 | AD10: =VLOOKUP(AD$1,①需要!$D$30:$M$193,$A25,FALSE)/10000 -> 0.002127595243 | AE10: =VLOOKUP(AE$1,①需要!$D$30:$M$193,$A25,FALSE)/10000 -> 0.002565629558 | AF10: =VLOOKUP(AF$1,①需要!$D$30:$M$193,$A25,FALSE)/10000 -> 17.62989949
D11: 備蓄タンク | E11: =ROUNDUP(E10*10000/12/③輸送・貯蔵入力!$D$7/③輸送・貯蔵入力!$B$14*③輸送・貯蔵入力!$C$18,0) -> 1 | F11: =ROUNDUP(F10*10000/12/③輸送・貯蔵入力!$E$7/③輸送・貯蔵入力!$B$14*③輸送・貯蔵入力!$C$18,0) -> 1 | G11: =ROUNDUP(G10*10000/12/③輸送・貯蔵入力!$F$7/③輸送・貯蔵入力!$B$14*③輸送・貯蔵入力!$C$18,0) -> 1 | H11: =ROUNDUP(H10*10000/12/③輸送・貯蔵入力!$E$7/③輸送・貯蔵入力!$B$14*③輸送・貯蔵入力!$C$18,0) -> 1 | I11: =ROUNDUP(I10*10000/12/③輸送・貯蔵入力!$D$7/③輸送・貯蔵入力!$B$14*③輸送・貯蔵入力!$C$18,0) -> 1 | J11: =ROUNDUP(J10*10000/12/③輸送・貯蔵入力!$E$7/③輸送・貯蔵入力!$B$14*③輸送・貯蔵入力!$C$18,0) -> 1 | K11: =ROUNDUP(K10*10000/12/③輸送・貯蔵入力!$F$7/③輸送・貯蔵入力!$B$14*③輸送・貯蔵入力!$C$18,0) -> 1 | L11: =ROUNDUP(L10*10000/12/③輸送・貯蔵入力!$E$7/③輸送・貯蔵入力!$B$14*③輸送・貯蔵入力!$C$18,0) -> 0 | M11: =ROUNDUP(M10*10000/12/③輸送・貯蔵入力!$D$7/③輸送・貯蔵入力!$B$14*③輸送・貯蔵入力!$C$18,0) -> 1 | N11: =ROUNDUP(N10*10000/12/③輸送・貯蔵入力!$E$7/③輸送・貯蔵入力!$B$14*③輸送・貯蔵入力!$C$18,0) -> 1 | O11: =ROUNDUP(O10*10000/12/③輸送・貯蔵入力!$F$7/③輸送・貯蔵入力!$B$14*③輸送・貯蔵入力!$C$18,0) -> 1 | P11: =ROUNDUP(P10*10000/12/③輸送・貯蔵入力!$E$7/③輸送・貯蔵入力!$B$14*③輸送・貯蔵入力!$C$18,0) -> 0 | Q11: =ROUNDUP(Q10*10000/12/③輸送・貯蔵入力!$D$7/③輸送・貯蔵入力!$B$14*③輸送・貯蔵入力!$C$18,0) -> 1 | R11: =ROUNDUP(R10*10000/12/③輸送・貯蔵入力!$E$7/③輸送・貯蔵入力!$B$14*③輸送・貯蔵入力!$C$18,0) -> 1 | S11: =ROUNDUP(S10*10000/12/③輸送・貯蔵入力!$F$7/③輸送・貯蔵入力!$B$14*③輸送・貯蔵入力!$C$18,0) -> 1 | T11: =ROUNDUP(T10*10000/12/③輸送・貯蔵入力!$E$7/③輸送・貯蔵入力!$B$14*③輸送・貯蔵入力!$C$18,0) -> 1 | U11: =ROUNDUP(U10*10000/12/③輸送・貯蔵入力!$D$7/③輸送・貯蔵入力!$B$14*③輸送・貯蔵入力!$C$18,0) -> 1 | V11: =ROUNDUP(V10*10000/12/③輸送・貯蔵入力!$E$7/③輸送・貯蔵入力!$B$14*③輸送・貯蔵入力!$C$18,0) -> 1 | W11: =ROUNDUP(W10*10000/12/③輸送・貯蔵入力!$F$7/③輸送・貯蔵入力!$B$14*③輸送・貯蔵入力!$C$18,0) -> 1 | X11: =ROUNDUP(X10*10000/12/③輸送・貯蔵入力!$E$7/③輸送・貯蔵入力!$B$14*③輸送・貯蔵入力!$C$18,0) -> 0 | Y11: =ROUNDUP(Y10*10000/12/③輸送・貯蔵入力!$D$7/③輸送・貯蔵入力!$B$14*③輸送・貯蔵入力!$C$18,0) -> 1 | Z11: =ROUNDUP(Z10*10000/12/③輸送・貯蔵入力!$E$7/③輸送・貯蔵入力!$B$14*③輸送・貯蔵入力!$C$18,0) -> 1 | AA11: =ROUNDUP(AA10*10000/12/③輸送・貯蔵入力!$F$7/③輸送・貯蔵入力!$B$14*③輸送・貯蔵入力!$C$18,0) -> 1 | AB11: =ROUNDUP(AB10*10000/12/③輸送・貯蔵入力!$E$7/③輸送・貯蔵入力!$B$14*③輸送・貯蔵入力!$C$18,0) -> 1 | AC11: =ROUNDUP(AC10*10000/12/③輸送・貯蔵入力!$D$7/③輸送・貯蔵入力!$B$14*③輸送・貯蔵入力!$C$18,0) -> 1 | AD11: =ROUNDUP(AD10*10000/12/③輸送・貯蔵入力!$E$7/③輸送・貯蔵入力!$B$14*③輸送・貯蔵入力!$C$18,0) -> 1 | AE11: =ROUNDUP(AE10*10000/12/③輸送・貯蔵入力!$F$7/③輸送・貯蔵入力!$B$14*③輸送・貯蔵入力!$C$18,0) -> 1 | AF11: =ROUNDUP(AF10*10000/12/③輸送・貯蔵入力!$E$7/③輸送・貯蔵入力!$B$14*③輸送・貯蔵入力!$C$18,0) -> 1
D12: （用地面積） | E12: =IFERROR(VLOOKUP(E11,③輸送・貯蔵入力!$B$27:$E$127,2,FALSE)/10000,) -> 0 | F12: =IFERROR(VLOOKUP(F11,③輸送・貯蔵入力!$B$27:$E$127,3,FALSE)/10000,) -> 0 | G12: =IFERROR(VLOOKUP(G11,③輸送・貯蔵入力!$B$27:$E$127,4,FALSE)/10000,) -> 0 | H12: =IFERROR(VLOOKUP(H11,③輸送・貯蔵入力!$B$27:$E$127,3,FALSE)/10000,) -> 0 | I12: =IFERROR(VLOOKUP(I11,③輸送・貯蔵入力!$B$27:$E$127,2,FALSE)/10000,) -> 0 | J12: =IFERROR(VLOOKUP(J11,③輸送・貯蔵入力!$B$27:$E$127,3,FALSE)/10000,) -> 0 | K12: =IFERROR(VLOOKUP(K11,③輸送・貯蔵入力!$B$27:$E$127,4,FALSE)/10000,) -> 0 | L12: =IFERROR(VLOOKUP(L11,③輸送・貯蔵入力!$B$27:$E$127,3,FALSE)/10000,) -> 0 | M12: =IFERROR(VLOOKUP(M11,③輸送・貯蔵入力!$B$27:$E$127,2,FALSE)/10000,) -> 0 | N12: =IFERROR(VLOOKUP(N11,③輸送・貯蔵入力!$B$27:$E$127,3,FALSE)/10000,) -> 0 | O12: =IFERROR(VLOOKUP(O11,③輸送・貯蔵入力!$B$27:$E$127,4,FALSE)/10000,) -> 0 | P12: =IFERROR(VLOOKUP(P11,③輸送・貯蔵入力!$B$27:$E$127,3,FALSE)/10000,) -> 0 | Q12: =IFERROR(VLOOKUP(Q11,③輸送・貯蔵入力!$B$27:$E$127,2,FALSE)/10000,) -> 0 | R12: =IFERROR(VLOOKUP(R11,③輸送・貯蔵入力!$B$27:$E$127,3,FALSE)/10000,) -> 0 | S12: =IFERROR(VLOOKUP(S11,③輸送・貯蔵入力!$B$27:$E$127,4,FALSE)/10000,) -> 0 | T12: =IFERROR(VLOOKUP(T11,③輸送・貯蔵入力!$B$27:$E$127,3,FALSE)/10000,) -> 0 | U12: =IFERROR(VLOOKUP(U11,③輸送・貯蔵入力!$B$27:$E$127,2,FALSE)/10000,) -> 0 | V12: =IFERROR(VLOOKUP(V11,③輸送・貯蔵入力!$B$27:$E$127,3,FALSE)/10000,) -> 0 | W12: =IFERROR(VLOOKUP(W11,③輸送・貯蔵入力!$B$27:$E$127,4,FALSE)/10000,) -> 0 | X12: =IFERROR(VLOOKUP(X11,③輸送・貯蔵入力!$B$27:$E$127,3,FALSE)/10000,) -> 0 | Y12: =IFERROR(VLOOKUP(Y11,③輸送・貯蔵入力!$B$27:$E$127,2,FALSE)/10000,) -> 0 | Z12: =IFERROR(VLOOKUP(Z11,③輸送・貯蔵入力!$B$27:$E$127,3,FALSE)/10000,) -> 0 | AA12: =IFERROR(VLOOKUP(AA11,③輸送・貯蔵入力!$B$27:$E$127,4,FALSE)/10000,) -> 0 | AB12: =IFERROR(VLOOKUP(AB11,③輸送・貯蔵入力!$B$27:$E$127,3,FALSE)/10000,) -> 0 | AC12: =IFERROR(VLOOKUP(AC11,③輸送・貯蔵入力!$B$27:$E$127,2,FALSE)/10000,) -> 0 | AD12: =IFERROR(VLOOKUP(AD11,③輸送・貯蔵入力!$B$27:$E$127,3,FALSE)/10000,) -> 0 | AE12: =IFERROR(VLOOKUP(AE11,③輸送・貯蔵入力!$B$27:$E$127,4,FALSE)/10000,) -> 0 | AF12: =IFERROR(VLOOKUP(AF11,③輸送・貯蔵入力!$B$27:$E$127,3,FALSE)/10000,) -> 0
C13: 2030年 | D13: 年間需要 | E13: =SUM(I13,M13,Q13,U13,Y13,AC13) -> 8.166721195 | F13: =SUM(J13,N13,R13,V13,Z13,AD13) -> 9.959416092 | G13: 12.00988411 | H13: =SUM(L13,P13,T13,X13,AB13,AF13) -> 179.4701404 | I13: =VLOOKUP(I$1,①需要!$D$30:$M$193,$A28,FALSE)/10000 -> 4.385351177 | J13: =VLOOKUP(J$1,①需要!$D$30:$M$193,$A28,FALSE)/10000 -> 5.347989241 | K13: =VLOOKUP(K$1,①需要!$D$30:$M$193,$A28,FALSE)/10000 -> 6.449045849 | L13: =VLOOKUP(L$1,①需要!$D$30:$M$193,$A28,FALSE)/10000 -> 2.505133864 | M13: =VLOOKUP(M$1,①需要!$D$30:$M$193,$A28,FALSE)/10000 -> 2.652733009 | N13: =VLOOKUP(N$1,①需要!$D$30:$M$193,$A28,FALSE)/10000 -> 3.235040255 | O13: =VLOOKUP(O$1,①需要!$D$30:$M$193,$A28,FALSE)/10000 -> 3.901077955 | P13: =VLOOKUP(P$1,①需要!$D$30:$M$193,$A28,FALSE)/10000 -> 1.027821151 | Q13: =VLOOKUP(Q$1,①需要!$D$30:$M$193,$A28,FALSE)/10000 -> 0.7690159278 | R13: =VLOOKUP(R$1,①需要!$D$30:$M$193,$A28,FALSE)/10000 -> 0.9378243022 | S13: =VLOOKUP(S$1,①需要!$D$30:$M$193,$A28,FALSE)/10000 -> 1.130905776 | T13: =VLOOKUP(T$1,①需要!$D$30:$M$193,$A28,FALSE)/10000 -> 34.64904143 | U13: =VLOOKUP(U$1,①需要!$D$30:$M$193,$A28,FALSE)/10000 -> 0.04562050532 | V13: =VLOOKUP(V$1,①需要!$D$30:$M$193,$A28,FALSE)/10000 -> 0.05563476258 | W13: =VLOOKUP(W$1,①需要!$D$30:$M$193,$A28,FALSE)/10000 -> 0.06708897841 | X13: =VLOOKUP(X$1,①需要!$D$30:$M$193,$A28,FALSE)/10000 -> 0.4183150226 | Y13: =VLOOKUP(Y$1,①需要!$D$30:$M$193,$A28,FALSE)/10000 -> 0.07873747343 | Z13: =VLOOKUP(Z$1,①需要!$D$30:$M$193,$A28,FALSE)/10000 -> 0.09602130907 | AA13: =VLOOKUP(AA$1,①需要!$D$30:$M$193,$A28,FALSE)/10000 -> 0.1157904021 | AB13: =VLOOKUP(AB$1,①需要!$D$30:$M$193,$A28,FALSE)/10000 -> 68.87084156 | AC13: =VLOOKUP(AC$1,①需要!$D$30:$M$193,$A28,FALSE)/10000 -> 0.235263102 | AD13: =VLOOKUP(AD$1,①需要!$D$30:$M$193,$A28,FALSE)/10000 -> 0.2869062219 | AE13: =VLOOKUP(AE$1,①需要!$D$30:$M$193,$A28,FALSE)/10000 -> 0.34597515 | AF13: =VLOOKUP(AF$1,①需要!$D$30:$M$193,$A28,FALSE)/10000 -> 71.99898741
D14: 備蓄タンク | E14: =ROUNDUP(E13*10000/12/③輸送・貯蔵入力!$D$7/③輸送・貯蔵入力!$B$14*③輸送・貯蔵入力!$C$18,0) -> 2 | F14: =ROUNDUP(F13*10000/12/③輸送・貯蔵入力!$E$7/③輸送・貯蔵入力!$B$14*③輸送・貯蔵入力!$C$18,0) -> 1 | G14: =ROUNDUP(G13*10000/12/③輸送・貯蔵入力!$F$7/③輸送・貯蔵入力!$B$14*③輸送・貯蔵入力!$C$18,0) -> 1 | H14: =ROUNDUP(H13*10000/12/③輸送・貯蔵入力!$E$7/③輸送・貯蔵入力!$B$14*③輸送・貯蔵入力!$C$18,0) -> 2 | I14: =ROUNDUP(I13*10000/12/③輸送・貯蔵入力!$D$7/③輸送・貯蔵入力!$B$14*③輸送・貯蔵入力!$C$18,0) -> 1 | J14: =ROUNDUP(J13*10000/12/③輸送・貯蔵入力!$E$7/③輸送・貯蔵入力!$B$14*③輸送・貯蔵入力!$C$18,0) -> 1 | K14: =ROUNDUP(K13*10000/12/③輸送・貯蔵入力!$F$7/③輸送・貯蔵入力!$B$14*③輸送・貯蔵入力!$C$18,0) -> 1 | L14: =ROUNDUP(L13*10000/12/③輸送・貯蔵入力!$E$7/③輸送・貯蔵入力!$B$14*③輸送・貯蔵入力!$C$18,0) -> 1 | M14: =ROUNDUP(M13*10000/12/③輸送・貯蔵入力!$D$7/③輸送・貯蔵入力!$B$14*③輸送・貯蔵入力!$C$18,0) -> 1 | N14: =ROUNDUP(N13*10000/12/③輸送・貯蔵入力!$E$7/③輸送・貯蔵入力!$B$14*③輸送・貯蔵入力!$C$18,0) -> 1 | O14: =ROUNDUP(O13*10000/12/③輸送・貯蔵入力!$F$7/③輸送・貯蔵入力!$B$14*③輸送・貯蔵入力!$C$18,0) -> 1 | P14: =ROUNDUP(P13*10000/12/③輸送・貯蔵入力!$E$7/③輸送・貯蔵入力!$B$14*③輸送・貯蔵入力!$C$18,0) -> 1 | Q14: =ROUNDUP(Q13*10000/12/③輸送・貯蔵入力!$D$7/③輸送・貯蔵入力!$B$14*③輸送・貯蔵入力!$C$18,0) -> 1 | R14: =ROUNDUP(R13*10000/12/③輸送・貯蔵入力!$E$7/③輸送・貯蔵入力!$B$14*③輸送・貯蔵入力!$C$18,0) -> 1 | S14: =ROUNDUP(S13*10000/12/③輸送・貯蔵入力!$F$7/③輸送・貯蔵入力!$B$14*③輸送・貯蔵入力!$C$18,0) -> 1 | T14: =ROUNDUP(T13*10000/12/③輸送・貯蔵入力!$E$7/③輸送・貯蔵入力!$B$14*③輸送・貯蔵入力!$C$18,0) -> 1 | U14: =ROUNDUP(U13*10000/12/③輸送・貯蔵入力!$D$7/③輸送・貯蔵入力!$B$14*③輸送・貯蔵入力!$C$18,0) -> 1 | V14: =ROUNDUP(V13*10000/12/③輸送・貯蔵入力!$E$7/③輸送・貯蔵入力!$B$14*③輸送・貯蔵入力!$C$18,0) -> 1 | W14: =ROUNDUP(W13*10000/12/③輸送・貯蔵入力!$F$7/③輸送・貯蔵入力!$B$14*③輸送・貯蔵入力!$C$18,0) -> 1 | X14: =ROUNDUP(X13*10000/12/③輸送・貯蔵入力!$E$7/③輸送・貯蔵入力!$B$14*③輸送・貯蔵入力!$C$18,0) -> 1 | Y14: =ROUNDUP(Y13*10000/12/③輸送・貯蔵入力!$D$7/③輸送・貯蔵入力!$B$14*③輸送・貯蔵入力!$C$18,0) -> 1 | Z14: =ROUNDUP(Z13*10000/12/③輸送・貯蔵入力!$E$7/③輸送・貯蔵入力!$B$14*③輸送・貯蔵入力!$C$18,0) -> 1 | AA14: =ROUNDUP(AA13*10000/12/③輸送・貯蔵入力!$F$7/③輸送・貯蔵入力!$B$14*③輸送・貯蔵入力!$C$18,0) -> 1 | AB14: =ROUNDUP(AB13*10000/12/③輸送・貯蔵入力!$E$7/③輸送・貯蔵入力!$B$14*③輸送・貯蔵入力!$C$18,0) -> 1 | AC14: =ROUNDUP(AC13*10000/12/③輸送・貯蔵入力!$D$7/③輸送・貯蔵入力!$B$14*③輸送・貯蔵入力!$C$18,0) -> 1 | AD14: =ROUNDUP(AD13*10000/12/③輸送・貯蔵入力!$E$7/③輸送・貯蔵入力!$B$14*③輸送・貯蔵入力!$C$18,0) -> 1 | AE14: =ROUNDUP(AE13*10000/12/③輸送・貯蔵入力!$F$7/③輸送・貯蔵入力!$B$14*③輸送・貯蔵入力!$C$18,0) -> 1 | AF14: =ROUNDUP(AF13*10000/12/③輸送・貯蔵入力!$E$7/③輸送・貯蔵入力!$B$14*③輸送・貯蔵入力!$C$18,0) -> 1
D15: （用地面積） | E15: =IFERROR(VLOOKUP(E14,③輸送・貯蔵入力!$B$27:$E$127,2,FALSE)/10000,) -> 0 | F15: =IFERROR(VLOOKUP(F14,③輸送・貯蔵入力!$B$27:$E$127,3,FALSE)/10000,) -> 0 | G15: =IFERROR(VLOOKUP(G14,③輸送・貯蔵入力!$B$27:$E$127,4,FALSE)/10000,) -> 0 | H15: =IFERROR(VLOOKUP(H14,③輸送・貯蔵入力!$B$27:$E$127,3,FALSE)/10000,) -> 0 | I15: =IFERROR(VLOOKUP(I14,③輸送・貯蔵入力!$B$27:$E$127,2,FALSE)/10000,) -> 0 | J15: =IFERROR(VLOOKUP(J14,③輸送・貯蔵入力!$B$27:$E$127,3,FALSE)/10000,) -> 0 | K15: =IFERROR(VLOOKUP(K14,③輸送・貯蔵入力!$B$27:$E$127,4,FALSE)/10000,) -> 0 | L15: =IFERROR(VLOOKUP(L14,③輸送・貯蔵入力!$B$27:$E$127,3,FALSE)/10000,) -> 0 | M15: =IFERROR(VLOOKUP(M14,③輸送・貯蔵入力!$B$27:$E$127,2,FALSE)/10000,) -> 0 | N15: =IFERROR(VLOOKUP(N14,③輸送・貯蔵入力!$B$27:$E$127,3,FALSE)/10000,) -> 0 | O15: =IFERROR(VLOOKUP(O14,③輸送・貯蔵入力!$B$27:$E$127,4,FALSE)/10000,) -> 0 | P15: =IFERROR(VLOOKUP(P14,③輸送・貯蔵入力!$B$27:$E$127,3,FALSE)/10000,) -> 0 | Q15: =IFERROR(VLOOKUP(Q14,③輸送・貯蔵入力!$B$27:$E$127,2,FALSE)/10000,) -> 0 | R15: =IFERROR(VLOOKUP(R14,③輸送・貯蔵入力!$B$27:$E$127,3,FALSE)/10000,) -> 0 | S15: =IFERROR(VLOOKUP(S14,③輸送・貯蔵入力!$B$27:$E$127,4,FALSE)/10000,) -> 0 | T15: =IFERROR(VLOOKUP(T14,③輸送・貯蔵入力!$B$27:$E$127,3,FALSE)/10000,) -> 0 | U15: =IFERROR(VLOOKUP(U14,③輸送・貯蔵入力!$B$27:$E$127,2,FALSE)/10000,) -> 0 | V15: =IFERROR(VLOOKUP(V14,③輸送・貯蔵入力!$B$27:$E$127,3,FALSE)/10000,) -> 0 | W15: =IFERROR(VLOOKUP(W14,③輸送・貯蔵入力!$B$27:$E$127,4,FALSE)/10000,) -> 0 | X15: =IFERROR(VLOOKUP(X14,③輸送・貯蔵入力!$B$27:$E$127,3,FALSE)/10000,) -> 0 | Y15: =IFERROR(VLOOKUP(Y14,③輸送・貯蔵入力!$B$27:$E$127,2,FALSE)/10000,) -> 0 | Z15: =IFERROR(VLOOKUP(Z14,③輸送・貯蔵入力!$B$27:$E$127,3,FALSE)/10000,) -> 0 | AA15: =IFERROR(VLOOKUP(AA14,③輸送・貯蔵入力!$B$27:$E$127,4,FALSE)/10000,) -> 0 | AB15: =IFERROR(VLOOKUP(AB14,③輸送・貯蔵入力!$B$27:$E$127,3,FALSE)/10000,) -> 0 | AC15: =IFERROR(VLOOKUP(AC14,③輸送・貯蔵入力!$B$27:$E$127,2,FALSE)/10000,) -> 0 | AD15: =IFERROR(VLOOKUP(AD14,③輸送・貯蔵入力!$B$27:$E$127,3,FALSE)/10000,) -> 0 | AE15: =IFERROR(VLOOKUP(AE14,③輸送・貯蔵入力!$B$27:$E$127,4,FALSE)/10000,) -> 0 | AF15: =IFERROR(VLOOKUP(AF14,③輸送・貯蔵入力!$B$27:$E$127,3,FALSE)/10000,) -> 0
C16: 移行期 | D16: 年間需要 | E16: =SUM(I16,M16,Q16,U16,Y16,AC16) -> 60.57480144 | F16: =SUM(J16,N16,R16,V16,Z16,AD16) -> 73.87170907 | G16: 89.08059035 | H16: =SUM(L16,P16,T16,X16,AB16,AF16) -> 434.3789047 | I16: =VLOOKUP(I$1,①需要!$D$30:$M$193,$A31,FALSE)/10000 -> 28.10428109 | J16: =VLOOKUP(J$1,①需要!$D$30:$M$193,$A31,FALSE)/10000 -> 34.27351353 | K16: =VLOOKUP(K$1,①需要!$D$30:$M$193,$A31,FALSE)/10000 -> 41.32982513 | L16: =VLOOKUP(L$1,①需要!$D$30:$M$193,$A31,FALSE)/10000 -> 24.18811677 | M16: =VLOOKUP(M$1,①需要!$D$30:$M$193,$A31,FALSE)/10000 -> 18.54094536 | N16: =VLOOKUP(N$1,①需要!$D$30:$M$193,$A31,FALSE)/10000 -> 22.61090898 | O16: =VLOOKUP(O$1,①需要!$D$30:$M$193,$A31,FALSE)/10000 -> 27.26609612 | P16: =VLOOKUP(P$1,①需要!$D$30:$M$193,$A31,FALSE)/10000 -> 20.73914193 | Q16: =VLOOKUP(Q$1,①需要!$D$30:$M$193,$A31,FALSE)/10000 -> 7.351734401 | R16: =VLOOKUP(R$1,①需要!$D$30:$M$193,$A31,FALSE)/10000 -> 8.965529757 | S16: =VLOOKUP(S$1,①需要!$D$30:$M$193,$A31,FALSE)/10000 -> 10.81137412 | T16: =VLOOKUP(T$1,①需要!$D$30:$M$193,$A31,FALSE)/10000 -> 84.67001546 | U16: =VLOOKUP(U$1,①需要!$D$30:$M$193,$A31,FALSE)/10000 -> 1.809204638 | V16: =VLOOKUP(V$1,①需要!$D$30:$M$193,$A31,FALSE)/10000 -> 2.20634712 | W16: =VLOOKUP(W$1,①需要!$D$30:$M$193,$A31,FALSE)/10000 -> 2.660595056 | X16: =VLOOKUP(X$1,①需要!$D$30:$M$193,$A31,FALSE)/10000 -> 13.85253793 | Y16: =VLOOKUP(Y$1,①需要!$D$30:$M$193,$A31,FALSE)/10000 -> 2.006147133 | Z16: =VLOOKUP(Z$1,①需要!$D$30:$M$193,$A31,FALSE)/10000 -> 2.446520894 | AA16: =VLOOKUP(AA$1,①需要!$D$30:$M$193,$A31,FALSE)/10000 -> 2.950216372 | AB16: =VLOOKUP(AB$1,①需要!$D$30:$M$193,$A31,FALSE)/10000 -> 142.2076752 | AC16: =VLOOKUP(AC$1,①需要!$D$30:$M$193,$A31,FALSE)/10000 -> 2.762488807 | AD16: =VLOOKUP(AD$1,①需要!$D$30:$M$193,$A31,FALSE)/10000 -> 3.368888789 | AE16: =VLOOKUP(AE$1,①需要!$D$30:$M$193,$A31,FALSE)/10000 -> 4.06248354 | AF16: =VLOOKUP(AF$1,①需要!$D$30:$M$193,$A31,FALSE)/10000 -> 148.7214174
D17: 備蓄タンク | E17: =ROUNDUP(E16*10000/12/③輸送・貯蔵入力!$D$7/③輸送・貯蔵入力!$B$14*③輸送・貯蔵入力!$C$18,0) -> 9 | F17: =ROUNDUP(F16*10000/12/③輸送・貯蔵入力!$E$7/③輸送・貯蔵入力!$B$14*③輸送・貯蔵入力!$C$18,0) -> 1 | G17: =ROUNDUP(G16*10000/12/③輸送・貯蔵入力!$F$7/③輸送・貯蔵入力!$B$14*③輸送・貯蔵入力!$C$18,0) -> 2 | H17: =ROUNDUP(H16*10000/12/③輸送・貯蔵入力!$E$7/③輸送・貯蔵入力!$B$14*③輸送・貯蔵入力!$C$18,0) -> 4 | I17: =ROUNDUP(I16*10000/12/③輸送・貯蔵入力!$D$7/③輸送・貯蔵入力!$B$14*③輸送・貯蔵入力!$C$18,0) -> 4 | J17: =ROUNDUP(J16*10000/12/③輸送・貯蔵入力!$E$7/③輸送・貯蔵入力!$B$14*③輸送・貯蔵入力!$C$18,0) -> 1 | K17: =ROUNDUP(K16*10000/12/③輸送・貯蔵入力!$F$7/③輸送・貯蔵入力!$B$14*③輸送・貯蔵入力!$C$18,0) -> 1 | L17: =ROUNDUP(L16*10000/12/③輸送・貯蔵入力!$E$7/③輸送・貯蔵入力!$B$14*③輸送・貯蔵入力!$C$18,0) -> 1 | M17: =ROUNDUP(M16*10000/12/③輸送・貯蔵入力!$D$7/③輸送・貯蔵入力!$B$14*③輸送・貯蔵入力!$C$18,0) -> 3 | N17: =ROUNDUP(N16*10000/12/③輸送・貯蔵入力!$E$7/③輸送・貯蔵入力!$B$14*③輸送・貯蔵入力!$C$18,0) -> 1 | O17: =ROUNDUP(O16*10000/12/③輸送・貯蔵入力!$F$7/③輸送・貯蔵入力!$B$14*③輸送・貯蔵入力!$C$18,0) -> 1 | P17: =ROUNDUP(P16*10000/12/③輸送・貯蔵入力!$E$7/③輸送・貯蔵入力!$B$14*③輸送・貯蔵入力!$C$18,0) -> 1 | Q17: =ROUNDUP(Q16*10000/12/③輸送・貯蔵入力!$D$7/③輸送・貯蔵入力!$B$14*③輸送・貯蔵入力!$C$18,0) -> 1 | R17: =ROUNDUP(R16*10000/12/③輸送・貯蔵入力!$E$7/③輸送・貯蔵入力!$B$14*③輸送・貯蔵入力!$C$18,0) -> 1 | S17: =ROUNDUP(S16*10000/12/③輸送・貯蔵入力!$F$7/③輸送・貯蔵入力!$B$14*③輸送・貯蔵入力!$C$18,0) -> 1 | T17: =ROUNDUP(T16*10000/12/③輸送・貯蔵入力!$E$7/③輸送・貯蔵入力!$B$14*③輸送・貯蔵入力!$C$18,0) -> 1 | U17: =ROUNDUP(U16*10000/12/③輸送・貯蔵入力!$D$7/③輸送・貯蔵入力!$B$14*③輸送・貯蔵入力!$C$18,0) -> 1 | V17: =ROUNDUP(V16*10000/12/③輸送・貯蔵入力!$E$7/③輸送・貯蔵入力!$B$14*③輸送・貯蔵入力!$C$18,0) -> 1 | W17: =ROUNDUP(W16*10000/12/③輸送・貯蔵入力!$F$7/③輸送・貯蔵入力!$B$14*③輸送・貯蔵入力!$C$18,0) -> 1 | X17: =ROUNDUP(X16*10000/12/③輸送・貯蔵入力!$E$7/③輸送・貯蔵入力!$B$14*③輸送・貯蔵入力!$C$18,0) -> 1 | Y17: =ROUNDUP(Y16*10000/12/③輸送・貯蔵入力!$D$7/③輸送・貯蔵入力!$B$14*③輸送・貯蔵入力!$C$18,0) -> 1 | Z17: =ROUNDUP(Z16*10000/12/③輸送・貯蔵入力!$E$7/③輸送・貯蔵入力!$B$14*③輸送・貯蔵入力!$C$18,0) -> 1 | AA17: =ROUNDUP(AA16*10000/12/③輸送・貯蔵入力!$F$7/③輸送・貯蔵入力!$B$14*③輸送・貯蔵入力!$C$18,0) -> 1 | AB17: =ROUNDUP(AB16*10000/12/③輸送・貯蔵入力!$E$7/③輸送・貯蔵入力!$B$14*③輸送・貯蔵入力!$C$18,0) -> 2 | AC17: =ROUNDUP(AC16*10000/12/③輸送・貯蔵入力!$D$7/③輸送・貯蔵入力!$B$14*③輸送・貯蔵入力!$C$18,0) -> 1 | AD17: =ROUNDUP(AD16*10000/12/③輸送・貯蔵入力!$E$7/③輸送・貯蔵入力!$B$14*③輸送・貯蔵入力!$C$18,0) -> 1 | AE17: =ROUNDUP(AE16*10000/12/③輸送・貯蔵入力!$F$7/③輸送・貯蔵入力!$B$14*③輸送・貯蔵入力!$C$18,0) -> 1 | AF17: =ROUNDUP(AF16*10000/12/③輸送・貯蔵入力!$E$7/③輸送・貯蔵入力!$B$14*③輸送・貯蔵入力!$C$18,0) -> 2
D18: （用地面積） | E18: =IFERROR(VLOOKUP(E17,③輸送・貯蔵入力!$B$27:$E$127,2,FALSE)/10000,) -> 0 | F18: =IFERROR(VLOOKUP(F17,③輸送・貯蔵入力!$B$27:$E$127,3,FALSE)/10000,) -> 0 | G18: =IFERROR(VLOOKUP(G17,③輸送・貯蔵入力!$B$27:$E$127,4,FALSE)/10000,) -> 0 | H18: =IFERROR(VLOOKUP(H17,③輸送・貯蔵入力!$B$27:$E$127,3,FALSE)/10000,) -> 0 | I18: =IFERROR(VLOOKUP(I17,③輸送・貯蔵入力!$B$27:$E$127,2,FALSE)/10000,) -> 0 | J18: =IFERROR(VLOOKUP(J17,③輸送・貯蔵入力!$B$27:$E$127,3,FALSE)/10000,) -> 0 | K18: =IFERROR(VLOOKUP(K17,③輸送・貯蔵入力!$B$27:$E$127,4,FALSE)/10000,) -> 0 | L18: =IFERROR(VLOOKUP(L17,③輸送・貯蔵入力!$B$27:$E$127,3,FALSE)/10000,) -> 0 | M18: =IFERROR(VLOOKUP(M17,③輸送・貯蔵入力!$B$27:$E$127,2,FALSE)/10000,) -> 0 | N18: =IFERROR(VLOOKUP(N17,③輸送・貯蔵入力!$B$27:$E$127,3,FALSE)/10000,) -> 0 | O18: =IFERROR(VLOOKUP(O17,③輸送・貯蔵入力!$B$27:$E$127,4,FALSE)/10000,) -> 0 | P18: =IFERROR(VLOOKUP(P17,③輸送・貯蔵入力!$B$27:$E$127,3,FALSE)/10000,) -> 0 | Q18: =IFERROR(VLOOKUP(Q17,③輸送・貯蔵入力!$B$27:$E$127,2,FALSE)/10000,) -> 0 | R18: =IFERROR(VLOOKUP(R17,③輸送・貯蔵入力!$B$27:$E$127,3,FALSE)/10000,) -> 0 | S18: =IFERROR(VLOOKUP(S17,③輸送・貯蔵入力!$B$27:$E$127,4,FALSE)/10000,) -> 0 | T18: =IFERROR(VLOOKUP(T17,③輸送・貯蔵入力!$B$27:$E$127,3,FALSE)/10000,) -> 0 | U18: =IFERROR(VLOOKUP(U17,③輸送・貯蔵入力!$B$27:$E$127,2,FALSE)/10000,) -> 0 | V18: =IFERROR(VLOOKUP(V17,③輸送・貯蔵入力!$B$27:$E$127,3,FALSE)/10000,) -> 0 | W18: =IFERROR(VLOOKUP(W17,③輸送・貯蔵入力!$B$27:$E$127,4,FALSE)/10000,) -> 0 | X18: =IFERROR(VLOOKUP(X17,③輸送・貯蔵入力!$B$27:$E$127,3,FALSE)/10000,) -> 0 | Y18: =IFERROR(VLOOKUP(Y17,③輸送・貯蔵入力!$B$27:$E$127,2,FALSE)/10000,) -> 0 | Z18: =IFERROR(VLOOKUP(Z17,③輸送・貯蔵入力!$B$27:$E$127,3,FALSE)/10000,) -> 0 | AA18: =IFERROR(VLOOKUP(AA17,③輸送・貯蔵入力!$B$27:$E$127,4,FALSE)/10000,) -> 0 | AB18: =IFERROR(VLOOKUP(AB17,③輸送・貯蔵入力!$B$27:$E$127,3,FALSE)/10000,) -> 0 | AC18: =IFERROR(VLOOKUP(AC17,③輸送・貯蔵入力!$B$27:$E$127,2,FALSE)/10000,) -> 0 | AD18: =IFERROR(VLOOKUP(AD17,③輸送・貯蔵入力!$B$27:$E$127,3,FALSE)/10000,) -> 0 | AE18: =IFERROR(VLOOKUP(AE17,③輸送・貯蔵入力!$B$27:$E$127,4,FALSE)/10000,) -> 0 | AF18: =IFERROR(VLOOKUP(AF17,③輸送・貯蔵入力!$B$27:$E$127,3,FALSE)/10000,) -> 0
C19: 2050年 | D19: 年間需要 | E19: =SUM(I19,M19,Q19,U19,Y19,AC19) -> 317.3125531 | F19: =SUM(J19,N19,R19,V19,Z19,AD19) -> 386.9665282 | G19: 466.6361076 | H19: =SUM(L19,P19,T19,X19,AB19,AF19) -> 1081.397643 | I19: =VLOOKUP(I$1,①需要!$D$30:$M$193,$A34,FALSE)/10000 -> 167.966538 | J19: =VLOOKUP(J$1,①需要!$D$30:$M$193,$A34,FALSE)/10000 -> 204.8372415 | K19: =VLOOKUP(K$1,①需要!$D$30:$M$193,$A34,FALSE)/10000 -> 247.0096147 | L19: =VLOOKUP(L$1,①需要!$D$30:$M$193,$A34,FALSE)/10000 -> 48.45679846 | M19: =VLOOKUP(M$1,①需要!$D$30:$M$193,$A34,FALSE)/10000 -> 106.6830431 | N19: =VLOOKUP(N$1,①需要!$D$30:$M$193,$A34,FALSE)/10000 -> 130.101272 | O19: =VLOOKUP(O$1,①需要!$D$30:$M$193,$A34,FALSE)/10000 -> 156.8868281 | P19: =VLOOKUP(P$1,①需要!$D$30:$M$193,$A34,FALSE)/10000 -> 41.5454213 | Q19: =VLOOKUP(Q$1,①需要!$D$30:$M$193,$A34,FALSE)/10000 -> 31.25068979 | R19: =VLOOKUP(R$1,①需要!$D$30:$M$193,$A34,FALSE)/10000 -> 38.11059731 | S19: =VLOOKUP(S$1,①需要!$D$30:$M$193,$A34,FALSE)/10000 -> 45.95689675 | T19: =VLOOKUP(T$1,①需要!$D$30:$M$193,$A34,FALSE)/10000 -> 211.3218523 | U19: =VLOOKUP(U$1,①需要!$D$30:$M$193,$A34,FALSE)/10000 -> 2.493692628 | V19: =VLOOKUP(V$1,①需要!$D$30:$M$193,$A34,FALSE)/10000 -> 3.041088571 | W19: =VLOOKUP(W$1,①需要!$D$30:$M$193,$A34,FALSE)/10000 -> 3.667195041 | X19: =VLOOKUP(X$1,①需要!$D$30:$M$193,$A34,FALSE)/10000 -> 27.73193084 | Y19: =VLOOKUP(Y$1,①需要!$D$30:$M$193,$A34,FALSE)/10000 -> 3.795971931 | Z19: =VLOOKUP(Z$1,①需要!$D$30:$M$193,$A34,FALSE)/10000 -> 4.629234062 | AA19: =VLOOKUP(AA$1,①需要!$D$30:$M$193,$A34,FALSE)/10000 -> 5.582311664 | AB19: =VLOOKUP(AB$1,①需要!$D$30:$M$193,$A34,FALSE)/10000 -> 370.0023802 | AC19: =VLOOKUP(AC$1,①需要!$D$30:$M$193,$A34,FALSE)/10000 -> 5.122617693 | AD19: =VLOOKUP(AD$1,①需要!$D$30:$M$193,$A34,FALSE)/10000 -> 6.247094748 | AE19: =VLOOKUP(AE$1,①需要!$D$30:$M$193,$A34,FALSE)/10000 -> 7.533261313 | AF19: =VLOOKUP(AF$1,①需要!$D$30:$M$193,$A34,FALSE)/10000 -> 382.3392596
D20: 備蓄タンク | E20: =ROUNDUP(E19*10000/12/③輸送・貯蔵入力!$D$7/③輸送・貯蔵入力!$B$14*③輸送・貯蔵入力!$C$18,0) -> 43 | F20: =ROUNDUP(F19*10000/12/③輸送・貯蔵入力!$E$7/③輸送・貯蔵入力!$B$14*③輸送・貯蔵入力!$C$18,0) -> 4 | G20: =ROUNDUP(G19*10000/12/③輸送・貯蔵入力!$F$7/③輸送・貯蔵入力!$B$14*③輸送・貯蔵入力!$C$18,0) -> 6 | H20: =ROUNDUP(H19*10000/12/③輸送・貯蔵入力!$E$7/③輸送・貯蔵入力!$B$14*③輸送・貯蔵入力!$C$18,0) -> 10 | I20: =ROUNDUP(I19*10000/12/③輸送・貯蔵入力!$D$7/③輸送・貯蔵入力!$B$14*③輸送・貯蔵入力!$C$18,0) -> 23 | J20: =ROUNDUP(J19*10000/12/③輸送・貯蔵入力!$E$7/③輸送・貯蔵入力!$B$14*③輸送・貯蔵入力!$C$18,0) -> 2 | K20: =ROUNDUP(K19*10000/12/③輸送・貯蔵入力!$F$7/③輸送・貯蔵入力!$B$14*③輸送・貯蔵入力!$C$18,0) -> 3 | L20: =ROUNDUP(L19*10000/12/③輸送・貯蔵入力!$E$7/③輸送・貯蔵入力!$B$14*③輸送・貯蔵入力!$C$18,0) -> 1 | M20: =ROUNDUP(M19*10000/12/③輸送・貯蔵入力!$D$7/③輸送・貯蔵入力!$B$14*③輸送・貯蔵入力!$C$18,0) -> 15 | N20: =ROUNDUP(N19*10000/12/③輸送・貯蔵入力!$E$7/③輸送・貯蔵入力!$B$14*③輸送・貯蔵入力!$C$18,0) -> 2 | O20: =ROUNDUP(O19*10000/12/③輸送・貯蔵入力!$F$7/③輸送・貯蔵入力!$B$14*③輸送・貯蔵入力!$C$18,0) -> 2 | P20: =ROUNDUP(P19*10000/12/③輸送・貯蔵入力!$E$7/③輸送・貯蔵入力!$B$14*③輸送・貯蔵入力!$C$18,0) -> 1 | Q20: =ROUNDUP(Q19*10000/12/③輸送・貯蔵入力!$D$7/③輸送・貯蔵入力!$B$14*③輸送・貯蔵入力!$C$18,0) -> 5 | R20: =ROUNDUP(R19*10000/12/③輸送・貯蔵入力!$E$7/③輸送・貯蔵入力!$B$14*③輸送・貯蔵入力!$C$18,0) -> 1 | S20: =ROUNDUP(S19*10000/12/③輸送・貯蔵入力!$F$7/③輸送・貯蔵入力!$B$14*③輸送・貯蔵入力!$C$18,0) -> 1 | T20: =ROUNDUP(T19*10000/12/③輸送・貯蔵入力!$E$7/③輸送・貯蔵入力!$B$14*③輸送・貯蔵入力!$C$18,0) -> 2 | U20: =ROUNDUP(U19*10000/12/③輸送・貯蔵入力!$D$7/③輸送・貯蔵入力!$B$14*③輸送・貯蔵入力!$C$18,0) -> 1 | V20: =ROUNDUP(V19*10000/12/③輸送・貯蔵入力!$E$7/③輸送・貯蔵入力!$B$14*③輸送・貯蔵入力!$C$18,0) -> 1 | W20: =ROUNDUP(W19*10000/12/③輸送・貯蔵入力!$F$7/③輸送・貯蔵入力!$B$14*③輸送・貯蔵入力!$C$18,0) -> 1 | X20: =ROUNDUP(X19*10000/12/③輸送・貯蔵入力!$E$7/③輸送・貯蔵入力!$B$14*③輸送・貯蔵入力!$C$18,0) -> 1 | Y20: =ROUNDUP(Y19*10000/12/③輸送・貯蔵入力!$D$7/③輸送・貯蔵入力!$B$14*③輸送・貯蔵入力!$C$18,0) -> 1 | Z20: =ROUNDUP(Z19*10000/12/③輸送・貯蔵入力!$E$7/③輸送・貯蔵入力!$B$14*③輸送・貯蔵入力!$C$18,0) -> 1 | AA20: =ROUNDUP(AA19*10000/12/③輸送・貯蔵入力!$F$7/③輸送・貯蔵入力!$B$14*③輸送・貯蔵入力!$C$18,0) -> 1 | AB20: =ROUNDUP(AB19*10000/12/③輸送・貯蔵入力!$E$7/③輸送・貯蔵入力!$B$14*③輸送・貯蔵入力!$C$18,0) -> 4 | AC20: =ROUNDUP(AC19*10000/12/③輸送・貯蔵入力!$D$7/③輸送・貯蔵入力!$B$14*③輸送・貯蔵入力!$C$18,0) -> 1 | AD20: =ROUNDUP(AD19*10000/12/③輸送・貯蔵入力!$E$7/③輸送・貯蔵入力!$B$14*③輸送・貯蔵入力!$C$18,0) -> 1 | AE20: =ROUNDUP(AE19*10000/12/③輸送・貯蔵入力!$F$7/③輸送・貯蔵入力!$B$14*③輸送・貯蔵入力!$C$18,0) -> 1 | AF20: =ROUNDUP(AF19*10000/12/③輸送・貯蔵入力!$E$7/③輸送・貯蔵入力!$B$14*③輸送・貯蔵入力!$C$18,0) -> 4
D21: （用地面積） | E21: =IFERROR(VLOOKUP(E20,③輸送・貯蔵入力!$B$27:$E$127,2,FALSE)/10000,) -> 0 | F21: =IFERROR(VLOOKUP(F20,③輸送・貯蔵入力!$B$27:$E$127,3,FALSE)/10000,) -> 0 | G21: =IFERROR(VLOOKUP(G20,③輸送・貯蔵入力!$B$27:$E$127,4,FALSE)/10000,) -> 0 | H21: =IFERROR(VLOOKUP(H20,③輸送・貯蔵入力!$B$27:$E$127,3,FALSE)/10000,) -> 0 | I21: =IFERROR(VLOOKUP(I20,③輸送・貯蔵入力!$B$27:$E$127,2,FALSE)/10000,) -> 0 | J21: =IFERROR(VLOOKUP(J20,③輸送・貯蔵入力!$B$27:$E$127,3,FALSE)/10000,) -> 0 | K21: =IFERROR(VLOOKUP(K20,③輸送・貯蔵入力!$B$27:$E$127,4,FALSE)/10000,) -> 0 | L21: =IFERROR(VLOOKUP(L20,③輸送・貯蔵入力!$B$27:$E$127,3,FALSE)/10000,) -> 0 | M21: =IFERROR(VLOOKUP(M20,③輸送・貯蔵入力!$B$27:$E$127,2,FALSE)/10000,) -> 0 | N21: =IFERROR(VLOOKUP(N20,③輸送・貯蔵入力!$B$27:$E$127,3,FALSE)/10000,) -> 0 | O21: =IFERROR(VLOOKUP(O20,③輸送・貯蔵入力!$B$27:$E$127,4,FALSE)/10000,) -> 0 | P21: =IFERROR(VLOOKUP(P20,③輸送・貯蔵入力!$B$27:$E$127,3,FALSE)/10000,) -> 0 | Q21: =IFERROR(VLOOKUP(Q20,③輸送・貯蔵入力!$B$27:$E$127,2,FALSE)/10000,) -> 0 | R21: =IFERROR(VLOOKUP(R20,③輸送・貯蔵入力!$B$27:$E$127,3,FALSE)/10000,) -> 0 | S21: =IFERROR(VLOOKUP(S20,③輸送・貯蔵入力!$B$27:$E$127,4,FALSE)/10000,) -> 0 | T21: =IFERROR(VLOOKUP(T20,③輸送・貯蔵入力!$B$27:$E$127,3,FALSE)/10000,) -> 0 | U21: =IFERROR(VLOOKUP(U20,③輸送・貯蔵入力!$B$27:$E$127,2,FALSE)/10000,) -> 0 | V21: =IFERROR(VLOOKUP(V20,③輸送・貯蔵入力!$B$27:$E$127,3,FALSE)/10000,) -> 0 | W21: =IFERROR(VLOOKUP(W20,③輸送・貯蔵入力!$B$27:$E$127,4,FALSE)/10000,) -> 0 | X21: =IFERROR(VLOOKUP(X20,③輸送・貯蔵入力!$B$27:$E$127,3,FALSE)/10000,) -> 0 | Y21: =IFERROR(VLOOKUP(Y20,③輸送・貯蔵入力!$B$27:$E$127,2,FALSE)/10000,) -> 0 | Z21: =IFERROR(VLOOKUP(Z20,③輸送・貯蔵入力!$B$27:$E$127,3,FALSE)/10000,) -> 0 | AA21: =IFERROR(VLOOKUP(AA20,③輸送・貯蔵入力!$B$27:$E$127,4,FALSE)/10000,) -> 0 | AB21: =IFERROR(VLOOKUP(AB20,③輸送・貯蔵入力!$B$27:$E$127,3,FALSE)/10000,) -> 0 | AC21: =IFERROR(VLOOKUP(AC20,③輸送・貯蔵入力!$B$27:$E$127,2,FALSE)/10000,) -> 0 | AD21: =IFERROR(VLOOKUP(AD20,③輸送・貯蔵入力!$B$27:$E$127,3,FALSE)/10000,) -> 0 | AE21: =IFERROR(VLOOKUP(AE20,③輸送・貯蔵入力!$B$27:$E$127,4,FALSE)/10000,) -> 0 | AF21: =IFERROR(VLOOKUP(AF20,③輸送・貯蔵入力!$B$27:$E$127,3,FALSE)/10000,) -> 0
C22: ※備蓄タンクの必要基数は「潜在需要量（月換算）」から「備蓄タンクの容量」を割り戻して算出しているため、北陸管内港湾全体と各港の合計値が合わない場合があることに留意する
A25: 6
A28: 7
A31: 8
A34: 9
A43: 6
A46: 7
A49: 8
A52: 9

Sheet 用地面積計算（水素考え方） (hidden)
I3: 0.5 | J3: 0.5 | K3: 1 | M3: 0.5
H4: 0.5 | I4: 1 | J4: 1 | K4: 1 | L4: 1 | M4: 1 | N4: 1 | O4: 1 | P4: 1 | Q4: 1 | R4: 1 | AA4: 1 | AB4: 1 | AC4: 1 | AD4: 1 | AE4: 1 | AF4: 1 | AG4: 1 | AH4: 1 | AI4: 1 | AJ4: 1 | AU4: 1 | AV4: 1 | AW4: 1 | AX4: 1 | AY4: 1 | AZ4: 1 | BA4: 1 | BB4: 1 | BC4: 1 | BD4: 1 | BL4: 1 | BM4: 1 | BN4: 1 | BO4: 1 | BP4: 1 | BQ4: 1 | BR4: 1 | BS4: 1 | BT4: 1 | BU4: 1 | BV4: 1 | BW4: 1 | BX4: 1 | BY4: 1
C5: 水素 | D5: アンモニア | E5: メタン | H5: 0.5 | I5: 1 | R5: 1 | AA5: 1 | AJ5: 1 | AU5: 1 | BD5: 1 | BL5: 1 | BY5: 1
B6: 余白面積(㎡) 緑背景 | C6: =(③輸送・貯蔵入力!D8/2)*(③輸送・貯蔵入力!D8/2) -> 1089 | D6: =(③輸送・貯蔵入力!E8/3)*(③輸送・貯蔵入力!E8/3) -> 625 | E6: =(③輸送・貯蔵入力!F8/2)*(③輸送・貯蔵入力!F8/2) -> 1444 | H6: 1 | I6: 1 | K6: ● | O6: ● | R6: 1 | AA6: 1 | AC6: ● | AG6: ● | AJ6: 1 | AU6: 1 | AW6: ● | BA6: ● | BD6: 1 | BL6: 1 | BN6: ● | BR6: ● | BV6: ● | BY6: 1
B7: タンク周辺面積(㎡) 黄背景 | C7: =C6*16 -> 17424 | D7: =(③輸送・貯蔵入力!E8*5/3)*(③輸送・貯蔵入力!E8*5/3) -> 15625 | E7: =E6*16 -> 23104 | I7: 1 | R7: 1 | AA7: 1 | AJ7: 1 | AU7: 1 | BD7: 1 | BL7: 1 | BY7: 1
H8: 0.5 | I8: 1 | R8: 1 | AA8: 1 | AJ8: 1 | AU8: 1 | BD8: 1 | BL8: 1 | BY8: 1
I9: 1 | N9: 1 | O9: 1 | P9: 1 | Q9: 1 | R9: 1 | AA9: 1 | AJ9: 1 | AU9: 1 | BD9: 1 | BL9: 1 | BU9: 1 | BV9: 1 | BW9: 1 | BX9: 1 | BY9: 1
B10: タンク個数_縦 | C10: タンク個数_横 | D10: 余白個数 | E10: 範囲From | F10: 範囲To | I10: 1 | K10: ● | N10: 1 | AA10: 1 | AC10: ● | AG10: ● | AJ10: 1 | AU10: 1 | AW10: ● | BA10: ● | BD10: 1 | BL10: 1 | BN10: ● | BR10: ● | BU10: 1
B11: 1 | C11: 1 | D11: 20 | E11: 1 | F11: 1 | I11: 1 | N11: 1 | AA11: 1 | AJ11: 1 | AU11: 1 | BD11: 1 | BL11: 1 | BU11: 1
B12: 2 | C12: 1 | D12: 28 | E12: 2 | F12: 2 | I12: 1 | N12: 1 | AA12: 1 | AJ12: 1 | AU12: 1 | BD12: 1 | BL12: 1 | BU12: 1
B13: 2 | C13: =C11+1 -> 2 | D13: 36 | E13: 3 | F13: =B13*C13 -> 4 | I13: 1 | J13: 1 | K13: 1 | L13: 1 | M13: 1 | N13: 1 | AA13: 1 | AB13: 1 | AC13: 1 | AD13: 1 | AE13: 1 | AF13: 1 | AG13: 1 | AH13: 1 | AI13: 1 | AJ13: 1 | AU13: 1 | AZ13: 1 | BA13: 1 | BB13: 1 | BC13: 1 | BD13: 1 | BL13: 1 | BU13: 1
B14: =B12+1 -> 3 | C14: =C12+1 -> 2 | D14: 44 | E14: =F13+1 -> 5 | F14: =B14*C14 -> 6 | AU14: 1 | AW14: ● | AZ14: 1 | BL14: 1 | BN14: ● | BR14: ● | BU14: 1
B15: 3 | C15: 3 | D15: 52 | E15: =F14+1 -> 7 | F15: 9 | AU15: 1 | AZ15: 1 | BL15: 1 | BU15: 1
B16: 4 | C16: 3 | D16: 60 | E16: 10 | F16: 12 | AU16: 1 | AZ16: 1 | BL16: 1 | BU16: 1
B17: 4 | C17: 4 | D17: 68 | E17: 13 | F17: 16 | I17: 余白個数 | M17: =SUM(I4:R13) -> 36 | AC17: 余白個数 | AG17: =SUM(AA4:AJ13) -> 36 | AU17: 1 | AV17: 1 | AW17: 1 | AX17: 1 | AY17: 1 | AZ17: 1 | BL17: 1 | BM17: 1 | BN17: 1 | BO17: 1 | BP17: 1 | BQ17: 1 | BR17: 1 | BS17: 1 | BT17: 1 | BU17: 1
B18: =B16+1 -> 5 | C18: =C16+1 -> 4 | D18: 76 | E18: 17 | F18: 20 | I18: 余白面積 | M18: =SUM(I4:R13)*$C$6 -> 39204 | AC18: 余白面積 | AG18: =SUM(AA4:AJ13)*$C$6 -> 39204
B19: =B17+1 -> 5 | C19: 5 | D19: 84 | E19: 21 | F19: 25
B20: =B18+1 -> 6 | C20: 5 | D20: 92 | E20: 26 | F20: 30
B21: 6 | C21: 6 | D21: 100 | E21: 31 | F21: 36
B22: 7 | C22: 6 | D22: 108 | E22: 37 | F22: 42
B23: 7 | C23: 7 | D23: 116 | E23: 43 | F23: 49
B24: 8 | C24: 7 | D24: 124 | E24: 50 | F24: 56
B25: 8 | C25: 8 | D25: 132 | E25: 57 | F25: 64
B26: 9 | C26: 8 | D26: 140 | E26: 65 | F26: 72 | K26: 1 | L26: 1 | M26: 1 | N26: 1 | O26: 1 | P26: 1 | Q26: 1 | R26: 1 | S26: 1 | T26: 1 | U26: 1 | V26: 1 | W26: 1 | X26: 1 | AG26: 1 | AH26: 1 | AI26: 1 | AJ26: 1 | AK26: 1 | AL26: 1 | AM26: 1 | AN26: 1 | AO26: 1 | AP26: 1 | AQ26: 1 | AR26: 1 | AS26: 1 | AT26: 1 | BA26: 1 | BB26: 1 | BC26: 1 | BD26: 1 | BE26: 1 | BF26: 1 | BG26: 1 | BH26: 1 | BI26: 1 | BJ26: 1 | BK26: 1 | BL26: 1 | BM26: 1 | BN26: 1 | BU26: 1 | BV26: 1 | BW26: 1 | BX26: 1 | BY26: 1 | BZ26: 1 | CA26: 1 | CB26: 1 | CC26: 1 | CD26: 1 | CE26: 1 | CF26: 1 | CG26: 1 | CH26: 1 | CI26: 1 | CJ26: 1 | CK26: 1 | CL26: 1 | CS26: 1 | CT26: 1 | CU26: 1 | CV26: 1 | CW26: 1 | CX26: 1 | CY26: 1 | CZ26: 1 | DA26: 1 | DB26: 1 | DC26: 1 | DD26: 1 | DE26: 1 | DF26: 1 | DG26: 1 | DH26: 1 | DI26: 1 | DJ26: 1
B27: 9 | C27: 9 | D27: 148 | E27: 73 | F27: 81 | K27: 1 | X27: 1 | AG27: 1 | AT27: 1 | BA27: 1 | BN27: 1 | BU27: 1 | CL27: 1 | CS27: 1 | DJ27: 1
B28: 10 | C28: 9 | D28: 156 | E28: 82 | F28: 90 | K28: 1 | M28: ● | Q28: ● | U28: ● | X28: 1 | AG28: 1 | AI28: ● | AM28: ● | AQ28: ● | AT28: 1 | BA28: 1 | BC28: ● | BG28: ● | BK28: ● | BN28: 1 | BU28: 1 | BW28: ● | CA28: ● | CE28: ● | CI28: ● | CL28: 1 | CS28: 1 | CU28: ● | CY28: ● | DC28: ● | DG28: ● | DJ28: 1
B29: 10 | C29: 10 | D29: 164 | E29: 91 | F29: 100 | K29: 1 | X29: 1 | AG29: 1 | AT29: 1 | BA29: 1 | BN29: 1 | BU29: 1 | CL29: 1 | CS29: 1 | DJ29: 1
K30: 1 | X30: 1 | AG30: 1 | AT30: 1 | BA30: 1 | BN30: 1 | BU30: 1 | CL30: 1 | CS30: 1 | DJ30: 1
K31: 1 | X31: 1 | AG31: 1 | AT31: 1 | BA31: 1 | BN31: 1 | BU31: 1 | CL31: 1 | CS31: 1 | DJ31: 1
K32: 1 | M32: ● | Q32: ● | U32: ● | X32: 1 | AG32: 1 | AI32: ● | AM32: ● | AQ32: ● | AT32: 1 | BA32: 1 | BC32: ● | BG32: ● | BK32: ● | BN32: 1 | BU32: 1 | BW32: ● | CA32: ● | CE32: ● | CI32: ● | CL32: 1 | CS32: 1 | CU32: ● | CY32: ● | DC32: ● | DG32: ● | DJ32: 1
K33: 1 | X33: 1 | AG33: 1 | AT33: 1 | BA33: 1 | BN33: 1 | BU33: 1 | CL33: 1 | CS33: 1 | DJ33: 1
K34: 1 | X34: 1 | AG34: 1 | AT34: 1 | BA34: 1 | BN34: 1 | BU34: 1 | CL34: 1 | CS34: 1 | DJ34: 1
